Workbook

Sheet Intro
F1: Electricity Distribution Network Service Providers
K2: Roll Forward Model
K3: Version: 01
K4: Date: 26 June 2008
B7: Introduction
C13: This Roll Forward Model (RFM) is used by the Australian Energy Regulator to determine the value of the opening
C14: regulatory asset base for distribution network service providers.
D19: AMENDMENT RECORD
D21: version no. | E21: date of issue | G21: details of amendments
D22: version 01 | E22: 2008-06-26

Sheet Input
F2: Input Variables | G2: Input cells are in blue
F5: ="Opening Regulated Asset Base for "&CONCATENATE(LEFT(V7, 4)-1 &"-" &IF(V7>"2009-10",,"0") &RIGHT(V7,2)-1) &" ($m Nominal)" -> Opening Regulated Asset Base for 2010-010 ($m Nominal)
G6: Asset Class Name | J6: Opening Asset Value | K6: Remaining Life | L6: Standard Life | M6: Forecast Net Capex | N6: Forecast Regulatory Depreciation | O6: Prudent Additional Capex Allowance | P6: Foregone Return on Additional Capex | Q6: Forecast Assets Under Construction | R6: Actual Assets Under Construction | S6: Opening Tax Value | T6: Tax Remaining Life | U6: Tax Standard Life | V6: Base Financial Year | W6: Start of Regulatory period | X6: Regulatory period (years)
F7: Asset Class 1 | G7: Subtransmission | H7: 0 | I7: 0 | J7: 325.7660564 | K7: 24 | L7: 60 | M7: 35.90784182 | N7: 2.213820802 | O7: 10.8405184 | P7: 5.902085981 | Q7: 0 | R7: 0 | S7: 0 | T7: n/a | U7: n/a | V7: 2011 | W7: 2011-01-01 | X7: 5
F8: Asset Class 2 | G8: Distribution system assets | H8: 0 | I8: 0 | J8: 986.9678619 | K8: 24 | L8: 35.6 | M8: 76.48115818 | N8: 31.14929528 | O8: -102.7461457 | P8: -33.60739812 | Q8: 0 | R8: 0 | S8: 0 | T8: n/a | U8: n/a
F9: Asset Class 3 | G9: Metering | H9: 0 | I9: 0 | J9: 52.91166256 | K9: 5 | L9: 5 | M9: 0 | N9: 3.683380237 | O9: -1.468898036 | P9: -0.7997368932 | Q9: 0 | R9: 0 | S9: 0 | T9: n/a | U9: n/a
F10: Asset Class 4 | G10: Public Lighting | H10: 0 | I10: 0 | J10: 3.818760446 | K10: 5 | L10: 5 | M10: 0 | N10: 0.4516476664 | O10: 0 | P10: 0 | Q10: 0 | R10: 0 | S10: 0 | T10: n/a | U10: n/a
F11: Asset Class 5 | G11: SCADA (5-year asset) | H11: 0 | I11: 0 | J11: 0 | K11: 5 | L11: 5 | M11: 0 | N11: 0 | O11: -0.5207156611 | P11: 0.5207156611 | Q11: 0 | R11: 0 | S11: 0 | T11: n/a | U11: n/a
F12: Asset Class 6 | G12: Non network - IT | H12: 0 | I12: 0 | J12: 1.831823481 | K12: 5 | L12: 5 | M12: 9.42 | N12: 23.97510408 | O12: 2.954426762 | P12: 9.76885384 | Q12: 0 | R12: 0 | S12: 0 | T12: n/a | U12: n/a
F13: Asset Class 7 | G13: Non network - other | H13: 0 | I13: 0 | J13: 27.92739502 | K13: 5 | L13: 7.5 | M13: 3.05 | N13: 3.450222858 | O13: -1.184421978 | P13: -0.6448548028 | Q13: 0 | R13: 0 | S13: 0 | T13: n/a | U13: n/a
F14: Asset Class 8 | G14: Neutral Screen Services | H14: 0 | I14: 0 | J14: 0 | K14: 5 | L14: 5 | M14: 0 | N14: 0 | O14: 0 | P14: 26.226 | Q14: 0 | R14: 0 | S14: 0 | T14: n/a | U14: n/a
F15: Asset Class 9 | G15: Distribution Transformers upgrades | H15: 0 | I15: 0 | J15: 0 | K15: 5 | L15: 5 | M15: 0 | N15: 0 | O15: 0 | P15: 5.828 | Q15: 0 | R15: 0 | S15: 0 | T15: n/a | U15: n/a
F16: Asset Class 10 | G16: Equity Raising Costs | H16: 0 | I16: 0 | J16: 0 | K16: 40 | L16: 40.42935011 | M16: 0 | N16: 0 | O16: 0 | P16: 0 | Q16: 0 | R16: 0 | S16: 0 | T16: n/a | U16: n/a
F17: Asset Class 11
F18: Asset Class 12
F19: Asset Class 13
F20: Asset Class 14
F21: Asset Class 15
F22: Asset Class 16
F23: Asset Class 17
F24: Asset Class 18
F25: Asset Class 19
F26: Asset Class 20
F27: Asset Class 21
F28: Asset Class 22
F29: Asset Class 23
F30: Asset Class 24
F31: Asset Class 25
F32: Asset Class 26
F33: Asset Class 27
F34: Asset Class 28
F35: Asset Class 29
F36: Asset Class 30
F37: Total | J37: =SUM(J7:J36) -> 1399.22356 | M37: =SUM(M7:M36) -> 124.859 | N37: 64.92347092 | O37: -92.12523625 | P37: 13.19366567 | Q37: 0 | R37: 0
F39: Actual Capital Expenditure – As Incurred ($m Nominal)
F40: Year | G40: =IF(LEN(H40)>4,CONCATENATE(LEFT(H40,4)-1&"-"&IF(H40>"2009-10",,"0")&RIGHT(H40,2)-1),H40-1) -> 2010 | H40: =V7 -> 2011 | I40: =IF(LEN(H40)>4,CONCATENATE(LEFT(H40,4)+1&"-"&IF(H40>"2007-08",,"0")&RIGHT(H40,2)+1),H40+1) -> 2012 | J40: =IF(LEN(I40)>4,CONCATENATE(LEFT(I40,4)+1&"-"&IF(I40>"2007-08",,"0")&RIGHT(I40,2)+1),I40+1) -> 2013 | K40: 2014 | L40: 2015 | M40: 2016 | N40: 2017 | O40: 2018 | P40: 2019 | Q40: 2020
F41: =Asset1 -> Subtransmission | G41: 14.49515375 | H41: 21.97437553 | I41: 53.09621621 | J41: 35.79392812 | K41: 39.95952017 | L41: 40.57092595
F42: =Asset2 -> Distribution system assets | G42: 99.8035237 | H42: 103.6790571 | I42: 123.4003705 | J42: 137.5135571 | K42: 142.3920022 | L42: 135.0961134
F43: =Asset3 -> Metering | G43: 0 | H43: 0 | I43: 0 | J43: 0 | K43: 0 | L43: 0
F44: =Asset4 -> Public Lighting | G44: 0 | H44: 0 | I44: 0 | J44: 0 | K44: 0 | L44: 0
F45: =Asset5 -> SCADA (5-year asset) | G45: 0 | H45: 1.0044835 | I45: 4.48370648 | J45: 2.05672656 | K45: -0.050765 | L45: 0
F46: =Asset6 -> Non network - IT | G46: 19.20485407 | H46: 49.8697433 | I46: 11.37233901 | J46: 8.38865288 | K46: 23.721676 | L46: 24.34497108
F47: =Asset7 -> Non network - other | G47: 5.439158699 | H47: 9.34839317 | I47: 12.59017268 | J47: 8.30744136 | K47: 4.03205291 | L47: 3.586362098
F48: =Asset8 -> Neutral Screen Services | G48: 0 | H48: 0 | I48: 0 | J48: 0 | K48: 0 | L48: 0
F49: =Asset9 -> Distribution Transformers upgrades | G49: 0 | H49: 0 | I49: 0 | J49: 0 | K49: 0 | L49: 0
F50: =Asset10 -> Equity Raising Costs | G50: 0 | H50: =3.4952252238197*(H178^0.5) -> 3.543607907 | I50: 0 | J50: 0 | K50: 0 | L50: 0
F51: =Asset11 -> 0
F52: =Asset12 -> 0
F53: =Asset13 -> 0
F54: =Asset14 -> 0
F55: =Asset15 -> 0
F56: =Asset16 -> 0
F57: =Asset17 -> 0
F58: =Asset18 -> 0
F59: =Asset19 -> 0
F60: =Asset20 -> 0
F61: =Asset21 -> 0
F62: =Asset22 -> 0
F63: =Asset23 -> 0
F64: =Asset24 -> 0
F65: =Asset25 -> 0
F66: =Asset26 -> 0
F67: =Asset27 -> 0
F68: =Asset28 -> 0
F69: =Asset29 -> 0
F70: =Asset30 -> 0
F71: Total | G71: =SUM(G41:G70) -> 138.9426902 | H71: =SUM(H41:H70) -> 189.4196605 | I71: 204.9428048 | J71: 192.060306 | K71: 210.0544863 | L71: 203.5983725 | M71: 0 | N71: 0 | O71: 0 | P71: 0 | Q71: 0
R72: =SUM(G71:Q71) -> 1139.01832
F73: Actual Asset Disposal – As Incurred ($m Nominal)
F74: Year | G74: =G40 -> 2010 | H74: =H40 -> 2011 | I74: 2012 | J74: 2013 | K74: 2014 | L74: 2015 | M74: 2016 | N74: 2017 | O74: 2018 | P74: 2019 | Q74: 2020
F75: =Asset1 -> Subtransmission | G75: 0 | H75: 0 | I75: 0 | J75: 0.0502926 | K75: 0.12605389 | L75: 0
F76: =Asset2 -> Distribution system assets | G76: 0 | H76: 0.125159 | I76: 0 | J76: 0 | K76: 0.08 | L76: 0
F77: =Asset3 -> Metering | G77: 0 | H77: 0.00416 | I77: 0 | J77: 0 | K77: 0 | L77: 0
F78: =Asset4 -> Public Lighting | G78: 0 | H78: 0.05263745 | I78: 0.11000208 | J78: 0 | K78: 0 | L78: 0
F79: =Asset5 -> SCADA (5-year asset) | G79: 0 | H79: 0 | I79: 0 | J79: 0 | K79: 0 | L79: 0
F80: =Asset6 -> Non network - IT | G80: 0 | H80: 0 | I80: 0 | J80: 0.12650973 | K80: 0 | L80: 0
F81: =Asset7 -> Non network - other | G81: 0.246 | H81: 0.06363245 | I81: 0.15654878 | J81: 0 | K81: 0.19365015 | L81: 0
F82: =Asset8 -> Neutral Screen Services | G82: 0 | H82: 0 | I82: 0 | J82: 0 | K82: 0 | L82: 0
F83: =Asset9 -> Distribution Transformers upgrades | G83: 0 | H83: 0 | I83: 0 | J83: 0 | K83: 0 | L83: 0
F84: =Asset10 -> Equity Raising Costs | G84: 0 | H84: 0 | I84: 0 | J84: 0 | K84: 0 | L84: 0
F85: =Asset11 -> 0
F86: =Asset12 -> 0
F87: =Asset13 -> 0
F88: =Asset14 -> 0
F89: =Asset15 -> 0
F90: =Asset16 -> 0
F91: =Asset17 -> 0
F92: =Asset18 -> 0
F93: =Asset19 -> 0
F94: =Asset20 -> 0
F95: =Asset21 -> 0
F96: =Asset22 -> 0
F97: =Asset23 -> 0
F98: =Asset24 -> 0
F99: =Asset25 -> 0
F100: =Asset26 -> 0
F101: =Asset27 -> 0
F102: =Asset28 -> 0
F103: =Asset29 -> 0
F104: =Asset30 -> 0
F105: Total | G105: =SUM(G75:G104) -> 0.246 | H105: 0.2455889 | I105: 0.26655086 | J105: 0.17680233 | K105: 0.39970404 | L105: 0 | M105: 0 | N105: 0 | O105: 0 | P105: 0 | Q105: 0
R106: =SUM(G105:Q105) -> 1.33464613
F107: Actual Customer Contributions – As Incurred ($m Nominal)
F108: Year | G108: =G74 -> 2010 | H108: =H74 -> 2011 | I108: 2012 | J108: 2013 | K108: 2014 | L108: 2015 | M108: 2016 | N108: 2017 | O108: 2018 | P108: 2019 | Q108: 2020
F109: =Asset1 -> Subtransmission | G109: 0 | H109: 0 | I109: 0 | J109: 0 | K109: 0 | L109: 0
F110: =Asset2 -> Distribution system assets | G110: 10.56082018 | H110: 14.58334452 | I110: 18.11268377 | J110: 14.86159475 | K110: 8.21339236 | L110: 12.33409932
F111: =Asset3 -> Metering | G111: 0 | H111: 0 | I111: 0 | J111: 0 | K111: 0 | L111: 0
F112: =Asset4 -> Public Lighting | G112: 0 | H112: 0 | I112: 0 | J112: 0 | K112: 0 | L112: 0
F113: =Asset5 -> SCADA (5-year asset) | G113: 0 | H113: 0 | I113: 0 | J113: 0 | K113: 0 | L113: 0
F114: =Asset6 -> Non network - IT | G114: 0 | H114: 0 | I114: 0 | J114: 0 | K114: 0 | L114: 0
F115: =Asset7 -> Non network - other | G115: 0 | H115: 0 | I115: 0 | J115: 0 | K115: 0 | L115: 0
F116: =Asset8 -> Neutral Screen Services | G116: 0 | H116: 0 | I116: 0 | J116: 0 | K116: 0 | L116: 0
F117: =Asset9 -> Distribution Transformers upgrades | G117: 0 | H117: 0 | I117: 0 | J117: 0 | K117: 0 | L117: 0
F118: =Asset10 -> Equity Raising Costs | G118: 0 | H118: 0 | I118: 0 | J118: 0 | K118: 0 | L118: 0
F119: =Asset11 -> 0
F120: =Asset12 -> 0
F121: =Asset13 -> 0
F122: =Asset14 -> 0
F123: =Asset15 -> 0
F124: =Asset16 -> 0
F125: =Asset17 -> 0
F126: =Asset18 -> 0
F127: =Asset19 -> 0
F128: =Asset20 -> 0
F129: =Asset21 -> 0
F130: =Asset22 -> 0
F131: =Asset23 -> 0
F132: =Asset24 -> 0
F133: =Asset25 -> 0
F134: =Asset26 -> 0
F135: =Asset27 -> 0
F136: =Asset28 -> 0
F137: =Asset29 -> 0
F138: =Asset30 -> 0
F139: Total | G139: =SUM(G109:G138) -> 10.56082018 | H139: 14.58334452 | I139: 18.11268377 | J139: 14.86159475 | K139: 8.21339236 | L139: 12.33409932 | M139: 0 | N139: 0 | O139: 0 | P139: 0 | Q139: 0
R140: =SUM(G139:Q139) -> 78.6659349
F141: ="Actual Net Capital Expenditure – As Incurred ($m Real "&CONCATENATE(LEFT(V7, 4)-1 &"-" &IF(V7>"2009-10",,"0") &RIGHT(V7,2)-1)&")" -> Actual Net Capital Expenditure – As Incurred ($m Real 2010-010)
F142: Year | G142: =G40 -> 2010 | H142: =H40 -> 2011 | I142: 2012 | J142: 2013 | K142: 2014 | L142: 2015 | M142: 2016 | N142: 2017 | O142: 2018 | P142: 2019 | Q142: 2020
F143: =Asset1 -> Subtransmission | G143: =(G41-G75-G109)/G$178 -> 14.49515375 | H143: 21.37841728 | I143: 49.90080715 | J143: 32.93255938 | K143: 35.92438147 | L143: 35.76414363 | M143: 0 | N143: 0 | O143: 0 | P143: 0 | Q143: 0
F144: =Asset2 -> Distribution system assets | G144: =(G42-G76-G110)/G$178 -> 89.24270352 | H144: 86.55761877 | I144: 98.95131751 | J144: 113.0059373 | K144: 120.9387499 | L144: 108.2173552 | M144: 0 | N144: 0 | O144: 0 | P144: 0 | Q144: 0
F145: =Asset3 -> Metering | G145: =(G43-G77-G111)/G$178 -> 0 | H145: -0.004047178304 | I145: 0 | J145: 0 | K145: 0 | L145: 0 | M145: 0 | N145: 0 | O145: 0 | P145: 0 | Q145: 0
F146: =Asset4 -> Public Lighting | G146: =(G44-G78-G112)/G$178 -> 0 | H146: -0.05120989077 | I146: -0.1033819916 | J146: 0 | K146: 0 | L146: 0 | M146: 0 | N146: 0 | O146: 0 | P146: 0 | Q146: 0
F147: =Asset5 -> SCADA (5-year asset) | G147: =(G45-G79-G113)/G$178 -> 0 | H147: 0.9772413047 | I147: 4.213870372 | J147: 1.894974268 | K147: -0.04578314155 | L147: 0 | M147: 0 | N147: 0 | O147: 0 | P147: 0 | Q147: 0
F148: =Asset6 -> Non network - IT | G148: =(G46-G80-G114)/G$178 -> 19.20485407 | H148: 48.51724593 | I148: 10.68793478 | J148: 7.612362758 | K148: 21.39373289 | L148: 21.46061551 | M148: 0 | N148: 0 | O148: 0 | P148: 0 | Q148: 0
F149: =Asset7 -> Non network - other | G149: =(G47-G81-G115)/G$178 -> 5.193158699 | H149: 9.032952437 | I149: 11.68534997 | J149: 7.654098468 | K149: 3.461718446 | L149: 3.161455308 | M149: 0 | N149: 0 | O149: 0 | P149: 0 | Q149: 0
F150: =Asset8 -> Neutral Screen Services | G150: =(G48-G82-G116)/G$178 -> 0 | H150: 0 | I150: 0 | J150: 0 | K150: 0 | L150: 0 | M150: 0 | N150: 0 | O150: 0 | P150: 0 | Q150: 0
F151: =Asset9 -> Distribution Transformers upgrades | G151: =(G49-G83-G117)/G$178 -> 0 | H151: 0 | I151: 0 | J151: 0 | K151: 0 | L151: 0 | M151: 0 | N151: 0 | O151: 0 | P151: 0 | Q151: 0
F152: =Asset10 -> Equity Raising Costs | G152: =(G50-G84-G118)/G$178 -> 0 | H152: 3.447503134 | I152: 0 | J152: 0 | K152: 0 | L152: 0 | M152: 0 | N152: 0 | O152: 0 | P152: 0 | Q152: 0
F153: =Asset11 -> 0 | G153: =(G51-G85-G119)/G$178 -> 0 | H153: 0 | I153: 0 | J153: 0 | K153: 0 | L153: 0 | M153: 0 | N153: 0 | O153: 0 | P153: 0 | Q153: 0
F154: =Asset12 -> 0 | G154: =(G52-G86-G120)/G$178 -> 0 | H154: 0 | I154: 0 | J154: 0 | K154: 0 | L154: 0 | M154: 0 | N154: 0 | O154: 0 | P154: 0 | Q154: 0
F155: =Asset13 -> 0 | G155: =(G53-G87-G121)/G$178 -> 0 | H155: 0 | I155: 0 | J155: 0 | K155: 0 | L155: 0 | M155: 0 | N155: 0 | O155: 0 | P155: 0 | Q155: 0
F156: =Asset14 -> 0 | G156: =(G54-G88-G122)/G$178 -> 0 | H156: 0 | I156: 0 | J156: 0 | K156: 0 | L156: 0 | M156: 0 | N156: 0 | O156: 0 | P156: 0 | Q156: 0
F157: =Asset15 -> 0 | G157: =(G55-G89-G123)/G$178 -> 0 | H157: 0 | I157: 0 | J157: 0 | K157: 0 | L157: 0 | M157: 0 | N157: 0 | O157: 0 | P157: 0 | Q157: 0
F158: =Asset16 -> 0 | G158: =(G56-G90-G124)/G$178 -> 0 | H158: 0 | I158: 0 | J158: 0 | K158: 0 | L158: 0 | M158: 0 | N158: 0 | O158: 0 | P158: 0 | Q158: 0
F159: =Asset17 -> 0 | G159: =(G57-G91-G125)/G$178 -> 0 | H159: 0 | I159: 0 | J159: 0 | K159: 0 | L159: 0 | M159: 0 | N159: 0 | O159: 0 | P159: 0 | Q159: 0
F160: =Asset18 -> 0 | G160: =(G58-G92-G126)/G$178 -> 0 | H160: 0 | I160: 0 | J160: 0 | K160: 0 | L160: 0 | M160: 0 | N160: 0 | O160: 0 | P160: 0 | Q160: 0
F161: =Asset19 -> 0 | G161: =(G59-G93-G127)/G$178 -> 0 | H161: 0 | I161: 0 | J161: 0 | K161: 0 | L161: 0 | M161: 0 | N161: 0 | O161: 0 | P161: 0 | Q161: 0
F162: =Asset20 -> 0 | G162: =(G60-G94-G128)/G$178 -> 0 | H162: 0 | I162: 0 | J162: 0 | K162: 0 | L162: 0 | M162: 0 | N162: 0 | O162: 0 | P162: 0 | Q162: 0
F163: =Asset21 -> 0 | G163: =(G61-G95-G129)/G$178 -> 0 | H163: 0 | I163: 0 | J163: 0 | K163: 0 | L163: 0 | M163: 0 | N163: 0 | O163: 0 | P163: 0 | Q163: 0
F164: =Asset22 -> 0 | G164: =(G62-G96-G130)/G$178 -> 0 | H164: 0 | I164: 0 | J164: 0 | K164: 0 | L164: 0 | M164: 0 | N164: 0 | O164: 0 | P164: 0 | Q164: 0
F165: =Asset23 -> 0 | G165: =(G63-G97-G131)/G$178 -> 0 | H165: 0 | I165: 0 | J165: 0 | K165: 0 | L165: 0 | M165: 0 | N165: 0 | O165: 0 | P165: 0 | Q165: 0
F166: =Asset24 -> 0 | G166: =(G64-G98-G132)/G$178 -> 0 | H166: 0 | I166: 0 | J166: 0 | K166: 0 | L166: 0 | M166: 0 | N166: 0 | O166: 0 | P166: 0 | Q166: 0
F167: =Asset25 -> 0 | G167: =(G65-G99-G133)/G$178 -> 0 | H167: 0 | I167: 0 | J167: 0 | K167: 0 | L167: 0 | M167: 0 | N167: 0 | O167: 0 | P167: 0 | Q167: 0
F168: =Asset26 -> 0 | G168: =(G66-G100-G134)/G$178 -> 0 | H168: 0 | I168: 0 | J168: 0 | K168: 0 | L168: 0 | M168: 0 | N168: 0 | O168: 0 | P168: 0 | Q168: 0
F169: =Asset27 -> 0 | G169: =(G67-G101-G135)/G$178 -> 0 | H169: 0 | I169: 0 | J169: 0 | K169: 0 | L169: 0 | M169: 0 | N169: 0 | O169: 0 | P169: 0 | Q169: 0
F170: =Asset28 -> 0 | G170: =(G68-G102-G136)/G$178 -> 0 | H170: 0 | I170: 0 | J170: 0 | K170: 0 | L170: 0 | M170: 0 | N170: 0 | O170: 0 | P170: 0 | Q170: 0
F171: =Asset29 -> 0 | G171: =(G69-G103-G137)/G$178 -> 0 | H171: 0 | I171: 0 | J171: 0 | K171: 0 | L171: 0 | M171: 0 | N171: 0 | O171: 0 | P171: 0 | Q171: 0
F172: =Asset30 -> 0 | G172: =(G70-G104-G138)/G$178 -> 0 | H172: 0 | I172: 0 | J172: 0 | K172: 0 | L172: 0 | M172: 0 | N172: 0 | O172: 0 | P172: 0 | Q172: 0
F173: Total | G173: =SUM(G143:G172) -> 128.13587 | H173: 169.8557218 | I173: 175.3358978 | J173: 163.0999321 | K173: 181.6727996 | L173: 168.6035696 | M173: 0 | N173: 0 | O173: 0 | P173: 0 | Q173: 0
R174: =SUM(G173:Q173) -> 986.7037909
F175: Inflation and Rate of Return
G176: =G40 -> 2010 | H176: =H40 -> 2011 | I176: 2012 | J176: 2013 | K176: 2014 | L176: 2015 | M176: 2016 | N176: 2017 | O176: 2018 | P176: 2019 | Q176: 2020
F177: Actual CPI Inflation Rate | G177: 0.01261261261 | H177: 0.02787663108 | I177: 0.03517794427 | J177: 0.02004008016 | K177: 0.02161100196 | L177: 0.02307692308
F178: Actual CPI (one year lagged) | G178: 1 | H178: =G178*(1+H177) -> 1.027876631 | I178: =H178*(1+I177) -> 1.064035218 | J178: 1.085358569 | K178: 1.108814255 | L178: 1.134402276 | M178: 1.134402276 | N178: 1.134402276 | O178: 1.134402276 | P178: 1.134402276 | Q178: 1.134402276
F179: Forecast Inflation Rate | G179: 0.0256 | H179: 0.0257487534 | I179: =H179 -> 0.0257487534 | J179: =I179 -> 0.0257487534 | K179: 0.0257487534 | L179: 0.0257487534 | M179: 0.0257487534 | N179: 0.0257487534 | O179: 0.0257487534 | P179: 0.0257487534 | Q179: 0.0257487534
F180: Forecast Inflation Cumulative Index | G180: 1 | H180: =G180*(1+H179) -> 1.025748753 | I180: =H180*(1+I179) -> 1.052160505 | J180: 1.079252326 | K180: 1.107041729 | L180: 1.135546673 | M180: 1.164785584 | N180: 1.194777361 | O180: 1.225541389 | P180: 1.257097552 | Q180: 1.289466247
F182: Nominal WACC | G182: 0.0886 | H182: 0.09489772882 | I182: =H182 -> 0.09489772882 | J182: =I182 -> 0.09489772882 | K182: 0.09489772882 | L182: 0.09489772882 | M182: 0.09489772882 | N182: 0.09489772882 | O182: 0.09489772882 | P182: 0.09489772882 | Q182: 0.09489772882
F183: Real WACC | G183: =(1+G182)/(1+G179)-1 -> 0.0614274571 | H183: =(1+H182)/(1+H179)-1 -> 0.06741317032 | I183: =H183 -> 0.06741317032 | J183: =I183 -> 0.06741317032 | K183: 0.06741317032 | L183: 0.06741317032 | M183: =L183 -> 0.06741317032 | N183: 0.06741317032 | O183: 0.06741317032 | P183: 0.06741317032 | Q183: 0.06741317032
F184: Nominal WACC (fixed real time varying) | G184: 0 | H184: =(1+H183)*(1+H177)-1 -> 0.09716905348 | I184: =(1+I183)*(1+I177)-1 -> 0.1049625713 | J184: =(1+J183)*(1+J177)-1 -> 0.08880421582 | K184: =(1+K183)*(1+K177)-1 -> 0.09048103844 | L184: =(1+L183)*(1+L177)-1 -> 0.09204578194 | M184: =IF(M177=0, 0, (1+M183)*(1+M177)-1) -> 0 | N184: =IF(N177=0, 0, (1+N183)*(1+N177)-1) -> 0 | O184: =IF(O177=0, 0, (1+O183)*(1+O177)-1) -> 0 | P184: =IF(P177=0, 0, (1+P183)*(1+P177)-1) -> 0 | Q184: =IF(Q177=0, 0, (1+Q183)*(1+Q177)-1) -> 0

Sheet Adjustment for previous period
B2: Adjustments for Previous Regulatory Control Period
B4: Year | F4: =IF(LEN(G4)>4,CONCATENATE(LEFT(G4,4)-1&"-"&IF(G4>"2009-10",,"0")&RIGHT(G4,2)-1),G4-1) -> 2009 | G4: =Input!G40 -> 2010 | H4: =Input!H40 -> 2011 | I4: =Input!I40 -> 2012 | J4: =Input!J40 -> 2013 | K4: =Input!K40 -> 2014 | L4: =Input!L40 -> 2015 | M4: =Input!M40 -> 2016 | N4: =Input!N40 -> 2017 | O4: =Input!O40 -> 2018 | P4: =Input!P40 -> 2019 | Q4: =Input!Q40 -> 2020
B6: Actual CPI Inflation Rate | F6: 0.01261261261 | G6: =Input!G177 -> 0.01261261261
B7: Nominal Vanilla WACC (fixed real time varying) | H7: =vanilla1 -> 0.09716905348 | I7: =vanilla2 -> 0.1049625713 | J7: =vanilla3 -> 0.08880421582 | K7: =vanilla4 -> 0.09048103844 | L7: =vanilla5 -> 0.09204578194 | M7: =vanilla6 -> 0 | N7: =vanilla7 -> 0 | O7: =vanilla8 -> 0 | P7: =vanilla9 -> 0 | Q7: =vanilla10 -> 0
B9: Nominal Adjustments for Difference Between Forecast and Actual Capex
B11: Nominal Forecast Net Capex (previous regulatory control period) | G11: =SUM(G12:G41) -> 124.859
C12: =Asset1 -> Subtransmission | G12: =Input!M7 -> 35.90784182
C13: =Asset2 -> Distribution system assets | G13: =Input!M8 -> 76.48115818
C14: =Asset3 -> Metering | G14: =Input!M9 -> 0
C15: =Asset4 -> Public Lighting | G15: =Input!M10 -> 0
C16: =Asset5 -> SCADA (5-year asset) | G16: =Input!M11 -> 0
C17: =Asset6 -> Non network - IT | G17: =Input!M12 -> 9.42
C18: =Asset7 -> Non network - other | G18: =Input!M13 -> 3.05
C19: =Asset8 -> Neutral Screen Services | G19: =Input!M14 -> 0
C20: =Asset9 -> Distribution Transformers upgrades | G20: =Input!M15 -> 0
C21: =Asset10 -> Equity Raising Costs | G21: =Input!M16 -> 0
C22: =Asset11 -> 0 | G22: =Input!M17 -> 0
C23: =Asset12 -> 0 | G23: =Input!M18 -> 0
C24: =Asset13 -> 0 | G24: =Input!M19 -> 0
C25: =Asset14 -> 0 | G25: =Input!M20 -> 0
C26: =Asset15 -> 0 | G26: =Input!M21 -> 0
C27: =Asset16 -> 0 | G27: =Input!M22 -> 0
C28: =Asset17 -> 0 | G28: =Input!M23 -> 0
C29: =Asset18 -> 0 | G29: =Input!M24 -> 0
C30: =Asset19 -> 0 | G30: =Input!M25 -> 0
C31: =Asset20 -> 0 | G31: =Input!M26 -> 0
C32: =Asset21 -> 0 | G32: =Input!M27 -> 0
C33: =Asset22 -> 0 | G33: =Input!M28 -> 0
C34: =Asset23 -> 0 | G34: =Input!M29 -> 0
C35: =Asset24 -> 0 | G35: =Input!M30 -> 0
C36: =Asset25 -> 0 | G36: =Input!M31 -> 0
C37: =Asset26 -> 0 | G37: =Input!M32 -> 0
C38: =Asset27 -> 0 | G38: =Input!M33 -> 0
C39: =Asset28 -> 0 | G39: =Input!M34 -> 0
C40: =Asset29 -> 0 | G40: =Input!M35 -> 0
C41: =Asset30 -> 0 | G41: =Input!M36 -> 0
B43: Nominal Actual Net Capex | G43: =SUM(G44:G73) -> 128.13587
C44: =Asset1 -> Subtransmission | G44: =Input!G143*(1+previous_vanilla)^0.5 -> 14.49515375
C45: =Asset2 -> Distribution system assets | G45: =Input!G144*(1+previous_vanilla)^0.5 -> 89.24270352
C46: =Asset3 -> Metering | G46: =Input!G145*(1+previous_vanilla)^0.5 -> 0
C47: =Asset4 -> Public Lighting | G47: =Input!G146*(1+previous_vanilla)^0.5 -> 0
C48: =Asset5 -> SCADA (5-year asset) | G48: =Input!G147*(1+previous_vanilla)^0.5 -> 0
C49: =Asset6 -> Non network - IT | G49: =Input!G148*(1+previous_vanilla)^0.5 -> 19.20485407
C50: =Asset7 -> Non network - other | G50: =Input!G149*(1+previous_vanilla)^0.5 -> 5.193158699
C51: =Asset8 -> Neutral Screen Services | G51: =Input!G150*(1+previous_vanilla)^0.5 -> 0
C52: =Asset9 -> Distribution Transformers upgrades | G52: =Input!G151*(1+previous_vanilla)^0.5 -> 0
C53: =Asset10 -> Equity Raising Costs | G53: =Input!G152*(1+previous_vanilla)^0.5 -> 0
C54: =Asset11 -> 0 | G54: =Input!G153*(1+previous_vanilla)^0.5 -> 0
C55: =Asset12 -> 0 | G55: =Input!G154*(1+previous_vanilla)^0.5 -> 0
C56: =Asset13 -> 0 | G56: =Input!G155*(1+previous_vanilla)^0.5 -> 0
C57: =Asset14 -> 0 | G57: =Input!G156*(1+previous_vanilla)^0.5 -> 0
C58: =Asset15 -> 0 | G58: =Input!G157*(1+previous_vanilla)^0.5 -> 0
C59: =Asset16 -> 0 | G59: =Input!G158*(1+previous_vanilla)^0.5 -> 0
C60: =Asset17 -> 0 | G60: =Input!G159*(1+previous_vanilla)^0.5 -> 0
C61: =Asset18 -> 0 | G61: =Input!G160*(1+previous_vanilla)^0.5 -> 0
C62: =Asset19 -> 0 | G62: =Input!G161*(1+previous_vanilla)^0.5 -> 0
C63: =Asset20 -> 0 | G63: =Input!G162*(1+previous_vanilla)^0.5 -> 0
C64: =Asset21 -> 0 | G64: =Input!G163*(1+previous_vanilla)^0.5 -> 0
C65: =Asset22 -> 0 | G65: =Input!G164*(1+previous_vanilla)^0.5 -> 0
C66: =Asset23 -> 0 | G66: =Input!G165*(1+previous_vanilla)^0.5 -> 0
C67: =Asset24 -> 0 | G67: =Input!G166*(1+previous_vanilla)^0.5 -> 0
C68: =Asset25 -> 0 | G68: =Input!G167*(1+previous_vanilla)^0.5 -> 0
C69: =Asset26 -> 0 | G69: =Input!G168*(1+previous_vanilla)^0.5 -> 0
C70: =Asset27 -> 0 | G70: =Input!G169*(1+previous_vanilla)^0.5 -> 0
C71: =Asset28 -> 0 | G71: =Input!G170*(1+previous_vanilla)^0.5 -> 0
C72: =Asset29 -> 0 | G72: =Input!G171*(1+previous_vanilla)^0.5 -> 0
C73: =Asset30 -> 0 | G73: =Input!G172*(1+previous_vanilla)^0.5 -> 0
B75: Nominal Difference Between Actual and Forecast Net Capex | G75: =SUM(G76:G105) -> 3.276870034
C76: =Asset1 -> Subtransmission | G76: =G44*(1+$F$6)/(1+$G$6)-G12 -> -21.41268807
C77: =Asset2 -> Distribution system assets | G77: 12.76154534
C78: =Asset3 -> Metering | G78: 0
C79: =Asset4 -> Public Lighting | G79: 0
C80: =Asset5 -> SCADA (5-year asset) | G80: 0
C81: =Asset6 -> Non network - IT | G81: 9.784854065
C82: =Asset7 -> Non network - other | G82: 2.143158699
C83: =Asset8 -> Neutral Screen Services | G83: 0
C84: =Asset9 -> Distribution Transformers upgrades | G84: 0
C85: =Asset10 -> Equity Raising Costs | G85: 0
C86: =Asset11 -> 0 | G86: 0
C87: =Asset12 -> 0 | G87: 0
C88: =Asset13 -> 0 | G88: 0
C89: =Asset14 -> 0 | G89: 0
C90: =Asset15 -> 0 | G90: 0
C91: =Asset16 -> 0 | G91: 0
C92: =Asset17 -> 0 | G92: 0
C93: =Asset18 -> 0 | G93: 0
C94: =Asset19 -> 0 | G94: 0
C95: =Asset20 -> 0 | G95: 0
C96: =Asset21 -> 0 | G96: =G64*(1+$F$6)/(1+$G$6)-G32 -> 0
C97: =Asset22 -> 0 | G97: 0
C98: =Asset23 -> 0 | G98: 0
C99: =Asset24 -> 0 | G99: 0
C100: =Asset25 -> 0 | G100: 0
C101: =Asset26 -> 0 | G101: 0
C102: =Asset27 -> 0 | G102: 0
C103: =Asset28 -> 0 | G103: 0
C104: =Asset29 -> 0 | G104: 0
C105: =Asset30 -> 0 | G105: 0
B107: Compounded Return on Difference - Net Capex | H107: =SUM(H108,H110,H112,H114,H116,H118,H120,H122,H124,H126,H128,H130,H132,H134,H136,H138,H140,H142,H144,H146,H148,H150,H152,H154,H156,H158,H160,H162,H164,H166) -> 0.3184103596 | I107: =SUM(I108,I110,I112,I114,I116,I118,I120,I122,I124,I126,I128,I130,I132,I134,I136,I138,I140,I142,I144,I146,I148,I150,I152,I154,I156,I158,I160,I162,I164,I166) -> 0.3773698748 | J107: 0.3527880918 | K107: 0.3913701546 | L107: 0.4341623281 | M107: 0 | N107: 0 | O107: 0 | P107: 0 | Q107: 0
C108: =Asset1 -> Subtransmission | H108: =($G76+(SUM($G108:G108)))*H$7 -> -2.080650632 | I108: =($G76+(SUM($G108:H108)))*I$7 -> -2.465921239 | J108: =($G76+(SUM($G108:I108)))*J$7 -> -2.305291722 | K108: =($G76+(SUM($G108:J108)))*K$7 -> -2.557405985 | L108: =($G76+(SUM($G108:K108)))*L$7 -> -2.837031192 | M108: =($G76+(SUM($G108:L108)))*M$7 -> 0 | N108: =($G76+(SUM($G108:M108)))*N$7 -> 0 | O108: =($G76+(SUM($G108:N108)))*O$7 -> 0 | P108: =($G76+(SUM($G108:O108)))*P$7 -> 0 | Q108: =($G76+(SUM($G108:P108)))*Q$7 -> 0
C109: Sub-total | L109: =IF(M108=0, SUM($G108:L108), 0) -> -12.24630077 | M109: =IF(N108=0, IF(M108=0, 0, SUM($G108:M108)), 0) -> 0 | N109: =IF(O108=0, IF(N108=0, 0, SUM($G108:N108)), 0) -> 0 | O109: =IF(P108=0, IF(O108=0, 0, SUM($G108:O108)), 0) -> 0 | P109: =IF(Q108=0, IF(P108=0, 0, SUM($G108:P108)), 0) -> 0 | Q109: =IF(R108=0, IF(Q108=0, 0, SUM($G108:Q108)), 0) -> 0
C110: =Asset2 -> Distribution system assets | H110: =($G77+(SUM($G110:G110)))*H$7 -> 1.240027281 | I110: =($G77+(SUM($G110:H110)))*I$7 -> 1.469641065 | J110: =($G77+(SUM($G110:I110)))*J$7 -> 1.373908999 | K110: =($G77+(SUM($G110:J110)))*K$7 -> 1.524164193 | L110: =($G77+(SUM($G110:K110)))*L$7 -> 1.690815374 | M110: =($G77+(SUM($G110:L110)))*M$7 -> 0 | N110: =($G77+(SUM($G110:M110)))*N$7 -> 0 | O110: =($G77+(SUM($G110:N110)))*O$7 -> 0 | P110: =($G77+(SUM($G110:O110)))*P$7 -> 0 | Q110: =($G77+(SUM($G110:P110)))*Q$7 -> 0
C111: Sub-total | L111: =IF(M110=0, SUM($G110:L110), 0) -> 7.298556911 | M111: =IF(N110=0, IF(M110=0, 0, SUM($G110:M110)), 0) -> 0 | N111: =IF(O110=0, IF(N110=0, 0, SUM($G110:N110)), 0) -> 0 | O111: =IF(P110=0, IF(O110=0, 0, SUM($G110:O110)), 0) -> 0 | P111: =IF(Q110=0, IF(P110=0, 0, SUM($G110:P110)), 0) -> 0 | Q111: =IF(R110=0, IF(Q110=0, 0, SUM($G110:Q110)), 0) -> 0
C112: =Asset3 -> Metering | H112: =($G78+(SUM($G112:G112)))*H$7 -> 0 | I112: =($G78+(SUM($G112:H112)))*I$7 -> 0 | J112: =($G78+(SUM($G112:I112)))*J$7 -> 0 | K112: =($G78+(SUM($G112:J112)))*K$7 -> 0 | L112: =($G78+(SUM($G112:K112)))*L$7 -> 0 | M112: =($G78+(SUM($G112:L112)))*M$7 -> 0 | N112: =($G78+(SUM($G112:M112)))*N$7 -> 0 | O112: =($G78+(SUM($G112:N112)))*O$7 -> 0 | P112: =($G78+(SUM($G112:O112)))*P$7 -> 0 | Q112: =($G78+(SUM($G112:P112)))*Q$7 -> 0
C113: Sub-total | L113: =IF(M112=0, SUM($G112:L112), 0) -> 0 | M113: =IF(N112=0, IF(M112=0, 0, SUM($G112:M112)), 0) -> 0 | N113: =IF(O112=0, IF(N112=0, 0, SUM($G112:N112)), 0) -> 0 | O113: =IF(P112=0, IF(O112=0, 0, SUM($G112:O112)), 0) -> 0 | P113: =IF(Q112=0, IF(P112=0, 0, SUM($G112:P112)), 0) -> 0 | Q113: =IF(R112=0, IF(Q112=0, 0, SUM($G112:Q112)), 0) -> 0
C114: =Asset4 -> Public Lighting | H114: =($G79+(SUM($G114:G114)))*H$7 -> 0 | I114: =($G79+(SUM($G114:H114)))*I$7 -> 0 | J114: =($G79+(SUM($G114:I114)))*J$7 -> 0 | K114: =($G79+(SUM($G114:J114)))*K$7 -> 0 | L114: =($G79+(SUM($G114:K114)))*L$7 -> 0 | M114: =($G79+(SUM($G114:L114)))*M$7 -> 0 | N114: =($G79+(SUM($G114:M114)))*N$7 -> 0 | O114: =($G79+(SUM($G114:N114)))*O$7 -> 0 | P114: =($G79+(SUM($G114:O114)))*P$7 -> 0 | Q114: =($G79+(SUM($G114:P114)))*Q$7 -> 0
C115: Sub-total | L115: =IF(M114=0, SUM($G114:L114), 0) -> 0 | M115: =IF(N114=0, IF(M114=0, 0, SUM($G114:M114)), 0) -> 0 | N115: =IF(O114=0, IF(N114=0, 0, SUM($G114:N114)), 0) -> 0 | O115: =IF(P114=0, IF(O114=0, 0, SUM($G114:O114)), 0) -> 0 | P115: =IF(Q114=0, IF(P114=0, 0, SUM($G114:P114)), 0) -> 0 | Q115: =IF(R114=0, IF(Q114=0, 0, SUM($G114:Q114)), 0) -> 0
C116: =Asset5 -> SCADA (5-year asset) | H116: =($G80+(SUM($G116:G116)))*H$7 -> 0 | I116: =($G80+(SUM($G116:H116)))*I$7 -> 0 | J116: =($G80+(SUM($G116:I116)))*J$7 -> 0 | K116: =($G80+(SUM($G116:J116)))*K$7 -> 0 | L116: =($G80+(SUM($G116:K116)))*L$7 -> 0 | M116: =($G80+(SUM($G116:L116)))*M$7 -> 0 | N116: =($G80+(SUM($G116:M116)))*N$7 -> 0 | O116: =($G80+(SUM($G116:N116)))*O$7 -> 0 | P116: =($G80+(SUM($G116:O116)))*P$7 -> 0 | Q116: =($G80+(SUM($G116:P116)))*Q$7 -> 0
C117: Sub-total | L117: =IF(M116=0, SUM($G116:L116), 0) -> 0 | M117: =IF(N116=0, IF(M116=0, 0, SUM($G116:M116)), 0) -> 0 | N117: =IF(O116=0, IF(N116=0, 0, SUM($G116:N116)), 0) -> 0 | O117: =IF(P116=0, IF(O116=0, 0, SUM($G116:O116)), 0) -> 0 | P117: =IF(Q116=0, IF(P116=0, 0, SUM($G116:P116)), 0) -> 0 | Q117: =IF(R116=0, IF(Q116=0, 0, SUM($G116:Q116)), 0) -> 0
C118: =Asset6 -> Non network - IT | H118: =($G81+(SUM($G118:G118)))*H$7 -> 0.9507850079 | I118: =($G81+(SUM($G118:H118)))*I$7 -> 1.126840282 | J118: =($G81+(SUM($G118:I118)))*J$7 -> 1.053438177 | K118: =($G81+(SUM($G118:J118)))*K$7 -> 1.168645631 | L118: =($G81+(SUM($G118:K118)))*L$7 -> 1.29642463 | M118: =($G81+(SUM($G118:L118)))*M$7 -> 0 | N118: =($G81+(SUM($G118:M118)))*N$7 -> 0 | O118: =($G81+(SUM($G118:N118)))*O$7 -> 0 | P118: =($G81+(SUM($G118:O118)))*P$7 -> 0 | Q118: =($G81+(SUM($G118:P118)))*Q$7 -> 0
C119: Sub-total | L119: =IF(M118=0, SUM($G118:L118), 0) -> 5.596133727 | M119: =IF(N118=0, IF(M118=0, 0, SUM($G118:M118)), 0) -> 0 | N119: =IF(O118=0, IF(N118=0, 0, SUM($G118:N118)), 0) -> 0 | O119: =IF(P118=0, IF(O118=0, 0, SUM($G118:O118)), 0) -> 0 | P119: =IF(Q118=0, IF(P118=0, 0, SUM($G118:P118)), 0) -> 0 | Q119: =IF(R118=0, IF(Q118=0, 0, SUM($G118:Q118)), 0) -> 0
C120: =Asset7 -> Non network - other | H120: =($G82+(SUM($G120:G120)))*H$7 -> 0.2082487023 | I120: =($G82+(SUM($G120:H120)))*I$7 -> 0.2468097671 | J120: =($G82+(SUM($G120:I120)))*J$7 -> 0.2307326382 | K120: =($G82+(SUM($G120:J120)))*K$7 -> 0.2559663162 | L120: =($G82+(SUM($G120:K120)))*L$7 -> 0.2839535168 | M120: =($G82+(SUM($G120:L120)))*M$7 -> 0 | N120: =($G82+(SUM($G120:M120)))*N$7 -> 0 | O120: =($G82+(SUM($G120:N120)))*O$7 -> 0 | P120: =($G82+(SUM($G120:O120)))*P$7 -> 0 | Q120: =($G82+(SUM($G120:P120)))*Q$7 -> 0
C121: Sub-total | L121: =IF(M120=0, SUM($G120:L120), 0) -> 1.225710941 | M121: =IF(N120=0, IF(M120=0, 0, SUM($G120:M120)), 0) -> 0 | N121: =IF(O120=0, IF(N120=0, 0, SUM($G120:N120)), 0) -> 0 | O121: =IF(P120=0, IF(O120=0, 0, SUM($G120:O120)), 0) -> 0 | P121: =IF(Q120=0, IF(P120=0, 0, SUM($G120:P120)), 0) -> 0 | Q121: =IF(R120=0, IF(Q120=0, 0, SUM($G120:Q120)), 0) -> 0
C122: =Asset8 -> Neutral Screen Services | H122: =($G83+(SUM($G122:G122)))*H$7 -> 0 | I122: =($G83+(SUM($G122:H122)))*I$7 -> 0 | J122: =($G83+(SUM($G122:I122)))*J$7 -> 0 | K122: =($G83+(SUM($G122:J122)))*K$7 -> 0 | L122: =($G83+(SUM($G122:K122)))*L$7 -> 0 | M122: =($G83+(SUM($G122:L122)))*M$7 -> 0 | N122: =($G83+(SUM($G122:M122)))*N$7 -> 0 | O122: =($G83+(SUM($G122:N122)))*O$7 -> 0 | P122: =($G83+(SUM($G122:O122)))*P$7 -> 0 | Q122: =($G83+(SUM($G122:P122)))*Q$7 -> 0
C123: Sub-total | L123: =IF(M122=0, SUM($G122:L122), 0) -> 0 | M123: =IF(N122=0, IF(M122=0, 0, SUM($G122:M122)), 0) -> 0 | N123: =IF(O122=0, IF(N122=0, 0, SUM($G122:N122)), 0) -> 0 | O123: =IF(P122=0, IF(O122=0, 0, SUM($G122:O122)), 0) -> 0 | P123: =IF(Q122=0, IF(P122=0, 0, SUM($G122:P122)), 0) -> 0 | Q123: =IF(R122=0, IF(Q122=0, 0, SUM($G122:Q122)), 0) -> 0
C124: =Asset9 -> Distribution Transformers upgrades | H124: =($G84+(SUM($G124:G124)))*H$7 -> 0 | I124: =($G84+(SUM($G124:H124)))*I$7 -> 0 | J124: =($G84+(SUM($G124:I124)))*J$7 -> 0 | K124: =($G84+(SUM($G124:J124)))*K$7 -> 0 | L124: =($G84+(SUM($G124:K124)))*L$7 -> 0 | M124: =($G84+(SUM($G124:L124)))*M$7 -> 0 | N124: =($G84+(SUM($G124:M124)))*N$7 -> 0 | O124: =($G84+(SUM($G124:N124)))*O$7 -> 0 | P124: =($G84+(SUM($G124:O124)))*P$7 -> 0 | Q124: =($G84+(SUM($G124:P124)))*Q$7 -> 0
C125: Sub-total | L125: =IF(M124=0, SUM($G124:L124), 0) -> 0 | M125: =IF(N124=0, IF(M124=0, 0, SUM($G124:M124)), 0) -> 0 | N125: =IF(O124=0, IF(N124=0, 0, SUM($G124:N124)), 0) -> 0 | O125: =IF(P124=0, IF(O124=0, 0, SUM($G124:O124)), 0) -> 0 | P125: =IF(Q124=0, IF(P124=0, 0, SUM($G124:P124)), 0) -> 0 | Q125: =IF(R124=0, IF(Q124=0, 0, SUM($G124:Q124)), 0) -> 0
C126: =Asset10 -> Equity Raising Costs | H126: =($G85+(SUM($G126:G126)))*H$7 -> 0 | I126: =($G85+(SUM($G126:H126)))*I$7 -> 0 | J126: =($G85+(SUM($G126:I126)))*J$7 -> 0 | K126: =($G85+(SUM($G126:J126)))*K$7 -> 0 | L126: =($G85+(SUM($G126:K126)))*L$7 -> 0 | M126: =($G85+(SUM($G126:L126)))*M$7 -> 0 | N126: =($G85+(SUM($G126:M126)))*N$7 -> 0 | O126: =($G85+(SUM($G126:N126)))*O$7 -> 0 | P126: =($G85+(SUM($G126:O126)))*P$7 -> 0 | Q126: =($G85+(SUM($G126:P126)))*Q$7 -> 0
C127: Sub-total | L127: =IF(M126=0, SUM($G126:L126), 0) -> 0 | M127: =IF(N126=0, IF(M126=0, 0, SUM($G126:M126)), 0) -> 0 | N127: =IF(O126=0, IF(N126=0, 0, SUM($G126:N126)), 0) -> 0 | O127: =IF(P126=0, IF(O126=0, 0, SUM($G126:O126)), 0) -> 0 | P127: =IF(Q126=0, IF(P126=0, 0, SUM($G126:P126)), 0) -> 0 | Q127: =IF(R126=0, IF(Q126=0, 0, SUM($G126:Q126)), 0) -> 0
C128: =Asset11 -> 0 | H128: 0 | I128: 0 | J128: 0 | K128: 0 | L128: 0 | M128: =($G86+(SUM($G128:L128)))*M$7 -> 0 | N128: =($G86+(SUM($G128:M128)))*N$7 -> 0 | O128: =($G86+(SUM($G128:N128)))*O$7 -> 0 | P128: =($G86+(SUM($G128:O128)))*P$7 -> 0 | Q128: =($G86+(SUM($G128:P128)))*Q$7 -> 0
C129: Sub-total | L129: =IF(M128=0, SUM($G128:L128), 0) -> 0 | M129: =IF(N128=0, IF(M128=0, 0, SUM($G128:M128)), 0) -> 0 | N129: =IF(O128=0, IF(N128=0, 0, SUM($G128:N128)), 0) -> 0 | O129: =IF(P128=0, IF(O128=0, 0, SUM($G128:O128)), 0) -> 0 | P129: =IF(Q128=0, IF(P128=0, 0, SUM($G128:P128)), 0) -> 0 | Q129: =IF(R128=0, IF(Q128=0, 0, SUM($G128:Q128)), 0) -> 0
C130: =Asset12 -> 0 | H130: =($G87+(SUM($G130:G130)))*H$7 -> 0 | I130: =($G87+(SUM($G130:H130)))*I$7 -> 0 | J130: =($G87+(SUM($G130:I130)))*J$7 -> 0 | K130: =($G87+(SUM($G130:J130)))*K$7 -> 0 | L130: =($G87+(SUM($G130:K130)))*L$7 -> 0 | M130: =($G87+(SUM($G130:L130)))*M$7 -> 0 | N130: =($G87+(SUM($G130:M130)))*N$7 -> 0 | O130: =($G87+(SUM($G130:N130)))*O$7 -> 0 | P130: =($G87+(SUM($G130:O130)))*P$7 -> 0 | Q130: =($G87+(SUM($G130:P130)))*Q$7 -> 0
C131: Sub-total | L131: =IF(M130=0, SUM($G130:L130), 0) -> 0 | M131: =IF(N130=0, IF(M130=0, 0, SUM($G130:M130)), 0) -> 0 | N131: =IF(O130=0, IF(N130=0, 0, SUM($G130:N130)), 0) -> 0 | O131: =IF(P130=0, IF(O130=0, 0, SUM($G130:O130)), 0) -> 0 | P131: =IF(Q130=0, IF(P130=0, 0, SUM($G130:P130)), 0) -> 0 | Q131: =IF(R130=0, IF(Q130=0, 0, SUM($G130:Q130)), 0) -> 0
C132: =Asset13 -> 0 | H132: =($G88+(SUM($G132:G132)))*H$7 -> 0 | I132: =($G88+(SUM($G132:H132)))*I$7 -> 0 | J132: =($G88+(SUM($G132:I132)))*J$7 -> 0 | K132: =($G88+(SUM($G132:J132)))*K$7 -> 0 | L132: =($G88+(SUM($G132:K132)))*L$7 -> 0 | M132: =($G88+(SUM($G132:L132)))*M$7 -> 0 | N132: =($G88+(SUM($G132:M132)))*N$7 -> 0 | O132: =($G88+(SUM($G132:N132)))*O$7 -> 0 | P132: =($G88+(SUM($G132:O132)))*P$7 -> 0 | Q132: =($G88+(SUM($G132:P132)))*Q$7 -> 0
C133: Sub-total | L133: =IF(M132=0, SUM($G132:L132), 0) -> 0 | M133: =IF(N132=0, IF(M132=0, 0, SUM($G132:M132)), 0) -> 0 | N133: =IF(O132=0, IF(N132=0, 0, SUM($G132:N132)), 0) -> 0 | O133: =IF(P132=0, IF(O132=0, 0, SUM($G132:O132)), 0) -> 0 | P133: =IF(Q132=0, IF(P132=0, 0, SUM($G132:P132)), 0) -> 0 | Q133: =IF(R132=0, IF(Q132=0, 0, SUM($G132:Q132)), 0) -> 0
C134: =Asset14 -> 0 | H134: =($G89+(SUM($G134:G134)))*H$7 -> 0 | I134: =($G89+(SUM($G134:H134)))*I$7 -> 0 | J134: =($G89+(SUM($G134:I134)))*J$7 -> 0 | K134: =($G89+(SUM($G134:J134)))*K$7 -> 0 | L134: =($G89+(SUM($G134:K134)))*L$7 -> 0 | M134: =($G89+(SUM($G134:L134)))*M$7 -> 0 | N134: =($G89+(SUM($G134:M134)))*N$7 -> 0 | O134: =($G89+(SUM($G134:N134)))*O$7 -> 0 | P134: =($G89+(SUM($G134:O134)))*P$7 -> 0 | Q134: =($G89+(SUM($G134:P134)))*Q$7 -> 0
C135: Sub-total | L135: =IF(M134=0, SUM($G134:L134), 0) -> 0 | M135: =IF(N134=0, IF(M134=0, 0, SUM($G134:M134)), 0) -> 0 | N135: =IF(O134=0, IF(N134=0, 0, SUM($G134:N134)), 0) -> 0 | O135: =IF(P134=0, IF(O134=0, 0, SUM($G134:O134)), 0) -> 0 | P135: =IF(Q134=0, IF(P134=0, 0, SUM($G134:P134)), 0) -> 0 | Q135: =IF(R134=0, IF(Q134=0, 0, SUM($G134:Q134)), 0) -> 0
C136: =Asset15 -> 0 | H136: =($G90+(SUM($G136:G136)))*H$7 -> 0 | I136: =($G90+(SUM($G136:H136)))*I$7 -> 0 | J136: =($G90+(SUM($G136:I136)))*J$7 -> 0 | K136: =($G90+(SUM($G136:J136)))*K$7 -> 0 | L136: =($G90+(SUM($G136:K136)))*L$7 -> 0 | M136: =($G90+(SUM($G136:L136)))*M$7 -> 0 | N136: =($G90+(SUM($G136:M136)))*N$7 -> 0 | O136: =($G90+(SUM($G136:N136)))*O$7 -> 0 | P136: =($G90+(SUM($G136:O136)))*P$7 -> 0 | Q136: =($G90+(SUM($G136:P136)))*Q$7 -> 0
C137: Sub-total | L137: =IF(M136=0, SUM($G136:L136), 0) -> 0 | M137: =IF(N136=0, IF(M136=0, 0, SUM($G136:M136)), 0) -> 0 | N137: =IF(O136=0, IF(N136=0, 0, SUM($G136:N136)), 0) -> 0 | O137: =IF(P136=0, IF(O136=0, 0, SUM($G136:O136)), 0) -> 0 | P137: =IF(Q136=0, IF(P136=0, 0, SUM($G136:P136)), 0) -> 0 | Q137: =IF(R136=0, IF(Q136=0, 0, SUM($G136:Q136)), 0) -> 0
C138: =Asset16 -> 0 | H138: =($G91+(SUM($G138:G138)))*H$7 -> 0 | I138: =($G91+(SUM($G138:H138)))*I$7 -> 0 | J138: =($G91+(SUM($G138:I138)))*J$7 -> 0 | K138: =($G91+(SUM($G138:J138)))*K$7 -> 0 | L138: =($G91+(SUM($G138:K138)))*L$7 -> 0 | M138: =($G91+(SUM($G138:L138)))*M$7 -> 0 | N138: =($G91+(SUM($G138:M138)))*N$7 -> 0 | O138: =($G91+(SUM($G138:N138)))*O$7 -> 0 | P138: =($G91+(SUM($G138:O138)))*P$7 -> 0 | Q138: =($G91+(SUM($G138:P138)))*Q$7 -> 0
C139: Sub-total | L139: =IF(M138=0, SUM($G138:L138), 0) -> 0 | M139: =IF(N138=0, IF(M138=0, 0, SUM($G138:M138)), 0) -> 0 | N139: =IF(O138=0, IF(N138=0, 0, SUM($G138:N138)), 0) -> 0 | O139: =IF(P138=0, IF(O138=0, 0, SUM($G138:O138)), 0) -> 0 | P139: =IF(Q138=0, IF(P138=0, 0, SUM($G138:P138)), 0) -> 0 | Q139: =IF(R138=0, IF(Q138=0, 0, SUM($G138:Q138)), 0) -> 0
C140: =Asset17 -> 0 | H140: =($G92+(SUM($G140:G140)))*H$7 -> 0 | I140: =($G92+(SUM($G140:H140)))*I$7 -> 0 | J140: =($G92+(SUM($G140:I140)))*J$7 -> 0 | K140: =($G92+(SUM($G140:J140)))*K$7 -> 0 | L140: =($G92+(SUM($G140:K140)))*L$7 -> 0 | M140: =($G92+(SUM($G140:L140)))*M$7 -> 0 | N140: =($G92+(SUM($G140:M140)))*N$7 -> 0 | O140: =($G92+(SUM($G140:N140)))*O$7 -> 0 | P140: =($G92+(SUM($G140:O140)))*P$7 -> 0 | Q140: =($G92+(SUM($G140:P140)))*Q$7 -> 0
C141: Sub-total | L141: =IF(M140=0, SUM($G140:L140), 0) -> 0 | M141: =IF(N140=0, IF(M140=0, 0, SUM($G140:M140)), 0) -> 0 | N141: =IF(O140=0, IF(N140=0, 0, SUM($G140:N140)), 0) -> 0 | O141: =IF(P140=0, IF(O140=0, 0, SUM($G140:O140)), 0) -> 0 | P141: =IF(Q140=0, IF(P140=0, 0, SUM($G140:P140)), 0) -> 0 | Q141: =IF(R140=0, IF(Q140=0, 0, SUM($G140:Q140)), 0) -> 0
C142: =Asset18 -> 0 | H142: =($G93+(SUM($G142:G142)))*H$7 -> 0 | I142: =($G93+(SUM($G142:H142)))*I$7 -> 0 | J142: =($G93+(SUM($G142:I142)))*J$7 -> 0 | K142: =($G93+(SUM($G142:J142)))*K$7 -> 0 | L142: =($G93+(SUM($G142:K142)))*L$7 -> 0 | M142: =($G93+(SUM($G142:L142)))*M$7 -> 0 | N142: =($G93+(SUM($G142:M142)))*N$7 -> 0 | O142: =($G93+(SUM($G142:N142)))*O$7 -> 0 | P142: =($G93+(SUM($G142:O142)))*P$7 -> 0 | Q142: =($G93+(SUM($G142:P142)))*Q$7 -> 0
C143: Sub-total | L143: =IF(M142=0, SUM($G142:L142), 0) -> 0 | M143: =IF(N142=0, IF(M142=0, 0, SUM($G142:M142)), 0) -> 0 | N143: =IF(O142=0, IF(N142=0, 0, SUM($G142:N142)), 0) -> 0 | O143: =IF(P142=0, IF(O142=0, 0, SUM($G142:O142)), 0) -> 0 | P143: =IF(Q142=0, IF(P142=0, 0, SUM($G142:P142)), 0) -> 0 | Q143: =IF(R142=0, IF(Q142=0, 0, SUM($G142:Q142)), 0) -> 0
C144: =Asset19 -> 0 | H144: =($G94+(SUM($G144:G144)))*H$7 -> 0 | I144: =($G94+(SUM($G144:H144)))*I$7 -> 0 | J144: =($G94+(SUM($G144:I144)))*J$7 -> 0 | K144: =($G94+(SUM($G144:J144)))*K$7 -> 0 | L144: =($G94+(SUM($G144:K144)))*L$7 -> 0 | M144: =($G94+(SUM($G144:L144)))*M$7 -> 0 | N144: =($G94+(SUM($G144:M144)))*N$7 -> 0 | O144: =($G94+(SUM($G144:N144)))*O$7 -> 0 | P144: =($G94+(SUM($G144:O144)))*P$7 -> 0 | Q144: =($G94+(SUM($G144:P144)))*Q$7 -> 0
C145: Sub-total | L145: =IF(M144=0, SUM($G144:L144), 0) -> 0 | M145: =IF(N144=0, IF(M144=0, 0, SUM($G144:M144)), 0) -> 0 | N145: =IF(O144=0, IF(N144=0, 0, SUM($G144:N144)), 0) -> 0 | O145: =IF(P144=0, IF(O144=0, 0, SUM($G144:O144)), 0) -> 0 | P145: =IF(Q144=0, IF(P144=0, 0, SUM($G144:P144)), 0) -> 0 | Q145: =IF(R144=0, IF(Q144=0, 0, SUM($G144:Q144)), 0) -> 0
C146: =Asset20 -> 0 | H146: =($G95+(SUM($G146:G146)))*H$7 -> 0 | I146: =($G95+(SUM($G146:H146)))*I$7 -> 0 | J146: =($G95+(SUM($G146:I146)))*J$7 -> 0 | K146: =($G95+(SUM($G146:J146)))*K$7 -> 0 | L146: =($G95+(SUM($G146:K146)))*L$7 -> 0 | M146: =($G95+(SUM($G146:L146)))*M$7 -> 0 | N146: =($G95+(SUM($G146:M146)))*N$7 -> 0 | O146: =($G95+(SUM($G146:N146)))*O$7 -> 0 | P146: =($G95+(SUM($G146:O146)))*P$7 -> 0 | Q146: =($G95+(SUM($G146:P146)))*Q$7 -> 0
C147: Sub-total | L147: =IF(M146=0, SUM($G146:L146), 0) -> 0 | M147: =IF(N146=0, IF(M146=0, 0, SUM($G146:M146)), 0) -> 0 | N147: =IF(O146=0, IF(N146=0, 0, SUM($G146:N146)), 0) -> 0 | O147: =IF(P146=0, IF(O146=0, 0, SUM($G146:O146)), 0) -> 0 | P147: =IF(Q146=0, IF(P146=0, 0, SUM($G146:P146)), 0) -> 0 | Q147: =IF(R146=0, IF(Q146=0, 0, SUM($G146:Q146)), 0) -> 0
C148: =Asset21 -> 0 | H148: =($G96+(SUM($G148:G148)))*H$7 -> 0 | I148: =($G96+(SUM($G148:H148)))*I$7 -> 0 | J148: =($G96+(SUM($G148:I148)))*J$7 -> 0 | K148: =($G96+(SUM($G148:J148)))*K$7 -> 0 | L148: =($G96+(SUM($G148:K148)))*L$7 -> 0 | M148: =($G96+(SUM($G148:L148)))*M$7 -> 0 | N148: =($G96+(SUM($G148:M148)))*N$7 -> 0 | O148: =($G96+(SUM($G148:N148)))*O$7 -> 0 | P148: =($G96+(SUM($G148:O148)))*P$7 -> 0 | Q148: =($G96+(SUM($G148:P148)))*Q$7 -> 0
C149: Sub-total | L149: =IF(M148=0, SUM($G148:L148), 0) -> 0 | M149: =IF(N148=0, IF(M148=0, 0, SUM($G148:M148)), 0) -> 0 | N149: =IF(O148=0, IF(N148=0, 0, SUM($G148:N148)), 0) -> 0 | O149: =IF(P148=0, IF(O148=0, 0, SUM($G148:O148)), 0) -> 0 | P149: =IF(Q148=0, IF(P148=0, 0, SUM($G148:P148)), 0) -> 0 | Q149: =IF(R148=0, IF(Q148=0, 0, SUM($G148:Q148)), 0) -> 0
C150: =Asset22 -> 0 | H150: =($G97+(SUM($G150:G150)))*H$7 -> 0 | I150: =($G97+(SUM($G150:H150)))*I$7 -> 0 | J150: =($G97+(SUM($G150:I150)))*J$7 -> 0 | K150: =($G97+(SUM($G150:J150)))*K$7 -> 0 | L150: =($G97+(SUM($G150:K150)))*L$7 -> 0 | M150: =($G97+(SUM($G150:L150)))*M$7 -> 0 | N150: =($G97+(SUM($G150:M150)))*N$7 -> 0 | O150: =($G97+(SUM($G150:N150)))*O$7 -> 0 | P150: =($G97+(SUM($G150:O150)))*P$7 -> 0 | Q150: =($G97+(SUM($G150:P150)))*Q$7 -> 0
C151: Sub-total | L151: =IF(M150=0, SUM($G150:L150), 0) -> 0 | M151: =IF(N150=0, IF(M150=0, 0, SUM($G150:M150)), 0) -> 0 | N151: =IF(O150=0, IF(N150=0, 0, SUM($G150:N150)), 0) -> 0 | O151: =IF(P150=0, IF(O150=0, 0, SUM($G150:O150)), 0) -> 0 | P151: =IF(Q150=0, IF(P150=0, 0, SUM($G150:P150)), 0) -> 0 | Q151: =IF(R150=0, IF(Q150=0, 0, SUM($G150:Q150)), 0) -> 0
C152: =Asset23 -> 0 | H152: =($G98+(SUM($G152:G152)))*H$7 -> 0 | I152: =($G98+(SUM($G152:H152)))*I$7 -> 0 | J152: =($G98+(SUM($G152:I152)))*J$7 -> 0 | K152: =($G98+(SUM($G152:J152)))*K$7 -> 0 | L152: =($G98+(SUM($G152:K152)))*L$7 -> 0 | M152: =($G98+(SUM($G152:L152)))*M$7 -> 0 | N152: =($G98+(SUM($G152:M152)))*N$7 -> 0 | O152: =($G98+(SUM($G152:N152)))*O$7 -> 0 | P152: =($G98+(SUM($G152:O152)))*P$7 -> 0 | Q152: =($G98+(SUM($G152:P152)))*Q$7 -> 0
C153: Sub-total | L153: =IF(M152=0, SUM($G152:L152), 0) -> 0 | M153: =IF(N152=0, IF(M152=0, 0, SUM($G152:M152)), 0) -> 0 | N153: =IF(O152=0, IF(N152=0, 0, SUM($G152:N152)), 0) -> 0 | O153: =IF(P152=0, IF(O152=0, 0, SUM($G152:O152)), 0) -> 0 | P153: =IF(Q152=0, IF(P152=0, 0, SUM($G152:P152)), 0) -> 0 | Q153: =IF(R152=0, IF(Q152=0, 0, SUM($G152:Q152)), 0) -> 0
C154: =Asset24 -> 0 | H154: =($G99+(SUM($G154:G154)))*H$7 -> 0 | I154: =($G99+(SUM($G154:H154)))*I$7 -> 0 | J154: =($G99+(SUM($G154:I154)))*J$7 -> 0 | K154: =($G99+(SUM($G154:J154)))*K$7 -> 0 | L154: =($G99+(SUM($G154:K154)))*L$7 -> 0 | M154: =($G99+(SUM($G154:L154)))*M$7 -> 0 | N154: =($G99+(SUM($G154:M154)))*N$7 -> 0 | O154: =($G99+(SUM($G154:N154)))*O$7 -> 0 | P154: =($G99+(SUM($G154:O154)))*P$7 -> 0 | Q154: =($G99+(SUM($G154:P154)))*Q$7 -> 0
C155: Sub-total | L155: =IF(M154=0, SUM($G154:L154), 0) -> 0 | M155: =IF(N154=0, IF(M154=0, 0, SUM($G154:M154)), 0) -> 0 | N155: =IF(O154=0, IF(N154=0, 0, SUM($G154:N154)), 0) -> 0 | O155: =IF(P154=0, IF(O154=0, 0, SUM($G154:O154)), 0) -> 0 | P155: =IF(Q154=0, IF(P154=0, 0, SUM($G154:P154)), 0) -> 0 | Q155: =IF(R154=0, IF(Q154=0, 0, SUM($G154:Q154)), 0) -> 0
C156: =Asset25 -> 0 | H156: =($G100+(SUM($G156:G156)))*H$7 -> 0 | I156: =($G100+(SUM($G156:H156)))*I$7 -> 0 | J156: =($G100+(SUM($G156:I156)))*J$7 -> 0 | K156: =($G100+(SUM($G156:J156)))*K$7 -> 0 | L156: =($G100+(SUM($G156:K156)))*L$7 -> 0 | M156: =($G100+(SUM($G156:L156)))*M$7 -> 0 | N156: =($G100+(SUM($G156:M156)))*N$7 -> 0 | O156: =($G100+(SUM($G156:N156)))*O$7 -> 0 | P156: =($G100+(SUM($G156:O156)))*P$7 -> 0 | Q156: =($G100+(SUM($G156:P156)))*Q$7 -> 0
C157: Sub-total | L157: =IF(M156=0, SUM($G156:L156), 0) -> 0 | M157: =IF(N156=0, IF(M156=0, 0, SUM($G156:M156)), 0) -> 0 | N157: =IF(O156=0, IF(N156=0, 0, SUM($G156:N156)), 0) -> 0 | O157: =IF(P156=0, IF(O156=0, 0, SUM($G156:O156)), 0) -> 0 | P157: =IF(Q156=0, IF(P156=0, 0, SUM($G156:P156)), 0) -> 0 | Q157: =IF(R156=0, IF(Q156=0, 0, SUM($G156:Q156)), 0) -> 0
C158: =Asset26 -> 0 | H158: =($G101+(SUM($G158:G158)))*H$7 -> 0 | I158: =($G101+(SUM($G158:H158)))*I$7 -> 0 | J158: =($G101+(SUM($G158:I158)))*J$7 -> 0 | K158: =($G101+(SUM($G158:J158)))*K$7 -> 0 | L158: =($G101+(SUM($G158:K158)))*L$7 -> 0 | M158: =($G101+(SUM($G158:L158)))*M$7 -> 0 | N158: =($G101+(SUM($G158:M158)))*N$7 -> 0 | O158: =($G101+(SUM($G158:N158)))*O$7 -> 0 | P158: =($G101+(SUM($G158:O158)))*P$7 -> 0 | Q158: =($G101+(SUM($G158:P158)))*Q$7 -> 0
C159: Sub-total | L159: =IF(M158=0, SUM($G158:L158), 0) -> 0 | M159: =IF(N158=0, IF(M158=0, 0, SUM($G158:M158)), 0) -> 0 | N159: =IF(O158=0, IF(N158=0, 0, SUM($G158:N158)), 0) -> 0 | O159: =IF(P158=0, IF(O158=0, 0, SUM($G158:O158)), 0) -> 0 | P159: =IF(Q158=0, IF(P158=0, 0, SUM($G158:P158)), 0) -> 0 | Q159: =IF(R158=0, IF(Q158=0, 0, SUM($G158:Q158)), 0) -> 0
C160: =Asset27 -> 0 | H160: =($G102+(SUM($G160:G160)))*H$7 -> 0 | I160: =($G102+(SUM($G160:H160)))*I$7 -> 0 | J160: =($G102+(SUM($G160:I160)))*J$7 -> 0 | K160: =($G102+(SUM($G160:J160)))*K$7 -> 0 | L160: =($G102+(SUM($G160:K160)))*L$7 -> 0 | M160: =($G102+(SUM($G160:L160)))*M$7 -> 0 | N160: =($G102+(SUM($G160:M160)))*N$7 -> 0 | O160: =($G102+(SUM($G160:N160)))*O$7 -> 0 | P160: =($G102+(SUM($G160:O160)))*P$7 -> 0 | Q160: =($G102+(SUM($G160:P160)))*Q$7 -> 0
C161: Sub-total | L161: =IF(M160=0, SUM($G160:L160), 0) -> 0 | M161: =IF(N160=0, IF(M160=0, 0, SUM($G160:M160)), 0) -> 0 | N161: =IF(O160=0, IF(N160=0, 0, SUM($G160:N160)), 0) -> 0 | O161: =IF(P160=0, IF(O160=0, 0, SUM($G160:O160)), 0) -> 0 | P161: =IF(Q160=0, IF(P160=0, 0, SUM($G160:P160)), 0) -> 0 | Q161: =IF(R160=0, IF(Q160=0, 0, SUM($G160:Q160)), 0) -> 0
C162: =Asset28 -> 0 | H162: =($G103+(SUM($G162:G162)))*H$7 -> 0 | I162: =($G103+(SUM($G162:H162)))*I$7 -> 0 | J162: =($G103+(SUM($G162:I162)))*J$7 -> 0 | K162: =($G103+(SUM($G162:J162)))*K$7 -> 0 | L162: =($G103+(SUM($G162:K162)))*L$7 -> 0 | M162: =($G103+(SUM($G162:L162)))*M$7 -> 0 | N162: =($G103+(SUM($G162:M162)))*N$7 -> 0 | O162: =($G103+(SUM($G162:N162)))*O$7 -> 0 | P162: =($G103+(SUM($G162:O162)))*P$7 -> 0 | Q162: =($G103+(SUM($G162:P162)))*Q$7 -> 0
C163: Sub-total | L163: =IF(M162=0, SUM($G162:L162), 0) -> 0 | M163: =IF(N162=0, IF(M162=0, 0, SUM($G162:M162)), 0) -> 0 | N163: =IF(O162=0, IF(N162=0, 0, SUM($G162:N162)), 0) -> 0 | O163: =IF(P162=0, IF(O162=0, 0, SUM($G162:O162)), 0) -> 0 | P163: =IF(Q162=0, IF(P162=0, 0, SUM($G162:P162)), 0) -> 0 | Q163: =IF(R162=0, IF(Q162=0, 0, SUM($G162:Q162)), 0) -> 0
C164: =Asset29 -> 0 | H164: =($G104+(SUM($G164:G164)))*H$7 -> 0 | I164: =($G104+(SUM($G164:H164)))*I$7 -> 0 | J164: =($G104+(SUM($G164:I164)))*J$7 -> 0 | K164: =($G104+(SUM($G164:J164)))*K$7 -> 0 | L164: =($G104+(SUM($G164:K164)))*L$7 -> 0 | M164: =($G104+(SUM($G164:L164)))*M$7 -> 0 | N164: =($G104+(SUM($G164:M164)))*N$7 -> 0 | O164: =($G104+(SUM($G164:N164)))*O$7 -> 0 | P164: =($G104+(SUM($G164:O164)))*P$7 -> 0 | Q164: =($G104+(SUM($G164:P164)))*Q$7 -> 0
C165: Sub-total | L165: =IF(M164=0, SUM($G164:L164), 0) -> 0 | M165: =IF(N164=0, IF(M164=0, 0, SUM($G164:M164)), 0) -> 0 | N165: =IF(O164=0, IF(N164=0, 0, SUM($G164:N164)), 0) -> 0 | O165: =IF(P164=0, IF(O164=0, 0, SUM($G164:O164)), 0) -> 0 | P165: =IF(Q164=0, IF(P164=0, 0, SUM($G164:P164)), 0) -> 0 | Q165: =IF(R164=0, IF(Q164=0, 0, SUM($G164:Q164)), 0) -> 0
C166: =Asset30 -> 0 | H166: =($G105+(SUM($G166:G166)))*H$7 -> 0 | I166: =($G105+(SUM($G166:H166)))*I$7 -> 0 | J166: =($G105+(SUM($G166:I166)))*J$7 -> 0 | K166: =($G105+(SUM($G166:J166)))*K$7 -> 0 | L166: =($G105+(SUM($G166:K166)))*L$7 -> 0 | M166: =($G105+(SUM($G166:L166)))*M$7 -> 0 | N166: =($G105+(SUM($G166:M166)))*N$7 -> 0 | O166: =($G105+(SUM($G166:N166)))*O$7 -> 0 | P166: =($G105+(SUM($G166:O166)))*P$7 -> 0 | Q166: =($G105+(SUM($G166:P166)))*Q$7 -> 0
C167: Sub-total | L167: =IF(M166=0, SUM($G166:L166), 0) -> 0 | M167: =IF(N166=0, IF(M166=0, 0, SUM($G166:M166)), 0) -> 0 | N167: =IF(O166=0, IF(N166=0, 0, SUM($G166:N166)), 0) -> 0 | O167: =IF(P166=0, IF(O166=0, 0, SUM($G166:O166)), 0) -> 0 | P167: =IF(Q166=0, IF(P166=0, 0, SUM($G166:P166)), 0) -> 0 | Q167: =IF(R166=0, IF(Q166=0, 0, SUM($G166:Q166)), 0) -> 0
B168: Total Return at End of Regulatory Period | L168: =IF(M107=0, SUM($G107:L107), 0) -> 1.874100809 | M168: =IF(N107=0, IF(M107=0, 0, SUM($G107:M107)), 0) -> 0 | N168: =IF(O107=0, IF(N107=0, 0, SUM($G107:N107)), 0) -> 0 | O168: =IF(P107=0, IF(O107=0, 0, SUM($G107:O107)), 0) -> 0 | P168: =IF(Q107=0, IF(P107=0, 0, SUM($G107:P107)), 0) -> 0 | Q168: =IF(R107=0, IF(Q107=0, 0, SUM($G107:Q107)), 0) -> 0
B170: Nominal Adjustments for Difference Between Forecast and Actual Assets Under Construction
B172: Nominal Forecast Assets Under Construction (previous regulatory period) | G172: =SUM(G173:G202) -> 0
C173: =Asset1 -> Subtransmission | G173: =Input!Q7 -> 0
C174: =Asset2 -> Distribution system assets | G174: =Input!Q8 -> 0
C175: =Asset3 -> Metering | G175: =Input!Q9 -> 0
C176: =Asset4 -> Public Lighting | G176: =Input!Q10 -> 0
C177: =Asset5 -> SCADA (5-year asset) | G177: =Input!Q11 -> 0
C178: =Asset6 -> Non network - IT | G178: =Input!Q12 -> 0
C179: =Asset7 -> Non network - other | G179: =Input!Q13 -> 0
C180: =Asset8 -> Neutral Screen Services | G180: =Input!Q14 -> 0
C181: =Asset9 -> Distribution Transformers upgrades | G181: =Input!Q15 -> 0
C182: =Asset10 -> Equity Raising Costs | G182: =Input!Q16 -> 0
C183: =Asset11 -> 0 | G183: =Input!Q17 -> 0
C184: =Asset12 -> 0 | G184: =Input!Q18 -> 0
C185: =Asset13 -> 0 | G185: =Input!Q19 -> 0
C186: =Asset14 -> 0 | G186: =Input!Q20 -> 0
C187: =Asset15 -> 0 | G187: =Input!Q21 -> 0
C188: =Asset16 -> 0 | G188: =Input!Q22 -> 0
C189: =Asset17 -> 0 | G189: =Input!Q23 -> 0
C190: =Asset18 -> 0 | G190: =Input!Q24 -> 0
C191: =Asset19 -> 0 | G191: =Input!Q25 -> 0
C192: =Asset20 -> 0 | G192: =Input!Q26 -> 0
C193: =Asset21 -> 0 | G193: =Input!Q27 -> 0
C194: =Asset22 -> 0 | G194: =Input!Q28 -> 0
C195: =Asset23 -> 0 | G195: =Input!Q29 -> 0
C196: =Asset24 -> 0 | G196: =Input!Q30 -> 0
C197: =Asset25 -> 0 | G197: =Input!Q31 -> 0
C198: =Asset26 -> 0 | G198: =Input!Q32 -> 0
C199: =Asset27 -> 0 | G199: =Input!Q33 -> 0
C200: =Asset28 -> 0 | G200: =Input!Q34 -> 0
C201: =Asset29 -> 0 | G201: =Input!Q35 -> 0
C202: =Asset30 -> 0 | G202: =Input!Q36 -> 0
B204: Nominal Actual Assets Under Construction | G204: =SUM(G205:G234) -> 0
C205: =Asset1 -> Subtransmission | G205: =Input!R7 -> 0
C206: =Asset2 -> Distribution system assets | G206: =Input!R8 -> 0
C207: =Asset3 -> Metering | G207: =Input!R9 -> 0
C208: =Asset4 -> Public Lighting | G208: =Input!R10 -> 0
C209: =Asset5 -> SCADA (5-year asset) | G209: =Input!R11 -> 0
C210: =Asset6 -> Non network - IT | G210: =Input!R12 -> 0
C211: =Asset7 -> Non network - other | G211: =Input!R13 -> 0
... 303 more rows

Sheet Actual RAB roll forward
C2: Actual RAB roll forward
G3: 0 | H3: =G3+1 -> 1 | I3: 2 | J3: 3 | K3: 4 | L3: 5 | M3: 6 | N3: 7 | O3: 8 | P3: 9 | Q3: 10 | R3: 11
C4: Year | F4: ='Adjustment for previous period'!F4 -> 2009 | G4: =Input!G40 -> 2010 | H4: =Input!H40 -> 2011 | I4: =Input!I40 -> 2012 | J4: =Input!J40 -> 2013 | K4: =Input!K40 -> 2014 | L4: =Input!L40 -> 2015 | M4: =Input!M40 -> 2016 | N4: =Input!N40 -> 2017 | O4: =Input!O40 -> 2018 | P4: =Input!P40 -> 2019 | Q4: =Input!Q40 -> 2020 | R4: =IF(LEN(Q4)>4,CONCATENATE(LEFT(Q4,4)+1&"-"&IF(Q4>"2007-08",,"0")&RIGHT(Q4,2)+1),Q4+1) -> 2021
C6: Actual CPI Inflation Rate | G6: =Input!G177 -> 0.01261261261 | H6: =Input!H177 -> 0.02787663108 | I6: =Input!I177 -> 0.03517794427 | J6: =Input!J177 -> 0.02004008016 | K6: =Input!K177 -> 0.02161100196 | L6: =Input!L177 -> 0.02307692308 | M6: =Input!M177 -> 0 | N6: =Input!N177 -> 0 | O6: =Input!O177 -> 0 | P6: =Input!P177 -> 0 | Q6: =Input!Q177 -> 0
C7: Actual CPI (one year lagged) | G7: =Input!G178 -> 1 | H7: =Input!H178 -> 1.027876631 | I7: =Input!I178 -> 1.064035218 | J7: =Input!J178 -> 1.085358569 | K7: =Input!K178 -> 1.108814255 | L7: =Input!L178 -> 1.134402276 | M7: =Input!M178 -> 1.134402276 | N7: =Input!N178 -> 1.134402276 | O7: =Input!O178 -> 1.134402276 | P7: =Input!P178 -> 1.134402276 | Q7: =Input!Q178 -> 1.134402276
C9: Real Asset Values
C11: Real Actual Net Capex | H11: =SUM(H12:H41) -> 177.9167988 | I11: 184.3081862 | J11: 170.1878991 | K11: 189.7138195 | L11: 176.1924068 | M11: 0 | N11: 0 | O11: 0 | P11: 0 | Q11: =SUM(Q12:Q41) -> 0
D12: =Asset1 -> Subtransmission | H12: =Input!H143*(1+vanilla1)^0.5 -> 22.39300229 | I12: =Input!I143*(1+vanilla2)^0.5 -> 52.4543312 | J12: =Input!J143*(1+vanilla3)^0.5 -> 34.36373652 | K12: =Input!K143*(1+vanilla4)^0.5 -> 37.51443056 | L12: =Input!L143*(1+vanilla5)^0.5 -> 37.37388572 | M12: =Input!M143*(1+vanilla6)^0.5 -> 0 | N12: =Input!N143*(1+vanilla7)^0.5 -> 0 | O12: =Input!O143*(1+vanilla8)^0.5 -> 0 | P12: =Input!P143*(1+vanilla9)^0.5 -> 0 | Q12: =Input!Q143*(1+vanilla10)^0.5 -> 0
D13: =Asset2 -> Distribution system assets | H13: =Input!H144*(1+vanilla1)^0.5 -> 90.66550296 | I13: =Input!I144*(1+vanilla2)^0.5 -> 104.0148542 | J13: =Input!J144*(1+vanilla3)^0.5 -> 117.9169286 | K13: =Input!K144*(1+vanilla4)^0.5 -> 126.29162 | L13: =Input!L144*(1+vanilla5)^0.5 -> 113.0882122 | M13: =Input!M144*(1+vanilla6)^0.5 -> 0 | N13: =Input!N144*(1+vanilla7)^0.5 -> 0 | O13: =Input!O144*(1+vanilla8)^0.5 -> 0 | P13: =Input!P144*(1+vanilla9)^0.5 -> 0 | Q13: =Input!Q144*(1+vanilla10)^0.5 -> 0
D14: =Asset3 -> Metering | H14: =Input!H145*(1+vanilla1)^0.5 -> -0.004239250821 | I14: =Input!I145*(1+vanilla2)^0.5 -> 0 | J14: =Input!J145*(1+vanilla3)^0.5 -> 0 | K14: =Input!K145*(1+vanilla4)^0.5 -> 0 | L14: =Input!L145*(1+vanilla5)^0.5 -> 0 | M14: =Input!M145*(1+vanilla6)^0.5 -> 0 | N14: =Input!N145*(1+vanilla7)^0.5 -> 0 | O14: =Input!O145*(1+vanilla8)^0.5 -> 0 | P14: =Input!P145*(1+vanilla9)^0.5 -> 0 | Q14: =Input!Q145*(1+vanilla10)^0.5 -> 0
D15: =Asset4 -> Public Lighting | H15: =Input!H146*(1+vanilla1)^0.5 -> -0.05364022912 | I15: =Input!I146*(1+vanilla2)^0.5 -> -0.1086722548 | J15: =Input!J146*(1+vanilla3)^0.5 -> 0 | K15: =Input!K146*(1+vanilla4)^0.5 -> 0 | L15: =Input!L146*(1+vanilla5)^0.5 -> 0 | M15: =Input!M146*(1+vanilla6)^0.5 -> 0 | N15: =Input!N146*(1+vanilla7)^0.5 -> 0 | O15: =Input!O146*(1+vanilla8)^0.5 -> 0 | P15: =Input!P146*(1+vanilla9)^0.5 -> 0 | Q15: =Input!Q146*(1+vanilla10)^0.5 -> 0
D16: =Asset5 -> SCADA (5-year asset) | H16: =Input!H147*(1+vanilla1)^0.5 -> 1.023619592 | I16: =Input!I147*(1+vanilla2)^0.5 -> 4.429502543 | J16: =Input!J147*(1+vanilla3)^0.5 -> 1.977325713 | K16: =Input!K147*(1+vanilla4)^0.5 -> -0.04780954923 | L16: =Input!L147*(1+vanilla5)^0.5 -> 0 | M16: =Input!M147*(1+vanilla6)^0.5 -> 0 | N16: =Input!N147*(1+vanilla7)^0.5 -> 0 | O16: =Input!O147*(1+vanilla8)^0.5 -> 0 | P16: =Input!P147*(1+vanilla9)^0.5 -> 0 | Q16: =Input!Q147*(1+vanilla10)^0.5 -> 0
D17: =Asset6 -> Non network - IT | H17: =Input!H148*(1+vanilla1)^0.5 -> 50.81979573 | I17: =Input!I148*(1+vanilla2)^0.5 -> 11.23485776 | J17: =Input!J148*(1+vanilla3)^0.5 -> 7.943179426 | K17: =Input!K148*(1+vanilla4)^0.5 -> 22.34064093 | L17: =Input!L148*(1+vanilla5)^0.5 -> 22.4265566 | M17: =Input!M148*(1+vanilla6)^0.5 -> 0 | N17: =Input!N148*(1+vanilla7)^0.5 -> 0 | O17: =Input!O148*(1+vanilla8)^0.5 -> 0 | P17: =Input!P148*(1+vanilla9)^0.5 -> 0 | Q17: =Input!Q148*(1+vanilla10)^0.5 -> 0
D18: =Asset7 -> Non network - other | H18: =Input!H149*(1+vanilla1)^0.5 -> 9.461641708 | I18: =Input!I149*(1+vanilla2)^0.5 -> 12.28331268 | J18: =Input!J149*(1+vanilla3)^0.5 -> 7.986728878 | K18: =Input!K149*(1+vanilla4)^0.5 -> 3.61493757 | L18: =Input!L149*(1+vanilla5)^0.5 -> 3.303752233 | M18: =Input!M149*(1+vanilla6)^0.5 -> 0 | N18: =Input!N149*(1+vanilla7)^0.5 -> 0 | O18: =Input!O149*(1+vanilla8)^0.5 -> 0 | P18: =Input!P149*(1+vanilla9)^0.5 -> 0 | Q18: =Input!Q149*(1+vanilla10)^0.5 -> 0
D19: =Asset8 -> Neutral Screen Services | H19: =Input!H150*(1+vanilla1)^0.5 -> 0 | I19: =Input!I150*(1+vanilla2)^0.5 -> 0 | J19: =Input!J150*(1+vanilla3)^0.5 -> 0 | K19: =Input!K150*(1+vanilla4)^0.5 -> 0 | L19: =Input!L150*(1+vanilla5)^0.5 -> 0 | M19: =Input!M150*(1+vanilla6)^0.5 -> 0 | N19: =Input!N150*(1+vanilla7)^0.5 -> 0 | O19: =Input!O150*(1+vanilla8)^0.5 -> 0 | P19: =Input!P150*(1+vanilla9)^0.5 -> 0 | Q19: =Input!Q150*(1+vanilla10)^0.5 -> 0
D20: =Asset9 -> Distribution Transformers upgrades | H20: =Input!H151*(1+vanilla1)^0.5 -> 0 | I20: =Input!I151*(1+vanilla2)^0.5 -> 0 | J20: =Input!J151*(1+vanilla3)^0.5 -> 0 | K20: =Input!K151*(1+vanilla4)^0.5 -> 0 | L20: =Input!L151*(1+vanilla5)^0.5 -> 0 | M20: =Input!M151*(1+vanilla6)^0.5 -> 0 | N20: =Input!N151*(1+vanilla7)^0.5 -> 0 | O20: =Input!O151*(1+vanilla8)^0.5 -> 0 | P20: =Input!P151*(1+vanilla9)^0.5 -> 0 | Q20: =Input!Q151*(1+vanilla10)^0.5 -> 0
D21: =Asset10 -> Equity Raising Costs | H21: =Input!H152*(1+vanilla1)^0.5 -> 3.611116041 | I21: =Input!I152*(1+vanilla2)^0.5 -> 0 | J21: =Input!J152*(1+vanilla3)^0.5 -> 0 | K21: =Input!K152*(1+vanilla4)^0.5 -> 0 | L21: =Input!L152*(1+vanilla5)^0.5 -> 0 | M21: =Input!M152*(1+vanilla6)^0.5 -> 0 | N21: =Input!N152*(1+vanilla7)^0.5 -> 0 | O21: =Input!O152*(1+vanilla8)^0.5 -> 0 | P21: =Input!P152*(1+vanilla9)^0.5 -> 0 | Q21: =Input!Q152*(1+vanilla10)^0.5 -> 0
D22: =Asset11 -> 0 | H22: =Input!H153*(1+vanilla1)^0.5 -> 0 | I22: =Input!I153*(1+vanilla2)^0.5 -> 0 | J22: =Input!J153*(1+vanilla3)^0.5 -> 0 | K22: =Input!K153*(1+vanilla4)^0.5 -> 0 | L22: =Input!L153*(1+vanilla5)^0.5 -> 0 | M22: =Input!M153*(1+vanilla6)^0.5 -> 0 | N22: =Input!N153*(1+vanilla7)^0.5 -> 0 | O22: =Input!O153*(1+vanilla8)^0.5 -> 0 | P22: =Input!P153*(1+vanilla9)^0.5 -> 0 | Q22: =Input!Q153*(1+vanilla10)^0.5 -> 0
D23: =Asset12 -> 0 | H23: =Input!H154*(1+vanilla1)^0.5 -> 0 | I23: =Input!I154*(1+vanilla2)^0.5 -> 0 | J23: =Input!J154*(1+vanilla3)^0.5 -> 0 | K23: =Input!K154*(1+vanilla4)^0.5 -> 0 | L23: =Input!L154*(1+vanilla5)^0.5 -> 0 | M23: =Input!M154*(1+vanilla6)^0.5 -> 0 | N23: =Input!N154*(1+vanilla7)^0.5 -> 0 | O23: =Input!O154*(1+vanilla8)^0.5 -> 0 | P23: =Input!P154*(1+vanilla9)^0.5 -> 0 | Q23: =Input!Q154*(1+vanilla10)^0.5 -> 0
D24: =Asset13 -> 0 | H24: =Input!H155*(1+vanilla1)^0.5 -> 0 | I24: =Input!I155*(1+vanilla2)^0.5 -> 0 | J24: =Input!J155*(1+vanilla3)^0.5 -> 0 | K24: =Input!K155*(1+vanilla4)^0.5 -> 0 | L24: =Input!L155*(1+vanilla5)^0.5 -> 0 | M24: =Input!M155*(1+vanilla6)^0.5 -> 0 | N24: =Input!N155*(1+vanilla7)^0.5 -> 0 | O24: =Input!O155*(1+vanilla8)^0.5 -> 0 | P24: =Input!P155*(1+vanilla9)^0.5 -> 0 | Q24: =Input!Q155*(1+vanilla10)^0.5 -> 0
D25: =Asset14 -> 0 | H25: =Input!H156*(1+vanilla1)^0.5 -> 0 | I25: =Input!I156*(1+vanilla2)^0.5 -> 0 | J25: =Input!J156*(1+vanilla3)^0.5 -> 0 | K25: =Input!K156*(1+vanilla4)^0.5 -> 0 | L25: =Input!L156*(1+vanilla5)^0.5 -> 0 | M25: =Input!M156*(1+vanilla6)^0.5 -> 0 | N25: =Input!N156*(1+vanilla7)^0.5 -> 0 | O25: =Input!O156*(1+vanilla8)^0.5 -> 0 | P25: =Input!P156*(1+vanilla9)^0.5 -> 0 | Q25: =Input!Q156*(1+vanilla10)^0.5 -> 0
D26: =Asset15 -> 0 | H26: =Input!H157*(1+vanilla1)^0.5 -> 0 | I26: =Input!I157*(1+vanilla2)^0.5 -> 0 | J26: =Input!J157*(1+vanilla3)^0.5 -> 0 | K26: =Input!K157*(1+vanilla4)^0.5 -> 0 | L26: =Input!L157*(1+vanilla5)^0.5 -> 0 | M26: =Input!M157*(1+vanilla6)^0.5 -> 0 | N26: =Input!N157*(1+vanilla7)^0.5 -> 0 | O26: =Input!O157*(1+vanilla8)^0.5 -> 0 | P26: =Input!P157*(1+vanilla9)^0.5 -> 0 | Q26: =Input!Q157*(1+vanilla10)^0.5 -> 0
D27: =Asset16 -> 0 | H27: =Input!H158*(1+vanilla1)^0.5 -> 0 | I27: =Input!I158*(1+vanilla2)^0.5 -> 0 | J27: =Input!J158*(1+vanilla3)^0.5 -> 0 | K27: =Input!K158*(1+vanilla4)^0.5 -> 0 | L27: =Input!L158*(1+vanilla5)^0.5 -> 0 | M27: =Input!M158*(1+vanilla6)^0.5 -> 0 | N27: =Input!N158*(1+vanilla7)^0.5 -> 0 | O27: =Input!O158*(1+vanilla8)^0.5 -> 0 | P27: =Input!P158*(1+vanilla9)^0.5 -> 0 | Q27: =Input!Q158*(1+vanilla10)^0.5 -> 0
D28: =Asset17 -> 0 | H28: =Input!H159*(1+vanilla1)^0.5 -> 0 | I28: =Input!I159*(1+vanilla2)^0.5 -> 0 | J28: =Input!J159*(1+vanilla3)^0.5 -> 0 | K28: =Input!K159*(1+vanilla4)^0.5 -> 0 | L28: =Input!L159*(1+vanilla5)^0.5 -> 0 | M28: =Input!M159*(1+vanilla6)^0.5 -> 0 | N28: =Input!N159*(1+vanilla7)^0.5 -> 0 | O28: =Input!O159*(1+vanilla8)^0.5 -> 0 | P28: =Input!P159*(1+vanilla9)^0.5 -> 0 | Q28: =Input!Q159*(1+vanilla10)^0.5 -> 0
D29: =Asset18 -> 0 | H29: =Input!H160*(1+vanilla1)^0.5 -> 0 | I29: =Input!I160*(1+vanilla2)^0.5 -> 0 | J29: =Input!J160*(1+vanilla3)^0.5 -> 0 | K29: =Input!K160*(1+vanilla4)^0.5 -> 0 | L29: =Input!L160*(1+vanilla5)^0.5 -> 0 | M29: =Input!M160*(1+vanilla6)^0.5 -> 0 | N29: =Input!N160*(1+vanilla7)^0.5 -> 0 | O29: =Input!O160*(1+vanilla8)^0.5 -> 0 | P29: =Input!P160*(1+vanilla9)^0.5 -> 0 | Q29: =Input!Q160*(1+vanilla10)^0.5 -> 0
D30: =Asset19 -> 0 | H30: =Input!H161*(1+vanilla1)^0.5 -> 0 | I30: =Input!I161*(1+vanilla2)^0.5 -> 0 | J30: =Input!J161*(1+vanilla3)^0.5 -> 0 | K30: =Input!K161*(1+vanilla4)^0.5 -> 0 | L30: =Input!L161*(1+vanilla5)^0.5 -> 0 | M30: =Input!M161*(1+vanilla6)^0.5 -> 0 | N30: =Input!N161*(1+vanilla7)^0.5 -> 0 | O30: =Input!O161*(1+vanilla8)^0.5 -> 0 | P30: =Input!P161*(1+vanilla9)^0.5 -> 0 | Q30: =Input!Q161*(1+vanilla10)^0.5 -> 0
D31: =Asset20 -> 0 | H31: =Input!H162*(1+vanilla1)^0.5 -> 0 | I31: =Input!I162*(1+vanilla2)^0.5 -> 0 | J31: =Input!J162*(1+vanilla3)^0.5 -> 0 | K31: =Input!K162*(1+vanilla4)^0.5 -> 0 | L31: =Input!L162*(1+vanilla5)^0.5 -> 0 | M31: =Input!M162*(1+vanilla6)^0.5 -> 0 | N31: =Input!N162*(1+vanilla7)^0.5 -> 0 | O31: =Input!O162*(1+vanilla8)^0.5 -> 0 | P31: =Input!P162*(1+vanilla9)^0.5 -> 0 | Q31: =Input!Q162*(1+vanilla10)^0.5 -> 0
D32: =Asset21 -> 0 | H32: =Input!H163*(1+vanilla1)^0.5 -> 0 | I32: =Input!I163*(1+vanilla2)^0.5 -> 0 | J32: =Input!J163*(1+vanilla3)^0.5 -> 0 | K32: =Input!K163*(1+vanilla4)^0.5 -> 0 | L32: =Input!L163*(1+vanilla5)^0.5 -> 0 | M32: =Input!M163*(1+vanilla6)^0.5 -> 0 | N32: =Input!N163*(1+vanilla7)^0.5 -> 0 | O32: =Input!O163*(1+vanilla8)^0.5 -> 0 | P32: =Input!P163*(1+vanilla9)^0.5 -> 0 | Q32: =Input!Q163*(1+vanilla10)^0.5 -> 0
D33: =Asset22 -> 0 | H33: =Input!H164*(1+vanilla1)^0.5 -> 0 | I33: =Input!I164*(1+vanilla2)^0.5 -> 0 | J33: =Input!J164*(1+vanilla3)^0.5 -> 0 | K33: =Input!K164*(1+vanilla4)^0.5 -> 0 | L33: =Input!L164*(1+vanilla5)^0.5 -> 0 | M33: =Input!M164*(1+vanilla6)^0.5 -> 0 | N33: =Input!N164*(1+vanilla7)^0.5 -> 0 | O33: =Input!O164*(1+vanilla8)^0.5 -> 0 | P33: =Input!P164*(1+vanilla9)^0.5 -> 0 | Q33: =Input!Q164*(1+vanilla10)^0.5 -> 0
D34: =Asset23 -> 0 | H34: =Input!H165*(1+vanilla1)^0.5 -> 0 | I34: =Input!I165*(1+vanilla2)^0.5 -> 0 | J34: =Input!J165*(1+vanilla3)^0.5 -> 0 | K34: =Input!K165*(1+vanilla4)^0.5 -> 0 | L34: =Input!L165*(1+vanilla5)^0.5 -> 0 | M34: =Input!M165*(1+vanilla6)^0.5 -> 0 | N34: =Input!N165*(1+vanilla7)^0.5 -> 0 | O34: =Input!O165*(1+vanilla8)^0.5 -> 0 | P34: =Input!P165*(1+vanilla9)^0.5 -> 0 | Q34: =Input!Q165*(1+vanilla10)^0.5 -> 0
D35: =Asset24 -> 0 | H35: =Input!H166*(1+vanilla1)^0.5 -> 0 | I35: =Input!I166*(1+vanilla2)^0.5 -> 0 | J35: =Input!J166*(1+vanilla3)^0.5 -> 0 | K35: =Input!K166*(1+vanilla4)^0.5 -> 0 | L35: =Input!L166*(1+vanilla5)^0.5 -> 0 | M35: =Input!M166*(1+vanilla6)^0.5 -> 0 | N35: =Input!N166*(1+vanilla7)^0.5 -> 0 | O35: =Input!O166*(1+vanilla8)^0.5 -> 0 | P35: =Input!P166*(1+vanilla9)^0.5 -> 0 | Q35: =Input!Q166*(1+vanilla10)^0.5 -> 0
D36: =Asset25 -> 0 | H36: =Input!H167*(1+vanilla1)^0.5 -> 0 | I36: =Input!I167*(1+vanilla2)^0.5 -> 0 | J36: =Input!J167*(1+vanilla3)^0.5 -> 0 | K36: =Input!K167*(1+vanilla4)^0.5 -> 0 | L36: =Input!L167*(1+vanilla5)^0.5 -> 0 | M36: =Input!M167*(1+vanilla6)^0.5 -> 0 | N36: =Input!N167*(1+vanilla7)^0.5 -> 0 | O36: =Input!O167*(1+vanilla8)^0.5 -> 0 | P36: =Input!P167*(1+vanilla9)^0.5 -> 0 | Q36: =Input!Q167*(1+vanilla10)^0.5 -> 0
D37: =Asset26 -> 0 | H37: =Input!H168*(1+vanilla1)^0.5 -> 0 | I37: =Input!I168*(1+vanilla2)^0.5 -> 0 | J37: =Input!J168*(1+vanilla3)^0.5 -> 0 | K37: =Input!K168*(1+vanilla4)^0.5 -> 0 | L37: =Input!L168*(1+vanilla5)^0.5 -> 0 | M37: =Input!M168*(1+vanilla6)^0.5 -> 0 | N37: =Input!N168*(1+vanilla7)^0.5 -> 0 | O37: =Input!O168*(1+vanilla8)^0.5 -> 0 | P37: =Input!P168*(1+vanilla9)^0.5 -> 0 | Q37: =Input!Q168*(1+vanilla10)^0.5 -> 0
D38: =Asset27 -> 0 | H38: =Input!H169*(1+vanilla1)^0.5 -> 0 | I38: =Input!I169*(1+vanilla2)^0.5 -> 0 | J38: =Input!J169*(1+vanilla3)^0.5 -> 0 | K38: =Input!K169*(1+vanilla4)^0.5 -> 0 | L38: =Input!L169*(1+vanilla5)^0.5 -> 0 | M38: =Input!M169*(1+vanilla6)^0.5 -> 0 | N38: =Input!N169*(1+vanilla7)^0.5 -> 0 | O38: =Input!O169*(1+vanilla8)^0.5 -> 0 | P38: =Input!P169*(1+vanilla9)^0.5 -> 0 | Q38: =Input!Q169*(1+vanilla10)^0.5 -> 0
D39: =Asset28 -> 0 | H39: =Input!H170*(1+vanilla1)^0.5 -> 0 | I39: =Input!I170*(1+vanilla2)^0.5 -> 0 | J39: =Input!J170*(1+vanilla3)^0.5 -> 0 | K39: =Input!K170*(1+vanilla4)^0.5 -> 0 | L39: =Input!L170*(1+vanilla5)^0.5 -> 0 | M39: =Input!M170*(1+vanilla6)^0.5 -> 0 | N39: =Input!N170*(1+vanilla7)^0.5 -> 0 | O39: =Input!O170*(1+vanilla8)^0.5 -> 0 | P39: =Input!P170*(1+vanilla9)^0.5 -> 0 | Q39: =Input!Q170*(1+vanilla10)^0.5 -> 0
D40: =Asset29 -> 0 | H40: =Input!H171*(1+vanilla1)^0.5 -> 0 | I40: =Input!I171*(1+vanilla2)^0.5 -> 0 | J40: =Input!J171*(1+vanilla3)^0.5 -> 0 | K40: =Input!K171*(1+vanilla4)^0.5 -> 0 | L40: =Input!L171*(1+vanilla5)^0.5 -> 0 | M40: =Input!M171*(1+vanilla6)^0.5 -> 0 | N40: =Input!N171*(1+vanilla7)^0.5 -> 0 | O40: =Input!O171*(1+vanilla8)^0.5 -> 0 | P40: =Input!P171*(1+vanilla9)^0.5 -> 0 | Q40: =Input!Q171*(1+vanilla10)^0.5 -> 0
D41: =Asset30 -> 0 | H41: =Input!H172*(1+vanilla1)^0.5 -> 0 | I41: =Input!I172*(1+vanilla2)^0.5 -> 0 | J41: =Input!J172*(1+vanilla3)^0.5 -> 0 | K41: =Input!K172*(1+vanilla4)^0.5 -> 0 | L41: =Input!L172*(1+vanilla5)^0.5 -> 0 | M41: =Input!M172*(1+vanilla6)^0.5 -> 0 | N41: =Input!N172*(1+vanilla7)^0.5 -> 0 | O41: =Input!O172*(1+vanilla8)^0.5 -> 0 | P41: =Input!P172*(1+vanilla9)^0.5 -> 0 | Q41: =Input!Q172*(1+vanilla10)^0.5 -> 0
C43: Real Actual Straight-line Depreciation | H43: =H56+H69+H82+H95+H108+H121+H134+H147+H160+H173+H186+H199+H212+H225+H238+H251+H264+H277+H290+H303+H316+H329+H342+H355+H368+H381+H394+H407+H420+H433 -> -74.62193373 | I43: =I56+I69+I82+I95+I108+I121+I134+I147+I160+I173+I186+I199+I212+I225+I238+I251+I264+I277+I290+I303+I316+I329+I342+I355+I368+I381+I394+I407+I420+I433 -> -89.24991279 | J43: -97.79482985 | K43: -104.7288303 | L43: -113.8421462 | M43: 0 | N43: 0 | O43: 0 | P43: 0 | Q43: 0
C44: =Asset1 -> Subtransmission | E44: Opening RAB | H44: =IF(H$3>A1remlife,A1value-SUM($G44:G44),IF(A1remlife="N/A","n/a",A1value/A1remlife)) -> 15.67511174 | I44: =IF(I$3>A1remlife,A1value-SUM($G44:H44),IF(A1remlife="N/A","n/a",A1value/A1remlife)) -> 15.67511174 | J44: =IF(J$3>A1remlife,A1value-SUM($G44:I44),IF(A1remlife="N/A","n/a",A1value/A1remlife)) -> 15.67511174 | K44: =IF(K$3>A1remlife,A1value-SUM($G44:J44),IF(A1remlife="N/A","n/a",A1value/A1remlife)) -> 15.67511174 | L44: =IF(L$3>A1remlife,A1value-SUM($G44:K44),IF(A1remlife="N/A","n/a",A1value/A1remlife)) -> 15.67511174 | M44: =IF(M$3>A1remlife,A1value-SUM($G44:L44),IF(A1remlife="N/A","n/a",A1value/A1remlife)) -> 15.67511174 | N44: =IF(N$3>A1remlife,A1value-SUM($G44:M44),IF(A1remlife="N/A","n/a",A1value/A1remlife)) -> 15.67511174 | O44: =IF(O$3>A1remlife,A1value-SUM($G44:N44),IF(A1remlife="N/A","n/a",A1value/A1remlife)) -> 15.67511174 | P44: =IF(P$3>A1remlife,A1value-SUM($G44:O44),IF(A1remlife="N/A","n/a",A1value/A1remlife)) -> 15.67511174 | Q44: =IF(Q$3>A1remlife,A1value-SUM($G44:P44),IF(A1remlife="N/A","n/a",A1value/A1remlife)) -> 15.67511174
E45: Capex in year | F45: 0
F46: 1 | I46: =IF(A1stdlife="n/a","n/a",IF(I$3>(A1stdlife+$F46),(Input!$H$143*(1+vanilla1)^0.5)-SUM($H46:H46),(Input!$H$143*(1+vanilla1)^0.5)/A1stdlife)) -> 0.3732167048 | J46: =IF(A1stdlife="n/a","n/a",IF(J$3>(A1stdlife+$F46),(Input!$H$143*(1+vanilla1)^0.5)-SUM($H46:I46),(Input!$H$143*(1+vanilla1)^0.5)/A1stdlife)) -> 0.3732167048 | K46: =IF(A1stdlife="n/a","n/a",IF(K$3>(A1stdlife+$F46),(Input!$H$143*(1+vanilla1)^0.5)-SUM($H46:J46),(Input!$H$143*(1+vanilla1)^0.5)/A1stdlife)) -> 0.3732167048 | L46: =IF(A1stdlife="n/a","n/a",IF(L$3>(A1stdlife+$F46),(Input!$H$143*(1+vanilla1)^0.5)-SUM($H46:K46),(Input!$H$143*(1+vanilla1)^0.5)/A1stdlife)) -> 0.3732167048 | M46: =IF(A1stdlife="n/a","n/a",IF(M$3>(A1stdlife+$F46),(Input!$H$143*(1+vanilla1)^0.5)-SUM($H46:L46),(Input!$H$143*(1+vanilla1)^0.5)/A1stdlife)) -> 0.3732167048 | N46: =IF(A1stdlife="n/a","n/a",IF(N$3>(A1stdlife+$F46),(Input!$H$143*(1+vanilla1)^0.5)-SUM($H46:M46),(Input!$H$143*(1+vanilla1)^0.5)/A1stdlife)) -> 0.3732167048 | O46: =IF(A1stdlife="n/a","n/a",IF(O$3>(A1stdlife+$F46),(Input!$H$143*(1+vanilla1)^0.5)-SUM($H46:N46),(Input!$H$143*(1+vanilla1)^0.5)/A1stdlife)) -> 0.3732167048 | P46: =IF(A1stdlife="n/a","n/a",IF(P$3>(A1stdlife+$F46),(Input!$H$143*(1+vanilla1)^0.5)-SUM($H46:O46),(Input!$H$143*(1+vanilla1)^0.5)/A1stdlife)) -> 0.3732167048 | Q46: =IF(A1stdlife="n/a","n/a",IF(Q$3>(A1stdlife+$F46),(Input!$H$143*(1+vanilla1)^0.5)-SUM($H46:P46),(Input!$H$143*(1+vanilla1)^0.5)/A1stdlife)) -> 0.3732167048
F47: 2 | J47: =IF(A1stdlife="n/a","n/a",IF(J$3>(A1stdlife+$F47),(Input!$I$143*(1+vanilla2)^0.5)-SUM($I47:I47),(Input!$I$143*(1+vanilla2)^0.5)/A1stdlife)) -> 0.8742388533 | K47: =IF(A1stdlife="n/a","n/a",IF(K$3>(A1stdlife+$F47),(Input!$I$143*(1+vanilla2)^0.5)-SUM($I47:J47),(Input!$I$143*(1+vanilla2)^0.5)/A1stdlife)) -> 0.8742388533 | L47: =IF(A1stdlife="n/a","n/a",IF(L$3>(A1stdlife+$F47),(Input!$I$143*(1+vanilla2)^0.5)-SUM($I47:K47),(Input!$I$143*(1+vanilla2)^0.5)/A1stdlife)) -> 0.8742388533 | M47: =IF(A1stdlife="n/a","n/a",IF(M$3>(A1stdlife+$F47),(Input!$I$143*(1+vanilla2)^0.5)-SUM($I47:L47),(Input!$I$143*(1+vanilla2)^0.5)/A1stdlife)) -> 0.8742388533 | N47: =IF(A1stdlife="n/a","n/a",IF(N$3>(A1stdlife+$F47),(Input!$I$143*(1+vanilla2)^0.5)-SUM($I47:M47),(Input!$I$143*(1+vanilla2)^0.5)/A1stdlife)) -> 0.8742388533 | O47: =IF(A1stdlife="n/a","n/a",IF(O$3>(A1stdlife+$F47),(Input!$I$143*(1+vanilla2)^0.5)-SUM($I47:N47),(Input!$I$143*(1+vanilla2)^0.5)/A1stdlife)) -> 0.8742388533 | P47: =IF(A1stdlife="n/a","n/a",IF(P$3>(A1stdlife+$F47),(Input!$I$143*(1+vanilla2)^0.5)-SUM($I47:O47),(Input!$I$143*(1+vanilla2)^0.5)/A1stdlife)) -> 0.8742388533 | Q47: =IF(A1stdlife="n/a","n/a",IF(Q$3>(A1stdlife+$F47),(Input!$I$143*(1+vanilla2)^0.5)-SUM($I47:P47),(Input!$I$143*(1+vanilla2)^0.5)/A1stdlife)) -> 0.8742388533
F48: 3 | K48: =IF(A1stdlife="n/a","n/a",IF(K$3>(A1stdlife+$F48),(Input!$J$143*(1+vanilla3)^0.5)-SUM($J48:J48),(Input!$J$143*(1+vanilla3)^0.5)/A1stdlife)) -> 0.5727289419 | L48: =IF(A1stdlife="n/a","n/a",IF(L$3>(A1stdlife+$F48),(Input!$J$143*(1+vanilla3)^0.5)-SUM($J48:K48),(Input!$J$143*(1+vanilla3)^0.5)/A1stdlife)) -> 0.5727289419 | M48: =IF(A1stdlife="n/a","n/a",IF(M$3>(A1stdlife+$F48),(Input!$J$143*(1+vanilla3)^0.5)-SUM($J48:L48),(Input!$J$143*(1+vanilla3)^0.5)/A1stdlife)) -> 0.5727289419 | N48: =IF(A1stdlife="n/a","n/a",IF(N$3>(A1stdlife+$F48),(Input!$J$143*(1+vanilla3)^0.5)-SUM($J48:M48),(Input!$J$143*(1+vanilla3)^0.5)/A1stdlife)) -> 0.5727289419 | O48: =IF(A1stdlife="n/a","n/a",IF(O$3>(A1stdlife+$F48),(Input!$J$143*(1+vanilla3)^0.5)-SUM($J48:N48),(Input!$J$143*(1+vanilla3)^0.5)/A1stdlife)) -> 0.5727289419 | P48: =IF(A1stdlife="n/a","n/a",IF(P$3>(A1stdlife+$F48),(Input!$J$143*(1+vanilla3)^0.5)-SUM($J48:O48),(Input!$J$143*(1+vanilla3)^0.5)/A1stdlife)) -> 0.5727289419 | Q48: =IF(A1stdlife="n/a","n/a",IF(Q$3>(A1stdlife+$F48),(Input!$J$143*(1+vanilla3)^0.5)-SUM($J48:P48),(Input!$J$143*(1+vanilla3)^0.5)/A1stdlife)) -> 0.5727289419
F49: 4 | L49: =IF(A1stdlife="n/a","n/a",IF(L$3>(A1stdlife+$F49),(Input!$K$143*(1+vanilla4)^0.5)-SUM($K49:K49),(Input!$K$143*(1+vanilla4)^0.5)/A1stdlife)) -> 0.6252405094 | M49: =IF(A1stdlife="n/a","n/a",IF(M$3>(A1stdlife+$F49),(Input!$K$143*(1+vanilla4)^0.5)-SUM($K49:L49),(Input!$K$143*(1+vanilla4)^0.5)/A1stdlife)) -> 0.6252405094 | N49: =IF(A1stdlife="n/a","n/a",IF(N$3>(A1stdlife+$F49),(Input!$K$143*(1+vanilla4)^0.5)-SUM($K49:M49),(Input!$K$143*(1+vanilla4)^0.5)/A1stdlife)) -> 0.6252405094 | O49: =IF(A1stdlife="n/a","n/a",IF(O$3>(A1stdlife+$F49),(Input!$K$143*(1+vanilla4)^0.5)-SUM($K49:N49),(Input!$K$143*(1+vanilla4)^0.5)/A1stdlife)) -> 0.6252405094 | P49: =IF(A1stdlife="n/a","n/a",IF(P$3>(A1stdlife+$F49),(Input!$K$143*(1+vanilla4)^0.5)-SUM($K49:O49),(Input!$K$143*(1+vanilla4)^0.5)/A1stdlife)) -> 0.6252405094 | Q49: =IF(A1stdlife="n/a","n/a",IF(Q$3>(A1stdlife+$F49),(Input!$K$143*(1+vanilla4)^0.5)-SUM($K49:P49),(Input!$K$143*(1+vanilla4)^0.5)/A1stdlife)) -> 0.6252405094
F50: 5 | M50: =IF(A1stdlife="n/a","n/a",IF(M$3>(A1stdlife+$F50),(Input!$L$143*(1+vanilla5)^0.5)-SUM($L50:L50),(Input!$L$143*(1+vanilla5)^0.5)/A1stdlife)) -> 0.6228980953 | N50: =IF(A1stdlife="n/a","n/a",IF(N$3>(A1stdlife+$F50),(Input!$L$143*(1+vanilla5)^0.5)-SUM($L50:M50),(Input!$L$143*(1+vanilla5)^0.5)/A1stdlife)) -> 0.6228980953 | O50: =IF(A1stdlife="n/a","n/a",IF(O$3>(A1stdlife+$F50),(Input!$L$143*(1+vanilla5)^0.5)-SUM($L50:N50),(Input!$L$143*(1+vanilla5)^0.5)/A1stdlife)) -> 0.6228980953 | P50: =IF(A1stdlife="n/a","n/a",IF(P$3>(A1stdlife+$F50),(Input!$L$143*(1+vanilla5)^0.5)-SUM($L50:O50),(Input!$L$143*(1+vanilla5)^0.5)/A1stdlife)) -> 0.6228980953 | Q50: =IF(A1stdlife="n/a","n/a",IF(Q$3>(A1stdlife+$F50),(Input!$L$143*(1+vanilla5)^0.5)-SUM($L50:P50),(Input!$L$143*(1+vanilla5)^0.5)/A1stdlife)) -> 0.6228980953
F51: 6 | N51: =IF(A1stdlife="n/a","n/a",IF(N$3>(A1stdlife+$F51),(Input!$M$143*(1+vanilla6)^0.5)-SUM($M51:M51),(Input!$M$143*(1+vanilla6)^0.5)/A1stdlife)) -> 0 | O51: =IF(A1stdlife="n/a","n/a",IF(O$3>(A1stdlife+$F51),(Input!$M$143*(1+vanilla6)^0.5)-SUM($M51:N51),(Input!$M$143*(1+vanilla6)^0.5)/A1stdlife)) -> 0 | P51: =IF(A1stdlife="n/a","n/a",IF(P$3>(A1stdlife+$F51),(Input!$M$143*(1+vanilla6)^0.5)-SUM($M51:O51),(Input!$M$143*(1+vanilla6)^0.5)/A1stdlife)) -> 0 | Q51: =IF(A1stdlife="n/a","n/a",IF(Q$3>(A1stdlife+$F51),(Input!$M$143*(1+vanilla6)^0.5)-SUM($M51:P51),(Input!$M$143*(1+vanilla6)^0.5)/A1stdlife)) -> 0
F52: 7 | O52: =IF(A1stdlife="n/a","n/a",IF(O$3>(A1stdlife+$F52),(Input!$N$143*(1+vanilla7)^0.5)-SUM($N52:N52),(Input!$N$143*(1+vanilla7)^0.5)/A1stdlife)) -> 0 | P52: =IF(A1stdlife="n/a","n/a",IF(P$3>(A1stdlife+$F52),(Input!$N$143*(1+vanilla7)^0.5)-SUM($N52:O52),(Input!$N$143*(1+vanilla7)^0.5)/A1stdlife)) -> 0 | Q52: =IF(A1stdlife="n/a","n/a",IF(Q$3>(A1stdlife+$F52),(Input!$N$143*(1+vanilla7)^0.5)-SUM($N52:P52),(Input!$N$143*(1+vanilla7)^0.5)/A1stdlife)) -> 0
F53: 8 | P53: =IF(A1stdlife="n/a","n/a",IF(P$3>(A1stdlife+$F53),(Input!$O$143*(1+vanilla8)^0.5)-SUM($O53:O53),(Input!$O$143*(1+vanilla8)^0.5)/A1stdlife)) -> 0 | Q53: =IF(A1stdlife="n/a","n/a",IF(Q$3>(A1stdlife+$F53),(Input!$O$143*(1+vanilla8)^0.5)-SUM($O53:P53),(Input!$O$143*(1+vanilla8)^0.5)/A1stdlife)) -> 0
F54: 9 | Q54: =IF(A1stdlife="n/a","n/a",IF(Q$3>(A1stdlife+$F54),(Input!$P$143*(1+vanilla9)^0.5)-SUM($P54:P54),(Input!$P$143*(1+vanilla9)^0.5)/A1stdlife)) -> 0
F55: 10
D56: =Asset1 -> Subtransmission | H56: =-SUM(H44:H55) -> -15.67511174 | I56: =-SUM(I44:I55) -> -16.04832845 | J56: =-SUM(J44:J55) -> -16.9225673 | K56: =-SUM(K44:K55) -> -17.49529624 | L56: =-SUM(L44:L55) -> -18.12053675 | M56: =IF(Input!M173>0, -SUM(M44:M55), 0) -> 0 | N56: =IF(Input!N173>0, -SUM(N44:N55), 0) -> 0 | O56: =IF(Input!O173>0, -SUM(O44:O55), 0) -> 0 | P56: =IF(Input!P173>0, -SUM(P44:P55), 0) -> 0 | Q56: =IF(Input!Q173>0, -SUM(Q44:Q55), 0) -> 0
C57: =Asset2 -> Distribution system assets | E57: Opening RAB | H57: =IF(H$3>A2remlife,A2value-SUM($G57:G57),IF(A2remlife="N/A","n/a",A2value/A2remlife)) -> 37.33109087 | I57: =IF(I$3>A2remlife,A2value-SUM($G57:H57),IF(A2remlife="N/A","n/a",A2value/A2remlife)) -> 37.33109087 | J57: =IF(J$3>A2remlife,A2value-SUM($G57:I57),IF(A2remlife="N/A","n/a",A2value/A2remlife)) -> 37.33109087 | K57: =IF(K$3>A2remlife,A2value-SUM($G57:J57),IF(A2remlife="N/A","n/a",A2value/A2remlife)) -> 37.33109087 | L57: =IF(L$3>A2remlife,A2value-SUM($G57:K57),IF(A2remlife="N/A","n/a",A2value/A2remlife)) -> 37.33109087 | M57: =IF(M$3>A2remlife,A2value-SUM($G57:L57),IF(A2remlife="N/A","n/a",A2value/A2remlife)) -> 37.33109087 | N57: =IF(N$3>A2remlife,A2value-SUM($G57:M57),IF(A2remlife="N/A","n/a",A2value/A2remlife)) -> 37.33109087 | O57: =IF(O$3>A2remlife,A2value-SUM($G57:N57),IF(A2remlife="N/A","n/a",A2value/A2remlife)) -> 37.33109087 | P57: =IF(P$3>A2remlife,A2value-SUM($G57:O57),IF(A2remlife="N/A","n/a",A2value/A2remlife)) -> 37.33109087 | Q57: =IF(Q$3>A2remlife,A2value-SUM($G57:P57),IF(A2remlife="N/A","n/a",A2value/A2remlife)) -> 37.33109087
E58: Capex in year | F58: 0
F59: 1 | I59: =IF(A2stdlife="n/a","n/a",IF(I$3>(A2stdlife+$F59),(Input!$H$144*(1+vanilla1)^0.5)-SUM($H59:H59),(Input!$H$144*(1+vanilla1)^0.5)/A2stdlife)) -> 2.546783791 | J59: =IF(A2stdlife="n/a","n/a",IF(J$3>(A2stdlife+$F59),(Input!$H$144*(1+vanilla1)^0.5)-SUM($H59:I59),(Input!$H$144*(1+vanilla1)^0.5)/A2stdlife)) -> 2.546783791 | K59: =IF(A2stdlife="n/a","n/a",IF(K$3>(A2stdlife+$F59),(Input!$H$144*(1+vanilla1)^0.5)-SUM($H59:J59),(Input!$H$144*(1+vanilla1)^0.5)/A2stdlife)) -> 2.546783791 | L59: =IF(A2stdlife="n/a","n/a",IF(L$3>(A2stdlife+$F59),(Input!$H$144*(1+vanilla1)^0.5)-SUM($H59:K59),(Input!$H$144*(1+vanilla1)^0.5)/A2stdlife)) -> 2.546783791 | M59: =IF(A2stdlife="n/a","n/a",IF(M$3>(A2stdlife+$F59),(Input!$H$144*(1+vanilla1)^0.5)-SUM($H59:L59),(Input!$H$144*(1+vanilla1)^0.5)/A2stdlife)) -> 2.546783791 | N59: =IF(A2stdlife="n/a","n/a",IF(N$3>(A2stdlife+$F59),(Input!$H$144*(1+vanilla1)^0.5)-SUM($H59:M59),(Input!$H$144*(1+vanilla1)^0.5)/A2stdlife)) -> 2.546783791 | O59: =IF(A2stdlife="n/a","n/a",IF(O$3>(A2stdlife+$F59),(Input!$H$144*(1+vanilla1)^0.5)-SUM($H59:N59),(Input!$H$144*(1+vanilla1)^0.5)/A2stdlife)) -> 2.546783791 | P59: =IF(A2stdlife="n/a","n/a",IF(P$3>(A2stdlife+$F59),(Input!$H$144*(1+vanilla1)^0.5)-SUM($H59:O59),(Input!$H$144*(1+vanilla1)^0.5)/A2stdlife)) -> 2.546783791 | Q59: =IF(A2stdlife="n/a","n/a",IF(Q$3>(A2stdlife+$F59),(Input!$H$144*(1+vanilla1)^0.5)-SUM($H59:P59),(Input!$H$144*(1+vanilla1)^0.5)/A2stdlife)) -> 2.546783791
F60: 2 | J60: =IF(A2stdlife="n/a","n/a",IF(J$3>(A2stdlife+$F60),(Input!$I$144*(1+vanilla2)^0.5)-SUM($I60:I60),(Input!$I$144*(1+vanilla2)^0.5)/A2stdlife)) -> 2.921765568 | K60: =IF(A2stdlife="n/a","n/a",IF(K$3>(A2stdlife+$F60),(Input!$I$144*(1+vanilla2)^0.5)-SUM($I60:J60),(Input!$I$144*(1+vanilla2)^0.5)/A2stdlife)) -> 2.921765568 | L60: =IF(A2stdlife="n/a","n/a",IF(L$3>(A2stdlife+$F60),(Input!$I$144*(1+vanilla2)^0.5)-SUM($I60:K60),(Input!$I$144*(1+vanilla2)^0.5)/A2stdlife)) -> 2.921765568 | M60: =IF(A2stdlife="n/a","n/a",IF(M$3>(A2stdlife+$F60),(Input!$I$144*(1+vanilla2)^0.5)-SUM($I60:L60),(Input!$I$144*(1+vanilla2)^0.5)/A2stdlife)) -> 2.921765568 | N60: =IF(A2stdlife="n/a","n/a",IF(N$3>(A2stdlife+$F60),(Input!$I$144*(1+vanilla2)^0.5)-SUM($I60:M60),(Input!$I$144*(1+vanilla2)^0.5)/A2stdlife)) -> 2.921765568 | O60: =IF(A2stdlife="n/a","n/a",IF(O$3>(A2stdlife+$F60),(Input!$I$144*(1+vanilla2)^0.5)-SUM($I60:N60),(Input!$I$144*(1+vanilla2)^0.5)/A2stdlife)) -> 2.921765568 | P60: =IF(A2stdlife="n/a","n/a",IF(P$3>(A2stdlife+$F60),(Input!$I$144*(1+vanilla2)^0.5)-SUM($I60:O60),(Input!$I$144*(1+vanilla2)^0.5)/A2stdlife)) -> 2.921765568 | Q60: =IF(A2stdlife="n/a","n/a",IF(Q$3>(A2stdlife+$F60),(Input!$I$144*(1+vanilla2)^0.5)-SUM($I60:P60),(Input!$I$144*(1+vanilla2)^0.5)/A2stdlife)) -> 2.921765568
F61: 3 | K61: =IF(A2stdlife="n/a","n/a",IF(K$3>(A2stdlife+$F61),(Input!$J$144*(1+vanilla3)^0.5)-SUM($J61:J61),(Input!$J$144*(1+vanilla3)^0.5)/A2stdlife)) -> 3.312273275 | L61: =IF(A2stdlife="n/a","n/a",IF(L$3>(A2stdlife+$F61),(Input!$J$144*(1+vanilla3)^0.5)-SUM($J61:K61),(Input!$J$144*(1+vanilla3)^0.5)/A2stdlife)) -> 3.312273275 | M61: =IF(A2stdlife="n/a","n/a",IF(M$3>(A2stdlife+$F61),(Input!$J$144*(1+vanilla3)^0.5)-SUM($J61:L61),(Input!$J$144*(1+vanilla3)^0.5)/A2stdlife)) -> 3.312273275 | N61: =IF(A2stdlife="n/a","n/a",IF(N$3>(A2stdlife+$F61),(Input!$J$144*(1+vanilla3)^0.5)-SUM($J61:M61),(Input!$J$144*(1+vanilla3)^0.5)/A2stdlife)) -> 3.312273275 | O61: =IF(A2stdlife="n/a","n/a",IF(O$3>(A2stdlife+$F61),(Input!$J$144*(1+vanilla3)^0.5)-SUM($J61:N61),(Input!$J$144*(1+vanilla3)^0.5)/A2stdlife)) -> 3.312273275 | P61: =IF(A2stdlife="n/a","n/a",IF(P$3>(A2stdlife+$F61),(Input!$J$144*(1+vanilla3)^0.5)-SUM($J61:O61),(Input!$J$144*(1+vanilla3)^0.5)/A2stdlife)) -> 3.312273275 | Q61: =IF(A2stdlife="n/a","n/a",IF(Q$3>(A2stdlife+$F61),(Input!$J$144*(1+vanilla3)^0.5)-SUM($J61:P61),(Input!$J$144*(1+vanilla3)^0.5)/A2stdlife)) -> 3.312273275
F62: 4 | L62: =IF(A2stdlife="n/a","n/a",IF(L$3>(A2stdlife+$F62),(Input!$K$144*(1+vanilla4)^0.5)-SUM($K62:K62),(Input!$K$144*(1+vanilla4)^0.5)/A2stdlife)) -> 3.547517416 | M62: =IF(A2stdlife="n/a","n/a",IF(M$3>(A2stdlife+$F62),(Input!$K$144*(1+vanilla4)^0.5)-SUM($K62:L62),(Input!$K$144*(1+vanilla4)^0.5)/A2stdlife)) -> 3.547517416 | N62: =IF(A2stdlife="n/a","n/a",IF(N$3>(A2stdlife+$F62),(Input!$K$144*(1+vanilla4)^0.5)-SUM($K62:M62),(Input!$K$144*(1+vanilla4)^0.5)/A2stdlife)) -> 3.547517416 | O62: =IF(A2stdlife="n/a","n/a",IF(O$3>(A2stdlife+$F62),(Input!$K$144*(1+vanilla4)^0.5)-SUM($K62:N62),(Input!$K$144*(1+vanilla4)^0.5)/A2stdlife)) -> 3.547517416 | P62: =IF(A2stdlife="n/a","n/a",IF(P$3>(A2stdlife+$F62),(Input!$K$144*(1+vanilla4)^0.5)-SUM($K62:O62),(Input!$K$144*(1+vanilla4)^0.5)/A2stdlife)) -> 3.547517416 | Q62: =IF(A2stdlife="n/a","n/a",IF(Q$3>(A2stdlife+$F62),(Input!$K$144*(1+vanilla4)^0.5)-SUM($K62:P62),(Input!$K$144*(1+vanilla4)^0.5)/A2stdlife)) -> 3.547517416
F63: 5 | M63: =IF(A2stdlife="n/a","n/a",IF(M$3>(A2stdlife+$F63),(Input!$L$144*(1+vanilla5)^0.5)-SUM($L63:L63),(Input!$L$144*(1+vanilla5)^0.5)/A2stdlife)) -> 3.176635175 | N63: =IF(A2stdlife="n/a","n/a",IF(N$3>(A2stdlife+$F63),(Input!$L$144*(1+vanilla5)^0.5)-SUM($L63:M63),(Input!$L$144*(1+vanilla5)^0.5)/A2stdlife)) -> 3.176635175 | O63: =IF(A2stdlife="n/a","n/a",IF(O$3>(A2stdlife+$F63),(Input!$L$144*(1+vanilla5)^0.5)-SUM($L63:N63),(Input!$L$144*(1+vanilla5)^0.5)/A2stdlife)) -> 3.176635175 | P63: =IF(A2stdlife="n/a","n/a",IF(P$3>(A2stdlife+$F63),(Input!$L$144*(1+vanilla5)^0.5)-SUM($L63:O63),(Input!$L$144*(1+vanilla5)^0.5)/A2stdlife)) -> 3.176635175 | Q63: =IF(A2stdlife="n/a","n/a",IF(Q$3>(A2stdlife+$F63),(Input!$L$144*(1+vanilla5)^0.5)-SUM($L63:P63),(Input!$L$144*(1+vanilla5)^0.5)/A2stdlife)) -> 3.176635175
F64: 6 | N64: =IF(A2stdlife="n/a","n/a",IF(N$3>(A2stdlife+$F64),(Input!$M$144*(1+vanilla6)^0.5)-SUM($M64:M64),(Input!$M$144*(1+vanilla6)^0.5)/A2stdlife)) -> 0 | O64: =IF(A2stdlife="n/a","n/a",IF(O$3>(A2stdlife+$F64),(Input!$M$144*(1+vanilla6)^0.5)-SUM($M64:N64),(Input!$M$144*(1+vanilla6)^0.5)/A2stdlife)) -> 0 | P64: =IF(A2stdlife="n/a","n/a",IF(P$3>(A2stdlife+$F64),(Input!$M$144*(1+vanilla6)^0.5)-SUM($M64:O64),(Input!$M$144*(1+vanilla6)^0.5)/A2stdlife)) -> 0 | Q64: =IF(A2stdlife="n/a","n/a",IF(Q$3>(A2stdlife+$F64),(Input!$M$144*(1+vanilla6)^0.5)-SUM($M64:P64),(Input!$M$144*(1+vanilla6)^0.5)/A2stdlife)) -> 0
F65: 7 | O65: =IF(A2stdlife="n/a","n/a",IF(O$3>(A2stdlife+$F65),(Input!$N$144*(1+vanilla7)^0.5)-SUM($N65:N65),(Input!$N$144*(1+vanilla7)^0.5)/A2stdlife)) -> 0 | P65: =IF(A2stdlife="n/a","n/a",IF(P$3>(A2stdlife+$F65),(Input!$N$144*(1+vanilla7)^0.5)-SUM($N65:O65),(Input!$N$144*(1+vanilla7)^0.5)/A2stdlife)) -> 0 | Q65: =IF(A2stdlife="n/a","n/a",IF(Q$3>(A2stdlife+$F65),(Input!$N$144*(1+vanilla7)^0.5)-SUM($N65:P65),(Input!$N$144*(1+vanilla7)^0.5)/A2stdlife)) -> 0
F66: 8 | P66: =IF(A2stdlife="n/a","n/a",IF(P$3>(A2stdlife+$F66),(Input!$O$144*(1+vanilla8)^0.5)-SUM($O66:O66),(Input!$O$144*(1+vanilla8)^0.5)/A2stdlife)) -> 0 | Q66: =IF(A2stdlife="n/a","n/a",IF(Q$3>(A2stdlife+$F66),(Input!$O$144*(1+vanilla8)^0.5)-SUM($O66:P66),(Input!$O$144*(1+vanilla8)^0.5)/A2stdlife)) -> 0
F67: 9 | Q67: =IF(A2stdlife="n/a","n/a",IF(Q$3>(A2stdlife+$F67),(Input!$P$144*(1+vanilla9)^0.5)-SUM($P67:P67),(Input!$P$144*(1+vanilla9)^0.5)/A2stdlife)) -> 0
F68: 10
D69: =Asset2 -> Distribution system assets | H69: =-SUM(H57:H68) -> -37.33109087 | I69: =-SUM(I57:I68) -> -39.87787466 | J69: =-SUM(J57:J68) -> -42.79964023 | K69: =-SUM(K57:K68) -> -46.11191351 | L69: =-SUM(L57:L68) -> -49.65943092 | M69: =IF(Input!M173>0, -SUM(M57:M68), 0) -> 0 | N69: =IF(Input!N173>0, -SUM(N57:N68), 0) -> 0 | O69: =IF(Input!O173>0, -SUM(O57:O68), 0) -> 0 | P69: =IF(Input!P173>0, -SUM(P57:P68), 0) -> 0 | Q69: =IF(Input!Q173>0, -SUM(Q57:Q68), 0) -> 0
C70: =Asset3 -> Metering | E70: Opening RAB | H70: =IF(H$3>A3remlife,A3value-SUM($G70:G70),IF(A3remlife="N/A","n/a",A3value/A3remlife)) -> 9.391929479 | I70: =IF(I$3>A3remlife,A3value-SUM($G70:H70),IF(A3remlife="N/A","n/a",A3value/A3remlife)) -> 9.391929479 | J70: =IF(J$3>A3remlife,A3value-SUM($G70:I70),IF(A3remlife="N/A","n/a",A3value/A3remlife)) -> 9.391929479 | K70: =IF(K$3>A3remlife,A3value-SUM($G70:J70),IF(A3remlife="N/A","n/a",A3value/A3remlife)) -> 9.391929479 | L70: =IF(L$3>A3remlife,A3value-SUM($G70:K70),IF(A3remlife="N/A","n/a",A3value/A3remlife)) -> 9.391929479 | M70: =IF(M$3>A3remlife,A3value-SUM($G70:L70),IF(A3remlife="N/A","n/a",A3value/A3remlife)) -> 0 | N70: =IF(N$3>A3remlife,A3value-SUM($G70:M70),IF(A3remlife="N/A","n/a",A3value/A3remlife)) -> 0 | O70: =IF(O$3>A3remlife,A3value-SUM($G70:N70),IF(A3remlife="N/A","n/a",A3value/A3remlife)) -> 0 | P70: =IF(P$3>A3remlife,A3value-SUM($G70:O70),IF(A3remlife="N/A","n/a",A3value/A3remlife)) -> 0 | Q70: =IF(Q$3>A3remlife,A3value-SUM($G70:P70),IF(A3remlife="N/A","n/a",A3value/A3remlife)) -> 0
E71: Capex in year | F71: 0
F72: 1 | I72: =IF(A3stdlife="n/a","n/a",IF(I$3>(A3stdlife+$F72),(Input!$H$145*(1+vanilla1)^0.5)-SUM($H72:H72),(Input!$H$145*(1+vanilla1)^0.5)/A3stdlife)) -> -0.0008478501642 | J72: =IF(A3stdlife="n/a","n/a",IF(J$3>(A3stdlife+$F72),(Input!$H$145*(1+vanilla1)^0.5)-SUM($H72:I72),(Input!$H$145*(1+vanilla1)^0.5)/A3stdlife)) -> -0.0008478501642 | K72: =IF(A3stdlife="n/a","n/a",IF(K$3>(A3stdlife+$F72),(Input!$H$145*(1+vanilla1)^0.5)-SUM($H72:J72),(Input!$H$145*(1+vanilla1)^0.5)/A3stdlife)) -> -0.0008478501642 | L72: =IF(A3stdlife="n/a","n/a",IF(L$3>(A3stdlife+$F72),(Input!$H$145*(1+vanilla1)^0.5)-SUM($H72:K72),(Input!$H$145*(1+vanilla1)^0.5)/A3stdlife)) -> -0.0008478501642 | M72: =IF(A3stdlife="n/a","n/a",IF(M$3>(A3stdlife+$F72),(Input!$H$145*(1+vanilla1)^0.5)-SUM($H72:L72),(Input!$H$145*(1+vanilla1)^0.5)/A3stdlife)) -> -0.0008478501642 | N72: =IF(A3stdlife="n/a","n/a",IF(N$3>(A3stdlife+$F72),(Input!$H$145*(1+vanilla1)^0.5)-SUM($H72:M72),(Input!$H$145*(1+vanilla1)^0.5)/A3stdlife)) -> 0 | O72: =IF(A3stdlife="n/a","n/a",IF(O$3>(A3stdlife+$F72),(Input!$H$145*(1+vanilla1)^0.5)-SUM($H72:N72),(Input!$H$145*(1+vanilla1)^0.5)/A3stdlife)) -> 0 | P72: =IF(A3stdlife="n/a","n/a",IF(P$3>(A3stdlife+$F72),(Input!$H$145*(1+vanilla1)^0.5)-SUM($H72:O72),(Input!$H$145*(1+vanilla1)^0.5)/A3stdlife)) -> 0 | Q72: =IF(A3stdlife="n/a","n/a",IF(Q$3>(A3stdlife+$F72),(Input!$H$145*(1+vanilla1)^0.5)-SUM($H72:P72),(Input!$H$145*(1+vanilla1)^0.5)/A3stdlife)) -> 0
F73: 2 | J73: =IF(A3stdlife="n/a","n/a",IF(J$3>(A3stdlife+$F73),(Input!$I$145*(1+vanilla2)^0.5)-SUM($I73:I73),(Input!$I$145*(1+vanilla2)^0.5)/A3stdlife)) -> 0 | K73: =IF(A3stdlife="n/a","n/a",IF(K$3>(A3stdlife+$F73),(Input!$I$145*(1+vanilla2)^0.5)-SUM($I73:J73),(Input!$I$145*(1+vanilla2)^0.5)/A3stdlife)) -> 0 | L73: =IF(A3stdlife="n/a","n/a",IF(L$3>(A3stdlife+$F73),(Input!$I$145*(1+vanilla2)^0.5)-SUM($I73:K73),(Input!$I$145*(1+vanilla2)^0.5)/A3stdlife)) -> 0 | M73: =IF(A3stdlife="n/a","n/a",IF(M$3>(A3stdlife+$F73),(Input!$I$145*(1+vanilla2)^0.5)-SUM($I73:L73),(Input!$I$145*(1+vanilla2)^0.5)/A3stdlife)) -> 0 | N73: =IF(A3stdlife="n/a","n/a",IF(N$3>(A3stdlife+$F73),(Input!$I$145*(1+vanilla2)^0.5)-SUM($I73:M73),(Input!$I$145*(1+vanilla2)^0.5)/A3stdlife)) -> 0 | O73: =IF(A3stdlife="n/a","n/a",IF(O$3>(A3stdlife+$F73),(Input!$I$145*(1+vanilla2)^0.5)-SUM($I73:N73),(Input!$I$145*(1+vanilla2)^0.5)/A3stdlife)) -> 0 | P73: =IF(A3stdlife="n/a","n/a",IF(P$3>(A3stdlife+$F73),(Input!$I$145*(1+vanilla2)^0.5)-SUM($I73:O73),(Input!$I$145*(1+vanilla2)^0.5)/A3stdlife)) -> 0 | Q73: =IF(A3stdlife="n/a","n/a",IF(Q$3>(A3stdlife+$F73),(Input!$I$145*(1+vanilla2)^0.5)-SUM($I73:P73),(Input!$I$145*(1+vanilla2)^0.5)/A3stdlife)) -> 0
F74: 3 | K74: =IF(A3stdlife="n/a","n/a",IF(K$3>(A3stdlife+$F74),(Input!$J$145*(1+vanilla3)^0.5)-SUM($J74:J74),(Input!$J$145*(1+vanilla3)^0.5)/A3stdlife)) -> 0 | L74: =IF(A3stdlife="n/a","n/a",IF(L$3>(A3stdlife+$F74),(Input!$J$145*(1+vanilla3)^0.5)-SUM($J74:K74),(Input!$J$145*(1+vanilla3)^0.5)/A3stdlife)) -> 0 | M74: =IF(A3stdlife="n/a","n/a",IF(M$3>(A3stdlife+$F74),(Input!$J$145*(1+vanilla3)^0.5)-SUM($J74:L74),(Input!$J$145*(1+vanilla3)^0.5)/A3stdlife)) -> 0 | N74: =IF(A3stdlife="n/a","n/a",IF(N$3>(A3stdlife+$F74),(Input!$J$145*(1+vanilla3)^0.5)-SUM($J74:M74),(Input!$J$145*(1+vanilla3)^0.5)/A3stdlife)) -> 0 | O74: =IF(A3stdlife="n/a","n/a",IF(O$3>(A3stdlife+$F74),(Input!$J$145*(1+vanilla3)^0.5)-SUM($J74:N74),(Input!$J$145*(1+vanilla3)^0.5)/A3stdlife)) -> 0 | P74: =IF(A3stdlife="n/a","n/a",IF(P$3>(A3stdlife+$F74),(Input!$J$145*(1+vanilla3)^0.5)-SUM($J74:O74),(Input!$J$145*(1+vanilla3)^0.5)/A3stdlife)) -> 0 | Q74: =IF(A3stdlife="n/a","n/a",IF(Q$3>(A3stdlife+$F74),(Input!$J$145*(1+vanilla3)^0.5)-SUM($J74:P74),(Input!$J$145*(1+vanilla3)^0.5)/A3stdlife)) -> 0
F75: 4 | L75: =IF(A3stdlife="n/a","n/a",IF(L$3>(A3stdlife+$F75),(Input!$K$145*(1+vanilla4)^0.5)-SUM($K75:K75),(Input!$K$145*(1+vanilla4)^0.5)/A3stdlife)) -> 0 | M75: =IF(A3stdlife="n/a","n/a",IF(M$3>(A3stdlife+$F75),(Input!$K$145*(1+vanilla4)^0.5)-SUM($K75:L75),(Input!$K$145*(1+vanilla4)^0.5)/A3stdlife)) -> 0 | N75: =IF(A3stdlife="n/a","n/a",IF(N$3>(A3stdlife+$F75),(Input!$K$145*(1+vanilla4)^0.5)-SUM($K75:M75),(Input!$K$145*(1+vanilla4)^0.5)/A3stdlife)) -> 0 | O75: =IF(A3stdlife="n/a","n/a",IF(O$3>(A3stdlife+$F75),(Input!$K$145*(1+vanilla4)^0.5)-SUM($K75:N75),(Input!$K$145*(1+vanilla4)^0.5)/A3stdlife)) -> 0 | P75: =IF(A3stdlife="n/a","n/a",IF(P$3>(A3stdlife+$F75),(Input!$K$145*(1+vanilla4)^0.5)-SUM($K75:O75),(Input!$K$145*(1+vanilla4)^0.5)/A3stdlife)) -> 0 | Q75: =IF(A3stdlife="n/a","n/a",IF(Q$3>(A3stdlife+$F75),(Input!$K$145*(1+vanilla4)^0.5)-SUM($K75:P75),(Input!$K$145*(1+vanilla4)^0.5)/A3stdlife)) -> 0
F76: 5 | M76: =IF(A3stdlife="n/a","n/a",IF(M$3>(A3stdlife+$F76),(Input!$L$145*(1+vanilla5)^0.5)-SUM($L76:L76),(Input!$L$145*(1+vanilla5)^0.5)/A3stdlife)) -> 0 | N76: =IF(A3stdlife="n/a","n/a",IF(N$3>(A3stdlife+$F76),(Input!$L$145*(1+vanilla5)^0.5)-SUM($L76:M76),(Input!$L$145*(1+vanilla5)^0.5)/A3stdlife)) -> 0 | O76: =IF(A3stdlife="n/a","n/a",IF(O$3>(A3stdlife+$F76),(Input!$L$145*(1+vanilla5)^0.5)-SUM($L76:N76),(Input!$L$145*(1+vanilla5)^0.5)/A3stdlife)) -> 0 | P76: =IF(A3stdlife="n/a","n/a",IF(P$3>(A3stdlife+$F76),(Input!$L$145*(1+vanilla5)^0.5)-SUM($L76:O76),(Input!$L$145*(1+vanilla5)^0.5)/A3stdlife)) -> 0 | Q76: =IF(A3stdlife="n/a","n/a",IF(Q$3>(A3stdlife+$F76),(Input!$L$145*(1+vanilla5)^0.5)-SUM($L76:P76),(Input!$L$145*(1+vanilla5)^0.5)/A3stdlife)) -> 0
F77: 6 | N77: =IF(A3stdlife="n/a","n/a",IF(N$3>(A3stdlife+$F77),(Input!$M$145*(1+vanilla6)^0.5)-SUM($M77:M77),(Input!$M$145*(1+vanilla6)^0.5)/A3stdlife)) -> 0 | O77: =IF(A3stdlife="n/a","n/a",IF(O$3>(A3stdlife+$F77),(Input!$M$145*(1+vanilla6)^0.5)-SUM($M77:N77),(Input!$M$145*(1+vanilla6)^0.5)/A3stdlife)) -> 0 | P77: =IF(A3stdlife="n/a","n/a",IF(P$3>(A3stdlife+$F77),(Input!$M$145*(1+vanilla6)^0.5)-SUM($M77:O77),(Input!$M$145*(1+vanilla6)^0.5)/A3stdlife)) -> 0 | Q77: =IF(A3stdlife="n/a","n/a",IF(Q$3>(A3stdlife+$F77),(Input!$M$145*(1+vanilla6)^0.5)-SUM($M77:P77),(Input!$M$145*(1+vanilla6)^0.5)/A3stdlife)) -> 0
F78: 7 | O78: =IF(A3stdlife="n/a","n/a",IF(O$3>(A3stdlife+$F78),(Input!$N$145*(1+vanilla7)^0.5)-SUM($N78:N78),(Input!$N$145*(1+vanilla7)^0.5)/A3stdlife)) -> 0 | P78: =IF(A3stdlife="n/a","n/a",IF(P$3>(A3stdlife+$F78),(Input!$N$145*(1+vanilla7)^0.5)-SUM($N78:O78),(Input!$N$145*(1+vanilla7)^0.5)/A3stdlife)) -> 0 | Q78: =IF(A3stdlife="n/a","n/a",IF(Q$3>(A3stdlife+$F78),(Input!$N$145*(1+vanilla7)^0.5)-SUM($N78:P78),(Input!$N$145*(1+vanilla7)^0.5)/A3stdlife)) -> 0
F79: 8 | P79: =IF(A3stdlife="n/a","n/a",IF(P$3>(A3stdlife+$F79),(Input!$O$145*(1+vanilla8)^0.5)-SUM($O79:O79),(Input!$O$145*(1+vanilla8)^0.5)/A3stdlife)) -> 0 | Q79: =IF(A3stdlife="n/a","n/a",IF(Q$3>(A3stdlife+$F79),(Input!$O$145*(1+vanilla8)^0.5)-SUM($O79:P79),(Input!$O$145*(1+vanilla8)^0.5)/A3stdlife)) -> 0
F80: 9 | Q80: =IF(A3stdlife="n/a","n/a",IF(Q$3>(A3stdlife+$F80),(Input!$P$145*(1+vanilla9)^0.5)-SUM($P80:P80),(Input!$P$145*(1+vanilla9)^0.5)/A3stdlife)) -> 0
F81: 10
D82: =Asset3 -> Metering | H82: =-SUM(H70:H81) -> -9.391929479 | I82: =-SUM(I70:I81) -> -9.391081629 | J82: =-SUM(J70:J81) -> -9.391081629 | K82: =-SUM(K70:K81) -> -9.391081629 | L82: =-SUM(L70:L81) -> -9.391081629 | M82: =IF(Input!M173>0, -SUM(M70:M81), 0) -> 0 | N82: =IF(Input!N173>0, -SUM(N70:N81), 0) -> 0 | O82: =IF(Input!O173>0, -SUM(O70:O81), 0) -> 0 | P82: =IF(Input!P173>0, -SUM(P70:P81), 0) -> 0 | Q82: =IF(Input!Q173>0, -SUM(Q70:Q81), 0) -> 0
C83: =Asset4 -> Public Lighting | E83: Opening RAB | H83: =IF(H$3>A4remlife,A4value-SUM($G83:G83),IF(A4remlife="N/A","n/a",A4value/A4remlife)) -> 0.6734225559 | I83: =IF(I$3>A4remlife,A4value-SUM($G83:H83),IF(A4remlife="N/A","n/a",A4value/A4remlife)) -> 0.6734225559 | J83: =IF(J$3>A4remlife,A4value-SUM($G83:I83),IF(A4remlife="N/A","n/a",A4value/A4remlife)) -> 0.6734225559 | K83: =IF(K$3>A4remlife,A4value-SUM($G83:J83),IF(A4remlife="N/A","n/a",A4value/A4remlife)) -> 0.6734225559 | L83: =IF(L$3>A4remlife,A4value-SUM($G83:K83),IF(A4remlife="N/A","n/a",A4value/A4remlife)) -> 0.6734225559 | M83: =IF(M$3>A4remlife,A4value-SUM($G83:L83),IF(A4remlife="N/A","n/a",A4value/A4remlife)) -> 0 | N83: =IF(N$3>A4remlife,A4value-SUM($G83:M83),IF(A4remlife="N/A","n/a",A4value/A4remlife)) -> 0 | O83: =IF(O$3>A4remlife,A4value-SUM($G83:N83),IF(A4remlife="N/A","n/a",A4value/A4remlife)) -> 0 | P83: =IF(P$3>A4remlife,A4value-SUM($G83:O83),IF(A4remlife="N/A","n/a",A4value/A4remlife)) -> 0 | Q83: =IF(Q$3>A4remlife,A4value-SUM($G83:P83),IF(A4remlife="N/A","n/a",A4value/A4remlife)) -> 0
E84: Capex in year | F84: 0
F85: 1 | I85: =IF(A4stdlife="n/a","n/a",IF(I$3>(A4stdlife+$F85),(Input!$H$146*(1+vanilla1)^0.5)-SUM($H85:H85),(Input!$H$146*(1+vanilla1)^0.5)/A4stdlife)) -> -0.01072804582 | J85: =IF(A4stdlife="n/a","n/a",IF(J$3>(A4stdlife+$F85),(Input!$H$146*(1+vanilla1)^0.5)-SUM($H85:I85),(Input!$H$146*(1+vanilla1)^0.5)/A4stdlife)) -> -0.01072804582 | K85: =IF(A4stdlife="n/a","n/a",IF(K$3>(A4stdlife+$F85),(Input!$H$146*(1+vanilla1)^0.5)-SUM($H85:J85),(Input!$H$146*(1+vanilla1)^0.5)/A4stdlife)) -> -0.01072804582 | L85: =IF(A4stdlife="n/a","n/a",IF(L$3>(A4stdlife+$F85),(Input!$H$146*(1+vanilla1)^0.5)-SUM($H85:K85),(Input!$H$146*(1+vanilla1)^0.5)/A4stdlife)) -> -0.01072804582 | M85: =IF(A4stdlife="n/a","n/a",IF(M$3>(A4stdlife+$F85),(Input!$H$146*(1+vanilla1)^0.5)-SUM($H85:L85),(Input!$H$146*(1+vanilla1)^0.5)/A4stdlife)) -> -0.01072804582 | N85: =IF(A4stdlife="n/a","n/a",IF(N$3>(A4stdlife+$F85),(Input!$H$146*(1+vanilla1)^0.5)-SUM($H85:M85),(Input!$H$146*(1+vanilla1)^0.5)/A4stdlife)) -> 0 | O85: =IF(A4stdlife="n/a","n/a",IF(O$3>(A4stdlife+$F85),(Input!$H$146*(1+vanilla1)^0.5)-SUM($H85:N85),(Input!$H$146*(1+vanilla1)^0.5)/A4stdlife)) -> 0 | P85: =IF(A4stdlife="n/a","n/a",IF(P$3>(A4stdlife+$F85),(Input!$H$146*(1+vanilla1)^0.5)-SUM($H85:O85),(Input!$H$146*(1+vanilla1)^0.5)/A4stdlife)) -> 0 | Q85: =IF(A4stdlife="n/a","n/a",IF(Q$3>(A4stdlife+$F85),(Input!$H$146*(1+vanilla1)^0.5)-SUM($H85:P85),(Input!$H$146*(1+vanilla1)^0.5)/A4stdlife)) -> 0
F86: 2 | J86: =IF(A4stdlife="n/a","n/a",IF(J$3>(A4stdlife+$F86),(Input!$I$146*(1+vanilla2)^0.5)-SUM($I86:I86),(Input!$I$146*(1+vanilla2)^0.5)/A4stdlife)) -> -0.02173445096 | K86: =IF(A4stdlife="n/a","n/a",IF(K$3>(A4stdlife+$F86),(Input!$I$146*(1+vanilla2)^0.5)-SUM($I86:J86),(Input!$I$146*(1+vanilla2)^0.5)/A4stdlife)) -> -0.02173445096 | L86: =IF(A4stdlife="n/a","n/a",IF(L$3>(A4stdlife+$F86),(Input!$I$146*(1+vanilla2)^0.5)-SUM($I86:K86),(Input!$I$146*(1+vanilla2)^0.5)/A4stdlife)) -> -0.02173445096 | M86: =IF(A4stdlife="n/a","n/a",IF(M$3>(A4stdlife+$F86),(Input!$I$146*(1+vanilla2)^0.5)-SUM($I86:L86),(Input!$I$146*(1+vanilla2)^0.5)/A4stdlife)) -> -0.02173445096 | N86: =IF(A4stdlife="n/a","n/a",IF(N$3>(A4stdlife+$F86),(Input!$I$146*(1+vanilla2)^0.5)-SUM($I86:M86),(Input!$I$146*(1+vanilla2)^0.5)/A4stdlife)) -> -0.02173445096 | O86: =IF(A4stdlife="n/a","n/a",IF(O$3>(A4stdlife+$F86),(Input!$I$146*(1+vanilla2)^0.5)-SUM($I86:N86),(Input!$I$146*(1+vanilla2)^0.5)/A4stdlife)) -> 0 | P86: =IF(A4stdlife="n/a","n/a",IF(P$3>(A4stdlife+$F86),(Input!$I$146*(1+vanilla2)^0.5)-SUM($I86:O86),(Input!$I$146*(1+vanilla2)^0.5)/A4stdlife)) -> 0 | Q86: =IF(A4stdlife="n/a","n/a",IF(Q$3>(A4stdlife+$F86),(Input!$I$146*(1+vanilla2)^0.5)-SUM($I86:P86),(Input!$I$146*(1+vanilla2)^0.5)/A4stdlife)) -> 0
F87: 3 | K87: =IF(A4stdlife="n/a","n/a",IF(K$3>(A4stdlife+$F87),(Input!$J$146*(1+vanilla3)^0.5)-SUM($J87:J87),(Input!$J$146*(1+vanilla3)^0.5)/A4stdlife)) -> 0 | L87: =IF(A4stdlife="n/a","n/a",IF(L$3>(A4stdlife+$F87),(Input!$J$146*(1+vanilla3)^0.5)-SUM($J87:K87),(Input!$J$146*(1+vanilla3)^0.5)/A4stdlife)) -> 0 | M87: =IF(A4stdlife="n/a","n/a",IF(M$3>(A4stdlife+$F87),(Input!$J$146*(1+vanilla3)^0.5)-SUM($J87:L87),(Input!$J$146*(1+vanilla3)^0.5)/A4stdlife)) -> 0 | N87: =IF(A4stdlife="n/a","n/a",IF(N$3>(A4stdlife+$F87),(Input!$J$146*(1+vanilla3)^0.5)-SUM($J87:M87),(Input!$J$146*(1+vanilla3)^0.5)/A4stdlife)) -> 0 | O87: =IF(A4stdlife="n/a","n/a",IF(O$3>(A4stdlife+$F87),(Input!$J$146*(1+vanilla3)^0.5)-SUM($J87:N87),(Input!$J$146*(1+vanilla3)^0.5)/A4stdlife)) -> 0 | P87: =IF(A4stdlife="n/a","n/a",IF(P$3>(A4stdlife+$F87),(Input!$J$146*(1+vanilla3)^0.5)-SUM($J87:O87),(Input!$J$146*(1+vanilla3)^0.5)/A4stdlife)) -> 0 | Q87: =IF(A4stdlife="n/a","n/a",IF(Q$3>(A4stdlife+$F87),(Input!$J$146*(1+vanilla3)^0.5)-SUM($J87:P87),(Input!$J$146*(1+vanilla3)^0.5)/A4stdlife)) -> 0
F88: 4 | L88: =IF(A4stdlife="n/a","n/a",IF(L$3>(A4stdlife+$F88),(Input!$K$146*(1+vanilla4)^0.5)-SUM($K88:K88),(Input!$K$146*(1+vanilla4)^0.5)/A4stdlife)) -> 0 | M88: =IF(A4stdlife="n/a","n/a",IF(M$3>(A4stdlife+$F88),(Input!$K$146*(1+vanilla4)^0.5)-SUM($K88:L88),(Input!$K$146*(1+vanilla4)^0.5)/A4stdlife)) -> 0 | N88: =IF(A4stdlife="n/a","n/a",IF(N$3>(A4stdlife+$F88),(Input!$K$146*(1+vanilla4)^0.5)-SUM($K88:M88),(Input!$K$146*(1+vanilla4)^0.5)/A4stdlife)) -> 0 | O88: =IF(A4stdlife="n/a","n/a",IF(O$3>(A4stdlife+$F88),(Input!$K$146*(1+vanilla4)^0.5)-SUM($K88:N88),(Input!$K$146*(1+vanilla4)^0.5)/A4stdlife)) -> 0 | P88: =IF(A4stdlife="n/a","n/a",IF(P$3>(A4stdlife+$F88),(Input!$K$146*(1+vanilla4)^0.5)-SUM($K88:O88),(Input!$K$146*(1+vanilla4)^0.5)/A4stdlife)) -> 0 | Q88: =IF(A4stdlife="n/a","n/a",IF(Q$3>(A4stdlife+$F88),(Input!$K$146*(1+vanilla4)^0.5)-SUM($K88:P88),(Input!$K$146*(1+vanilla4)^0.5)/A4stdlife)) -> 0
F89: 5 | M89: =IF(A4stdlife="n/a","n/a",IF(M$3>(A4stdlife+$F89),(Input!$L$146*(1+vanilla5)^0.5)-SUM($L89:L89),(Input!$L$146*(1+vanilla5)^0.5)/A4stdlife)) -> 0 | N89: =IF(A4stdlife="n/a","n/a",IF(N$3>(A4stdlife+$F89),(Input!$L$146*(1+vanilla5)^0.5)-SUM($L89:M89),(Input!$L$146*(1+vanilla5)^0.5)/A4stdlife)) -> 0 | O89: =IF(A4stdlife="n/a","n/a",IF(O$3>(A4stdlife+$F89),(Input!$L$146*(1+vanilla5)^0.5)-SUM($L89:N89),(Input!$L$146*(1+vanilla5)^0.5)/A4stdlife)) -> 0 | P89: =IF(A4stdlife="n/a","n/a",IF(P$3>(A4stdlife+$F89),(Input!$L$146*(1+vanilla5)^0.5)-SUM($L89:O89),(Input!$L$146*(1+vanilla5)^0.5)/A4stdlife)) -> 0 | Q89: =IF(A4stdlife="n/a","n/a",IF(Q$3>(A4stdlife+$F89),(Input!$L$146*(1+vanilla5)^0.5)-SUM($L89:P89),(Input!$L$146*(1+vanilla5)^0.5)/A4stdlife)) -> 0
F90: 6 | N90: =IF(A4stdlife="n/a","n/a",IF(N$3>(A4stdlife+$F90),(Input!$M$146*(1+vanilla6)^0.5)-SUM($M90:M90),(Input!$M$146*(1+vanilla6)^0.5)/A4stdlife)) -> 0 | O90: =IF(A4stdlife="n/a","n/a",IF(O$3>(A4stdlife+$F90),(Input!$M$146*(1+vanilla6)^0.5)-SUM($M90:N90),(Input!$M$146*(1+vanilla6)^0.5)/A4stdlife)) -> 0 | P90: =IF(A4stdlife="n/a","n/a",IF(P$3>(A4stdlife+$F90),(Input!$M$146*(1+vanilla6)^0.5)-SUM($M90:O90),(Input!$M$146*(1+vanilla6)^0.5)/A4stdlife)) -> 0 | Q90: =IF(A4stdlife="n/a","n/a",IF(Q$3>(A4stdlife+$F90),(Input!$M$146*(1+vanilla6)^0.5)-SUM($M90:P90),(Input!$M$146*(1+vanilla6)^0.5)/A4stdlife)) -> 0
F91: 7 | O91: =IF(A4stdlife="n/a","n/a",IF(O$3>(A4stdlife+$F91),(Input!$N$146*(1+vanilla7)^0.5)-SUM($N91:N91),(Input!$N$146*(1+vanilla7)^0.5)/A4stdlife)) -> 0 | P91: =IF(A4stdlife="n/a","n/a",IF(P$3>(A4stdlife+$F91),(Input!$N$146*(1+vanilla7)^0.5)-SUM($N91:O91),(Input!$N$146*(1+vanilla7)^0.5)/A4stdlife)) -> 0 | Q91: =IF(A4stdlife="n/a","n/a",IF(Q$3>(A4stdlife+$F91),(Input!$N$146*(1+vanilla7)^0.5)-SUM($N91:P91),(Input!$N$146*(1+vanilla7)^0.5)/A4stdlife)) -> 0
F92: 8 | P92: =IF(A4stdlife="n/a","n/a",IF(P$3>(A4stdlife+$F92),(Input!$O$146*(1+vanilla8)^0.5)-SUM($O92:O92),(Input!$O$146*(1+vanilla8)^0.5)/A4stdlife)) -> 0 | Q92: =IF(A4stdlife="n/a","n/a",IF(Q$3>(A4stdlife+$F92),(Input!$O$146*(1+vanilla8)^0.5)-SUM($O92:P92),(Input!$O$146*(1+vanilla8)^0.5)/A4stdlife)) -> 0
F93: 9 | Q93: =IF(A4stdlife="n/a","n/a",IF(Q$3>(A4stdlife+$F93),(Input!$P$146*(1+vanilla9)^0.5)-SUM($P93:P93),(Input!$P$146*(1+vanilla9)^0.5)/A4stdlife)) -> 0
F94: 10
D95: =Asset4 -> Public Lighting | H95: =-SUM(H83:H94) -> -0.6734225559 | I95: =-SUM(I83:I94) -> -0.66269451 | J95: =-SUM(J83:J94) -> -0.6409600591 | K95: =-SUM(K83:K94) -> -0.6409600591 | L95: =-SUM(L83:L94) -> -0.6409600591 | M95: =IF(Input!M173>0, -SUM(M83:M94), 0) -> 0 | N95: =IF(Input!N173>0, -SUM(N83:N94), 0) -> 0 | O95: =IF(Input!O173>0, -SUM(O83:O94), 0) -> 0 | P95: =IF(Input!P173>0, -SUM(P83:P94), 0) -> 0 | Q95: =IF(Input!Q173>0, -SUM(Q83:Q94), 0) -> 0
C96: =Asset5 -> SCADA (5-year asset) | E96: Opening RAB | H96: =IF(H$3>A5remlife,A5value-SUM($G96:G96),IF(A5remlife="N/A","n/a",A5value/A5remlife)) -> 4.440892099e-17 | I96: =IF(I$3>A5remlife,A5value-SUM($G96:H96),IF(A5remlife="N/A","n/a",A5value/A5remlife)) -> 4.440892099e-17 | J96: =IF(J$3>A5remlife,A5value-SUM($G96:I96),IF(A5remlife="N/A","n/a",A5value/A5remlife)) -> 4.440892099e-17 | K96: =IF(K$3>A5remlife,A5value-SUM($G96:J96),IF(A5remlife="N/A","n/a",A5value/A5remlife)) -> 4.440892099e-17 | L96: =IF(L$3>A5remlife,A5value-SUM($G96:K96),IF(A5remlife="N/A","n/a",A5value/A5remlife)) -> 4.440892099e-17 | M96: =IF(M$3>A5remlife,A5value-SUM($G96:L96),IF(A5remlife="N/A","n/a",A5value/A5remlife)) -> 0 | N96: =IF(N$3>A5remlife,A5value-SUM($G96:M96),IF(A5remlife="N/A","n/a",A5value/A5remlife)) -> 0 | O96: =IF(O$3>A5remlife,A5value-SUM($G96:N96),IF(A5remlife="N/A","n/a",A5value/A5remlife)) -> 0 | P96: =IF(P$3>A5remlife,A5value-SUM($G96:O96),IF(A5remlife="N/A","n/a",A5value/A5remlife)) -> 0 | Q96: =IF(Q$3>A5remlife,A5value-SUM($G96:P96),IF(A5remlife="N/A","n/a",A5value/A5remlife)) -> 0
E97: Capex in year | F97: 0
F98: 1 | I98: =IF(A5stdlife="n/a","n/a",IF(I$3>(A5stdlife+$F98),(Input!$H$147*(1+vanilla1)^0.5)-SUM($H98:H98),(Input!$H$147*(1+vanilla1)^0.5)/A5stdlife)) -> 0.2047239184 | J98: =IF(A5stdlife="n/a","n/a",IF(J$3>(A5stdlife+$F98),(Input!$H$147*(1+vanilla1)^0.5)-SUM($H98:I98),(Input!$H$147*(1+vanilla1)^0.5)/A5stdlife)) -> 0.2047239184 | K98: =IF(A5stdlife="n/a","n/a",IF(K$3>(A5stdlife+$F98),(Input!$H$147*(1+vanilla1)^0.5)-SUM($H98:J98),(Input!$H$147*(1+vanilla1)^0.5)/A5stdlife)) -> 0.2047239184 | L98: =IF(A5stdlife="n/a","n/a",IF(L$3>(A5stdlife+$F98),(Input!$H$147*(1+vanilla1)^0.5)-SUM($H98:K98),(Input!$H$147*(1+vanilla1)^0.5)/A5stdlife)) -> 0.2047239184 | M98: =IF(A5stdlife="n/a","n/a",IF(M$3>(A5stdlife+$F98),(Input!$H$147*(1+vanilla1)^0.5)-SUM($H98:L98),(Input!$H$147*(1+vanilla1)^0.5)/A5stdlife)) -> 0.2047239184 | N98: =IF(A5stdlife="n/a","n/a",IF(N$3>(A5stdlife+$F98),(Input!$H$147*(1+vanilla1)^0.5)-SUM($H98:M98),(Input!$H$147*(1+vanilla1)^0.5)/A5stdlife)) -> 0 | O98: =IF(A5stdlife="n/a","n/a",IF(O$3>(A5stdlife+$F98),(Input!$H$147*(1+vanilla1)^0.5)-SUM($H98:N98),(Input!$H$147*(1+vanilla1)^0.5)/A5stdlife)) -> 0 | P98: =IF(A5stdlife="n/a","n/a",IF(P$3>(A5stdlife+$F98),(Input!$H$147*(1+vanilla1)^0.5)-SUM($H98:O98),(Input!$H$147*(1+vanilla1)^0.5)/A5stdlife)) -> 0 | Q98: =IF(A5stdlife="n/a","n/a",IF(Q$3>(A5stdlife+$F98),(Input!$H$147*(1+vanilla1)^0.5)-SUM($H98:P98),(Input!$H$147*(1+vanilla1)^0.5)/A5stdlife)) -> 0
F99: 2 | J99: =IF(A5stdlife="n/a","n/a",IF(J$3>(A5stdlife+$F99),(Input!$I$147*(1+vanilla2)^0.5)-SUM($I99:I99),(Input!$I$147*(1+vanilla2)^0.5)/A5stdlife)) -> 0.8859005085 | K99: =IF(A5stdlife="n/a","n/a",IF(K$3>(A5stdlife+$F99),(Input!$I$147*(1+vanilla2)^0.5)-SUM($I99:J99),(Input!$I$147*(1+vanilla2)^0.5)/A5stdlife)) -> 0.8859005085 | L99: =IF(A5stdlife="n/a","n/a",IF(L$3>(A5stdlife+$F99),(Input!$I$147*(1+vanilla2)^0.5)-SUM($I99:K99),(Input!$I$147*(1+vanilla2)^0.5)/A5stdlife)) -> 0.8859005085 | M99: =IF(A5stdlife="n/a","n/a",IF(M$3>(A5stdlife+$F99),(Input!$I$147*(1+vanilla2)^0.5)-SUM($I99:L99),(Input!$I$147*(1+vanilla2)^0.5)/A5stdlife)) -> 0.8859005085 | N99: =IF(A5stdlife="n/a","n/a",IF(N$3>(A5stdlife+$F99),(Input!$I$147*(1+vanilla2)^0.5)-SUM($I99:M99),(Input!$I$147*(1+vanilla2)^0.5)/A5stdlife)) -> 0.8859005085 | O99: =IF(A5stdlife="n/a","n/a",IF(O$3>(A5stdlife+$F99),(Input!$I$147*(1+vanilla2)^0.5)-SUM($I99:N99),(Input!$I$147*(1+vanilla2)^0.5)/A5stdlife)) -> 0 | P99: =IF(A5stdlife="n/a","n/a",IF(P$3>(A5stdlife+$F99),(Input!$I$147*(1+vanilla2)^0.5)-SUM($I99:O99),(Input!$I$147*(1+vanilla2)^0.5)/A5stdlife)) -> 0 | Q99: =IF(A5stdlife="n/a","n/a",IF(Q$3>(A5stdlife+$F99),(Input!$I$147*(1+vanilla2)^0.5)-SUM($I99:P99),(Input!$I$147*(1+vanilla2)^0.5)/A5stdlife)) -> 0
F100: 3 | K100: =IF(A5stdlife="n/a","n/a",IF(K$3>(A5stdlife+$F100),(Input!$J$147*(1+vanilla3)^0.5)-SUM($J100:J100),(Input!$J$147*(1+vanilla3)^0.5)/A5stdlife)) -> 0.3954651426 | L100: =IF(A5stdlife="n/a","n/a",IF(L$3>(A5stdlife+$F100),(Input!$J$147*(1+vanilla3)^0.5)-SUM($J100:K100),(Input!$J$147*(1+vanilla3)^0.5)/A5stdlife)) -> 0.3954651426 | M100: =IF(A5stdlife="n/a","n/a",IF(M$3>(A5stdlife+$F100),(Input!$J$147*(1+vanilla3)^0.5)-SUM($J100:L100),(Input!$J$147*(1+vanilla3)^0.5)/A5stdlife)) -> 0.3954651426 | N100: =IF(A5stdlife="n/a","n/a",IF(N$3>(A5stdlife+$F100),(Input!$J$147*(1+vanilla3)^0.5)-SUM($J100:M100),(Input!$J$147*(1+vanilla3)^0.5)/A5stdlife)) -> 0.3954651426 | O100: =IF(A5stdlife="n/a","n/a",IF(O$3>(A5stdlife+$F100),(Input!$J$147*(1+vanilla3)^0.5)-SUM($J100:N100),(Input!$J$147*(1+vanilla3)^0.5)/A5stdlife)) -> 0.3954651426 | P100: =IF(A5stdlife="n/a","n/a",IF(P$3>(A5stdlife+$F100),(Input!$J$147*(1+vanilla3)^0.5)-SUM($J100:O100),(Input!$J$147*(1+vanilla3)^0.5)/A5stdlife)) -> 0 | Q100: =IF(A5stdlife="n/a","n/a",IF(Q$3>(A5stdlife+$F100),(Input!$J$147*(1+vanilla3)^0.5)-SUM($J100:P100),(Input!$J$147*(1+vanilla3)^0.5)/A5stdlife)) -> 0
F101: 4 | L101: =IF(A5stdlife="n/a","n/a",IF(L$3>(A5stdlife+$F101),(Input!$K$147*(1+vanilla4)^0.5)-SUM($K101:K101),(Input!$K$147*(1+vanilla4)^0.5)/A5stdlife)) -> -0.009561909847 | M101: =IF(A5stdlife="n/a","n/a",IF(M$3>(A5stdlife+$F101),(Input!$K$147*(1+vanilla4)^0.5)-SUM($K101:L101),(Input!$K$147*(1+vanilla4)^0.5)/A5stdlife)) -> -0.009561909847 | N101: =IF(A5stdlife="n/a","n/a",IF(N$3>(A5stdlife+$F101),(Input!$K$147*(1+vanilla4)^0.5)-SUM($K101:M101),(Input!$K$147*(1+vanilla4)^0.5)/A5stdlife)) -> -0.009561909847 | O101: =IF(A5stdlife="n/a","n/a",IF(O$3>(A5stdlife+$F101),(Input!$K$147*(1+vanilla4)^0.5)-SUM($K101:N101),(Input!$K$147*(1+vanilla4)^0.5)/A5stdlife)) -> -0.009561909847 | P101: =IF(A5stdlife="n/a","n/a",IF(P$3>(A5stdlife+$F101),(Input!$K$147*(1+vanilla4)^0.5)-SUM($K101:O101),(Input!$K$147*(1+vanilla4)^0.5)/A5stdlife)) -> -0.009561909847 | Q101: =IF(A5stdlife="n/a","n/a",IF(Q$3>(A5stdlife+$F101),(Input!$K$147*(1+vanilla4)^0.5)-SUM($K101:P101),(Input!$K$147*(1+vanilla4)^0.5)/A5stdlife)) -> 6.938893904e-18
F102: 5 | M102: =IF(A5stdlife="n/a","n/a",IF(M$3>(A5stdlife+$F102),(Input!$L$147*(1+vanilla5)^0.5)-SUM($L102:L102),(Input!$L$147*(1+vanilla5)^0.5)/A5stdlife)) -> 0 | N102: =IF(A5stdlife="n/a","n/a",IF(N$3>(A5stdlife+$F102),(Input!$L$147*(1+vanilla5)^0.5)-SUM($L102:M102),(Input!$L$147*(1+vanilla5)^0.5)/A5stdlife)) -> 0 | O102: =IF(A5stdlife="n/a","n/a",IF(O$3>(A5stdlife+$F102),(Input!$L$147*(1+vanilla5)^0.5)-SUM($L102:N102),(Input!$L$147*(1+vanilla5)^0.5)/A5stdlife)) -> 0 | P102: =IF(A5stdlife="n/a","n/a",IF(P$3>(A5stdlife+$F102),(Input!$L$147*(1+vanilla5)^0.5)-SUM($L102:O102),(Input!$L$147*(1+vanilla5)^0.5)/A5stdlife)) -> 0 | Q102: =IF(A5stdlife="n/a","n/a",IF(Q$3>(A5stdlife+$F102),(Input!$L$147*(1+vanilla5)^0.5)-SUM($L102:P102),(Input!$L$147*(1+vanilla5)^0.5)/A5stdlife)) -> 0
F103: 6 | N103: =IF(A5stdlife="n/a","n/a",IF(N$3>(A5stdlife+$F103),(Input!$M$147*(1+vanilla6)^0.5)-SUM($M103:M103),(Input!$M$147*(1+vanilla6)^0.5)/A5stdlife)) -> 0 | O103: =IF(A5stdlife="n/a","n/a",IF(O$3>(A5stdlife+$F103),(Input!$M$147*(1+vanilla6)^0.5)-SUM($M103:N103),(Input!$M$147*(1+vanilla6)^0.5)/A5stdlife)) -> 0 | P103: =IF(A5stdlife="n/a","n/a",IF(P$3>(A5stdlife+$F103),(Input!$M$147*(1+vanilla6)^0.5)-SUM($M103:O103),(Input!$M$147*(1+vanilla6)^0.5)/A5stdlife)) -> 0 | Q103: =IF(A5stdlife="n/a","n/a",IF(Q$3>(A5stdlife+$F103),(Input!$M$147*(1+vanilla6)^0.5)-SUM($M103:P103),(Input!$M$147*(1+vanilla6)^0.5)/A5stdlife)) -> 0
F104: 7 | O104: =IF(A5stdlife="n/a","n/a",IF(O$3>(A5stdlife+$F104),(Input!$N$147*(1+vanilla7)^0.5)-SUM($N104:N104),(Input!$N$147*(1+vanilla7)^0.5)/A5stdlife)) -> 0 | P104: =IF(A5stdlife="n/a","n/a",IF(P$3>(A5stdlife+$F104),(Input!$N$147*(1+vanilla7)^0.5)-SUM($N104:O104),(Input!$N$147*(1+vanilla7)^0.5)/A5stdlife)) -> 0 | Q104: =IF(A5stdlife="n/a","n/a",IF(Q$3>(A5stdlife+$F104),(Input!$N$147*(1+vanilla7)^0.5)-SUM($N104:P104),(Input!$N$147*(1+vanilla7)^0.5)/A5stdlife)) -> 0
F105: 8 | P105: =IF(A5stdlife="n/a","n/a",IF(P$3>(A5stdlife+$F105),(Input!$O$147*(1+vanilla8)^0.5)-SUM($O105:O105),(Input!$O$147*(1+vanilla8)^0.5)/A5stdlife)) -> 0 | Q105: =IF(A5stdlife="n/a","n/a",IF(Q$3>(A5stdlife+$F105),(Input!$O$147*(1+vanilla8)^0.5)-SUM($O105:P105),(Input!$O$147*(1+vanilla8)^0.5)/A5stdlife)) -> 0
F106: 9 | Q106: =IF(A5stdlife="n/a","n/a",IF(Q$3>(A5stdlife+$F106),(Input!$P$147*(1+vanilla9)^0.5)-SUM($P106:P106),(Input!$P$147*(1+vanilla9)^0.5)/A5stdlife)) -> 0
F107: 10
D108: =Asset5 -> SCADA (5-year asset) | H108: =-SUM(H96:H107) -> -4.440892099e-17 | I108: =-SUM(I96:I107) -> -0.2047239184 | J108: =-SUM(J96:J107) -> -1.090624427 | K108: =-SUM(K96:K107) -> -1.48608957 | L108: =-SUM(L96:L107) -> -1.47652766 | M108: =IF(Input!M173>0, -SUM(M96:M107), 0) -> 0 | N108: =IF(Input!N173>0, -SUM(N96:N107), 0) -> 0 | O108: =IF(Input!O173>0, -SUM(O96:O107), 0) -> 0 | P108: =IF(Input!P173>0, -SUM(P96:P107), 0) -> 0 | Q108: =IF(Input!Q173>0, -SUM(Q96:Q107), 0) -> 0
C109: =Asset6 -> Non network - IT | E109: Opening RAB | H109: =IF(H$3>A6remlife,A6value-SUM($G109:G109),IF(A6remlife="N/A","n/a",A6value/A6remlife)) -> 1.030286967e-14 | I109: =IF(I$3>A6remlife,A6value-SUM($G109:H109),IF(A6remlife="N/A","n/a",A6value/A6remlife)) -> 1.030286967e-14 | J109: =IF(J$3>A6remlife,A6value-SUM($G109:I109),IF(A6remlife="N/A","n/a",A6value/A6remlife)) -> 1.030286967e-14 | K109: =IF(K$3>A6remlife,A6value-SUM($G109:J109),IF(A6remlife="N/A","n/a",A6value/A6remlife)) -> 1.030286967e-14 | L109: =IF(L$3>A6remlife,A6value-SUM($G109:K109),IF(A6remlife="N/A","n/a",A6value/A6remlife)) -> 1.030286967e-14 | M109: =IF(M$3>A6remlife,A6value-SUM($G109:L109),IF(A6remlife="N/A","n/a",A6value/A6remlife)) -> 0 | N109: =IF(N$3>A6remlife,A6value-SUM($G109:M109),IF(A6remlife="N/A","n/a",A6value/A6remlife)) -> 0 | O109: =IF(O$3>A6remlife,A6value-SUM($G109:N109),IF(A6remlife="N/A","n/a",A6value/A6remlife)) -> 0 | P109: =IF(P$3>A6remlife,A6value-SUM($G109:O109),IF(A6remlife="N/A","n/a",A6value/A6remlife)) -> 0 | Q109: =IF(Q$3>A6remlife,A6value-SUM($G109:P109),IF(A6remlife="N/A","n/a",A6value/A6remlife)) -> 0
E110: Capex in year | F110: 0
F111: 1 | I111: =IF(A6stdlife="n/a","n/a",IF(I$3>(A6stdlife+$F111),(Input!$H$148*(1+vanilla1)^0.5)-SUM($H111:H111),(Input!$H$148*(1+vanilla1)^0.5)/A6stdlife)) -> 10.16395915 | J111: =IF(A6stdlife="n/a","n/a",IF(J$3>(A6stdlife+$F111),(Input!$H$148*(1+vanilla1)^0.5)-SUM($H111:I111),(Input!$H$148*(1+vanilla1)^0.5)/A6stdlife)) -> 10.16395915 | K111: =IF(A6stdlife="n/a","n/a",IF(K$3>(A6stdlife+$F111),(Input!$H$148*(1+vanilla1)^0.5)-SUM($H111:J111),(Input!$H$148*(1+vanilla1)^0.5)/A6stdlife)) -> 10.16395915 | L111: =IF(A6stdlife="n/a","n/a",IF(L$3>(A6stdlife+$F111),(Input!$H$148*(1+vanilla1)^0.5)-SUM($H111:K111),(Input!$H$148*(1+vanilla1)^0.5)/A6stdlife)) -> 10.16395915 | M111: =IF(A6stdlife="n/a","n/a",IF(M$3>(A6stdlife+$F111),(Input!$H$148*(1+vanilla1)^0.5)-SUM($H111:L111),(Input!$H$148*(1+vanilla1)^0.5)/A6stdlife)) -> 10.16395915 | N111: =IF(A6stdlife="n/a","n/a",IF(N$3>(A6stdlife+$F111),(Input!$H$148*(1+vanilla1)^0.5)-SUM($H111:M111),(Input!$H$148*(1+vanilla1)^0.5)/A6stdlife)) -> 0 | O111: =IF(A6stdlife="n/a","n/a",IF(O$3>(A6stdlife+$F111),(Input!$H$148*(1+vanilla1)^0.5)-SUM($H111:N111),(Input!$H$148*(1+vanilla1)^0.5)/A6stdlife)) -> 0 | P111: =IF(A6stdlife="n/a","n/a",IF(P$3>(A6stdlife+$F111),(Input!$H$148*(1+vanilla1)^0.5)-SUM($H111:O111),(Input!$H$148*(1+vanilla1)^0.5)/A6stdlife)) -> 0 | Q111: =IF(A6stdlife="n/a","n/a",IF(Q$3>(A6stdlife+$F111),(Input!$H$148*(1+vanilla1)^0.5)-SUM($H111:P111),(Input!$H$148*(1+vanilla1)^0.5)/A6stdlife)) -> 0
F112: 2 | J112: =IF(A6stdlife="n/a","n/a",IF(J$3>(A6stdlife+$F112),(Input!$I$148*(1+vanilla2)^0.5)-SUM($I112:I112),(Input!$I$148*(1+vanilla2)^0.5)/A6stdlife)) -> 2.246971553 | K112: =IF(A6stdlife="n/a","n/a",IF(K$3>(A6stdlife+$F112),(Input!$I$148*(1+vanilla2)^0.5)-SUM($I112:J112),(Input!$I$148*(1+vanilla2)^0.5)/A6stdlife)) -> 2.246971553 | L112: =IF(A6stdlife="n/a","n/a",IF(L$3>(A6stdlife+$F112),(Input!$I$148*(1+vanilla2)^0.5)-SUM($I112:K112),(Input!$I$148*(1+vanilla2)^0.5)/A6stdlife)) -> 2.246971553 | M112: =IF(A6stdlife="n/a","n/a",IF(M$3>(A6stdlife+$F112),(Input!$I$148*(1+vanilla2)^0.5)-SUM($I112:L112),(Input!$I$148*(1+vanilla2)^0.5)/A6stdlife)) -> 2.246971553 | N112: =IF(A6stdlife="n/a","n/a",IF(N$3>(A6stdlife+$F112),(Input!$I$148*(1+vanilla2)^0.5)-SUM($I112:M112),(Input!$I$148*(1+vanilla2)^0.5)/A6stdlife)) -> 2.246971553 | O112: =IF(A6stdlife="n/a","n/a",IF(O$3>(A6stdlife+$F112),(Input!$I$148*(1+vanilla2)^0.5)-SUM($I112:N112),(Input!$I$148*(1+vanilla2)^0.5)/A6stdlife)) -> 0 | P112: =IF(A6stdlife="n/a","n/a",IF(P$3>(A6stdlife+$F112),(Input!$I$148*(1+vanilla2)^0.5)-SUM($I112:O112),(Input!$I$148*(1+vanilla2)^0.5)/A6stdlife)) -> 0 | Q112: =IF(A6stdlife="n/a","n/a",IF(Q$3>(A6stdlife+$F112),(Input!$I$148*(1+vanilla2)^0.5)-SUM($I112:P112),(Input!$I$148*(1+vanilla2)^0.5)/A6stdlife)) -> 0
F113: 3 | K113: =IF(A6stdlife="n/a","n/a",IF(K$3>(A6stdlife+$F113),(Input!$J$148*(1+vanilla3)^0.5)-SUM($J113:J113),(Input!$J$148*(1+vanilla3)^0.5)/A6stdlife)) -> 1.588635885 | L113: =IF(A6stdlife="n/a","n/a",IF(L$3>(A6stdlife+$F113),(Input!$J$148*(1+vanilla3)^0.5)-SUM($J113:K113),(Input!$J$148*(1+vanilla3)^0.5)/A6stdlife)) -> 1.588635885 | M113: =IF(A6stdlife="n/a","n/a",IF(M$3>(A6stdlife+$F113),(Input!$J$148*(1+vanilla3)^0.5)-SUM($J113:L113),(Input!$J$148*(1+vanilla3)^0.5)/A6stdlife)) -> 1.588635885 | N113: =IF(A6stdlife="n/a","n/a",IF(N$3>(A6stdlife+$F113),(Input!$J$148*(1+vanilla3)^0.5)-SUM($J113:M113),(Input!$J$148*(1+vanilla3)^0.5)/A6stdlife)) -> 1.588635885 | O113: =IF(A6stdlife="n/a","n/a",IF(O$3>(A6stdlife+$F113),(Input!$J$148*(1+vanilla3)^0.5)-SUM($J113:N113),(Input!$J$148*(1+vanilla3)^0.5)/A6stdlife)) -> 1.588635885 | P113: =IF(A6stdlife="n/a","n/a",IF(P$3>(A6stdlife+$F113),(Input!$J$148*(1+vanilla3)^0.5)-SUM($J113:O113),(Input!$J$148*(1+vanilla3)^0.5)/A6stdlife)) -> 0 | Q113: =IF(A6stdlife="n/a","n/a",IF(Q$3>(A6stdlife+$F113),(Input!$J$148*(1+vanilla3)^0.5)-SUM($J113:P113),(Input!$J$148*(1+vanilla3)^0.5)/A6stdlife)) -> 0
F114: 4 | L114: =IF(A6stdlife="n/a","n/a",IF(L$3>(A6stdlife+$F114),(Input!$K$148*(1+vanilla4)^0.5)-SUM($K114:K114),(Input!$K$148*(1+vanilla4)^0.5)/A6stdlife)) -> 4.468128185 | M114: =IF(A6stdlife="n/a","n/a",IF(M$3>(A6stdlife+$F114),(Input!$K$148*(1+vanilla4)^0.5)-SUM($K114:L114),(Input!$K$148*(1+vanilla4)^0.5)/A6stdlife)) -> 4.468128185 | N114: =IF(A6stdlife="n/a","n/a",IF(N$3>(A6stdlife+$F114),(Input!$K$148*(1+vanilla4)^0.5)-SUM($K114:M114),(Input!$K$148*(1+vanilla4)^0.5)/A6stdlife)) -> 4.468128185 | O114: =IF(A6stdlife="n/a","n/a",IF(O$3>(A6stdlife+$F114),(Input!$K$148*(1+vanilla4)^0.5)-SUM($K114:N114),(Input!$K$148*(1+vanilla4)^0.5)/A6stdlife)) -> 4.468128185 | P114: =IF(A6stdlife="n/a","n/a",IF(P$3>(A6stdlife+$F114),(Input!$K$148*(1+vanilla4)^0.5)-SUM($K114:O114),(Input!$K$148*(1+vanilla4)^0.5)/A6stdlife)) -> 4.468128185 | Q114: =IF(A6stdlife="n/a","n/a",IF(Q$3>(A6stdlife+$F114),(Input!$K$148*(1+vanilla4)^0.5)-SUM($K114:P114),(Input!$K$148*(1+vanilla4)^0.5)/A6stdlife)) -> 0
F115: 5 | M115: =IF(A6stdlife="n/a","n/a",IF(M$3>(A6stdlife+$F115),(Input!$L$148*(1+vanilla5)^0.5)-SUM($L115:L115),(Input!$L$148*(1+vanilla5)^0.5)/A6stdlife)) -> 4.485311319 | N115: =IF(A6stdlife="n/a","n/a",IF(N$3>(A6stdlife+$F115),(Input!$L$148*(1+vanilla5)^0.5)-SUM($L115:M115),(Input!$L$148*(1+vanilla5)^0.5)/A6stdlife)) -> 4.485311319 | O115: =IF(A6stdlife="n/a","n/a",IF(O$3>(A6stdlife+$F115),(Input!$L$148*(1+vanilla5)^0.5)-SUM($L115:N115),(Input!$L$148*(1+vanilla5)^0.5)/A6stdlife)) -> 4.485311319 | P115: =IF(A6stdlife="n/a","n/a",IF(P$3>(A6stdlife+$F115),(Input!$L$148*(1+vanilla5)^0.5)-SUM($L115:O115),(Input!$L$148*(1+vanilla5)^0.5)/A6stdlife)) -> 4.485311319 | Q115: =IF(A6stdlife="n/a","n/a",IF(Q$3>(A6stdlife+$F115),(Input!$L$148*(1+vanilla5)^0.5)-SUM($L115:P115),(Input!$L$148*(1+vanilla5)^0.5)/A6stdlife)) -> 4.485311319
F116: 6 | N116: =IF(A6stdlife="n/a","n/a",IF(N$3>(A6stdlife+$F116),(Input!$M$148*(1+vanilla6)^0.5)-SUM($M116:M116),(Input!$M$148*(1+vanilla6)^0.5)/A6stdlife)) -> 0 | O116: =IF(A6stdlife="n/a","n/a",IF(O$3>(A6stdlife+$F116),(Input!$M$148*(1+vanilla6)^0.5)-SUM($M116:N116),(Input!$M$148*(1+vanilla6)^0.5)/A6stdlife)) -> 0 | P116: =IF(A6stdlife="n/a","n/a",IF(P$3>(A6stdlife+$F116),(Input!$M$148*(1+vanilla6)^0.5)-SUM($M116:O116),(Input!$M$148*(1+vanilla6)^0.5)/A6stdlife)) -> 0 | Q116: =IF(A6stdlife="n/a","n/a",IF(Q$3>(A6stdlife+$F116),(Input!$M$148*(1+vanilla6)^0.5)-SUM($M116:P116),(Input!$M$148*(1+vanilla6)^0.5)/A6stdlife)) -> 0
F117: 7 | O117: =IF(A6stdlife="n/a","n/a",IF(O$3>(A6stdlife+$F117),(Input!$N$148*(1+vanilla7)^0.5)-SUM($N117:N117),(Input!$N$148*(1+vanilla7)^0.5)/A6stdlife)) -> 0 | P117: =IF(A6stdlife="n/a","n/a",IF(P$3>(A6stdlife+$F117),(Input!$N$148*(1+vanilla7)^0.5)-SUM($N117:O117),(Input!$N$148*(1+vanilla7)^0.5)/A6stdlife)) -> 0 | Q117: =IF(A6stdlife="n/a","n/a",IF(Q$3>(A6stdlife+$F117),(Input!$N$148*(1+vanilla7)^0.5)-SUM($N117:P117),(Input!$N$148*(1+vanilla7)^0.5)/A6stdlife)) -> 0
F118: 8 | P118: =IF(A6stdlife="n/a","n/a",IF(P$3>(A6stdlife+$F118),(Input!$O$148*(1+vanilla8)^0.5)-SUM($O118:O118),(Input!$O$148*(1+vanilla8)^0.5)/A6stdlife)) -> 0 | Q118: =IF(A6stdlife="n/a","n/a",IF(Q$3>(A6stdlife+$F118),(Input!$O$148*(1+vanilla8)^0.5)-SUM($O118:P118),(Input!$O$148*(1+vanilla8)^0.5)/A6stdlife)) -> 0
F119: 9 | Q119: =IF(A6stdlife="n/a","n/a",IF(Q$3>(A6stdlife+$F119),(Input!$P$148*(1+vanilla9)^0.5)-SUM($P119:P119),(Input!$P$148*(1+vanilla9)^0.5)/A6stdlife)) -> 0
F120: 10
D121: =Asset6 -> Non network - IT | H121: =-SUM(H109:H120) -> -1.030286967e-14 | I121: =-SUM(I109:I120) -> -10.16395915 | J121: =-SUM(J109:J120) -> -12.4109307 | K121: =-SUM(K109:K120) -> -13.99956658 | L121: =-SUM(L109:L120) -> -18.46769477 | M121: =IF(Input!M173>0, -SUM(M109:M120), 0) -> 0 | N121: =IF(Input!N173>0, -SUM(N109:N120), 0) -> 0 | O121: =IF(Input!O173>0, -SUM(O109:O120), 0) -> 0 | P121: =IF(Input!P173>0, -SUM(P109:P120), 0) -> 0 | Q121: =IF(Input!Q173>0, -SUM(Q109:Q120), 0) -> 0
C122: =Asset7 -> Non network - other | E122: Opening RAB | H122: =IF(H$3>A7remlife,A7value-SUM($G122:G122),IF(A7remlife="N/A","n/a",A7value/A7remlife)) -> 5.139579076 | I122: =IF(I$3>A7remlife,A7value-SUM($G122:H122),IF(A7remlife="N/A","n/a",A7value/A7remlife)) -> 5.139579076 | J122: =IF(J$3>A7remlife,A7value-SUM($G122:I122),IF(A7remlife="N/A","n/a",A7value/A7remlife)) -> 5.139579076 | K122: =IF(K$3>A7remlife,A7value-SUM($G122:J122),IF(A7remlife="N/A","n/a",A7value/A7remlife)) -> 5.139579076 | L122: =IF(L$3>A7remlife,A7value-SUM($G122:K122),IF(A7remlife="N/A","n/a",A7value/A7remlife)) -> 5.139579076 | M122: =IF(M$3>A7remlife,A7value-SUM($G122:L122),IF(A7remlife="N/A","n/a",A7value/A7remlife)) -> 3.552713679e-15 | N122: =IF(N$3>A7remlife,A7value-SUM($G122:M122),IF(A7remlife="N/A","n/a",A7value/A7remlife)) -> 0 | O122: =IF(O$3>A7remlife,A7value-SUM($G122:N122),IF(A7remlife="N/A","n/a",A7value/A7remlife)) -> 0 | P122: =IF(P$3>A7remlife,A7value-SUM($G122:O122),IF(A7remlife="N/A","n/a",A7value/A7remlife)) -> 0 | Q122: =IF(Q$3>A7remlife,A7value-SUM($G122:P122),IF(A7remlife="N/A","n/a",A7value/A7remlife)) -> 0
E123: Capex in year | F123: 0
F124: 1 | I124: =IF(A7stdlife="n/a","n/a",IF(I$3>(A7stdlife+$F124),(Input!$H$149*(1+vanilla1)^0.5)-SUM($H124:H124),(Input!$H$149*(1+vanilla1)^0.5)/A7stdlife)) -> 1.261552228 | J124: =IF(A7stdlife="n/a","n/a",IF(J$3>(A7stdlife+$F124),(Input!$H$149*(1+vanilla1)^0.5)-SUM($H124:I124),(Input!$H$149*(1+vanilla1)^0.5)/A7stdlife)) -> 1.261552228 | K124: =IF(A7stdlife="n/a","n/a",IF(K$3>(A7stdlife+$F124),(Input!$H$149*(1+vanilla1)^0.5)-SUM($H124:J124),(Input!$H$149*(1+vanilla1)^0.5)/A7stdlife)) -> 1.261552228 | L124: =IF(A7stdlife="n/a","n/a",IF(L$3>(A7stdlife+$F124),(Input!$H$149*(1+vanilla1)^0.5)-SUM($H124:K124),(Input!$H$149*(1+vanilla1)^0.5)/A7stdlife)) -> 1.261552228 | M124: =IF(A7stdlife="n/a","n/a",IF(M$3>(A7stdlife+$F124),(Input!$H$149*(1+vanilla1)^0.5)-SUM($H124:L124),(Input!$H$149*(1+vanilla1)^0.5)/A7stdlife)) -> 1.261552228 | N124: =IF(A7stdlife="n/a","n/a",IF(N$3>(A7stdlife+$F124),(Input!$H$149*(1+vanilla1)^0.5)-SUM($H124:M124),(Input!$H$149*(1+vanilla1)^0.5)/A7stdlife)) -> 1.261552228 | O124: =IF(A7stdlife="n/a","n/a",IF(O$3>(A7stdlife+$F124),(Input!$H$149*(1+vanilla1)^0.5)-SUM($H124:N124),(Input!$H$149*(1+vanilla1)^0.5)/A7stdlife)) -> 1.261552228 | P124: =IF(A7stdlife="n/a","n/a",IF(P$3>(A7stdlife+$F124),(Input!$H$149*(1+vanilla1)^0.5)-SUM($H124:O124),(Input!$H$149*(1+vanilla1)^0.5)/A7stdlife)) -> 0.6307761139 | Q124: =IF(A7stdlife="n/a","n/a",IF(Q$3>(A7stdlife+$F124),(Input!$H$149*(1+vanilla1)^0.5)-SUM($H124:P124),(Input!$H$149*(1+vanilla1)^0.5)/A7stdlife)) -> 0
F125: 2 | J125: =IF(A7stdlife="n/a","n/a",IF(J$3>(A7stdlife+$F125),(Input!$I$149*(1+vanilla2)^0.5)-SUM($I125:I125),(Input!$I$149*(1+vanilla2)^0.5)/A7stdlife)) -> 1.637775025 | K125: =IF(A7stdlife="n/a","n/a",IF(K$3>(A7stdlife+$F125),(Input!$I$149*(1+vanilla2)^0.5)-SUM($I125:J125),(Input!$I$149*(1+vanilla2)^0.5)/A7stdlife)) -> 1.637775025 | L125: =IF(A7stdlife="n/a","n/a",IF(L$3>(A7stdlife+$F125),(Input!$I$149*(1+vanilla2)^0.5)-SUM($I125:K125),(Input!$I$149*(1+vanilla2)^0.5)/A7stdlife)) -> 1.637775025 | M125: =IF(A7stdlife="n/a","n/a",IF(M$3>(A7stdlife+$F125),(Input!$I$149*(1+vanilla2)^0.5)-SUM($I125:L125),(Input!$I$149*(1+vanilla2)^0.5)/A7stdlife)) -> 1.637775025 | N125: =IF(A7stdlife="n/a","n/a",IF(N$3>(A7stdlife+$F125),(Input!$I$149*(1+vanilla2)^0.5)-SUM($I125:M125),(Input!$I$149*(1+vanilla2)^0.5)/A7stdlife)) -> 1.637775025 | O125: =IF(A7stdlife="n/a","n/a",IF(O$3>(A7stdlife+$F125),(Input!$I$149*(1+vanilla2)^0.5)-SUM($I125:N125),(Input!$I$149*(1+vanilla2)^0.5)/A7stdlife)) -> 1.637775025 | P125: =IF(A7stdlife="n/a","n/a",IF(P$3>(A7stdlife+$F125),(Input!$I$149*(1+vanilla2)^0.5)-SUM($I125:O125),(Input!$I$149*(1+vanilla2)^0.5)/A7stdlife)) -> 1.637775025 | Q125: =IF(A7stdlife="n/a","n/a",IF(Q$3>(A7stdlife+$F125),(Input!$I$149*(1+vanilla2)^0.5)-SUM($I125:P125),(Input!$I$149*(1+vanilla2)^0.5)/A7stdlife)) -> 0.8188875123
F126: 3 | K126: =IF(A7stdlife="n/a","n/a",IF(K$3>(A7stdlife+$F126),(Input!$J$149*(1+vanilla3)^0.5)-SUM($J126:J126),(Input!$J$149*(1+vanilla3)^0.5)/A7stdlife)) -> 1.064897184 | L126: =IF(A7stdlife="n/a","n/a",IF(L$3>(A7stdlife+$F126),(Input!$J$149*(1+vanilla3)^0.5)-SUM($J126:K126),(Input!$J$149*(1+vanilla3)^0.5)/A7stdlife)) -> 1.064897184 | M126: =IF(A7stdlife="n/a","n/a",IF(M$3>(A7stdlife+$F126),(Input!$J$149*(1+vanilla3)^0.5)-SUM($J126:L126),(Input!$J$149*(1+vanilla3)^0.5)/A7stdlife)) -> 1.064897184 | N126: =IF(A7stdlife="n/a","n/a",IF(N$3>(A7stdlife+$F126),(Input!$J$149*(1+vanilla3)^0.5)-SUM($J126:M126),(Input!$J$149*(1+vanilla3)^0.5)/A7stdlife)) -> 1.064897184 | O126: =IF(A7stdlife="n/a","n/a",IF(O$3>(A7stdlife+$F126),(Input!$J$149*(1+vanilla3)^0.5)-SUM($J126:N126),(Input!$J$149*(1+vanilla3)^0.5)/A7stdlife)) -> 1.064897184 | P126: =IF(A7stdlife="n/a","n/a",IF(P$3>(A7stdlife+$F126),(Input!$J$149*(1+vanilla3)^0.5)-SUM($J126:O126),(Input!$J$149*(1+vanilla3)^0.5)/A7stdlife)) -> 1.064897184 | Q126: =IF(A7stdlife="n/a","n/a",IF(Q$3>(A7stdlife+$F126),(Input!$J$149*(1+vanilla3)^0.5)-SUM($J126:P126),(Input!$J$149*(1+vanilla3)^0.5)/A7stdlife)) -> 1.064897184
F127: 4 | L127: =IF(A7stdlife="n/a","n/a",IF(L$3>(A7stdlife+$F127),(Input!$K$149*(1+vanilla4)^0.5)-SUM($K127:K127),(Input!$K$149*(1+vanilla4)^0.5)/A7stdlife)) -> 0.481991676 | M127: =IF(A7stdlife="n/a","n/a",IF(M$3>(A7stdlife+$F127),(Input!$K$149*(1+vanilla4)^0.5)-SUM($K127:L127),(Input!$K$149*(1+vanilla4)^0.5)/A7stdlife)) -> 0.481991676 | N127: =IF(A7stdlife="n/a","n/a",IF(N$3>(A7stdlife+$F127),(Input!$K$149*(1+vanilla4)^0.5)-SUM($K127:M127),(Input!$K$149*(1+vanilla4)^0.5)/A7stdlife)) -> 0.481991676 | O127: =IF(A7stdlife="n/a","n/a",IF(O$3>(A7stdlife+$F127),(Input!$K$149*(1+vanilla4)^0.5)-SUM($K127:N127),(Input!$K$149*(1+vanilla4)^0.5)/A7stdlife)) -> 0.481991676 | P127: =IF(A7stdlife="n/a","n/a",IF(P$3>(A7stdlife+$F127),(Input!$K$149*(1+vanilla4)^0.5)-SUM($K127:O127),(Input!$K$149*(1+vanilla4)^0.5)/A7stdlife)) -> 0.481991676 | Q127: =IF(A7stdlife="n/a","n/a",IF(Q$3>(A7stdlife+$F127),(Input!$K$149*(1+vanilla4)^0.5)-SUM($K127:P127),(Input!$K$149*(1+vanilla4)^0.5)/A7stdlife)) -> 0.481991676
F128: 5 | M128: =IF(A7stdlife="n/a","n/a",IF(M$3>(A7stdlife+$F128),(Input!$L$149*(1+vanilla5)^0.5)-SUM($L128:L128),(Input!$L$149*(1+vanilla5)^0.5)/A7stdlife)) -> 0.4405002977 | N128: =IF(A7stdlife="n/a","n/a",IF(N$3>(A7stdlife+$F128),(Input!$L$149*(1+vanilla5)^0.5)-SUM($L128:M128),(Input!$L$149*(1+vanilla5)^0.5)/A7stdlife)) -> 0.4405002977 | O128: =IF(A7stdlife="n/a","n/a",IF(O$3>(A7stdlife+$F128),(Input!$L$149*(1+vanilla5)^0.5)-SUM($L128:N128),(Input!$L$149*(1+vanilla5)^0.5)/A7stdlife)) -> 0.4405002977 | P128: =IF(A7stdlife="n/a","n/a",IF(P$3>(A7stdlife+$F128),(Input!$L$149*(1+vanilla5)^0.5)-SUM($L128:O128),(Input!$L$149*(1+vanilla5)^0.5)/A7stdlife)) -> 0.4405002977 | Q128: =IF(A7stdlife="n/a","n/a",IF(Q$3>(A7stdlife+$F128),(Input!$L$149*(1+vanilla5)^0.5)-SUM($L128:P128),(Input!$L$149*(1+vanilla5)^0.5)/A7stdlife)) -> 0.4405002977
F129: 6 | N129: =IF(A7stdlife="n/a","n/a",IF(N$3>(A7stdlife+$F129),(Input!$M$149*(1+vanilla6)^0.5)-SUM($M129:M129),(Input!$M$149*(1+vanilla6)^0.5)/A7stdlife)) -> 0 | O129: =IF(A7stdlife="n/a","n/a",IF(O$3>(A7stdlife+$F129),(Input!$M$149*(1+vanilla6)^0.5)-SUM($M129:N129),(Input!$M$149*(1+vanilla6)^0.5)/A7stdlife)) -> 0 | P129: =IF(A7stdlife="n/a","n/a",IF(P$3>(A7stdlife+$F129),(Input!$M$149*(1+vanilla6)^0.5)-SUM($M129:O129),(Input!$M$149*(1+vanilla6)^0.5)/A7stdlife)) -> 0 | Q129: =IF(A7stdlife="n/a","n/a",IF(Q$3>(A7stdlife+$F129),(Input!$M$149*(1+vanilla6)^0.5)-SUM($M129:P129),(Input!$M$149*(1+vanilla6)^0.5)/A7stdlife)) -> 0
F130: 7 | O130: =IF(A7stdlife="n/a","n/a",IF(O$3>(A7stdlife+$F130),(Input!$N$149*(1+vanilla7)^0.5)-SUM($N130:N130),(Input!$N$149*(1+vanilla7)^0.5)/A7stdlife)) -> 0 | P130: =IF(A7stdlife="n/a","n/a",IF(P$3>(A7stdlife+$F130),(Input!$N$149*(1+vanilla7)^0.5)-SUM($N130:O130),(Input!$N$149*(1+vanilla7)^0.5)/A7stdlife)) -> 0 | Q130: =IF(A7stdlife="n/a","n/a",IF(Q$3>(A7stdlife+$F130),(Input!$N$149*(1+vanilla7)^0.5)-SUM($N130:P130),(Input!$N$149*(1+vanilla7)^0.5)/A7stdlife)) -> 0
F131: 8 | P131: =IF(A7stdlife="n/a","n/a",IF(P$3>(A7stdlife+$F131),(Input!$O$149*(1+vanilla8)^0.5)-SUM($O131:O131),(Input!$O$149*(1+vanilla8)^0.5)/A7stdlife)) -> 0 | Q131: =IF(A7stdlife="n/a","n/a",IF(Q$3>(A7stdlife+$F131),(Input!$O$149*(1+vanilla8)^0.5)-SUM($O131:P131),(Input!$O$149*(1+vanilla8)^0.5)/A7stdlife)) -> 0
F132: 9 | Q132: =IF(A7stdlife="n/a","n/a",IF(Q$3>(A7stdlife+$F132),(Input!$P$149*(1+vanilla9)^0.5)-SUM($P132:P132),(Input!$P$149*(1+vanilla9)^0.5)/A7stdlife)) -> 0
F133: 10
D134: =Asset7 -> Non network - other | H134: =-SUM(H122:H133) -> -5.139579076 | I134: =-SUM(I122:I133) -> -6.401131304 | J134: =-SUM(J122:J133) -> -8.038906329 | K134: =-SUM(K122:K133) -> -9.103803512 | L134: =-SUM(L122:L133) -> -9.585795188 | M134: =IF(Input!M173>0, -SUM(M122:M133), 0) -> 0 | N134: =IF(Input!N173>0, -SUM(N122:N133), 0) -> 0 | O134: =IF(Input!O173>0, -SUM(O122:O133), 0) -> 0 | P134: =IF(Input!P173>0, -SUM(P122:P133), 0) -> 0 | Q134: =IF(Input!Q173>0, -SUM(Q122:Q133), 0) -> 0
C135: =Asset8 -> Neutral Screen Services | E135: Opening RAB | H135: =IF(H$3>A8remlife,A8value-SUM($G135:G135),IF(A8remlife="N/A","n/a",A8value/A8remlife)) -> 5.2452 | I135: =IF(I$3>A8remlife,A8value-SUM($G135:H135),IF(A8remlife="N/A","n/a",A8value/A8remlife)) -> 5.2452 | J135: =IF(J$3>A8remlife,A8value-SUM($G135:I135),IF(A8remlife="N/A","n/a",A8value/A8remlife)) -> 5.2452 | K135: =IF(K$3>A8remlife,A8value-SUM($G135:J135),IF(A8remlife="N/A","n/a",A8value/A8remlife)) -> 5.2452 | L135: =IF(L$3>A8remlife,A8value-SUM($G135:K135),IF(A8remlife="N/A","n/a",A8value/A8remlife)) -> 5.2452 | M135: =IF(M$3>A8remlife,A8value-SUM($G135:L135),IF(A8remlife="N/A","n/a",A8value/A8remlife)) -> 0 | N135: =IF(N$3>A8remlife,A8value-SUM($G135:M135),IF(A8remlife="N/A","n/a",A8value/A8remlife)) -> 0 | O135: =IF(O$3>A8remlife,A8value-SUM($G135:N135),IF(A8remlife="N/A","n/a",A8value/A8remlife)) -> 0 | P135: =IF(P$3>A8remlife,A8value-SUM($G135:O135),IF(A8remlife="N/A","n/a",A8value/A8remlife)) -> 0 | Q135: =IF(Q$3>A8remlife,A8value-SUM($G135:P135),IF(A8remlife="N/A","n/a",A8value/A8remlife)) -> 0
E136: Capex in year | F136: 0
F137: 1 | I137: =IF(A8stdlife="n/a","n/a",IF(I$3>(A8stdlife+$F137),(Input!$H$150*(1+vanilla1)^0.5)-SUM($H137:H137),(Input!$H$150*(1+vanilla1)^0.5)/A8stdlife)) -> 0 | J137: =IF(A8stdlife="n/a","n/a",IF(J$3>(A8stdlife+$F137),(Input!$H$150*(1+vanilla1)^0.5)-SUM($H137:I137),(Input!$H$150*(1+vanilla1)^0.5)/A8stdlife)) -> 0 | K137: =IF(A8stdlife="n/a","n/a",IF(K$3>(A8stdlife+$F137),(Input!$H$150*(1+vanilla1)^0.5)-SUM($H137:J137),(Input!$H$150*(1+vanilla1)^0.5)/A8stdlife)) -> 0 | L137: =IF(A8stdlife="n/a","n/a",IF(L$3>(A8stdlife+$F137),(Input!$H$150*(1+vanilla1)^0.5)-SUM($H137:K137),(Input!$H$150*(1+vanilla1)^0.5)/A8stdlife)) -> 0 | M137: =IF(A8stdlife="n/a","n/a",IF(M$3>(A8stdlife+$F137),(Input!$H$150*(1+vanilla1)^0.5)-SUM($H137:L137),(Input!$H$150*(1+vanilla1)^0.5)/A8stdlife)) -> 0 | N137: =IF(A8stdlife="n/a","n/a",IF(N$3>(A8stdlife+$F137),(Input!$H$150*(1+vanilla1)^0.5)-SUM($H137:M137),(Input!$H$150*(1+vanilla1)^0.5)/A8stdlife)) -> 0 | O137: =IF(A8stdlife="n/a","n/a",IF(O$3>(A8stdlife+$F137),(Input!$H$150*(1+vanilla1)^0.5)-SUM($H137:N137),(Input!$H$150*(1+vanilla1)^0.5)/A8stdlife)) -> 0 | P137: =IF(A8stdlife="n/a","n/a",IF(P$3>(A8stdlife+$F137),(Input!$H$150*(1+vanilla1)^0.5)-SUM($H137:O137),(Input!$H$150*(1+vanilla1)^0.5)/A8stdlife)) -> 0 | Q137: =IF(A8stdlife="n/a","n/a",IF(Q$3>(A8stdlife+$F137),(Input!$H$150*(1+vanilla1)^0.5)-SUM($H137:P137),(Input!$H$150*(1+vanilla1)^0.5)/A8stdlife)) -> 0
F138: 2 | J138: =IF(A8stdlife="n/a","n/a",IF(J$3>(A8stdlife+$F138),(Input!$I$150*(1+vanilla2)^0.5)-SUM($I138:I138),(Input!$I$150*(1+vanilla2)^0.5)/A8stdlife)) -> 0 | K138: =IF(A8stdlife="n/a","n/a",IF(K$3>(A8stdlife+$F138),(Input!$I$150*(1+vanilla2)^0.5)-SUM($I138:J138),(Input!$I$150*(1+vanilla2)^0.5)/A8stdlife)) -> 0 | L138: =IF(A8stdlife="n/a","n/a",IF(L$3>(A8stdlife+$F138),(Input!$I$150*(1+vanilla2)^0.5)-SUM($I138:K138),(Input!$I$150*(1+vanilla2)^0.5)/A8stdlife)) -> 0 | M138: =IF(A8stdlife="n/a","n/a",IF(M$3>(A8stdlife+$F138),(Input!$I$150*(1+vanilla2)^0.5)-SUM($I138:L138),(Input!$I$150*(1+vanilla2)^0.5)/A8stdlife)) -> 0 | N138: =IF(A8stdlife="n/a","n/a",IF(N$3>(A8stdlife+$F138),(Input!$I$150*(1+vanilla2)^0.5)-SUM($I138:M138),(Input!$I$150*(1+vanilla2)^0.5)/A8stdlife)) -> 0 | O138: =IF(A8stdlife="n/a","n/a",IF(O$3>(A8stdlife+$F138),(Input!$I$150*(1+vanilla2)^0.5)-SUM($I138:N138),(Input!$I$150*(1+vanilla2)^0.5)/A8stdlife)) -> 0 | P138: =IF(A8stdlife="n/a","n/a",IF(P$3>(A8stdlife+$F138),(Input!$I$150*(1+vanilla2)^0.5)-SUM($I138:O138),(Input!$I$150*(1+vanilla2)^0.5)/A8stdlife)) -> 0 | Q138: =IF(A8stdlife="n/a","n/a",IF(Q$3>(A8stdlife+$F138),(Input!$I$150*(1+vanilla2)^0.5)-SUM($I138:P138),(Input!$I$150*(1+vanilla2)^0.5)/A8stdlife)) -> 0
F139: 3 | K139: =IF(A8stdlife="n/a","n/a",IF(K$3>(A8stdlife+$F139),(Input!$J$150*(1+vanilla3)^0.5)-SUM($J139:J139),(Input!$J$150*(1+vanilla3)^0.5)/A8stdlife)) -> 0 | L139: =IF(A8stdlife="n/a","n/a",IF(L$3>(A8stdlife+$F139),(Input!$J$150*(1+vanilla3)^0.5)-SUM($J139:K139),(Input!$J$150*(1+vanilla3)^0.5)/A8stdlife)) -> 0 | M139: =IF(A8stdlife="n/a","n/a",IF(M$3>(A8stdlife+$F139),(Input!$J$150*(1+vanilla3)^0.5)-SUM($J139:L139),(Input!$J$150*(1+vanilla3)^0.5)/A8stdlife)) -> 0 | N139: =IF(A8stdlife="n/a","n/a",IF(N$3>(A8stdlife+$F139),(Input!$J$150*(1+vanilla3)^0.5)-SUM($J139:M139),(Input!$J$150*(1+vanilla3)^0.5)/A8stdlife)) -> 0 | O139: =IF(A8stdlife="n/a","n/a",IF(O$3>(A8stdlife+$F139),(Input!$J$150*(1+vanilla3)^0.5)-SUM($J139:N139),(Input!$J$150*(1+vanilla3)^0.5)/A8stdlife)) -> 0 | P139: =IF(A8stdlife="n/a","n/a",IF(P$3>(A8stdlife+$F139),(Input!$J$150*(1+vanilla3)^0.5)-SUM($J139:O139),(Input!$J$150*(1+vanilla3)^0.5)/A8stdlife)) -> 0 | Q139: =IF(A8stdlife="n/a","n/a",IF(Q$3>(A8stdlife+$F139),(Input!$J$150*(1+vanilla3)^0.5)-SUM($J139:P139),(Input!$J$150*(1+vanilla3)^0.5)/A8stdlife)) -> 0
F140: 4 | L140: =IF(A8stdlife="n/a","n/a",IF(L$3>(A8stdlife+$F140),(Input!$K$150*(1+vanilla4)^0.5)-SUM($K140:K140),(Input!$K$150*(1+vanilla4)^0.5)/A8stdlife)) -> 0 | M140: =IF(A8stdlife="n/a","n/a",IF(M$3>(A8stdlife+$F140),(Input!$K$150*(1+vanilla4)^0.5)-SUM($K140:L140),(Input!$K$150*(1+vanilla4)^0.5)/A8stdlife)) -> 0 | N140: =IF(A8stdlife="n/a","n/a",IF(N$3>(A8stdlife+$F140),(Input!$K$150*(1+vanilla4)^0.5)-SUM($K140:M140),(Input!$K$150*(1+vanilla4)^0.5)/A8stdlife)) -> 0 | O140: =IF(A8stdlife="n/a","n/a",IF(O$3>(A8stdlife+$F140),(Input!$K$150*(1+vanilla4)^0.5)-SUM($K140:N140),(Input!$K$150*(1+vanilla4)^0.5)/A8stdlife)) -> 0 | P140: =IF(A8stdlife="n/a","n/a",IF(P$3>(A8stdlife+$F140),(Input!$K$150*(1+vanilla4)^0.5)-SUM($K140:O140),(Input!$K$150*(1+vanilla4)^0.5)/A8stdlife)) -> 0 | Q140: =IF(A8stdlife="n/a","n/a",IF(Q$3>(A8stdlife+$F140),(Input!$K$150*(1+vanilla4)^0.5)-SUM($K140:P140),(Input!$K$150*(1+vanilla4)^0.5)/A8stdlife)) -> 0
F141: 5 | M141: =IF(A8stdlife="n/a","n/a",IF(M$3>(A8stdlife+$F141),(Input!$L$150*(1+vanilla5)^0.5)-SUM($L141:L141),(Input!$L$150*(1+vanilla5)^0.5)/A8stdlife)) -> 0 | N141: =IF(A8stdlife="n/a","n/a",IF(N$3>(A8stdlife+$F141),(Input!$L$150*(1+vanilla5)^0.5)-SUM($L141:M141),(Input!$L$150*(1+vanilla5)^0.5)/A8stdlife)) -> 0 | O141: =IF(A8stdlife="n/a","n/a",IF(O$3>(A8stdlife+$F141),(Input!$L$150*(1+vanilla5)^0.5)-SUM($L141:N141),(Input!$L$150*(1+vanilla5)^0.5)/A8stdlife)) -> 0 | P141: =IF(A8stdlife="n/a","n/a",IF(P$3>(A8stdlife+$F141),(Input!$L$150*(1+vanilla5)^0.5)-SUM($L141:O141),(Input!$L$150*(1+vanilla5)^0.5)/A8stdlife)) -> 0 | Q141: =IF(A8stdlife="n/a","n/a",IF(Q$3>(A8stdlife+$F141),(Input!$L$150*(1+vanilla5)^0.5)-SUM($L141:P141),(Input!$L$150*(1+vanilla5)^0.5)/A8stdlife)) -> 0
F142: 6 | N142: =IF(A8stdlife="n/a","n/a",IF(N$3>(A8stdlife+$F142),(Input!$M$150*(1+vanilla6)^0.5)-SUM($M142:M142),(Input!$M$150*(1+vanilla6)^0.5)/A8stdlife)) -> 0 | O142: =IF(A8stdlife="n/a","n/a",IF(O$3>(A8stdlife+$F142),(Input!$M$150*(1+vanilla6)^0.5)-SUM($M142:N142),(Input!$M$150*(1+vanilla6)^0.5)/A8stdlife)) -> 0 | P142: =IF(A8stdlife="n/a","n/a",IF(P$3>(A8stdlife+$F142),(Input!$M$150*(1+vanilla6)^0.5)-SUM($M142:O142),(Input!$M$150*(1+vanilla6)^0.5)/A8stdlife)) -> 0 | Q142: =IF(A8stdlife="n/a","n/a",IF(Q$3>(A8stdlife+$F142),(Input!$M$150*(1+vanilla6)^0.5)-SUM($M142:P142),(Input!$M$150*(1+vanilla6)^0.5)/A8stdlife)) -> 0
F143: 7 | O143: =IF(A8stdlife="n/a","n/a",IF(O$3>(A8stdlife+$F143),(Input!$N$150*(1+vanilla7)^0.5)-SUM($N143:N143),(Input!$N$150*(1+vanilla7)^0.5)/A8stdlife)) -> 0 | P143: =IF(A8stdlife="n/a","n/a",IF(P$3>(A8stdlife+$F143),(Input!$N$150*(1+vanilla7)^0.5)-SUM($N143:O143),(Input!$N$150*(1+vanilla7)^0.5)/A8stdlife)) -> 0 | Q143: =IF(A8stdlife="n/a","n/a",IF(Q$3>(A8stdlife+$F143),(Input!$N$150*(1+vanilla7)^0.5)-SUM($N143:P143),(Input!$N$150*(1+vanilla7)^0.5)/A8stdlife)) -> 0
F144: 8 | P144: =IF(A8stdlife="n/a","n/a",IF(P$3>(A8stdlife+$F144),(Input!$O$150*(1+vanilla8)^0.5)-SUM($O144:O144),(Input!$O$150*(1+vanilla8)^0.5)/A8stdlife)) -> 0 | Q144: =IF(A8stdlife="n/a","n/a",IF(Q$3>(A8stdlife+$F144),(Input!$O$150*(1+vanilla8)^0.5)-SUM($O144:P144),(Input!$O$150*(1+vanilla8)^0.5)/A8stdlife)) -> 0
F145: 9 | Q145: =IF(A8stdlife="n/a","n/a",IF(Q$3>(A8stdlife+$F145),(Input!$P$150*(1+vanilla9)^0.5)-SUM($P145:P145),(Input!$P$150*(1+vanilla9)^0.5)/A8stdlife)) -> 0
F146: 10
D147: =Asset8 -> Neutral Screen Services | H147: =-SUM(H135:H146) -> -5.2452 | I147: =-SUM(I135:I146) -> -5.2452 | J147: =-SUM(J135:J146) -> -5.2452 | K147: =-SUM(K135:K146) -> -5.2452 | L147: =-SUM(L135:L146) -> -5.2452 | M147: =IF(Input!M173>0, -SUM(M135:M146), 0) -> 0 | N147: =IF(Input!N173>0, -SUM(N135:N146), 0) -> 0 | O147: =IF(Input!O173>0, -SUM(O135:O146), 0) -> 0 | P147: =IF(Input!P173>0, -SUM(P135:P146), 0) -> 0 | Q147: =IF(Input!Q173>0, -SUM(Q135:Q146), 0) -> 0
C148: =Asset9 -> Distribution Transformers upgrades | E148: Opening RAB | H148: =IF(H$3>A9remlife,A9value-SUM($G148:G148),IF(A9remlife="N/A","n/a",A9value/A9remlife)) -> 1.1656 | I148: =IF(I$3>A9remlife,A9value-SUM($G148:H148),IF(A9remlife="N/A","n/a",A9value/A9remlife)) -> 1.1656 | J148: =IF(J$3>A9remlife,A9value-SUM($G148:I148),IF(A9remlife="N/A","n/a",A9value/A9remlife)) -> 1.1656 | K148: =IF(K$3>A9remlife,A9value-SUM($G148:J148),IF(A9remlife="N/A","n/a",A9value/A9remlife)) -> 1.1656 | L148: =IF(L$3>A9remlife,A9value-SUM($G148:K148),IF(A9remlife="N/A","n/a",A9value/A9remlife)) -> 1.1656 | M148: =IF(M$3>A9remlife,A9value-SUM($G148:L148),IF(A9remlife="N/A","n/a",A9value/A9remlife)) -> 8.881784197e-16 | N148: =IF(N$3>A9remlife,A9value-SUM($G148:M148),IF(A9remlife="N/A","n/a",A9value/A9remlife)) -> 0 | O148: =IF(O$3>A9remlife,A9value-SUM($G148:N148),IF(A9remlife="N/A","n/a",A9value/A9remlife)) -> 0 | P148: =IF(P$3>A9remlife,A9value-SUM($G148:O148),IF(A9remlife="N/A","n/a",A9value/A9remlife)) -> 0 | Q148: =IF(Q$3>A9remlife,A9value-SUM($G148:P148),IF(A9remlife="N/A","n/a",A9value/A9remlife)) -> 0
E149: Capex in year | F149: 0
F150: 1 | I150: =IF(A9stdlife="n/a","n/a",IF(I$3>(A9stdlife+$F150),(Input!$H$151*(1+vanilla1)^0.5)-SUM($H150:H150),(Input!$H$151*(1+vanilla1)^0.5)/A9stdlife)) -> 0 | J150: =IF(A9stdlife="n/a","n/a",IF(J$3>(A9stdlife+$F150),(Input!$H$151*(1+vanilla1)^0.5)-SUM($H150:I150),(Input!$H$151*(1+vanilla1)^0.5)/A9stdlife)) -> 0 | K150: =IF(A9stdlife="n/a","n/a",IF(K$3>(A9stdlife+$F150),(Input!$H$151*(1+vanilla1)^0.5)-SUM($H150:J150),(Input!$H$151*(1+vanilla1)^0.5)/A9stdlife)) -> 0 | L150: =IF(A9stdlife="n/a","n/a",IF(L$3>(A9stdlife+$F150),(Input!$H$151*(1+vanilla1)^0.5)-SUM($H150:K150),(Input!$H$151*(1+vanilla1)^0.5)/A9stdlife)) -> 0 | M150: =IF(A9stdlife="n/a","n/a",IF(M$3>(A9stdlife+$F150),(Input!$H$151*(1+vanilla1)^0.5)-SUM($H150:L150),(Input!$H$151*(1+vanilla1)^0.5)/A9stdlife)) -> 0 | N150: =IF(A9stdlife="n/a","n/a",IF(N$3>(A9stdlife+$F150),(Input!$H$151*(1+vanilla1)^0.5)-SUM($H150:M150),(Input!$H$151*(1+vanilla1)^0.5)/A9stdlife)) -> 0 | O150: =IF(A9stdlife="n/a","n/a",IF(O$3>(A9stdlife+$F150),(Input!$H$151*(1+vanilla1)^0.5)-SUM($H150:N150),(Input!$H$151*(1+vanilla1)^0.5)/A9stdlife)) -> 0 | P150: =IF(A9stdlife="n/a","n/a",IF(P$3>(A9stdlife+$F150),(Input!$H$151*(1+vanilla1)^0.5)-SUM($H150:O150),(Input!$H$151*(1+vanilla1)^0.5)/A9stdlife)) -> 0 | Q150: =IF(A9stdlife="n/a","n/a",IF(Q$3>(A9stdlife+$F150),(Input!$H$151*(1+vanilla1)^0.5)-SUM($H150:P150),(Input!$H$151*(1+vanilla1)^0.5)/A9stdlife)) -> 0
F151: 2 | J151: =IF(A9stdlife="n/a","n/a",IF(J$3>(A9stdlife+$F151),(Input!$I$151*(1+vanilla2)^0.5)-SUM($I151:I151),(Input!$I$151*(1+vanilla2)^0.5)/A9stdlife)) -> 0 | K151: =IF(A9stdlife="n/a","n/a",IF(K$3>(A9stdlife+$F151),(Input!$I$151*(1+vanilla2)^0.5)-SUM($I151:J151),(Input!$I$151*(1+vanilla2)^0.5)/A9stdlife)) -> 0 | L151: =IF(A9stdlife="n/a","n/a",IF(L$3>(A9stdlife+$F151),(Input!$I$151*(1+vanilla2)^0.5)-SUM($I151:K151),(Input!$I$151*(1+vanilla2)^0.5)/A9stdlife)) -> 0 | M151: =IF(A9stdlife="n/a","n/a",IF(M$3>(A9stdlife+$F151),(Input!$I$151*(1+vanilla2)^0.5)-SUM($I151:L151),(Input!$I$151*(1+vanilla2)^0.5)/A9stdlife)) -> 0 | N151: =IF(A9stdlife="n/a","n/a",IF(N$3>(A9stdlife+$F151),(Input!$I$151*(1+vanilla2)^0.5)-SUM($I151:M151),(Input!$I$151*(1+vanilla2)^0.5)/A9stdlife)) -> 0 | O151: =IF(A9stdlife="n/a","n/a",IF(O$3>(A9stdlife+$F151),(Input!$I$151*(1+vanilla2)^0.5)-SUM($I151:N151),(Input!$I$151*(1+vanilla2)^0.5)/A9stdlife)) -> 0 | P151: =IF(A9stdlife="n/a","n/a",IF(P$3>(A9stdlife+$F151),(Input!$I$151*(1+vanilla2)^0.5)-SUM($I151:O151),(Input!$I$151*(1+vanilla2)^0.5)/A9stdlife)) -> 0 | Q151: =IF(A9stdlife="n/a","n/a",IF(Q$3>(A9stdlife+$F151),(Input!$I$151*(1+vanilla2)^0.5)-SUM($I151:P151),(Input!$I$151*(1+vanilla2)^0.5)/A9stdlife)) -> 0
F152: 3 | K152: =IF(A9stdlife="n/a","n/a",IF(K$3>(A9stdlife+$F152),(Input!$J$151*(1+vanilla3)^0.5)-SUM($J152:J152),(Input!$J$151*(1+vanilla3)^0.5)/A9stdlife)) -> 0 | L152: =IF(A9stdlife="n/a","n/a",IF(L$3>(A9stdlife+$F152),(Input!$J$151*(1+vanilla3)^0.5)-SUM($J152:K152),(Input!$J$151*(1+vanilla3)^0.5)/A9stdlife)) -> 0 | M152: =IF(A9stdlife="n/a","n/a",IF(M$3>(A9stdlife+$F152),(Input!$J$151*(1+vanilla3)^0.5)-SUM($J152:L152),(Input!$J$151*(1+vanilla3)^0.5)/A9stdlife)) -> 0 | N152: =IF(A9stdlife="n/a","n/a",IF(N$3>(A9stdlife+$F152),(Input!$J$151*(1+vanilla3)^0.5)-SUM($J152:M152),(Input!$J$151*(1+vanilla3)^0.5)/A9stdlife)) -> 0 | O152: =IF(A9stdlife="n/a","n/a",IF(O$3>(A9stdlife+$F152),(Input!$J$151*(1+vanilla3)^0.5)-SUM($J152:N152),(Input!$J$151*(1+vanilla3)^0.5)/A9stdlife)) -> 0 | P152: =IF(A9stdlife="n/a","n/a",IF(P$3>(A9stdlife+$F152),(Input!$J$151*(1+vanilla3)^0.5)-SUM($J152:O152),(Input!$J$151*(1+vanilla3)^0.5)/A9stdlife)) -> 0 | Q152: =IF(A9stdlife="n/a","n/a",IF(Q$3>(A9stdlife+$F152),(Input!$J$151*(1+vanilla3)^0.5)-SUM($J152:P152),(Input!$J$151*(1+vanilla3)^0.5)/A9stdlife)) -> 0
F153: 4 | L153: =IF(A9stdlife="n/a","n/a",IF(L$3>(A9stdlife+$F153),(Input!$K$151*(1+vanilla4)^0.5)-SUM($K153:K153),(Input!$K$151*(1+vanilla4)^0.5)/A9stdlife)) -> 0 | M153: =IF(A9stdlife="n/a","n/a",IF(M$3>(A9stdlife+$F153),(Input!$K$151*(1+vanilla4)^0.5)-SUM($K153:L153),(Input!$K$151*(1+vanilla4)^0.5)/A9stdlife)) -> 0 | N153: =IF(A9stdlife="n/a","n/a",IF(N$3>(A9stdlife+$F153),(Input!$K$151*(1+vanilla4)^0.5)-SUM($K153:M153),(Input!$K$151*(1+vanilla4)^0.5)/A9stdlife)) -> 0 | O153: =IF(A9stdlife="n/a","n/a",IF(O$3>(A9stdlife+$F153),(Input!$K$151*(1+vanilla4)^0.5)-SUM($K153:N153),(Input!$K$151*(1+vanilla4)^0.5)/A9stdlife)) -> 0 | P153: =IF(A9stdlife="n/a","n/a",IF(P$3>(A9stdlife+$F153),(Input!$K$151*(1+vanilla4)^0.5)-SUM($K153:O153),(Input!$K$151*(1+vanilla4)^0.5)/A9stdlife)) -> 0 | Q153: =IF(A9stdlife="n/a","n/a",IF(Q$3>(A9stdlife+$F153),(Input!$K$151*(1+vanilla4)^0.5)-SUM($K153:P153),(Input!$K$151*(1+vanilla4)^0.5)/A9stdlife)) -> 0
F154: 5 | M154: =IF(A9stdlife="n/a","n/a",IF(M$3>(A9stdlife+$F154),(Input!$L$151*(1+vanilla5)^0.5)-SUM($L154:L154),(Input!$L$151*(1+vanilla5)^0.5)/A9stdlife)) -> 0 | N154: =IF(A9stdlife="n/a","n/a",IF(N$3>(A9stdlife+$F154),(Input!$L$151*(1+vanilla5)^0.5)-SUM($L154:M154),(Input!$L$151*(1+vanilla5)^0.5)/A9stdlife)) -> 0 | O154: =IF(A9stdlife="n/a","n/a",IF(O$3>(A9stdlife+$F154),(Input!$L$151*(1+vanilla5)^0.5)-SUM($L154:N154),(Input!$L$151*(1+vanilla5)^0.5)/A9stdlife)) -> 0 | P154: =IF(A9stdlife="n/a","n/a",IF(P$3>(A9stdlife+$F154),(Input!$L$151*(1+vanilla5)^0.5)-SUM($L154:O154),(Input!$L$151*(1+vanilla5)^0.5)/A9stdlife)) -> 0 | Q154: =IF(A9stdlife="n/a","n/a",IF(Q$3>(A9stdlife+$F154),(Input!$L$151*(1+vanilla5)^0.5)-SUM($L154:P154),(Input!$L$151*(1+vanilla5)^0.5)/A9stdlife)) -> 0
F155: 6 | N155: =IF(A9stdlife="n/a","n/a",IF(N$3>(A9stdlife+$F155),(Input!$M$151*(1+vanilla6)^0.5)-SUM($M155:M155),(Input!$M$151*(1+vanilla6)^0.5)/A9stdlife)) -> 0 | O155: =IF(A9stdlife="n/a","n/a",IF(O$3>(A9stdlife+$F155),(Input!$M$151*(1+vanilla6)^0.5)-SUM($M155:N155),(Input!$M$151*(1+vanilla6)^0.5)/A9stdlife)) -> 0 | P155: =IF(A9stdlife="n/a","n/a",IF(P$3>(A9stdlife+$F155),(Input!$M$151*(1+vanilla6)^0.5)-SUM($M155:O155),(Input!$M$151*(1+vanilla6)^0.5)/A9stdlife)) -> 0 | Q155: =IF(A9stdlife="n/a","n/a",IF(Q$3>(A9stdlife+$F155),(Input!$M$151*(1+vanilla6)^0.5)-SUM($M155:P155),(Input!$M$151*(1+vanilla6)^0.5)/A9stdlife)) -> 0
F156: 7 | O156: =IF(A9stdlife="n/a","n/a",IF(O$3>(A9stdlife+$F156),(Input!$N$151*(1+vanilla7)^0.5)-SUM($N156:N156),(Input!$N$151*(1+vanilla7)^0.5)/A9stdlife)) -> 0 | P156: =IF(A9stdlife="n/a","n/a",IF(P$3>(A9stdlife+$F156),(Input!$N$151*(1+vanilla7)^0.5)-SUM($N156:O156),(Input!$N$151*(1+vanilla7)^0.5)/A9stdlife)) -> 0 | Q156: =IF(A9stdlife="n/a","n/a",IF(Q$3>(A9stdlife+$F156),(Input!$N$151*(1+vanilla7)^0.5)-SUM($N156:P156),(Input!$N$151*(1+vanilla7)^0.5)/A9stdlife)) -> 0
F157: 8 | P157: =IF(A9stdlife="n/a","n/a",IF(P$3>(A9stdlife+$F157),(Input!$O$151*(1+vanilla8)^0.5)-SUM($O157:O157),(Input!$O$151*(1+vanilla8)^0.5)/A9stdlife)) -> 0 | Q157: =IF(A9stdlife="n/a","n/a",IF(Q$3>(A9stdlife+$F157),(Input!$O$151*(1+vanilla8)^0.5)-SUM($O157:P157),(Input!$O$151*(1+vanilla8)^0.5)/A9stdlife)) -> 0
F158: 9 | Q158: =IF(A9stdlife="n/a","n/a",IF(Q$3>(A9stdlife+$F158),(Input!$P$151*(1+vanilla9)^0.5)-SUM($P158:P158),(Input!$P$151*(1+vanilla9)^0.5)/A9stdlife)) -> 0
F159: 10
D160: =Asset9 -> Distribution Transformers upgrades | H160: =-SUM(H148:H159) -> -1.1656 | I160: =-SUM(I148:I159) -> -1.1656 | J160: =-SUM(J148:J159) -> -1.1656 | K160: =-SUM(K148:K159) -> -1.1656 | L160: =-SUM(L148:L159) -> -1.1656 | M160: =IF(Input!M173>0, -SUM(M148:M159), 0) -> 0 | N160: =IF(Input!N173>0, -SUM(N148:N159), 0) -> 0 | O160: =IF(Input!O173>0, -SUM(O148:O159), 0) -> 0 | P160: =IF(Input!P173>0, -SUM(P148:P159), 0) -> 0 | Q160: =IF(Input!Q173>0, -SUM(Q148:Q159), 0) -> 0
C161: =Asset10 -> Equity Raising Costs | E161: Opening RAB | H161: =IF(H$3>A10remlife,A10value-SUM($G161:G161),IF(A10remlife="N/A","n/a",A10value/A10remlife)) -> 0 | I161: =IF(I$3>A10remlife,A10value-SUM($G161:H161),IF(A10remlife="N/A","n/a",A10value/A10remlife)) -> 0 | J161: =IF(J$3>A10remlife,A10value-SUM($G161:I161),IF(A10remlife="N/A","n/a",A10value/A10remlife)) -> 0 | K161: =IF(K$3>A10remlife,A10value-SUM($G161:J161),IF(A10remlife="N/A","n/a",A10value/A10remlife)) -> 0 | L161: =IF(L$3>A10remlife,A10value-SUM($G161:K161),IF(A10remlife="N/A","n/a",A10value/A10remlife)) -> 0 | M161: =IF(M$3>A10remlife,A10value-SUM($G161:L161),IF(A10remlife="N/A","n/a",A10value/A10remlife)) -> 0 | N161: =IF(N$3>A10remlife,A10value-SUM($G161:M161),IF(A10remlife="N/A","n/a",A10value/A10remlife)) -> 0 | O161: =IF(O$3>A10remlife,A10value-SUM($G161:N161),IF(A10remlife="N/A","n/a",A10value/A10remlife)) -> 0 | P161: =IF(P$3>A10remlife,A10value-SUM($G161:O161),IF(A10remlife="N/A","n/a",A10value/A10remlife)) -> 0 | Q161: =IF(Q$3>A10remlife,A10value-SUM($G161:P161),IF(A10remlife="N/A","n/a",A10value/A10remlife)) -> 0
E162: Capex in year | F162: 0
F163: 1 | I163: =IF(A10stdlife="n/a","n/a",IF(I$3>(A10stdlife+$F163),(Input!$H$152*(1+vanilla1)^0.5)-SUM($H163:H163),(Input!$H$152*(1+vanilla1)^0.5)/A10stdlife)) -> 0.08931917112 | J163: =IF(A10stdlife="n/a","n/a",IF(J$3>(A10stdlife+$F163),(Input!$H$152*(1+vanilla1)^0.5)-SUM($H163:I163),(Input!$H$152*(1+vanilla1)^0.5)/A10stdlife)) -> 0.08931917112 | K163: =IF(A10stdlife="n/a","n/a",IF(K$3>(A10stdlife+$F163),(Input!$H$152*(1+vanilla1)^0.5)-SUM($H163:J163),(Input!$H$152*(1+vanilla1)^0.5)/A10stdlife)) -> 0.08931917112 | L163: =IF(A10stdlife="n/a","n/a",IF(L$3>(A10stdlife+$F163),(Input!$H$152*(1+vanilla1)^0.5)-SUM($H163:K163),(Input!$H$152*(1+vanilla1)^0.5)/A10stdlife)) -> 0.08931917112 | M163: =IF(A10stdlife="n/a","n/a",IF(M$3>(A10stdlife+$F163),(Input!$H$152*(1+vanilla1)^0.5)-SUM($H163:L163),(Input!$H$152*(1+vanilla1)^0.5)/A10stdlife)) -> 0.08931917112 | N163: =IF(A10stdlife="n/a","n/a",IF(N$3>(A10stdlife+$F163),(Input!$H$152*(1+vanilla1)^0.5)-SUM($H163:M163),(Input!$H$152*(1+vanilla1)^0.5)/A10stdlife)) -> 0.08931917112 | O163: =IF(A10stdlife="n/a","n/a",IF(O$3>(A10stdlife+$F163),(Input!$H$152*(1+vanilla1)^0.5)-SUM($H163:N163),(Input!$H$152*(1+vanilla1)^0.5)/A10stdlife)) -> 0.08931917112 | P163: =IF(A10stdlife="n/a","n/a",IF(P$3>(A10stdlife+$F163),(Input!$H$152*(1+vanilla1)^0.5)-SUM($H163:O163),(Input!$H$152*(1+vanilla1)^0.5)/A10stdlife)) -> 0.08931917112 | Q163: =IF(A10stdlife="n/a","n/a",IF(Q$3>(A10stdlife+$F163),(Input!$H$152*(1+vanilla1)^0.5)-SUM($H163:P163),(Input!$H$152*(1+vanilla1)^0.5)/A10stdlife)) -> 0.08931917112
F164: 2 | J164: =IF(A10stdlife="n/a","n/a",IF(J$3>(A10stdlife+$F164),(Input!$I$152*(1+vanilla2)^0.5)-SUM($I164:I164),(Input!$I$152*(1+vanilla2)^0.5)/A10stdlife)) -> 0 | K164: =IF(A10stdlife="n/a","n/a",IF(K$3>(A10stdlife+$F164),(Input!$I$152*(1+vanilla2)^0.5)-SUM($I164:J164),(Input!$I$152*(1+vanilla2)^0.5)/A10stdlife)) -> 0 | L164: =IF(A10stdlife="n/a","n/a",IF(L$3>(A10stdlife+$F164),(Input!$I$152*(1+vanilla2)^0.5)-SUM($I164:K164),(Input!$I$152*(1+vanilla2)^0.5)/A10stdlife)) -> 0 | M164: =IF(A10stdlife="n/a","n/a",IF(M$3>(A10stdlife+$F164),(Input!$I$152*(1+vanilla2)^0.5)-SUM($I164:L164),(Input!$I$152*(1+vanilla2)^0.5)/A10stdlife)) -> 0 | N164: =IF(A10stdlife="n/a","n/a",IF(N$3>(A10stdlife+$F164),(Input!$I$152*(1+vanilla2)^0.5)-SUM($I164:M164),(Input!$I$152*(1+vanilla2)^0.5)/A10stdlife)) -> 0 | O164: =IF(A10stdlife="n/a","n/a",IF(O$3>(A10stdlife+$F164),(Input!$I$152*(1+vanilla2)^0.5)-SUM($I164:N164),(Input!$I$152*(1+vanilla2)^0.5)/A10stdlife)) -> 0 | P164: =IF(A10stdlife="n/a","n/a",IF(P$3>(A10stdlife+$F164),(Input!$I$152*(1+vanilla2)^0.5)-SUM($I164:O164),(Input!$I$152*(1+vanilla2)^0.5)/A10stdlife)) -> 0 | Q164: =IF(A10stdlife="n/a","n/a",IF(Q$3>(A10stdlife+$F164),(Input!$I$152*(1+vanilla2)^0.5)-SUM($I164:P164),(Input!$I$152*(1+vanilla2)^0.5)/A10stdlife)) -> 0
F165: 3 | K165: =IF(A10stdlife="n/a","n/a",IF(K$3>(A10stdlife+$F165),(Input!$J$152*(1+vanilla3)^0.5)-SUM($J165:J165),(Input!$J$152*(1+vanilla3)^0.5)/A10stdlife)) -> 0 | L165: =IF(A10stdlife="n/a","n/a",IF(L$3>(A10stdlife+$F165),(Input!$J$152*(1+vanilla3)^0.5)-SUM($J165:K165),(Input!$J$152*(1+vanilla3)^0.5)/A10stdlife)) -> 0 | M165: =IF(A10stdlife="n/a","n/a",IF(M$3>(A10stdlife+$F165),(Input!$J$152*(1+vanilla3)^0.5)-SUM($J165:L165),(Input!$J$152*(1+vanilla3)^0.5)/A10stdlife)) -> 0 | N165: =IF(A10stdlife="n/a","n/a",IF(N$3>(A10stdlife+$F165),(Input!$J$152*(1+vanilla3)^0.5)-SUM($J165:M165),(Input!$J$152*(1+vanilla3)^0.5)/A10stdlife)) -> 0 | O165: =IF(A10stdlife="n/a","n/a",IF(O$3>(A10stdlife+$F165),(Input!$J$152*(1+vanilla3)^0.5)-SUM($J165:N165),(Input!$J$152*(1+vanilla3)^0.5)/A10stdlife)) -> 0 | P165: =IF(A10stdlife="n/a","n/a",IF(P$3>(A10stdlife+$F165),(Input!$J$152*(1+vanilla3)^0.5)-SUM($J165:O165),(Input!$J$152*(1+vanilla3)^0.5)/A10stdlife)) -> 0 | Q165: =IF(A10stdlife="n/a","n/a",IF(Q$3>(A10stdlife+$F165),(Input!$J$152*(1+vanilla3)^0.5)-SUM($J165:P165),(Input!$J$152*(1+vanilla3)^0.5)/A10stdlife)) -> 0
F166: 4 | L166: =IF(A10stdlife="n/a","n/a",IF(L$3>(A10stdlife+$F166),(Input!$K$152*(1+vanilla4)^0.5)-SUM($K166:K166),(Input!$K$152*(1+vanilla4)^0.5)/A10stdlife)) -> 0 | M166: =IF(A10stdlife="n/a","n/a",IF(M$3>(A10stdlife+$F166),(Input!$K$152*(1+vanilla4)^0.5)-SUM($K166:L166),(Input!$K$152*(1+vanilla4)^0.5)/A10stdlife)) -> 0 | N166: =IF(A10stdlife="n/a","n/a",IF(N$3>(A10stdlife+$F166),(Input!$K$152*(1+vanilla4)^0.5)-SUM($K166:M166),(Input!$K$152*(1+vanilla4)^0.5)/A10stdlife)) -> 0 | O166: =IF(A10stdlife="n/a","n/a",IF(O$3>(A10stdlife+$F166),(Input!$K$152*(1+vanilla4)^0.5)-SUM($K166:N166),(Input!$K$152*(1+vanilla4)^0.5)/A10stdlife)) -> 0 | P166: =IF(A10stdlife="n/a","n/a",IF(P$3>(A10stdlife+$F166),(Input!$K$152*(1+vanilla4)^0.5)-SUM($K166:O166),(Input!$K$152*(1+vanilla4)^0.5)/A10stdlife)) -> 0 | Q166: =IF(A10stdlife="n/a","n/a",IF(Q$3>(A10stdlife+$F166),(Input!$K$152*(1+vanilla4)^0.5)-SUM($K166:P166),(Input!$K$152*(1+vanilla4)^0.5)/A10stdlife)) -> 0
F167: 5 | M167: =IF(A10stdlife="n/a","n/a",IF(M$3>(A10stdlife+$F167),(Input!$L$152*(1+vanilla5)^0.5)-SUM($L167:L167),(Input!$L$152*(1+vanilla5)^0.5)/A10stdlife)) -> 0 | N167: =IF(A10stdlife="n/a","n/a",IF(N$3>(A10stdlife+$F167),(Input!$L$152*(1+vanilla5)^0.5)-SUM($L167:M167),(Input!$L$152*(1+vanilla5)^0.5)/A10stdlife)) -> 0 | O167: =IF(A10stdlife="n/a","n/a",IF(O$3>(A10stdlife+$F167),(Input!$L$152*(1+vanilla5)^0.5)-SUM($L167:N167),(Input!$L$152*(1+vanilla5)^0.5)/A10stdlife)) -> 0 | P167: =IF(A10stdlife="n/a","n/a",IF(P$3>(A10stdlife+$F167),(Input!$L$152*(1+vanilla5)^0.5)-SUM($L167:O167),(Input!$L$152*(1+vanilla5)^0.5)/A10stdlife)) -> 0 | Q167: =IF(A10stdlife="n/a","n/a",IF(Q$3>(A10stdlife+$F167),(Input!$L$152*(1+vanilla5)^0.5)-SUM($L167:P167),(Input!$L$152*(1+vanilla5)^0.5)/A10stdlife)) -> 0
F168: 6 | N168: =IF(A10stdlife="n/a","n/a",IF(N$3>(A10stdlife+$F168),(Input!$M$152*(1+vanilla6)^0.5)-SUM($M168:M168),(Input!$M$152*(1+vanilla6)^0.5)/A10stdlife)) -> 0 | O168: =IF(A10stdlife="n/a","n/a",IF(O$3>(A10stdlife+$F168),(Input!$M$152*(1+vanilla6)^0.5)-SUM($M168:N168),(Input!$M$152*(1+vanilla6)^0.5)/A10stdlife)) -> 0 | P168: =IF(A10stdlife="n/a","n/a",IF(P$3>(A10stdlife+$F168),(Input!$M$152*(1+vanilla6)^0.5)-SUM($M168:O168),(Input!$M$152*(1+vanilla6)^0.5)/A10stdlife)) -> 0 | Q168: =IF(A10stdlife="n/a","n/a",IF(Q$3>(A10stdlife+$F168),(Input!$M$152*(1+vanilla6)^0.5)-SUM($M168:P168),(Input!$M$152*(1+vanilla6)^0.5)/A10stdlife)) -> 0
F169: 7 | O169: =IF(A10stdlife="n/a","n/a",IF(O$3>(A10stdlife+$F169),(Input!$N$152*(1+vanilla7)^0.5)-SUM($N169:N169),(Input!$N$152*(1+vanilla7)^0.5)/A10stdlife)) -> 0 | P169: =IF(A10stdlife="n/a","n/a",IF(P$3>(A10stdlife+$F169),(Input!$N$152*(1+vanilla7)^0.5)-SUM($N169:O169),(Input!$N$152*(1+vanilla7)^0.5)/A10stdlife)) -> 0 | Q169: =IF(A10stdlife="n/a","n/a",IF(Q$3>(A10stdlife+$F169),(Input!$N$152*(1+vanilla7)^0.5)-SUM($N169:P169),(Input!$N$152*(1+vanilla7)^0.5)/A10stdlife)) -> 0
F170: 8 | P170: =IF(A10stdlife="n/a","n/a",IF(P$3>(A10stdlife+$F170),(Input!$O$152*(1+vanilla8)^0.5)-SUM($O170:O170),(Input!$O$152*(1+vanilla8)^0.5)/A10stdlife)) -> 0 | Q170: =IF(A10stdlife="n/a","n/a",IF(Q$3>(A10stdlife+$F170),(Input!$O$152*(1+vanilla8)^0.5)-SUM($O170:P170),(Input!$O$152*(1+vanilla8)^0.5)/A10stdlife)) -> 0
F171: 9 | Q171: =IF(A10stdlife="n/a","n/a",IF(Q$3>(A10stdlife+$F171),(Input!$P$152*(1+vanilla9)^0.5)-SUM($P171:P171),(Input!$P$152*(1+vanilla9)^0.5)/A10stdlife)) -> 0
F172: 10
D173: =Asset10 -> Equity Raising Costs | H173: =-SUM(H161:H172) -> 0 | I173: =-SUM(I161:I172) -> -0.08931917112 | J173: =-SUM(J161:J172) -> -0.08931917112 | K173: =-SUM(K161:K172) -> -0.08931917112 | L173: =-SUM(L161:L172) -> -0.08931917112 | M173: =IF(Input!M173>0, -SUM(M161:M172), 0) -> 0 | N173: =IF(Input!N173>0, -SUM(N161:N172), 0) -> 0 | O173: =IF(Input!O173>0, -SUM(O161:O172), 0) -> 0 | P173: =IF(Input!P173>0, -SUM(P161:P172), 0) -> 0 | Q173: =IF(Input!Q173>0, -SUM(Q161:Q172), 0) -> 0
C174: =Asset11 -> 0 | E174: Opening RAB | H174: =IF(H$3>A11remlife,A11value-SUM($G174:G174),IF(A11remlife="N/A","n/a",A11value/A11remlife)) -> 0 | I174: =IF(I$3>A11remlife,A11value-SUM($G174:H174),IF(A11remlife="N/A","n/a",A11value/A11remlife)) -> 0 | J174: =IF(J$3>A11remlife,A11value-SUM($G174:I174),IF(A11remlife="N/A","n/a",A11value/A11remlife)) -> 0 | K174: =IF(K$3>A11remlife,A11value-SUM($G174:J174),IF(A11remlife="N/A","n/a",A11value/A11remlife)) -> 0 | L174: =IF(L$3>A11remlife,A11value-SUM($G174:K174),IF(A11remlife="N/A","n/a",A11value/A11remlife)) -> 0 | M174: =IF(M$3>A11remlife,A11value-SUM($G174:L174),IF(A11remlife="N/A","n/a",A11value/A11remlife)) -> 0 | N174: =IF(N$3>A11remlife,A11value-SUM($G174:M174),IF(A11remlife="N/A","n/a",A11value/A11remlife)) -> 0 | O174: =IF(O$3>A11remlife,A11value-SUM($G174:N174),IF(A11remlife="N/A","n/a",A11value/A11remlife)) -> 0 | P174: =IF(P$3>A11remlife,A11value-SUM($G174:O174),IF(A11remlife="N/A","n/a",A11value/A11remlife)) -> 0 | Q174: =IF(Q$3>A11remlife,A11value-SUM($G174:P174),IF(A11remlife="N/A","n/a",A11value/A11remlife)) -> 0
E175: Capex in year | F175: 0
F176: 1 | I176: =IF(A11stdlife="n/a","n/a",IF(I$3>(A11stdlife+$F176),(Input!$H$153*(1+vanilla1)^0.5)-SUM($H176:H176),(Input!$H$153*(1+vanilla1)^0.5)/A11stdlife)) -> 0 | J176: =IF(A11stdlife="n/a","n/a",IF(J$3>(A11stdlife+$F176),(Input!$H$153*(1+vanilla1)^0.5)-SUM($H176:I176),(Input!$H$153*(1+vanilla1)^0.5)/A11stdlife)) -> 0 | K176: =IF(A11stdlife="n/a","n/a",IF(K$3>(A11stdlife+$F176),(Input!$H$153*(1+vanilla1)^0.5)-SUM($H176:J176),(Input!$H$153*(1+vanilla1)^0.5)/A11stdlife)) -> 0 | L176: =IF(A11stdlife="n/a","n/a",IF(L$3>(A11stdlife+$F176),(Input!$H$153*(1+vanilla1)^0.5)-SUM($H176:K176),(Input!$H$153*(1+vanilla1)^0.5)/A11stdlife)) -> 0 | M176: =IF(A11stdlife="n/a","n/a",IF(M$3>(A11stdlife+$F176),(Input!$H$153*(1+vanilla1)^0.5)-SUM($H176:L176),(Input!$H$153*(1+vanilla1)^0.5)/A11stdlife)) -> 0 | N176: =IF(A11stdlife="n/a","n/a",IF(N$3>(A11stdlife+$F176),(Input!$H$153*(1+vanilla1)^0.5)-SUM($H176:M176),(Input!$H$153*(1+vanilla1)^0.5)/A11stdlife)) -> 0 | O176: =IF(A11stdlife="n/a","n/a",IF(O$3>(A11stdlife+$F176),(Input!$H$153*(1+vanilla1)^0.5)-SUM($H176:N176),(Input!$H$153*(1+vanilla1)^0.5)/A11stdlife)) -> 0 | P176: =IF(A11stdlife="n/a","n/a",IF(P$3>(A11stdlife+$F176),(Input!$H$153*(1+vanilla1)^0.5)-SUM($H176:O176),(Input!$H$153*(1+vanilla1)^0.5)/A11stdlife)) -> 0 | Q176: =IF(A11stdlife="n/a","n/a",IF(Q$3>(A11stdlife+$F176),(Input!$H$153*(1+vanilla1)^0.5)-SUM($H176:P176),(Input!$H$153*(1+vanilla1)^0.5)/A11stdlife)) -> 0
F177: 2 | J177: =IF(A11stdlife="n/a","n/a",IF(J$3>(A11stdlife+$F177),(Input!$I$153*(1+vanilla2)^0.5)-SUM($I177:I177),(Input!$I$153*(1+vanilla2)^0.5)/A11stdlife)) -> 0 | K177: =IF(A11stdlife="n/a","n/a",IF(K$3>(A11stdlife+$F177),(Input!$I$153*(1+vanilla2)^0.5)-SUM($I177:J177),(Input!$I$153*(1+vanilla2)^0.5)/A11stdlife)) -> 0 | L177: =IF(A11stdlife="n/a","n/a",IF(L$3>(A11stdlife+$F177),(Input!$I$153*(1+vanilla2)^0.5)-SUM($I177:K177),(Input!$I$153*(1+vanilla2)^0.5)/A11stdlife)) -> 0 | M177: =IF(A11stdlife="n/a","n/a",IF(M$3>(A11stdlife+$F177),(Input!$I$153*(1+vanilla2)^0.5)-SUM($I177:L177),(Input!$I$153*(1+vanilla2)^0.5)/A11stdlife)) -> 0 | N177: =IF(A11stdlife="n/a","n/a",IF(N$3>(A11stdlife+$F177),(Input!$I$153*(1+vanilla2)^0.5)-SUM($I177:M177),(Input!$I$153*(1+vanilla2)^0.5)/A11stdlife)) -> 0 | O177: =IF(A11stdlife="n/a","n/a",IF(O$3>(A11stdlife+$F177),(Input!$I$153*(1+vanilla2)^0.5)-SUM($I177:N177),(Input!$I$153*(1+vanilla2)^0.5)/A11stdlife)) -> 0 | P177: =IF(A11stdlife="n/a","n/a",IF(P$3>(A11stdlife+$F177),(Input!$I$153*(1+vanilla2)^0.5)-SUM($I177:O177),(Input!$I$153*(1+vanilla2)^0.5)/A11stdlife)) -> 0 | Q177: =IF(A11stdlife="n/a","n/a",IF(Q$3>(A11stdlife+$F177),(Input!$I$153*(1+vanilla2)^0.5)-SUM($I177:P177),(Input!$I$153*(1+vanilla2)^0.5)/A11stdlife)) -> 0
F178: 3 | K178: =IF(A11stdlife="n/a","n/a",IF(K$3>(A11stdlife+$F178),(Input!$J$153*(1+vanilla3)^0.5)-SUM($J178:J178),(Input!$J$153*(1+vanilla3)^0.5)/A11stdlife)) -> 0 | L178: =IF(A11stdlife="n/a","n/a",IF(L$3>(A11stdlife+$F178),(Input!$J$153*(1+vanilla3)^0.5)-SUM($J178:K178),(Input!$J$153*(1+vanilla3)^0.5)/A11stdlife)) -> 0 | M178: =IF(A11stdlife="n/a","n/a",IF(M$3>(A11stdlife+$F178),(Input!$J$153*(1+vanilla3)^0.5)-SUM($J178:L178),(Input!$J$153*(1+vanilla3)^0.5)/A11stdlife)) -> 0 | N178: =IF(A11stdlife="n/a","n/a",IF(N$3>(A11stdlife+$F178),(Input!$J$153*(1+vanilla3)^0.5)-SUM($J178:M178),(Input!$J$153*(1+vanilla3)^0.5)/A11stdlife)) -> 0 | O178: =IF(A11stdlife="n/a","n/a",IF(O$3>(A11stdlife+$F178),(Input!$J$153*(1+vanilla3)^0.5)-SUM($J178:N178),(Input!$J$153*(1+vanilla3)^0.5)/A11stdlife)) -> 0 | P178: =IF(A11stdlife="n/a","n/a",IF(P$3>(A11stdlife+$F178),(Input!$J$153*(1+vanilla3)^0.5)-SUM($J178:O178),(Input!$J$153*(1+vanilla3)^0.5)/A11stdlife)) -> 0 | Q178: =IF(A11stdlife="n/a","n/a",IF(Q$3>(A11stdlife+$F178),(Input!$J$153*(1+vanilla3)^0.5)-SUM($J178:P178),(Input!$J$153*(1+vanilla3)^0.5)/A11stdlife)) -> 0
F179: 4 | L179: =IF(A11stdlife="n/a","n/a",IF(L$3>(A11stdlife+$F179),(Input!$K$153*(1+vanilla4)^0.5)-SUM($K179:K179),(Input!$K$153*(1+vanilla4)^0.5)/A11stdlife)) -> 0 | M179: =IF(A11stdlife="n/a","n/a",IF(M$3>(A11stdlife+$F179),(Input!$K$153*(1+vanilla4)^0.5)-SUM($K179:L179),(Input!$K$153*(1+vanilla4)^0.5)/A11stdlife)) -> 0 | N179: =IF(A11stdlife="n/a","n/a",IF(N$3>(A11stdlife+$F179),(Input!$K$153*(1+vanilla4)^0.5)-SUM($K179:M179),(Input!$K$153*(1+vanilla4)^0.5)/A11stdlife)) -> 0 | O179: =IF(A11stdlife="n/a","n/a",IF(O$3>(A11stdlife+$F179),(Input!$K$153*(1+vanilla4)^0.5)-SUM($K179:N179),(Input!$K$153*(1+vanilla4)^0.5)/A11stdlife)) -> 0 | P179: =IF(A11stdlife="n/a","n/a",IF(P$3>(A11stdlife+$F179),(Input!$K$153*(1+vanilla4)^0.5)-SUM($K179:O179),(Input!$K$153*(1+vanilla4)^0.5)/A11stdlife)) -> 0 | Q179: =IF(A11stdlife="n/a","n/a",IF(Q$3>(A11stdlife+$F179),(Input!$K$153*(1+vanilla4)^0.5)-SUM($K179:P179),(Input!$K$153*(1+vanilla4)^0.5)/A11stdlife)) -> 0
F180: 5 | M180: =IF(A11stdlife="n/a","n/a",IF(M$3>(A11stdlife+$F180),(Input!$L$153*(1+vanilla5)^0.5)-SUM($L180:L180),(Input!$L153*(1+vanilla5)^0.5)/A11stdlife)) -> 0 | N180: =IF(A11stdlife="n/a","n/a",IF(N$3>(A11stdlife+$F180),(Input!$L$153*(1+vanilla5)^0.5)-SUM($L180:M180),(Input!$L153*(1+vanilla5)^0.5)/A11stdlife)) -> 0 | O180: =IF(A11stdlife="n/a","n/a",IF(O$3>(A11stdlife+$F180),(Input!$L$153*(1+vanilla5)^0.5)-SUM($L180:N180),(Input!$L153*(1+vanilla5)^0.5)/A11stdlife)) -> 0 | P180: =IF(A11stdlife="n/a","n/a",IF(P$3>(A11stdlife+$F180),(Input!$L$153*(1+vanilla5)^0.5)-SUM($L180:O180),(Input!$L153*(1+vanilla5)^0.5)/A11stdlife)) -> 0 | Q180: =IF(A11stdlife="n/a","n/a",IF(Q$3>(A11stdlife+$F180),(Input!$L$153*(1+vanilla5)^0.5)-SUM($L180:P180),(Input!$L153*(1+vanilla5)^0.5)/A11stdlife)) -> 0
F181: 6 | N181: =IF(A11stdlife="n/a","n/a",IF(N$3>(A11stdlife+$F181),(Input!$M$153*(1+vanilla6)^0.5)-SUM($M181:M181),(Input!$M$153*(1+vanilla6)^0.5)/A11stdlife)) -> 0 | O181: =IF(A11stdlife="n/a","n/a",IF(O$3>(A11stdlife+$F181),(Input!$M$153*(1+vanilla6)^0.5)-SUM($M181:N181),(Input!$M$153*(1+vanilla6)^0.5)/A11stdlife)) -> 0 | P181: =IF(A11stdlife="n/a","n/a",IF(P$3>(A11stdlife+$F181),(Input!$M$153*(1+vanilla6)^0.5)-SUM($M181:O181),(Input!$M$153*(1+vanilla6)^0.5)/A11stdlife)) -> 0 | Q181: =IF(A11stdlife="n/a","n/a",IF(Q$3>(A11stdlife+$F181),(Input!$M$153*(1+vanilla6)^0.5)-SUM($M181:P181),(Input!$M$153*(1+vanilla6)^0.5)/A11stdlife)) -> 0
F182: 7 | O182: =IF(A11stdlife="n/a","n/a",IF(O$3>(A11stdlife+$F182),(Input!$N$153*(1+vanilla7)^0.5)-SUM($N182:N182),(Input!$N$153*(1+vanilla7)^0.5)/A11stdlife)) -> 0 | P182: =IF(A11stdlife="n/a","n/a",IF(P$3>(A11stdlife+$F182),(Input!$N$153*(1+vanilla7)^0.5)-SUM($N182:O182),(Input!$N$153*(1+vanilla7)^0.5)/A11stdlife)) -> 0 | Q182: =IF(A11stdlife="n/a","n/a",IF(Q$3>(A11stdlife+$F182),(Input!$N$153*(1+vanilla7)^0.5)-SUM($N182:P182),(Input!$N$153*(1+vanilla7)^0.5)/A11stdlife)) -> 0
F183: 8 | P183: =IF(A11stdlife="n/a","n/a",IF(P$3>(A11stdlife+$F183),(Input!$O$153*(1+vanilla8)^0.5)-SUM($O183:O183),(Input!$O$153*(1+vanilla8)^0.5)/A11stdlife)) -> 0 | Q183: =IF(A11stdlife="n/a","n/a",IF(Q$3>(A11stdlife+$F183),(Input!$O$153*(1+vanilla8)^0.5)-SUM($O183:P183),(Input!$O$153*(1+vanilla8)^0.5)/A11stdlife)) -> 0
F184: 9 | Q184: =IF(A11stdlife="n/a","n/a",IF(Q$3>(A11stdlife+$F184),(Input!$P$153*(1+vanilla9)^0.5)-SUM($P184:P184),(Input!$P$153*(1+vanilla9)^0.5)/A11stdlife)) -> 0
F185: 10
D186: =Asset11 -> 0 | H186: =-SUM(H174:H185) -> 0 | I186: =-SUM(I174:I185) -> 0 | J186: =-SUM(J174:J185) -> 0 | K186: =-SUM(K174:K185) -> 0 | L186: =-SUM(L174:L185) -> 0 | M186: =IF(Input!M173>0, -SUM(M174:M185), 0) -> 0 | N186: =IF(Input!N173>0, -SUM(N174:N185), 0) -> 0 | O186: =IF(Input!O173>0, -SUM(O174:O185), 0) -> 0 | P186: =IF(Input!P173>0, -SUM(P174:P185), 0) -> 0 | Q186: =IF(Input!Q173>0, -SUM(Q174:Q185), 0) -> 0
C187: =Asset12 -> 0 | E187: Opening RAB | H187: =IF(H$3>A12remlife,A12value-SUM($G187:G187),IF(A12remlife="N/A","n/a",A12value/A12remlife)) -> 0 | I187: =IF(I$3>A12remlife,A12value-SUM($G187:H187),IF(A12remlife="N/A","n/a",A12value/A12remlife)) -> 0 | J187: =IF(J$3>A12remlife,A12value-SUM($G187:I187),IF(A12remlife="N/A","n/a",A12value/A12remlife)) -> 0 | K187: =IF(K$3>A12remlife,A12value-SUM($G187:J187),IF(A12remlife="N/A","n/a",A12value/A12remlife)) -> 0 | L187: =IF(L$3>A12remlife,A12value-SUM($G187:K187),IF(A12remlife="N/A","n/a",A12value/A12remlife)) -> 0 | M187: =IF(M$3>A12remlife,A12value-SUM($G187:L187),IF(A12remlife="N/A","n/a",A12value/A12remlife)) -> 0 | N187: =IF(N$3>A12remlife,A12value-SUM($G187:M187),IF(A12remlife="N/A","n/a",A12value/A12remlife)) -> 0 | O187: =IF(O$3>A12remlife,A12value-SUM($G187:N187),IF(A12remlife="N/A","n/a",A12value/A12remlife)) -> 0 | P187: =IF(P$3>A12remlife,A12value-SUM($G187:O187),IF(A12remlife="N/A","n/a",A12value/A12remlife)) -> 0 | Q187: =IF(Q$3>A12remlife,A12value-SUM($G187:P187),IF(A12remlife="N/A","n/a",A12value/A12remlife)) -> 0
E188: Capex in year | F188: 0
F189: 1 | I189: =IF(A12stdlife="n/a","n/a",IF(I$3>(A12stdlife+$F189),(Input!$H$154*(1+vanilla1)^0.5)-SUM($H189:H189),(Input!$H$154*(1+vanilla1)^0.5)/A12stdlife)) -> 0 | J189: =IF(A12stdlife="n/a","n/a",IF(J$3>(A12stdlife+$F189),(Input!$H$154*(1+vanilla1)^0.5)-SUM($H189:I189),(Input!$H$154*(1+vanilla1)^0.5)/A12stdlife)) -> 0 | K189: =IF(A12stdlife="n/a","n/a",IF(K$3>(A12stdlife+$F189),(Input!$H$154*(1+vanilla1)^0.5)-SUM($H189:J189),(Input!$H$154*(1+vanilla1)^0.5)/A12stdlife)) -> 0 | L189: =IF(A12stdlife="n/a","n/a",IF(L$3>(A12stdlife+$F189),(Input!$H$154*(1+vanilla1)^0.5)-SUM($H189:K189),(Input!$H$154*(1+vanilla1)^0.5)/A12stdlife)) -> 0 | M189: =IF(A12stdlife="n/a","n/a",IF(M$3>(A12stdlife+$F189),(Input!$H$154*(1+vanilla1)^0.5)-SUM($H189:L189),(Input!$H$154*(1+vanilla1)^0.5)/A12stdlife)) -> 0 | N189: =IF(A12stdlife="n/a","n/a",IF(N$3>(A12stdlife+$F189),(Input!$H$154*(1+vanilla1)^0.5)-SUM($H189:M189),(Input!$H$154*(1+vanilla1)^0.5)/A12stdlife)) -> 0 | O189: =IF(A12stdlife="n/a","n/a",IF(O$3>(A12stdlife+$F189),(Input!$H$154*(1+vanilla1)^0.5)-SUM($H189:N189),(Input!$H$154*(1+vanilla1)^0.5)/A12stdlife)) -> 0 | P189: =IF(A12stdlife="n/a","n/a",IF(P$3>(A12stdlife+$F189),(Input!$H$154*(1+vanilla1)^0.5)-SUM($H189:O189),(Input!$H$154*(1+vanilla1)^0.5)/A12stdlife)) -> 0 | Q189: =IF(A12stdlife="n/a","n/a",IF(Q$3>(A12stdlife+$F189),(Input!$H$154*(1+vanilla1)^0.5)-SUM($H189:P189),(Input!$H$154*(1+vanilla1)^0.5)/A12stdlife)) -> 0
F190: 2 | J190: =IF(A12stdlife="n/a","n/a",IF(J$3>(A12stdlife+$F190),(Input!$I$154*(1+vanilla2)^0.5)-SUM($I190:I190),(Input!$I$154*(1+vanilla2)^0.5)/A12stdlife)) -> 0 | K190: =IF(A12stdlife="n/a","n/a",IF(K$3>(A12stdlife+$F190),(Input!$I$154*(1+vanilla2)^0.5)-SUM($I190:J190),(Input!$I$154*(1+vanilla2)^0.5)/A12stdlife)) -> 0 | L190: =IF(A12stdlife="n/a","n/a",IF(L$3>(A12stdlife+$F190),(Input!$I$154*(1+vanilla2)^0.5)-SUM($I190:K190),(Input!$I$154*(1+vanilla2)^0.5)/A12stdlife)) -> 0 | M190: =IF(A12stdlife="n/a","n/a",IF(M$3>(A12stdlife+$F190),(Input!$I$154*(1+vanilla2)^0.5)-SUM($I190:L190),(Input!$I$154*(1+vanilla2)^0.5)/A12stdlife)) -> 0 | N190: =IF(A12stdlife="n/a","n/a",IF(N$3>(A12stdlife+$F190),(Input!$I$154*(1+vanilla2)^0.5)-SUM($I190:M190),(Input!$I$154*(1+vanilla2)^0.5)/A12stdlife)) -> 0 | O190: =IF(A12stdlife="n/a","n/a",IF(O$3>(A12stdlife+$F190),(Input!$I$154*(1+vanilla2)^0.5)-SUM($I190:N190),(Input!$I$154*(1+vanilla2)^0.5)/A12stdlife)) -> 0 | P190: =IF(A12stdlife="n/a","n/a",IF(P$3>(A12stdlife+$F190),(Input!$I$154*(1+vanilla2)^0.5)-SUM($I190:O190),(Input!$I$154*(1+vanilla2)^0.5)/A12stdlife)) -> 0 | Q190: =IF(A12stdlife="n/a","n/a",IF(Q$3>(A12stdlife+$F190),(Input!$I$154*(1+vanilla2)^0.5)-SUM($I190:P190),(Input!$I$154*(1+vanilla2)^0.5)/A12stdlife)) -> 0
F191: 3 | K191: =IF(A12stdlife="n/a","n/a",IF(K$3>(A12stdlife+$F191),(Input!$J$154*(1+vanilla3)^0.5)-SUM($J191:J191),(Input!$J$154*(1+vanilla3)^0.5)/A12stdlife)) -> 0 | L191: =IF(A12stdlife="n/a","n/a",IF(L$3>(A12stdlife+$F191),(Input!$J$154*(1+vanilla3)^0.5)-SUM($J191:K191),(Input!$J$154*(1+vanilla3)^0.5)/A12stdlife)) -> 0 | M191: =IF(A12stdlife="n/a","n/a",IF(M$3>(A12stdlife+$F191),(Input!$J$154*(1+vanilla3)^0.5)-SUM($J191:L191),(Input!$J$154*(1+vanilla3)^0.5)/A12stdlife)) -> 0 | N191: =IF(A12stdlife="n/a","n/a",IF(N$3>(A12stdlife+$F191),(Input!$J$154*(1+vanilla3)^0.5)-SUM($J191:M191),(Input!$J$154*(1+vanilla3)^0.5)/A12stdlife)) -> 0 | O191: =IF(A12stdlife="n/a","n/a",IF(O$3>(A12stdlife+$F191),(Input!$J$154*(1+vanilla3)^0.5)-SUM($J191:N191),(Input!$J$154*(1+vanilla3)^0.5)/A12stdlife)) -> 0 | P191: =IF(A12stdlife="n/a","n/a",IF(P$3>(A12stdlife+$F191),(Input!$J$154*(1+vanilla3)^0.5)-SUM($J191:O191),(Input!$J$154*(1+vanilla3)^0.5)/A12stdlife)) -> 0 | Q191: =IF(A12stdlife="n/a","n/a",IF(Q$3>(A12stdlife+$F191),(Input!$J$154*(1+vanilla3)^0.5)-SUM($J191:P191),(Input!$J$154*(1+vanilla3)^0.5)/A12stdlife)) -> 0
F192: 4 | L192: =IF(A12stdlife="n/a","n/a",IF(L$3>(A12stdlife+$F192),(Input!$K$154*(1+vanilla4)^0.5)-SUM($K192:K192),(Input!$K$154*(1+vanilla4)^0.5)/A12stdlife)) -> 0 | M192: =IF(A12stdlife="n/a","n/a",IF(M$3>(A12stdlife+$F192),(Input!$K$154*(1+vanilla4)^0.5)-SUM($K192:L192),(Input!$K$154*(1+vanilla4)^0.5)/A12stdlife)) -> 0 | N192: =IF(A12stdlife="n/a","n/a",IF(N$3>(A12stdlife+$F192),(Input!$K$154*(1+vanilla4)^0.5)-SUM($K192:M192),(Input!$K$154*(1+vanilla4)^0.5)/A12stdlife)) -> 0 | O192: =IF(A12stdlife="n/a","n/a",IF(O$3>(A12stdlife+$F192),(Input!$K$154*(1+vanilla4)^0.5)-SUM($K192:N192),(Input!$K$154*(1+vanilla4)^0.5)/A12stdlife)) -> 0 | P192: =IF(A12stdlife="n/a","n/a",IF(P$3>(A12stdlife+$F192),(Input!$K$154*(1+vanilla4)^0.5)-SUM($K192:O192),(Input!$K$154*(1+vanilla4)^0.5)/A12stdlife)) -> 0 | Q192: =IF(A12stdlife="n/a","n/a",IF(Q$3>(A12stdlife+$F192),(Input!$K$154*(1+vanilla4)^0.5)-SUM($K192:P192),(Input!$K$154*(1+vanilla4)^0.5)/A12stdlife)) -> 0
F193: 5 | M193: =IF(A12stdlife="n/a","n/a",IF(M$3>(A12stdlife+$F193),(Input!$L$154*(1+vanilla5)^0.5)-SUM($L193:L193),(Input!$L$154*(1+vanilla5)^0.5)/A12stdlife)) -> 0 | N193: =IF(A12stdlife="n/a","n/a",IF(N$3>(A12stdlife+$F193),(Input!$L$154*(1+vanilla5)^0.5)-SUM($L193:M193),(Input!$L$154*(1+vanilla5)^0.5)/A12stdlife)) -> 0 | O193: =IF(A12stdlife="n/a","n/a",IF(O$3>(A12stdlife+$F193),(Input!$L$154*(1+vanilla5)^0.5)-SUM($L193:N193),(Input!$L$154*(1+vanilla5)^0.5)/A12stdlife)) -> 0 | P193: =IF(A12stdlife="n/a","n/a",IF(P$3>(A12stdlife+$F193),(Input!$L$154*(1+vanilla5)^0.5)-SUM($L193:O193),(Input!$L$154*(1+vanilla5)^0.5)/A12stdlife)) -> 0 | Q193: =IF(A12stdlife="n/a","n/a",IF(Q$3>(A12stdlife+$F193),(Input!$L$154*(1+vanilla5)^0.5)-SUM($L193:P193),(Input!$L$154*(1+vanilla5)^0.5)/A12stdlife)) -> 0
F194: 6 | N194: =IF(A12stdlife="n/a","n/a",IF(N$3>(A12stdlife+$F194),(Input!$M$154*(1+vanilla6)^0.5)-SUM($M194:M194),(Input!$M$154*(1+vanilla6)^0.5)/A12stdlife)) -> 0 | O194: =IF(A12stdlife="n/a","n/a",IF(O$3>(A12stdlife+$F194),(Input!$M$154*(1+vanilla6)^0.5)-SUM($M194:N194),(Input!$M$154*(1+vanilla6)^0.5)/A12stdlife)) -> 0 | P194: =IF(A12stdlife="n/a","n/a",IF(P$3>(A12stdlife+$F194),(Input!$M$154*(1+vanilla6)^0.5)-SUM($M194:O194),(Input!$M$154*(1+vanilla6)^0.5)/A12stdlife)) -> 0 | Q194: =IF(A12stdlife="n/a","n/a",IF(Q$3>(A12stdlife+$F194),(Input!$M$154*(1+vanilla6)^0.5)-SUM($M194:P194),(Input!$M$154*(1+vanilla6)^0.5)/A12stdlife)) -> 0
F195: 7 | O195: =IF(A12stdlife="n/a","n/a",IF(O$3>(A12stdlife+$F195),(Input!$N$154*(1+vanilla7)^0.5)-SUM($N195:N195),(Input!$N$154*(1+vanilla7)^0.5)/A12stdlife)) -> 0 | P195: =IF(A12stdlife="n/a","n/a",IF(P$3>(A12stdlife+$F195),(Input!$N$154*(1+vanilla7)^0.5)-SUM($N195:O195),(Input!$N$154*(1+vanilla7)^0.5)/A12stdlife)) -> 0 | Q195: =IF(A12stdlife="n/a","n/a",IF(Q$3>(A12stdlife+$F195),(Input!$N$154*(1+vanilla7)^0.5)-SUM($N195:P195),(Input!$N$154*(1+vanilla7)^0.5)/A12stdlife)) -> 0
F196: 8 | P196: =IF(A12stdlife="n/a","n/a",IF(P$3>(A12stdlife+$F196),(Input!$O$154*(1+vanilla8)^0.5)-SUM($O196:O196),(Input!$O$154*(1+vanilla8)^0.5)/A12stdlife)) -> 0 | Q196: =IF(A12stdlife="n/a","n/a",IF(Q$3>(A12stdlife+$F196),(Input!$O$154*(1+vanilla8)^0.5)-SUM($O196:P196),(Input!$O$154*(1+vanilla8)^0.5)/A12stdlife)) -> 0
F197: 9 | Q197: =IF(A12stdlife="n/a","n/a",IF(Q$3>(A12stdlife+$F197),(Input!$P$154*(1+vanilla9)^0.5)-SUM($P197:P197),(Input!$P$154*(1+vanilla9)^0.5)/A12stdlife)) -> 0
F198: 10
D199: =Asset12 -> 0 | H199: =-SUM(H187:H198) -> 0 | I199: =-SUM(I187:I198) -> 0 | J199: =-SUM(J187:J198) -> 0 | K199: =-SUM(K187:K198) -> 0 | L199: =-SUM(L187:L198) -> 0 | M199: =IF(Input!M173>0, -SUM(M187:M198), 0) -> 0 | N199: =IF(Input!N173>0, -SUM(N187:N198), 0) -> 0 | O199: =IF(Input!O173>0, -SUM(O187:O198), 0) -> 0 | P199: =IF(Input!P173>0, -SUM(P187:P198), 0) -> 0 | Q199: =IF(Input!Q173>0, -SUM(Q187:Q198), 0) -> 0
C200: =Asset13 -> 0 | E200: Opening RAB | H200: =IF(H$3>A13remlife,A13value-SUM($G200:G200),IF(A13remlife="N/A","n/a",A13value/A13remlife)) -> 0 | I200: =IF(I$3>A13remlife,A13value-SUM($G200:H200),IF(A13remlife="N/A","n/a",A13value/A13remlife)) -> 0 | J200: =IF(J$3>A13remlife,A13value-SUM($G200:I200),IF(A13remlife="N/A","n/a",A13value/A13remlife)) -> 0 | K200: =IF(K$3>A13remlife,A13value-SUM($G200:J200),IF(A13remlife="N/A","n/a",A13value/A13remlife)) -> 0 | L200: =IF(L$3>A13remlife,A13value-SUM($G200:K200),IF(A13remlife="N/A","n/a",A13value/A13remlife)) -> 0 | M200: =IF(M$3>A13remlife,A13value-SUM($G200:L200),IF(A13remlife="N/A","n/a",A13value/A13remlife)) -> 0 | N200: =IF(N$3>A13remlife,A13value-SUM($G200:M200),IF(A13remlife="N/A","n/a",A13value/A13remlife)) -> 0 | O200: =IF(O$3>A13remlife,A13value-SUM($G200:N200),IF(A13remlife="N/A","n/a",A13value/A13remlife)) -> 0 | P200: =IF(P$3>A13remlife,A13value-SUM($G200:O200),IF(A13remlife="N/A","n/a",A13value/A13remlife)) -> 0 | Q200: =IF(Q$3>A13remlife,A13value-SUM($G200:P200),IF(A13remlife="N/A","n/a",A13value/A13remlife)) -> 0
E201: Capex in year | F201: 0
F202: 1 | I202: =IF(A13stdlife="n/a","n/a",IF(I$3>(A13stdlife+$F202),(Input!$H$155*(1+vanilla1)^0.5)-SUM($H202:H202),(Input!$H$155*(1+vanilla1)^0.5)/A13stdlife)) -> 0 | J202: =IF(A13stdlife="n/a","n/a",IF(J$3>(A13stdlife+$F202),(Input!$H$155*(1+vanilla1)^0.5)-SUM($H202:I202),(Input!$H$155*(1+vanilla1)^0.5)/A13stdlife)) -> 0 | K202: =IF(A13stdlife="n/a","n/a",IF(K$3>(A13stdlife+$F202),(Input!$H$155*(1+vanilla1)^0.5)-SUM($H202:J202),(Input!$H$155*(1+vanilla1)^0.5)/A13stdlife)) -> 0 | L202: =IF(A13stdlife="n/a","n/a",IF(L$3>(A13stdlife+$F202),(Input!$H$155*(1+vanilla1)^0.5)-SUM($H202:K202),(Input!$H$155*(1+vanilla1)^0.5)/A13stdlife)) -> 0 | M202: =IF(A13stdlife="n/a","n/a",IF(M$3>(A13stdlife+$F202),(Input!$H$155*(1+vanilla1)^0.5)-SUM($H202:L202),(Input!$H$155*(1+vanilla1)^0.5)/A13stdlife)) -> 0 | N202: =IF(A13stdlife="n/a","n/a",IF(N$3>(A13stdlife+$F202),(Input!$H$155*(1+vanilla1)^0.5)-SUM($H202:M202),(Input!$H$155*(1+vanilla1)^0.5)/A13stdlife)) -> 0 | O202: =IF(A13stdlife="n/a","n/a",IF(O$3>(A13stdlife+$F202),(Input!$H$155*(1+vanilla1)^0.5)-SUM($H202:N202),(Input!$H$155*(1+vanilla1)^0.5)/A13stdlife)) -> 0 | P202: =IF(A13stdlife="n/a","n/a",IF(P$3>(A13stdlife+$F202),(Input!$H$155*(1+vanilla1)^0.5)-SUM($H202:O202),(Input!$H$155*(1+vanilla1)^0.5)/A13stdlife)) -> 0 | Q202: =IF(A13stdlife="n/a","n/a",IF(Q$3>(A13stdlife+$F202),(Input!$H$155*(1+vanilla1)^0.5)-SUM($H202:P202),(Input!$H$155*(1+vanilla1)^0.5)/A13stdlife)) -> 0
F203: 2 | J203: =IF(A13stdlife="n/a","n/a",IF(J$3>(A13stdlife+$F203),(Input!$I$155*(1+vanilla2)^0.5)-SUM($I203:I203),(Input!$I$155*(1+vanilla2)^0.5)/A13stdlife)) -> 0 | K203: =IF(A13stdlife="n/a","n/a",IF(K$3>(A13stdlife+$F203),(Input!$I$155*(1+vanilla2)^0.5)-SUM($I203:J203),(Input!$I$155*(1+vanilla2)^0.5)/A13stdlife)) -> 0 | L203: =IF(A13stdlife="n/a","n/a",IF(L$3>(A13stdlife+$F203),(Input!$I$155*(1+vanilla2)^0.5)-SUM($I203:K203),(Input!$I$155*(1+vanilla2)^0.5)/A13stdlife)) -> 0 | M203: =IF(A13stdlife="n/a","n/a",IF(M$3>(A13stdlife+$F203),(Input!$I$155*(1+vanilla2)^0.5)-SUM($I203:L203),(Input!$I$155*(1+vanilla2)^0.5)/A13stdlife)) -> 0 | N203: =IF(A13stdlife="n/a","n/a",IF(N$3>(A13stdlife+$F203),(Input!$I$155*(1+vanilla2)^0.5)-SUM($I203:M203),(Input!$I$155*(1+vanilla2)^0.5)/A13stdlife)) -> 0 | O203: =IF(A13stdlife="n/a","n/a",IF(O$3>(A13stdlife+$F203),(Input!$I$155*(1+vanilla2)^0.5)-SUM($I203:N203),(Input!$I$155*(1+vanilla2)^0.5)/A13stdlife)) -> 0 | P203: =IF(A13stdlife="n/a","n/a",IF(P$3>(A13stdlife+$F203),(Input!$I$155*(1+vanilla2)^0.5)-SUM($I203:O203),(Input!$I$155*(1+vanilla2)^0.5)/A13stdlife)) -> 0 | Q203: =IF(A13stdlife="n/a","n/a",IF(Q$3>(A13stdlife+$F203),(Input!$I$155*(1+vanilla2)^0.5)-SUM($I203:P203),(Input!$I$155*(1+vanilla2)^0.5)/A13stdlife)) -> 0
F204: 3 | K204: =IF(A13stdlife="n/a","n/a",IF(K$3>(A13stdlife+$F204),(Input!$J$155*(1+vanilla3)^0.5)-SUM($J204:J204),(Input!$J$155*(1+vanilla3)^0.5)/A13stdlife)) -> 0 | L204: =IF(A13stdlife="n/a","n/a",IF(L$3>(A13stdlife+$F204),(Input!$J$155*(1+vanilla3)^0.5)-SUM($J204:K204),(Input!$J$155*(1+vanilla3)^0.5)/A13stdlife)) -> 0 | M204: =IF(A13stdlife="n/a","n/a",IF(M$3>(A13stdlife+$F204),(Input!$J$155*(1+vanilla3)^0.5)-SUM($J204:L204),(Input!$J$155*(1+vanilla3)^0.5)/A13stdlife)) -> 0 | N204: =IF(A13stdlife="n/a","n/a",IF(N$3>(A13stdlife+$F204),(Input!$J$155*(1+vanilla3)^0.5)-SUM($J204:M204),(Input!$J$155*(1+vanilla3)^0.5)/A13stdlife)) -> 0 | O204: =IF(A13stdlife="n/a","n/a",IF(O$3>(A13stdlife+$F204),(Input!$J$155*(1+vanilla3)^0.5)-SUM($J204:N204),(Input!$J$155*(1+vanilla3)^0.5)/A13stdlife)) -> 0 | P204: =IF(A13stdlife="n/a","n/a",IF(P$3>(A13stdlife+$F204),(Input!$J$155*(1+vanilla3)^0.5)-SUM($J204:O204),(Input!$J$155*(1+vanilla3)^0.5)/A13stdlife)) -> 0 | Q204: =IF(A13stdlife="n/a","n/a",IF(Q$3>(A13stdlife+$F204),(Input!$J$155*(1+vanilla3)^0.5)-SUM($J204:P204),(Input!$J$155*(1+vanilla3)^0.5)/A13stdlife)) -> 0
F205: 4 | L205: =IF(A13stdlife="n/a","n/a",IF(L$3>(A13stdlife+$F205),(Input!$K$155*(1+vanilla4)^0.5)-SUM($K205:K205),(Input!$K$155*(1+vanilla4)^0.5)/A13stdlife)) -> 0 | M205: =IF(A13stdlife="n/a","n/a",IF(M$3>(A13stdlife+$F205),(Input!$K$155*(1+vanilla4)^0.5)-SUM($K205:L205),(Input!$K$155*(1+vanilla4)^0.5)/A13stdlife)) -> 0 | N205: =IF(A13stdlife="n/a","n/a",IF(N$3>(A13stdlife+$F205),(Input!$K$155*(1+vanilla4)^0.5)-SUM($K205:M205),(Input!$K$155*(1+vanilla4)^0.5)/A13stdlife)) -> 0 | O205: =IF(A13stdlife="n/a","n/a",IF(O$3>(A13stdlife+$F205),(Input!$K$155*(1+vanilla4)^0.5)-SUM($K205:N205),(Input!$K$155*(1+vanilla4)^0.5)/A13stdlife)) -> 0 | P205: =IF(A13stdlife="n/a","n/a",IF(P$3>(A13stdlife+$F205),(Input!$K$155*(1+vanilla4)^0.5)-SUM($K205:O205),(Input!$K$155*(1+vanilla4)^0.5)/A13stdlife)) -> 0 | Q205: =IF(A13stdlife="n/a","n/a",IF(Q$3>(A13stdlife+$F205),(Input!$K$155*(1+vanilla4)^0.5)-SUM($K205:P205),(Input!$K$155*(1+vanilla4)^0.5)/A13stdlife)) -> 0
... 477 more rows

Sheet Total actual RAB roll forward
C2: Total Asset Base Roll Forward
G3: 0 | H3: =G3+1 -> 1 | I3: 2 | J3: 3 | K3: 4 | L3: 5 | M3: 6
C4: Year | G4: =Input!G40 -> 2010 | H4: =Input!H40 -> 2011 | I4: =Input!I40 -> 2012 | J4: =Input!J40 -> 2013 | K4: =Input!K40 -> 2014 | L4: =Input!L40 -> 2015 | M4: =Input!M40 -> 2016 | N4: =Input!N40 -> 2017 | O4: =Input!O40 -> 2018 | P4: =Input!P40 -> 2019 | Q4: =Input!Q40 -> 2020
C6: Nominal Opening Regulated Asset Base | G6: =SUM(G7:G36) -> 1399.22356 | H6: =SUM(H7:H36) -> 1380.227518 | I6: =SUM(I7:I36) -> 1524.87799 | J6: 1679.665413 | K6: 1791.898481 | L6: 1924.85577 | M6: 0 | N6: 0 | O6: 0 | P6: 0 | Q6: 0
D7: =Asset1 -> Subtransmission | G7: ='Actual RAB roll forward'!G438 -> 325.7660564 | H7: =G7+G39+G71+G103+G135+G167 -> 376.2026818 | I7: =H7+H39+H71 -> 393.5951079 | J7: 446.1782438 | K7: 474.049614 | L7: 506.4918026 | M7: =IF(Input!M$173>0, L7+L39+L71, 0) -> 0 | N7: =IF(Input!N$173>0, M7+M39+M71, 0) -> 0 | O7: =IF(Input!O$173>0, N7+N39+N71, 0) -> 0 | P7: =IF(Input!P$173>0, O7+O39+O71, 0) -> 0 | Q7: =IF(Input!Q$173>0, P7+P39+P71, 0) -> 0
D8: =Asset2 -> Distribution system assets | G8: ='Actual RAB roll forward'!G439 -> 986.9678619 | H8: 895.946181 | I8: 975.7433379 | J8: 1078.311988 | K8: 1181.450639 | L8: 1295.887373 | M8: =IF(Input!M$173>0, L8+L40+L72, 0) -> 0 | N8: =IF(Input!N$173>0, M8+M40+M72, 0) -> 0 | O8: =IF(Input!O$173>0, N8+N40+N72, 0) -> 0 | P8: =IF(Input!P$173>0, O8+O40+O72, 0) -> 0 | Q8: =IF(Input!Q$173>0, P8+P40+P72, 0) -> 0
D9: =Asset3 -> Metering | G9: ='Actual RAB roll forward'!G440 -> 52.91166256 | H9: 46.9596474 | I9: 38.6106219 | J9: 29.97642262 | K9: 20.38446161 | L9: 10.41202507 | M9: =IF(Input!M$173>0, L9+L41+L73, 0) -> 0 | N9: =IF(Input!N$173>0, M9+M41+M73, 0) -> 0 | O9: =IF(Input!O$173>0, N9+N41+N73, 0) -> 0 | P9: =IF(Input!P$173>0, O9+O41+O73, 0) -> 0 | Q9: =IF(Input!Q$173>0, P9+P41+P73, 0) -> 0
D10: =Asset4 -> Public Lighting | G10: ='Actual RAB roll forward'!G441 -> 3.818760446 | H10: 3.367112779 | I10: 2.713645694 | J10: 1.988344767 | K10: 1.332519863 | L10: 0.6506113022 | M10: =IF(Input!M$173>0, L10+L42+L74, 0) -> 0 | N10: =IF(Input!N$173>0, M10+M42+M74, 0) -> 0 | O10: =IF(Input!O$173>0, N10+N42+N74, 0) -> 0 | P10: =IF(Input!P$173>0, O10+O42+O74, 0) -> 0 | Q10: =IF(Input!Q$173>0, P10+P42+P74, 0) -> 0
D11: =Asset5 -> SCADA (5-year asset) | G11: ='Actual RAB roll forward'!G442 -> 0 | H11: 2.220446049e-16 | I11: 1.052154658 | J11: 5.58448054 | K11: 6.658782816 | L11: 5.101876576 | M11: =IF(Input!M$173>0, L11+L43+L75, 0) -> 0 | N11: =IF(Input!N$173>0, M11+M43+M75, 0) -> 0 | O11: =IF(Input!O$173>0, N11+N43+N75, 0) -> 0 | P11: =IF(Input!P$173>0, O11+O43+O75, 0) -> 0 | Q11: =IF(Input!Q$173>0, P11+P43+P75, 0) -> 0
D12: =Asset6 -> Non network - IT | G12: ='Actual RAB roll forward'!G443 -> 1.831823481 | H12: 5.151434834e-14 | I12: 52.23648042 | J12: 55.21352627 | K12: 51.47089763 | L12: 61.83193744 | M12: =IF(Input!M$173>0, L12+L44+L76, 0) -> 0 | N12: =IF(Input!N$173>0, M12+M44+M76, 0) -> 0 | O12: =IF(Input!O$173>0, N12+N44+N76, 0) -> 0 | P12: =IF(Input!P$173>0, O12+O44+O76, 0) -> 0 | Q12: =IF(Input!Q$173>0, P12+P44+P76, 0) -> 0
D13: =Asset7 -> Non network - other | G13: ='Actual RAB roll forward'!G444 -> 27.92739502 | H13: 25.69789538 | I13: 30.85681331 | J13: 38.20114071 | K13: 38.91006339 | L13: 33.66481605 | M13: =IF(Input!M$173>0, L13+L45+L77, 0) -> 0 | N13: =IF(Input!N$173>0, M13+M45+M77, 0) -> 0 | O13: =IF(Input!O$173>0, N13+N45+N77, 0) -> 0 | P13: =IF(Input!P$173>0, O13+O45+O77, 0) -> 0 | Q13: =IF(Input!Q$173>0, P13+P45+P77, 0) -> 0
D14: =Asset8 -> Neutral Screen Services | G14: ='Actual RAB roll forward'!G445 -> 0 | H14: 26.226 | I14: 21.56567402 | J14: 16.74323258 | K14: 11.38584553 | L14: 5.815952531 | M14: =IF(Input!M$173>0, L14+L46+L78, 0) -> 0 | N14: =IF(Input!N$173>0, M14+M46+M78, 0) -> 0 | O14: =IF(Input!O$173>0, N14+N46+N78, 0) -> 0 | P14: =IF(Input!P$173>0, O14+O46+O78, 0) -> 0 | Q14: =IF(Input!Q$173>0, P14+P46+P78, 0) -> 0
D15: =Asset9 -> Distribution Transformers upgrades | G15: ='Actual RAB roll forward'!G446 -> 0 | H15: 5.828 | I15: 4.792372005 | J15: 3.72071835 | K15: 2.530187896 | L15: 1.292433896 | M15: =IF(Input!M$173>0, L15+L47+L79, 0) -> 0 | N15: =IF(Input!N$173>0, M15+M47+M79, 0) -> 0 | O15: =IF(Input!O$173>0, N15+N47+N79, 0) -> 0 | P15: =IF(Input!P$173>0, O15+O47+O79, 0) -> 0 | Q15: =IF(Input!Q$173>0, P15+P47+P79, 0) -> 0
D16: =Asset10 -> Equity Raising Costs | G16: ='Actual RAB roll forward'!G447 -> 0 | H16: 0 | I16: 3.71178179 | J16: 3.7473159 | K16: 3.725469083 | L16: 3.706941832 | M16: =IF(Input!M$173>0, L16+L48+L80, 0) -> 0 | N16: =IF(Input!N$173>0, M16+M48+M80, 0) -> 0 | O16: =IF(Input!O$173>0, N16+N48+N80, 0) -> 0 | P16: =IF(Input!P$173>0, O16+O48+O80, 0) -> 0 | Q16: =IF(Input!Q$173>0, P16+P48+P80, 0) -> 0
D17: =Asset11 -> 0 | G17: ='Actual RAB roll forward'!G448 -> 0 | H17: 0 | I17: 0 | J17: 0 | K17: 0 | L17: 0 | M17: =IF(Input!M$173>0, L17+L49+L81, 0) -> 0 | N17: =IF(Input!N$173>0, M17+M49+M81, 0) -> 0 | O17: =IF(Input!O$173>0, N17+N49+N81, 0) -> 0 | P17: =IF(Input!P$173>0, O17+O49+O81, 0) -> 0 | Q17: =IF(Input!Q$173>0, P17+P49+P81, 0) -> 0
D18: =Asset12 -> 0 | G18: ='Actual RAB roll forward'!G449 -> 0 | H18: 0 | I18: 0 | J18: 0 | K18: 0 | L18: 0 | M18: =IF(Input!M$173>0, L18+L50+L82, 0) -> 0 | N18: =IF(Input!N$173>0, M18+M50+M82, 0) -> 0 | O18: =IF(Input!O$173>0, N18+N50+N82, 0) -> 0 | P18: =IF(Input!P$173>0, O18+O50+O82, 0) -> 0 | Q18: =IF(Input!Q$173>0, P18+P50+P82, 0) -> 0
D19: =Asset13 -> 0 | G19: ='Actual RAB roll forward'!G450 -> 0 | H19: 0 | I19: 0 | J19: 0 | K19: 0 | L19: 0 | M19: =IF(Input!M$173>0, L19+L51+L83, 0) -> 0 | N19: =IF(Input!N$173>0, M19+M51+M83, 0) -> 0 | O19: =IF(Input!O$173>0, N19+N51+N83, 0) -> 0 | P19: =IF(Input!P$173>0, O19+O51+O83, 0) -> 0 | Q19: =IF(Input!Q$173>0, P19+P51+P83, 0) -> 0
D20: =Asset14 -> 0 | G20: ='Actual RAB roll forward'!G451 -> 0 | H20: 0 | I20: 0 | J20: 0 | K20: 0 | L20: 0 | M20: =IF(Input!M$173>0, L20+L52+L84, 0) -> 0 | N20: =IF(Input!N$173>0, M20+M52+M84, 0) -> 0 | O20: =IF(Input!O$173>0, N20+N52+N84, 0) -> 0 | P20: =IF(Input!P$173>0, O20+O52+O84, 0) -> 0 | Q20: =IF(Input!Q$173>0, P20+P52+P84, 0) -> 0
D21: =Asset15 -> 0 | G21: ='Actual RAB roll forward'!G452 -> 0 | H21: 0 | I21: 0 | J21: 0 | K21: 0 | L21: 0 | M21: =IF(Input!M$173>0, L21+L53+L85, 0) -> 0 | N21: =IF(Input!N$173>0, M21+M53+M85, 0) -> 0 | O21: =IF(Input!O$173>0, N21+N53+N85, 0) -> 0 | P21: =IF(Input!P$173>0, O21+O53+O85, 0) -> 0 | Q21: =IF(Input!Q$173>0, P21+P53+P85, 0) -> 0
D22: =Asset16 -> 0 | G22: ='Actual RAB roll forward'!G453 -> 0 | H22: 0 | I22: 0 | J22: 0 | K22: 0 | L22: 0 | M22: =IF(Input!M$173>0, L22+L54+L86, 0) -> 0 | N22: =IF(Input!N$173>0, M22+M54+M86, 0) -> 0 | O22: =IF(Input!O$173>0, N22+N54+N86, 0) -> 0 | P22: =IF(Input!P$173>0, O22+O54+O86, 0) -> 0 | Q22: =IF(Input!Q$173>0, P22+P54+P86, 0) -> 0
D23: =Asset17 -> 0 | G23: ='Actual RAB roll forward'!G454 -> 0 | H23: 0 | I23: 0 | J23: 0 | K23: 0 | L23: 0 | M23: =IF(Input!M$173>0, L23+L55+L87, 0) -> 0 | N23: =IF(Input!N$173>0, M23+M55+M87, 0) -> 0 | O23: =IF(Input!O$173>0, N23+N55+N87, 0) -> 0 | P23: =IF(Input!P$173>0, O23+O55+O87, 0) -> 0 | Q23: =IF(Input!Q$173>0, P23+P55+P87, 0) -> 0
D24: =Asset18 -> 0 | G24: ='Actual RAB roll forward'!G455 -> 0 | H24: 0 | I24: 0 | J24: 0 | K24: 0 | L24: 0 | M24: =IF(Input!M$173>0, L24+L56+L88, 0) -> 0 | N24: =IF(Input!N$173>0, M24+M56+M88, 0) -> 0 | O24: =IF(Input!O$173>0, N24+N56+N88, 0) -> 0 | P24: =IF(Input!P$173>0, O24+O56+O88, 0) -> 0 | Q24: =IF(Input!Q$173>0, P24+P56+P88, 0) -> 0
D25: =Asset19 -> 0 | G25: ='Actual RAB roll forward'!G456 -> 0 | H25: 0 | I25: 0 | J25: 0 | K25: 0 | L25: 0 | M25: =IF(Input!M$173>0, L25+L57+L89, 0) -> 0 | N25: =IF(Input!N$173>0, M25+M57+M89, 0) -> 0 | O25: =IF(Input!O$173>0, N25+N57+N89, 0) -> 0 | P25: =IF(Input!P$173>0, O25+O57+O89, 0) -> 0 | Q25: =IF(Input!Q$173>0, P25+P57+P89, 0) -> 0
D26: =Asset20 -> 0 | G26: ='Actual RAB roll forward'!G457 -> 0 | H26: 0 | I26: 0 | J26: 0 | K26: 0 | L26: 0 | M26: =IF(Input!M$173>0, L26+L58+L90, 0) -> 0 | N26: =IF(Input!N$173>0, M26+M58+M90, 0) -> 0 | O26: =IF(Input!O$173>0, N26+N58+N90, 0) -> 0 | P26: =IF(Input!P$173>0, O26+O58+O90, 0) -> 0 | Q26: =IF(Input!Q$173>0, P26+P58+P90, 0) -> 0
D27: =Asset21 -> 0 | G27: ='Actual RAB roll forward'!G458 -> 0 | H27: =G27+G59+G91+G123+G155+G187 -> 0 | I27: 0 | J27: 0 | K27: 0 | L27: 0 | M27: =IF(Input!M$173>0, L27+L59+L91, 0) -> 0 | N27: =IF(Input!N$173>0, M27+M59+M91, 0) -> 0 | O27: =IF(Input!O$173>0, N27+N59+N91, 0) -> 0 | P27: =IF(Input!P$173>0, O27+O59+O91, 0) -> 0 | Q27: =IF(Input!Q$173>0, P27+P59+P91, 0) -> 0
D28: =Asset22 -> 0 | G28: ='Actual RAB roll forward'!G459 -> 0 | H28: 0 | I28: 0 | J28: 0 | K28: 0 | L28: 0 | M28: =IF(Input!M$173>0, L28+L60+L92, 0) -> 0 | N28: =IF(Input!N$173>0, M28+M60+M92, 0) -> 0 | O28: =IF(Input!O$173>0, N28+N60+N92, 0) -> 0 | P28: =IF(Input!P$173>0, O28+O60+O92, 0) -> 0 | Q28: =IF(Input!Q$173>0, P28+P60+P92, 0) -> 0
D29: =Asset23 -> 0 | G29: ='Actual RAB roll forward'!G460 -> 0 | H29: 0 | I29: 0 | J29: 0 | K29: 0 | L29: 0 | M29: =IF(Input!M$173>0, L29+L61+L93, 0) -> 0 | N29: =IF(Input!N$173>0, M29+M61+M93, 0) -> 0 | O29: =IF(Input!O$173>0, N29+N61+N93, 0) -> 0 | P29: =IF(Input!P$173>0, O29+O61+O93, 0) -> 0 | Q29: =IF(Input!Q$173>0, P29+P61+P93, 0) -> 0
D30: =Asset24 -> 0 | G30: ='Actual RAB roll forward'!G461 -> 0 | H30: 0 | I30: 0 | J30: 0 | K30: 0 | L30: 0 | M30: =IF(Input!M$173>0, L30+L62+L94, 0) -> 0 | N30: =IF(Input!N$173>0, M30+M62+M94, 0) -> 0 | O30: =IF(Input!O$173>0, N30+N62+N94, 0) -> 0 | P30: =IF(Input!P$173>0, O30+O62+O94, 0) -> 0 | Q30: =IF(Input!Q$173>0, P30+P62+P94, 0) -> 0
D31: =Asset25 -> 0 | G31: ='Actual RAB roll forward'!G462 -> 0 | H31: 0 | I31: 0 | J31: 0 | K31: 0 | L31: 0 | M31: =IF(Input!M$173>0, L31+L63+L95, 0) -> 0 | N31: =IF(Input!N$173>0, M31+M63+M95, 0) -> 0 | O31: =IF(Input!O$173>0, N31+N63+N95, 0) -> 0 | P31: =IF(Input!P$173>0, O31+O63+O95, 0) -> 0 | Q31: =IF(Input!Q$173>0, P31+P63+P95, 0) -> 0
D32: =Asset26 -> 0 | G32: ='Actual RAB roll forward'!G463 -> 0 | H32: 0 | I32: 0 | J32: 0 | K32: 0 | L32: 0 | M32: =IF(Input!M$173>0, L32+L64+L96, 0) -> 0 | N32: =IF(Input!N$173>0, M32+M64+M96, 0) -> 0 | O32: =IF(Input!O$173>0, N32+N64+N96, 0) -> 0 | P32: =IF(Input!P$173>0, O32+O64+O96, 0) -> 0 | Q32: =IF(Input!Q$173>0, P32+P64+P96, 0) -> 0
D33: =Asset27 -> 0 | G33: ='Actual RAB roll forward'!G464 -> 0 | H33: 0 | I33: 0 | J33: 0 | K33: 0 | L33: 0 | M33: =IF(Input!M$173>0, L33+L65+L97, 0) -> 0 | N33: =IF(Input!N$173>0, M33+M65+M97, 0) -> 0 | O33: =IF(Input!O$173>0, N33+N65+N97, 0) -> 0 | P33: =IF(Input!P$173>0, O33+O65+O97, 0) -> 0 | Q33: =IF(Input!Q$173>0, P33+P65+P97, 0) -> 0
D34: =Asset28 -> 0 | G34: ='Actual RAB roll forward'!G465 -> 0 | H34: 0 | I34: 0 | J34: 0 | K34: 0 | L34: 0 | M34: =IF(Input!M$173>0, L34+L66+L98, 0) -> 0 | N34: =IF(Input!N$173>0, M34+M66+M98, 0) -> 0 | O34: =IF(Input!O$173>0, N34+N66+N98, 0) -> 0 | P34: =IF(Input!P$173>0, O34+O66+O98, 0) -> 0 | Q34: =IF(Input!Q$173>0, P34+P66+P98, 0) -> 0
D35: =Asset29 -> 0 | G35: ='Actual RAB roll forward'!G466 -> 0 | H35: 0 | I35: =H35+H67+H99 -> 0 | J35: 0 | K35: 0 | L35: 0 | M35: =IF(Input!M$173>0, L35+L67+L99, 0) -> 0 | N35: =IF(Input!N$173>0, M35+M67+M99, 0) -> 0 | O35: =IF(Input!O$173>0, N35+N67+N99, 0) -> 0 | P35: =IF(Input!P$173>0, O35+O67+O99, 0) -> 0 | Q35: =IF(Input!Q$173>0, P35+P67+P99, 0) -> 0
D36: =Asset30 -> 0 | G36: ='Actual RAB roll forward'!G467 -> 0 | H36: 0 | I36: 0 | J36: 0 | K36: 0 | L36: 0 | M36: =IF(Input!M$173>0, L36+L68+L100, 0) -> 0 | N36: =IF(Input!N$173>0, M36+M68+M100, 0) -> 0 | O36: =IF(Input!O$173>0, N36+N68+N100, 0) -> 0 | P36: =IF(Input!P$173>0, O36+O68+O100, 0) -> 0 | Q36: =IF(Input!Q$173>0, P36+P68+P100, 0) -> 0
C38: Nominal Actual Net Capex | G38: =SUM(G39:G68) -> 124.859 | H38: =SUM(H39:H68) -> 182.8765198 | I38: =SUM(I39:I68) -> 196.110401 | J38: 184.7148947 | K38: 210.3573875 | L38: 199.8730673 | M38: 0 | N38: 0 | O38: 0 | P38: 0 | Q38: 0
D39: =Asset1 -> Subtransmission | G39: ='Actual RAB roll forward'!G470 -> 35.90784182 | H39: ='Actual RAB roll forward'!H470 -> 23.01724375 | I39: ='Actual RAB roll forward'!I470 -> 55.81325573 | J39: ='Actual RAB roll forward'!J470 -> 37.29697589 | K39: ='Actual RAB roll forward'!K470 -> 41.59653538 | L39: ='Actual RAB roll forward'!L470 -> 42.39702103 | M39: ='Actual RAB roll forward'!M470 -> 0 | N39: ='Actual RAB roll forward'!N470 -> 0 | O39: ='Actual RAB roll forward'!O470 -> 0 | P39: ='Actual RAB roll forward'!P470 -> 0 | Q39: ='Actual RAB roll forward'!Q470 -> 0
D40: =Asset2 -> Distribution system assets | G40: ='Actual RAB roll forward'!G471 -> 76.48115818 | H40: ='Actual RAB roll forward'!H471 -> 93.19295174 | I40: ='Actual RAB roll forward'!I471 -> 110.6754681 | J40: ='Actual RAB roll forward'!J471 -> 127.9821489 | K40: ='Actual RAB roll forward'!K471 -> 140.0339486 | L40: ='Actual RAB roll forward'!L471 -> 128.2875254 | M40: ='Actual RAB roll forward'!M471 -> 0 | N40: ='Actual RAB roll forward'!N471 -> 0 | O40: ='Actual RAB roll forward'!O471 -> 0 | P40: ='Actual RAB roll forward'!P471 -> 0 | Q40: ='Actual RAB roll forward'!Q471 -> 0
D41: =Asset3 -> Metering | G41: ='Actual RAB roll forward'!G472 -> 0 | H41: ='Actual RAB roll forward'!H472 -> -0.004357426852 | I41: ='Actual RAB roll forward'!I472 -> 0 | J41: ='Actual RAB roll forward'!J472 -> 0 | K41: ='Actual RAB roll forward'!K472 -> 0 | L41: ='Actual RAB roll forward'!L472 -> 0 | M41: ='Actual RAB roll forward'!M472 -> 0 | N41: ='Actual RAB roll forward'!N472 -> 0 | O41: ='Actual RAB roll forward'!O472 -> 0 | P41: ='Actual RAB roll forward'!P472 -> 0 | Q41: ='Actual RAB roll forward'!Q472 -> 0
D42: =Asset4 -> Public Lighting | G42: ='Actual RAB roll forward'!G473 -> 0 | H42: ='Actual RAB roll forward'!H473 -> -0.05513553799 | I42: ='Actual RAB roll forward'!I473 -> -0.1156311063 | J42: ='Actual RAB roll forward'!J473 -> 0 | K42: ='Actual RAB roll forward'!K473 -> 0 | L42: ='Actual RAB roll forward'!L473 -> 0 | M42: ='Actual RAB roll forward'!M473 -> 0 | N42: ='Actual RAB roll forward'!N473 -> 0 | O42: ='Actual RAB roll forward'!O473 -> 0 | P42: ='Actual RAB roll forward'!P473 -> 0 | Q42: ='Actual RAB roll forward'!Q473 -> 0
D43: =Asset5 -> SCADA (5-year asset) | G43: ='Actual RAB roll forward'!G474 -> 0 | H43: ='Actual RAB roll forward'!H474 -> 1.052154658 | I43: ='Actual RAB roll forward'!I474 -> 4.713146703 | J43: ='Actual RAB roll forward'!J474 -> 2.146107406 | K43: ='Actual RAB roll forward'!K474 -> -0.05301190972 | L43: ='Actual RAB roll forward'!L474 -> 0 | M43: ='Actual RAB roll forward'!M474 -> 0 | N43: ='Actual RAB roll forward'!N474 -> 0 | O43: ='Actual RAB roll forward'!O474 -> 0 | P43: ='Actual RAB roll forward'!P474 -> 0 | Q43: ='Actual RAB roll forward'!Q474 -> 0
D44: =Asset6 -> Non network - IT | G44: ='Actual RAB roll forward'!G475 -> 9.42 | H44: ='Actual RAB roll forward'!H475 -> 52.23648042 | I44: ='Actual RAB roll forward'!I475 -> 11.95428433 | J44: ='Actual RAB roll forward'!J475 -> 8.621197855 | K44: ='Actual RAB roll forward'!K475 -> 24.77162113 | L44: ='Actual RAB roll forward'!L475 -> 25.44073685 | M44: ='Actual RAB roll forward'!M475 -> 0 | N44: ='Actual RAB roll forward'!N475 -> 0 | O44: ='Actual RAB roll forward'!O475 -> 0 | P44: ='Actual RAB roll forward'!P475 -> 0 | Q44: ='Actual RAB roll forward'!Q475 -> 0
D45: =Asset7 -> Non network - other | G45: ='Actual RAB roll forward'!G476 -> 3.05 | H45: ='Actual RAB roll forward'!H476 -> 9.725400403 | I45: ='Actual RAB roll forward'!I476 -> 13.06987729 | J45: ='Actual RAB roll forward'!J476 -> 8.668464626 | K45: ='Actual RAB roll forward'!K476 -> 4.008294309 | L45: ='Actual RAB roll forward'!L476 -> 3.747784054 | M45: ='Actual RAB roll forward'!M476 -> 0 | N45: ='Actual RAB roll forward'!N476 -> 0 | O45: ='Actual RAB roll forward'!O476 -> 0 | P45: ='Actual RAB roll forward'!P476 -> 0 | Q45: ='Actual RAB roll forward'!Q476 -> 0
D46: =Asset8 -> Neutral Screen Services | G46: ='Actual RAB roll forward'!G477 -> 0 | H46: ='Actual RAB roll forward'!H477 -> 0 | I46: ='Actual RAB roll forward'!I477 -> 0 | J46: ='Actual RAB roll forward'!J477 -> 0 | K46: ='Actual RAB roll forward'!K477 -> 0 | L46: ='Actual RAB roll forward'!L477 -> 0 | M46: ='Actual RAB roll forward'!M477 -> 0 | N46: ='Actual RAB roll forward'!N477 -> 0 | O46: ='Actual RAB roll forward'!O477 -> 0 | P46: ='Actual RAB roll forward'!P477 -> 0 | Q46: ='Actual RAB roll forward'!Q477 -> 0
D47: =Asset9 -> Distribution Transformers upgrades | G47: ='Actual RAB roll forward'!G478 -> 0 | H47: ='Actual RAB roll forward'!H478 -> 0 | I47: ='Actual RAB roll forward'!I478 -> 0 | J47: ='Actual RAB roll forward'!J478 -> 0 | K47: ='Actual RAB roll forward'!K478 -> 0 | L47: ='Actual RAB roll forward'!L478 -> 0 | M47: ='Actual RAB roll forward'!M478 -> 0 | N47: ='Actual RAB roll forward'!N478 -> 0 | O47: ='Actual RAB roll forward'!O478 -> 0 | P47: ='Actual RAB roll forward'!P478 -> 0 | Q47: ='Actual RAB roll forward'!Q478 -> 0
D48: =Asset10 -> Equity Raising Costs | G48: ='Actual RAB roll forward'!G479 -> 0 | H48: ='Actual RAB roll forward'!H479 -> 3.71178179 | I48: ='Actual RAB roll forward'!I479 -> 0 | J48: ='Actual RAB roll forward'!J479 -> 0 | K48: ='Actual RAB roll forward'!K479 -> 0 | L48: ='Actual RAB roll forward'!L479 -> 0 | M48: ='Actual RAB roll forward'!M479 -> 0 | N48: ='Actual RAB roll forward'!N479 -> 0 | O48: ='Actual RAB roll forward'!O479 -> 0 | P48: ='Actual RAB roll forward'!P479 -> 0 | Q48: ='Actual RAB roll forward'!Q479 -> 0
D49: =Asset11 -> 0 | G49: ='Actual RAB roll forward'!G480 -> 0 | H49: ='Actual RAB roll forward'!H480 -> 0 | I49: ='Actual RAB roll forward'!I480 -> 0 | J49: ='Actual RAB roll forward'!J480 -> 0 | K49: ='Actual RAB roll forward'!K480 -> 0 | L49: ='Actual RAB roll forward'!L480 -> 0 | M49: ='Actual RAB roll forward'!M480 -> 0 | N49: ='Actual RAB roll forward'!N480 -> 0 | O49: ='Actual RAB roll forward'!O480 -> 0 | P49: ='Actual RAB roll forward'!P480 -> 0 | Q49: ='Actual RAB roll forward'!Q480 -> 0
D50: =Asset12 -> 0 | G50: ='Actual RAB roll forward'!G481 -> 0 | H50: ='Actual RAB roll forward'!H481 -> 0 | I50: ='Actual RAB roll forward'!I481 -> 0 | J50: ='Actual RAB roll forward'!J481 -> 0 | K50: ='Actual RAB roll forward'!K481 -> 0 | L50: ='Actual RAB roll forward'!L481 -> 0 | M50: ='Actual RAB roll forward'!M481 -> 0 | N50: ='Actual RAB roll forward'!N481 -> 0 | O50: ='Actual RAB roll forward'!O481 -> 0 | P50: ='Actual RAB roll forward'!P481 -> 0 | Q50: ='Actual RAB roll forward'!Q481 -> 0
D51: =Asset13 -> 0 | G51: ='Actual RAB roll forward'!G482 -> 0 | H51: ='Actual RAB roll forward'!H482 -> 0 | I51: ='Actual RAB roll forward'!I482 -> 0 | J51: ='Actual RAB roll forward'!J482 -> 0 | K51: ='Actual RAB roll forward'!K482 -> 0 | L51: ='Actual RAB roll forward'!L482 -> 0 | M51: ='Actual RAB roll forward'!M482 -> 0 | N51: ='Actual RAB roll forward'!N482 -> 0 | O51: ='Actual RAB roll forward'!O482 -> 0 | P51: ='Actual RAB roll forward'!P482 -> 0 | Q51: ='Actual RAB roll forward'!Q482 -> 0
D52: =Asset14 -> 0 | G52: ='Actual RAB roll forward'!G483 -> 0 | H52: ='Actual RAB roll forward'!H483 -> 0 | I52: ='Actual RAB roll forward'!I483 -> 0 | J52: ='Actual RAB roll forward'!J483 -> 0 | K52: ='Actual RAB roll forward'!K483 -> 0 | L52: ='Actual RAB roll forward'!L483 -> 0 | M52: ='Actual RAB roll forward'!M483 -> 0 | N52: ='Actual RAB roll forward'!N483 -> 0 | O52: ='Actual RAB roll forward'!O483 -> 0 | P52: ='Actual RAB roll forward'!P483 -> 0 | Q52: ='Actual RAB roll forward'!Q483 -> 0
D53: =Asset15 -> 0 | G53: ='Actual RAB roll forward'!G484 -> 0 | H53: ='Actual RAB roll forward'!H484 -> 0 | I53: ='Actual RAB roll forward'!I484 -> 0 | J53: ='Actual RAB roll forward'!J484 -> 0 | K53: ='Actual RAB roll forward'!K484 -> 0 | L53: ='Actual RAB roll forward'!L484 -> 0 | M53: ='Actual RAB roll forward'!M484 -> 0 | N53: ='Actual RAB roll forward'!N484 -> 0 | O53: ='Actual RAB roll forward'!O484 -> 0 | P53: ='Actual RAB roll forward'!P484 -> 0 | Q53: ='Actual RAB roll forward'!Q484 -> 0
D54: =Asset16 -> 0 | G54: ='Actual RAB roll forward'!G485 -> 0 | H54: ='Actual RAB roll forward'!H485 -> 0 | I54: ='Actual RAB roll forward'!I485 -> 0 | J54: ='Actual RAB roll forward'!J485 -> 0 | K54: ='Actual RAB roll forward'!K485 -> 0 | L54: ='Actual RAB roll forward'!L485 -> 0 | M54: ='Actual RAB roll forward'!M485 -> 0 | N54: ='Actual RAB roll forward'!N485 -> 0 | O54: ='Actual RAB roll forward'!O485 -> 0 | P54: ='Actual RAB roll forward'!P485 -> 0 | Q54: ='Actual RAB roll forward'!Q485 -> 0
D55: =Asset17 -> 0 | G55: ='Actual RAB roll forward'!G486 -> 0 | H55: ='Actual RAB roll forward'!H486 -> 0 | I55: ='Actual RAB roll forward'!I486 -> 0 | J55: ='Actual RAB roll forward'!J486 -> 0 | K55: ='Actual RAB roll forward'!K486 -> 0 | L55: ='Actual RAB roll forward'!L486 -> 0 | M55: ='Actual RAB roll forward'!M486 -> 0 | N55: ='Actual RAB roll forward'!N486 -> 0 | O55: ='Actual RAB roll forward'!O486 -> 0 | P55: ='Actual RAB roll forward'!P486 -> 0 | Q55: ='Actual RAB roll forward'!Q486 -> 0
D56: =Asset18 -> 0 | G56: ='Actual RAB roll forward'!G487 -> 0 | H56: ='Actual RAB roll forward'!H487 -> 0 | I56: ='Actual RAB roll forward'!I487 -> 0 | J56: ='Actual RAB roll forward'!J487 -> 0 | K56: ='Actual RAB roll forward'!K487 -> 0 | L56: ='Actual RAB roll forward'!L487 -> 0 | M56: ='Actual RAB roll forward'!M487 -> 0 | N56: ='Actual RAB roll forward'!N487 -> 0 | O56: ='Actual RAB roll forward'!O487 -> 0 | P56: ='Actual RAB roll forward'!P487 -> 0 | Q56: ='Actual RAB roll forward'!Q487 -> 0
D57: =Asset19 -> 0 | G57: ='Actual RAB roll forward'!G488 -> 0 | H57: ='Actual RAB roll forward'!H488 -> 0 | I57: ='Actual RAB roll forward'!I488 -> 0 | J57: ='Actual RAB roll forward'!J488 -> 0 | K57: ='Actual RAB roll forward'!K488 -> 0 | L57: ='Actual RAB roll forward'!L488 -> 0 | M57: ='Actual RAB roll forward'!M488 -> 0 | N57: ='Actual RAB roll forward'!N488 -> 0 | O57: ='Actual RAB roll forward'!O488 -> 0 | P57: ='Actual RAB roll forward'!P488 -> 0 | Q57: ='Actual RAB roll forward'!Q488 -> 0
D58: =Asset20 -> 0 | G58: ='Actual RAB roll forward'!G489 -> 0 | H58: ='Actual RAB roll forward'!H489 -> 0 | I58: ='Actual RAB roll forward'!I489 -> 0 | J58: ='Actual RAB roll forward'!J489 -> 0 | K58: ='Actual RAB roll forward'!K489 -> 0 | L58: ='Actual RAB roll forward'!L489 -> 0 | M58: ='Actual RAB roll forward'!M489 -> 0 | N58: ='Actual RAB roll forward'!N489 -> 0 | O58: ='Actual RAB roll forward'!O489 -> 0 | P58: ='Actual RAB roll forward'!P489 -> 0 | Q58: ='Actual RAB roll forward'!Q489 -> 0
D59: =Asset21 -> 0 | G59: ='Actual RAB roll forward'!G490 -> 0 | H59: ='Actual RAB roll forward'!H490 -> 0 | I59: ='Actual RAB roll forward'!I490 -> 0 | J59: ='Actual RAB roll forward'!J490 -> 0 | K59: ='Actual RAB roll forward'!K490 -> 0 | L59: ='Actual RAB roll forward'!L490 -> 0 | M59: ='Actual RAB roll forward'!M490 -> 0 | N59: ='Actual RAB roll forward'!N490 -> 0 | O59: ='Actual RAB roll forward'!O490 -> 0 | P59: ='Actual RAB roll forward'!P490 -> 0 | Q59: ='Actual RAB roll forward'!Q490 -> 0
D60: =Asset22 -> 0 | G60: ='Actual RAB roll forward'!G491 -> 0 | H60: ='Actual RAB roll forward'!H491 -> 0 | I60: ='Actual RAB roll forward'!I491 -> 0 | J60: ='Actual RAB roll forward'!J491 -> 0 | K60: ='Actual RAB roll forward'!K491 -> 0 | L60: ='Actual RAB roll forward'!L491 -> 0 | M60: ='Actual RAB roll forward'!M491 -> 0 | N60: ='Actual RAB roll forward'!N491 -> 0 | O60: ='Actual RAB roll forward'!O491 -> 0 | P60: ='Actual RAB roll forward'!P491 -> 0 | Q60: ='Actual RAB roll forward'!Q491 -> 0
D61: =Asset23 -> 0 | G61: ='Actual RAB roll forward'!G492 -> 0 | H61: ='Actual RAB roll forward'!H492 -> 0 | I61: ='Actual RAB roll forward'!I492 -> 0 | J61: ='Actual RAB roll forward'!J492 -> 0 | K61: ='Actual RAB roll forward'!K492 -> 0 | L61: ='Actual RAB roll forward'!L492 -> 0 | M61: ='Actual RAB roll forward'!M492 -> 0 | N61: ='Actual RAB roll forward'!N492 -> 0 | O61: ='Actual RAB roll forward'!O492 -> 0 | P61: ='Actual RAB roll forward'!P492 -> 0 | Q61: ='Actual RAB roll forward'!Q492 -> 0
D62: =Asset24 -> 0 | G62: ='Actual RAB roll forward'!G493 -> 0 | H62: ='Actual RAB roll forward'!H493 -> 0 | I62: ='Actual RAB roll forward'!I493 -> 0 | J62: ='Actual RAB roll forward'!J493 -> 0 | K62: ='Actual RAB roll forward'!K493 -> 0 | L62: ='Actual RAB roll forward'!L493 -> 0 | M62: ='Actual RAB roll forward'!M493 -> 0 | N62: ='Actual RAB roll forward'!N493 -> 0 | O62: ='Actual RAB roll forward'!O493 -> 0 | P62: ='Actual RAB roll forward'!P493 -> 0 | Q62: ='Actual RAB roll forward'!Q493 -> 0
D63: =Asset25 -> 0 | G63: ='Actual RAB roll forward'!G494 -> 0 | H63: ='Actual RAB roll forward'!H494 -> 0 | I63: ='Actual RAB roll forward'!I494 -> 0 | J63: ='Actual RAB roll forward'!J494 -> 0 | K63: ='Actual RAB roll forward'!K494 -> 0 | L63: ='Actual RAB roll forward'!L494 -> 0 | M63: ='Actual RAB roll forward'!M494 -> 0 | N63: ='Actual RAB roll forward'!N494 -> 0 | O63: ='Actual RAB roll forward'!O494 -> 0 | P63: ='Actual RAB roll forward'!P494 -> 0 | Q63: ='Actual RAB roll forward'!Q494 -> 0
D64: =Asset26 -> 0 | G64: ='Actual RAB roll forward'!G495 -> 0 | H64: ='Actual RAB roll forward'!H495 -> 0 | I64: ='Actual RAB roll forward'!I495 -> 0 | J64: ='Actual RAB roll forward'!J495 -> 0 | K64: ='Actual RAB roll forward'!K495 -> 0 | L64: ='Actual RAB roll forward'!L495 -> 0 | M64: ='Actual RAB roll forward'!M495 -> 0 | N64: ='Actual RAB roll forward'!N495 -> 0 | O64: ='Actual RAB roll forward'!O495 -> 0 | P64: ='Actual RAB roll forward'!P495 -> 0 | Q64: ='Actual RAB roll forward'!Q495 -> 0
D65: =Asset27 -> 0 | G65: ='Actual RAB roll forward'!G496 -> 0 | H65: ='Actual RAB roll forward'!H496 -> 0 | I65: ='Actual RAB roll forward'!I496 -> 0 | J65: ='Actual RAB roll forward'!J496 -> 0 | K65: ='Actual RAB roll forward'!K496 -> 0 | L65: ='Actual RAB roll forward'!L496 -> 0 | M65: ='Actual RAB roll forward'!M496 -> 0 | N65: ='Actual RAB roll forward'!N496 -> 0 | O65: ='Actual RAB roll forward'!O496 -> 0 | P65: ='Actual RAB roll forward'!P496 -> 0 | Q65: ='Actual RAB roll forward'!Q496 -> 0
D66: =Asset28 -> 0 | G66: ='Actual RAB roll forward'!G497 -> 0 | H66: ='Actual RAB roll forward'!H497 -> 0 | I66: ='Actual RAB roll forward'!I497 -> 0 | J66: ='Actual RAB roll forward'!J497 -> 0 | K66: ='Actual RAB roll forward'!K497 -> 0 | L66: ='Actual RAB roll forward'!L497 -> 0 | M66: ='Actual RAB roll forward'!M497 -> 0 | N66: ='Actual RAB roll forward'!N497 -> 0 | O66: ='Actual RAB roll forward'!O497 -> 0 | P66: ='Actual RAB roll forward'!P497 -> 0 | Q66: ='Actual RAB roll forward'!Q497 -> 0
D67: =Asset29 -> 0 | G67: ='Actual RAB roll forward'!G498 -> 0 | H67: ='Actual RAB roll forward'!H498 -> 0 | I67: ='Actual RAB roll forward'!I498 -> 0 | J67: ='Actual RAB roll forward'!J498 -> 0 | K67: ='Actual RAB roll forward'!K498 -> 0 | L67: ='Actual RAB roll forward'!L498 -> 0 | M67: ='Actual RAB roll forward'!M498 -> 0 | N67: ='Actual RAB roll forward'!N498 -> 0 | O67: ='Actual RAB roll forward'!O498 -> 0 | P67: ='Actual RAB roll forward'!P498 -> 0 | Q67: ='Actual RAB roll forward'!Q498 -> 0
D68: =Asset30 -> 0 | G68: ='Actual RAB roll forward'!G499 -> 0 | H68: ='Actual RAB roll forward'!H499 -> 0 | I68: ='Actual RAB roll forward'!I499 -> 0 | J68: ='Actual RAB roll forward'!J499 -> 0 | K68: ='Actual RAB roll forward'!K499 -> 0 | L68: ='Actual RAB roll forward'!L499 -> 0 | M68: ='Actual RAB roll forward'!M499 -> 0 | N68: ='Actual RAB roll forward'!N499 -> 0 | O68: ='Actual RAB roll forward'!O499 -> 0 | P68: ='Actual RAB roll forward'!P499 -> 0 | Q68: ='Actual RAB roll forward'!Q499 -> 0
C70: Nominal Actual Regulatory Depreciation | G70: =SUM(G71:G100) -> -64.92347092 | H70: =SUM(H71:H100) -> -38.22604851 | I70: =SUM(I71:I100) -> -41.32297747 | J70: -72.48182705 | K70: -77.40009835 | L70: -84.72304121 | M70: 0 | N70: 0 | O70: 0 | P70: 0 | Q70: 0
D71: =Asset1 -> Subtransmission | G71: ='Actual RAB roll forward'!G502 -> -2.213820802 | H71: ='Actual RAB roll forward'!H502 -> -5.624817678 | I71: ='Actual RAB roll forward'!I502 -> -3.230119887 | J71: ='Actual RAB roll forward'!J502 -> -9.425605659 | K71: ='Actual RAB roll forward'!K502 -> -9.154346734 | L71: ='Actual RAB roll forward'!L502 -> -8.867705774 | M71: ='Actual RAB roll forward'!M502 -> 0 | N71: ='Actual RAB roll forward'!N502 -> 0 | O71: ='Actual RAB roll forward'!O502 -> 0 | P71: ='Actual RAB roll forward'!P502 -> 0 | Q71: ='Actual RAB roll forward'!Q502 -> 0
D72: =Asset2 -> Distribution system assets | G72: ='Actual RAB roll forward'!G503 -> -31.14929528 | H72: ='Actual RAB roll forward'!H503 -> -13.39579477 | I72: ='Actual RAB roll forward'!I503 -> -8.106818297 | J72: ='Actual RAB roll forward'!J503 -> -24.8434976 | K72: ='Actual RAB roll forward'!K503 -> -25.59721495 | L72: ='Actual RAB roll forward'!L503 -> -26.42867827 | M72: ='Actual RAB roll forward'!M503 -> 0 | N72: ='Actual RAB roll forward'!N503 -> 0 | O72: ='Actual RAB roll forward'!O503 -> 0 | P72: ='Actual RAB roll forward'!P503 -> 0 | Q72: ='Actual RAB roll forward'!Q503 -> 0
D73: =Asset3 -> Metering | G73: ='Actual RAB roll forward'!G504 -> -3.683380237 | H73: ='Actual RAB roll forward'!H504 -> -8.344668066 | I73: ='Actual RAB roll forward'!I504 -> -8.634199282 | J73: ='Actual RAB roll forward'!J504 -> -9.591961006 | K73: ='Actual RAB roll forward'!K504 -> -9.972436541 | L73: ='Actual RAB roll forward'!L504 -> -10.41298688 | M73: ='Actual RAB roll forward'!M504 -> 0 | N73: ='Actual RAB roll forward'!N504 -> 0 | O73: ='Actual RAB roll forward'!O504 -> 0 | P73: ='Actual RAB roll forward'!P504 -> 0 | Q73: ='Actual RAB roll forward'!Q504 -> 0
D74: =Asset4 -> Public Lighting | G74: ='Actual RAB roll forward'!G505 -> -0.4516476664 | H74: ='Actual RAB roll forward'!H505 -> -0.5983315473 | I74: ='Actual RAB roll forward'!I505 -> -0.6096698204 | J74: ='Actual RAB roll forward'!J505 -> -0.655824904 | K74: ='Actual RAB roll forward'!K505 -> -0.6819085611 | L74: ='Actual RAB roll forward'!L505 -> -0.7120924431 | M74: ='Actual RAB roll forward'!M505 -> 0 | N74: ='Actual RAB roll forward'!N505 -> 0 | O74: ='Actual RAB roll forward'!O505 -> 0 | P74: ='Actual RAB roll forward'!P505 -> 0 | Q74: ='Actual RAB roll forward'!Q505 -> 0
D75: =Asset5 -> SCADA (5-year asset) | G75: ='Actual RAB roll forward'!G506 -> 0 | H75: ='Actual RAB roll forward'!H506 -> -3.945703656e-17 | I75: ='Actual RAB roll forward'!I506 -> -0.1808208212 | J75: ='Actual RAB roll forward'!J506 -> -1.07180513 | K75: ='Actual RAB roll forward'!K506 -> -1.503894331 | L75: ='Actual RAB roll forward'!L506 -> -1.557240725 | M75: ='Actual RAB roll forward'!M506 -> 0 | N75: ='Actual RAB roll forward'!N506 -> 0 | O75: ='Actual RAB roll forward'!O506 -> 0 | P75: ='Actual RAB roll forward'!P506 -> 0 | Q75: ='Actual RAB roll forward'!Q506 -> 0
D76: =Asset6 -> Non network - IT | G76: ='Actual RAB roll forward'!G507 -> -23.97510408 | H76: ='Actual RAB roll forward'!H507 -> -9.154032481e-15 | I76: ='Actual RAB roll forward'!I507 -> -8.977238487 | J76: ='Actual RAB roll forward'!J507 -> -12.36382649 | K76: ='Actual RAB roll forward'!K507 -> -14.41058132 | L76: ='Actual RAB roll forward'!L507 -> -19.52290412 | M76: ='Actual RAB roll forward'!M507 -> 0 | N76: ='Actual RAB roll forward'!N507 -> 0 | O76: ='Actual RAB roll forward'!O507 -> 0 | P76: ='Actual RAB roll forward'!P507 -> 0 | Q76: ='Actual RAB roll forward'!Q507 -> 0
D77: =Asset7 -> Non network - other | G77: ='Actual RAB roll forward'!G508 -> -3.450222858 | H77: ='Actual RAB roll forward'!H508 -> -4.566482477 | I77: ='Actual RAB roll forward'!I508 -> -5.725549883 | J77: ='Actual RAB roll forward'!J508 -> -7.959541947 | K77: ='Actual RAB roll forward'!K508 -> -9.253541654 | L77: ='Actual RAB roll forward'!L508 -> -10.09726751 | M77: ='Actual RAB roll forward'!M508 -> 0 | N77: ='Actual RAB roll forward'!N508 -> 0 | O77: ='Actual RAB roll forward'!O508 -> 0 | P77: ='Actual RAB roll forward'!P508 -> 0 | Q77: ='Actual RAB roll forward'!Q508 -> 0
D78: =Asset8 -> Neutral Screen Services | G78: ='Actual RAB roll forward'!G509 -> 0 | H78: ='Actual RAB roll forward'!H509 -> -4.660325979 | I78: ='Actual RAB roll forward'!I509 -> -4.822441446 | J78: ='Actual RAB roll forward'!J509 -> -5.357387043 | K78: ='Actual RAB roll forward'!K509 -> -5.569893001 | L78: ='Actual RAB roll forward'!L509 -> -5.815952531 | M78: ='Actual RAB roll forward'!M509 -> 0 | N78: ='Actual RAB roll forward'!N509 -> 0 | O78: ='Actual RAB roll forward'!O509 -> 0 | P78: ='Actual RAB roll forward'!P509 -> 0 | Q78: ='Actual RAB roll forward'!Q509 -> 0
D79: =Asset9 -> Distribution Transformers upgrades | G79: ='Actual RAB roll forward'!G510 -> 0 | H79: ='Actual RAB roll forward'!H510 -> -1.035627995 | I79: ='Actual RAB roll forward'!I510 -> -1.071653655 | J79: ='Actual RAB roll forward'!J510 -> -1.190530454 | K79: ='Actual RAB roll forward'!K510 -> -1.237754 | L79: ='Actual RAB roll forward'!L510 -> -1.292433896 | M79: ='Actual RAB roll forward'!M510 -> 0 | N79: ='Actual RAB roll forward'!N510 -> 0 | O79: ='Actual RAB roll forward'!O510 -> 0 | P79: ='Actual RAB roll forward'!P510 -> 0 | Q79: ='Actual RAB roll forward'!Q510 -> 0
D80: =Asset10 -> Equity Raising Costs | G80: ='Actual RAB roll forward'!G511 -> 0 | H80: ='Actual RAB roll forward'!H511 -> 0 | I80: ='Actual RAB roll forward'!I511 -> 0.03553410924 | J80: ='Actual RAB roll forward'!J511 -> -0.02184681674 | K80: ='Actual RAB roll forward'!K511 -> -0.01852725053 | L80: ='Actual RAB roll forward'!L511 -> -0.01577905954 | M80: ='Actual RAB roll forward'!M511 -> 0 | N80: ='Actual RAB roll forward'!N511 -> 0 | O80: ='Actual RAB roll forward'!O511 -> 0 | P80: ='Actual RAB roll forward'!P511 -> 0 | Q80: ='Actual RAB roll forward'!Q511 -> 0
D81: =Asset11 -> 0 | G81: ='Actual RAB roll forward'!G512 -> 0 | H81: ='Actual RAB roll forward'!H512 -> 0 | I81: ='Actual RAB roll forward'!I512 -> 0 | J81: ='Actual RAB roll forward'!J512 -> 0 | K81: ='Actual RAB roll forward'!K512 -> 0 | L81: ='Actual RAB roll forward'!L512 -> 0 | M81: ='Actual RAB roll forward'!M512 -> 0 | N81: ='Actual RAB roll forward'!N512 -> 0 | O81: ='Actual RAB roll forward'!O512 -> 0 | P81: ='Actual RAB roll forward'!P512 -> 0 | Q81: ='Actual RAB roll forward'!Q512 -> 0
D82: =Asset12 -> 0 | G82: ='Actual RAB roll forward'!G513 -> 0 | H82: ='Actual RAB roll forward'!H513 -> 0 | I82: ='Actual RAB roll forward'!I513 -> 0 | J82: ='Actual RAB roll forward'!J513 -> 0 | K82: ='Actual RAB roll forward'!K513 -> 0 | L82: ='Actual RAB roll forward'!L513 -> 0 | M82: ='Actual RAB roll forward'!M513 -> 0 | N82: ='Actual RAB roll forward'!N513 -> 0 | O82: ='Actual RAB roll forward'!O513 -> 0 | P82: ='Actual RAB roll forward'!P513 -> 0 | Q82: ='Actual RAB roll forward'!Q513 -> 0
D83: =Asset13 -> 0 | G83: ='Actual RAB roll forward'!G514 -> 0 | H83: ='Actual RAB roll forward'!H514 -> 0 | I83: ='Actual RAB roll forward'!I514 -> 0 | J83: ='Actual RAB roll forward'!J514 -> 0 | K83: ='Actual RAB roll forward'!K514 -> 0 | L83: ='Actual RAB roll forward'!L514 -> 0 | M83: ='Actual RAB roll forward'!M514 -> 0 | N83: ='Actual RAB roll forward'!N514 -> 0 | O83: ='Actual RAB roll forward'!O514 -> 0 | P83: ='Actual RAB roll forward'!P514 -> 0 | Q83: ='Actual RAB roll forward'!Q514 -> 0
D84: =Asset14 -> 0 | G84: ='Actual RAB roll forward'!G515 -> 0 | H84: ='Actual RAB roll forward'!H515 -> 0 | I84: ='Actual RAB roll forward'!I515 -> 0 | J84: ='Actual RAB roll forward'!J515 -> 0 | K84: ='Actual RAB roll forward'!K515 -> 0 | L84: ='Actual RAB roll forward'!L515 -> 0 | M84: ='Actual RAB roll forward'!M515 -> 0 | N84: ='Actual RAB roll forward'!N515 -> 0 | O84: ='Actual RAB roll forward'!O515 -> 0 | P84: ='Actual RAB roll forward'!P515 -> 0 | Q84: ='Actual RAB roll forward'!Q515 -> 0
D85: =Asset15 -> 0 | G85: ='Actual RAB roll forward'!G516 -> 0 | H85: ='Actual RAB roll forward'!H516 -> 0 | I85: ='Actual RAB roll forward'!I516 -> 0 | J85: ='Actual RAB roll forward'!J516 -> 0 | K85: ='Actual RAB roll forward'!K516 -> 0 | L85: ='Actual RAB roll forward'!L516 -> 0 | M85: ='Actual RAB roll forward'!M516 -> 0 | N85: ='Actual RAB roll forward'!N516 -> 0 | O85: ='Actual RAB roll forward'!O516 -> 0 | P85: ='Actual RAB roll forward'!P516 -> 0 | Q85: ='Actual RAB roll forward'!Q516 -> 0
D86: =Asset16 -> 0 | G86: ='Actual RAB roll forward'!G517 -> 0 | H86: ='Actual RAB roll forward'!H517 -> 0 | I86: ='Actual RAB roll forward'!I517 -> 0 | J86: ='Actual RAB roll forward'!J517 -> 0 | K86: ='Actual RAB roll forward'!K517 -> 0 | L86: ='Actual RAB roll forward'!L517 -> 0 | M86: ='Actual RAB roll forward'!M517 -> 0 | N86: ='Actual RAB roll forward'!N517 -> 0 | O86: ='Actual RAB roll forward'!O517 -> 0 | P86: ='Actual RAB roll forward'!P517 -> 0 | Q86: ='Actual RAB roll forward'!Q517 -> 0
D87: =Asset17 -> 0 | G87: ='Actual RAB roll forward'!G518 -> 0 | H87: ='Actual RAB roll forward'!H518 -> 0 | I87: ='Actual RAB roll forward'!I518 -> 0 | J87: ='Actual RAB roll forward'!J518 -> 0 | K87: ='Actual RAB roll forward'!K518 -> 0 | L87: ='Actual RAB roll forward'!L518 -> 0 | M87: ='Actual RAB roll forward'!M518 -> 0 | N87: ='Actual RAB roll forward'!N518 -> 0 | O87: ='Actual RAB roll forward'!O518 -> 0 | P87: ='Actual RAB roll forward'!P518 -> 0 | Q87: ='Actual RAB roll forward'!Q518 -> 0
D88: =Asset18 -> 0 | G88: ='Actual RAB roll forward'!G519 -> 0 | H88: ='Actual RAB roll forward'!H519 -> 0 | I88: ='Actual RAB roll forward'!I519 -> 0 | J88: ='Actual RAB roll forward'!J519 -> 0 | K88: ='Actual RAB roll forward'!K519 -> 0 | L88: ='Actual RAB roll forward'!L519 -> 0 | M88: ='Actual RAB roll forward'!M519 -> 0 | N88: ='Actual RAB roll forward'!N519 -> 0 | O88: ='Actual RAB roll forward'!O519 -> 0 | P88: ='Actual RAB roll forward'!P519 -> 0 | Q88: ='Actual RAB roll forward'!Q519 -> 0
D89: =Asset19 -> 0 | G89: ='Actual RAB roll forward'!G520 -> 0 | H89: ='Actual RAB roll forward'!H520 -> 0 | I89: ='Actual RAB roll forward'!I520 -> 0 | J89: ='Actual RAB roll forward'!J520 -> 0 | K89: ='Actual RAB roll forward'!K520 -> 0 | L89: ='Actual RAB roll forward'!L520 -> 0 | M89: ='Actual RAB roll forward'!M520 -> 0 | N89: ='Actual RAB roll forward'!N520 -> 0 | O89: ='Actual RAB roll forward'!O520 -> 0 | P89: ='Actual RAB roll forward'!P520 -> 0 | Q89: ='Actual RAB roll forward'!Q520 -> 0
D90: =Asset20 -> 0 | G90: ='Actual RAB roll forward'!G521 -> 0 | H90: ='Actual RAB roll forward'!H521 -> 0 | I90: ='Actual RAB roll forward'!I521 -> 0 | J90: ='Actual RAB roll forward'!J521 -> 0 | K90: ='Actual RAB roll forward'!K521 -> 0 | L90: ='Actual RAB roll forward'!L521 -> 0 | M90: ='Actual RAB roll forward'!M521 -> 0 | N90: ='Actual RAB roll forward'!N521 -> 0 | O90: ='Actual RAB roll forward'!O521 -> 0 | P90: ='Actual RAB roll forward'!P521 -> 0 | Q90: ='Actual RAB roll forward'!Q521 -> 0
D91: =Asset21 -> 0 | G91: ='Actual RAB roll forward'!G522 -> 0 | H91: ='Actual RAB roll forward'!H522 -> 0 | I91: ='Actual RAB roll forward'!I522 -> 0 | J91: ='Actual RAB roll forward'!J522 -> 0 | K91: ='Actual RAB roll forward'!K522 -> 0 | L91: ='Actual RAB roll forward'!L522 -> 0 | M91: ='Actual RAB roll forward'!M522 -> 0 | N91: ='Actual RAB roll forward'!N522 -> 0 | O91: ='Actual RAB roll forward'!O522 -> 0 | P91: ='Actual RAB roll forward'!P522 -> 0 | Q91: ='Actual RAB roll forward'!Q522 -> 0
D92: =Asset22 -> 0 | G92: ='Actual RAB roll forward'!G523 -> 0 | H92: ='Actual RAB roll forward'!H523 -> 0 | I92: ='Actual RAB roll forward'!I523 -> 0 | J92: ='Actual RAB roll forward'!J523 -> 0 | K92: ='Actual RAB roll forward'!K523 -> 0 | L92: ='Actual RAB roll forward'!L523 -> 0 | M92: ='Actual RAB roll forward'!M523 -> 0 | N92: ='Actual RAB roll forward'!N523 -> 0 | O92: ='Actual RAB roll forward'!O523 -> 0 | P92: ='Actual RAB roll forward'!P523 -> 0 | Q92: ='Actual RAB roll forward'!Q523 -> 0
D93: =Asset23 -> 0 | G93: ='Actual RAB roll forward'!G524 -> 0 | H93: ='Actual RAB roll forward'!H524 -> 0 | I93: ='Actual RAB roll forward'!I524 -> 0 | J93: ='Actual RAB roll forward'!J524 -> 0 | K93: ='Actual RAB roll forward'!K524 -> 0 | L93: ='Actual RAB roll forward'!L524 -> 0 | M93: ='Actual RAB roll forward'!M524 -> 0 | N93: ='Actual RAB roll forward'!N524 -> 0 | O93: ='Actual RAB roll forward'!O524 -> 0 | P93: ='Actual RAB roll forward'!P524 -> 0 | Q93: ='Actual RAB roll forward'!Q524 -> 0
D94: =Asset24 -> 0 | G94: ='Actual RAB roll forward'!G525 -> 0 | H94: ='Actual RAB roll forward'!H525 -> 0 | I94: ='Actual RAB roll forward'!I525 -> 0 | J94: ='Actual RAB roll forward'!J525 -> 0 | K94: ='Actual RAB roll forward'!K525 -> 0 | L94: ='Actual RAB roll forward'!L525 -> 0 | M94: ='Actual RAB roll forward'!M525 -> 0 | N94: ='Actual RAB roll forward'!N525 -> 0 | O94: ='Actual RAB roll forward'!O525 -> 0 | P94: ='Actual RAB roll forward'!P525 -> 0 | Q94: ='Actual RAB roll forward'!Q525 -> 0
D95: =Asset25 -> 0 | G95: ='Actual RAB roll forward'!G526 -> 0 | H95: ='Actual RAB roll forward'!H526 -> 0 | I95: ='Actual RAB roll forward'!I526 -> 0 | J95: ='Actual RAB roll forward'!J526 -> 0 | K95: ='Actual RAB roll forward'!K526 -> 0 | L95: ='Actual RAB roll forward'!L526 -> 0 | M95: ='Actual RAB roll forward'!M526 -> 0 | N95: ='Actual RAB roll forward'!N526 -> 0 | O95: ='Actual RAB roll forward'!O526 -> 0 | P95: ='Actual RAB roll forward'!P526 -> 0 | Q95: ='Actual RAB roll forward'!Q526 -> 0
D96: =Asset26 -> 0 | G96: ='Actual RAB roll forward'!G527 -> 0 | H96: ='Actual RAB roll forward'!H527 -> 0 | I96: ='Actual RAB roll forward'!I527 -> 0 | J96: ='Actual RAB roll forward'!J527 -> 0 | K96: ='Actual RAB roll forward'!K527 -> 0 | L96: ='Actual RAB roll forward'!L527 -> 0 | M96: ='Actual RAB roll forward'!M527 -> 0 | N96: ='Actual RAB roll forward'!N527 -> 0 | O96: ='Actual RAB roll forward'!O527 -> 0 | P96: ='Actual RAB roll forward'!P527 -> 0 | Q96: ='Actual RAB roll forward'!Q527 -> 0
D97: =Asset27 -> 0 | G97: ='Actual RAB roll forward'!G528 -> 0 | H97: ='Actual RAB roll forward'!H528 -> 0 | I97: ='Actual RAB roll forward'!I528 -> 0 | J97: ='Actual RAB roll forward'!J528 -> 0 | K97: ='Actual RAB roll forward'!K528 -> 0 | L97: ='Actual RAB roll forward'!L528 -> 0 | M97: ='Actual RAB roll forward'!M528 -> 0 | N97: ='Actual RAB roll forward'!N528 -> 0 | O97: ='Actual RAB roll forward'!O528 -> 0 | P97: ='Actual RAB roll forward'!P528 -> 0 | Q97: ='Actual RAB roll forward'!Q528 -> 0
D98: =Asset28 -> 0 | G98: ='Actual RAB roll forward'!G529 -> 0 | H98: ='Actual RAB roll forward'!H529 -> 0 | I98: ='Actual RAB roll forward'!I529 -> 0 | J98: ='Actual RAB roll forward'!J529 -> 0 | K98: ='Actual RAB roll forward'!K529 -> 0 | L98: ='Actual RAB roll forward'!L529 -> 0 | M98: ='Actual RAB roll forward'!M529 -> 0 | N98: ='Actual RAB roll forward'!N529 -> 0 | O98: ='Actual RAB roll forward'!O529 -> 0 | P98: ='Actual RAB roll forward'!P529 -> 0 | Q98: ='Actual RAB roll forward'!Q529 -> 0
D99: =Asset29 -> 0 | G99: ='Actual RAB roll forward'!G530 -> 0 | H99: ='Actual RAB roll forward'!H530 -> 0 | I99: ='Actual RAB roll forward'!I530 -> 0 | J99: ='Actual RAB roll forward'!J530 -> 0 | K99: ='Actual RAB roll forward'!K530 -> 0 | L99: ='Actual RAB roll forward'!L530 -> 0 | M99: ='Actual RAB roll forward'!M530 -> 0 | N99: ='Actual RAB roll forward'!N530 -> 0 | O99: ='Actual RAB roll forward'!O530 -> 0 | P99: ='Actual RAB roll forward'!P530 -> 0 | Q99: ='Actual RAB roll forward'!Q530 -> 0
D100: =Asset30 -> 0 | G100: ='Actual RAB roll forward'!G531 -> 0 | H100: ='Actual RAB roll forward'!H531 -> 0 | I100: ='Actual RAB roll forward'!I531 -> 0 | J100: ='Actual RAB roll forward'!J531 -> 0 | K100: ='Actual RAB roll forward'!K531 -> 0 | L100: ='Actual RAB roll forward'!L531 -> 0 | M100: ='Actual RAB roll forward'!M531 -> 0 | N100: ='Actual RAB roll forward'!N531 -> 0 | O100: ='Actual RAB roll forward'!O531 -> 0 | P100: ='Actual RAB roll forward'!P531 -> 0 | Q100: ='Actual RAB roll forward'!Q531 -> 0
C102: Nominal Prudent Additional Capex Allowance | G102: =SUM(G103:G122) -> -92.12523625
D103: =Asset1 -> Subtransmission | G103: ='Actual RAB roll forward'!G534 -> 10.8405184
D104: =Asset2 -> Distribution system assets | G104: ='Actual RAB roll forward'!G535 -> -102.7461457
D105: =Asset3 -> Metering | G105: ='Actual RAB roll forward'!G536 -> -1.468898036
D106: =Asset4 -> Public Lighting | G106: ='Actual RAB roll forward'!G537 -> 0
D107: =Asset5 -> SCADA (5-year asset) | G107: ='Actual RAB roll forward'!G538 -> -0.5207156611
D108: =Asset6 -> Non network - IT | G108: ='Actual RAB roll forward'!G539 -> 2.954426762
D109: =Asset7 -> Non network - other | G109: ='Actual RAB roll forward'!G540 -> -1.184421978
D110: =Asset8 -> Neutral Screen Services | G110: ='Actual RAB roll forward'!G541 -> 0
D111: =Asset9 -> Distribution Transformers upgrades | G111: ='Actual RAB roll forward'!G542 -> 0
D112: =Asset10 -> Equity Raising Costs | G112: ='Actual RAB roll forward'!G543 -> 0
D113: =Asset11 -> 0 | G113: ='Actual RAB roll forward'!G544 -> 0
D114: =Asset12 -> 0 | G114: ='Actual RAB roll forward'!G545 -> 0
D115: =Asset13 -> 0 | G115: ='Actual RAB roll forward'!G546 -> 0
D116: =Asset14 -> 0 | G116: ='Actual RAB roll forward'!G547 -> 0
D117: =Asset15 -> 0 | G117: ='Actual RAB roll forward'!G548 -> 0
D118: =Asset16 -> 0 | G118: ='Actual RAB roll forward'!G549 -> 0
D119: =Asset17 -> 0 | G119: ='Actual RAB roll forward'!G550 -> 0
D120: =Asset18 -> 0 | G120: ='Actual RAB roll forward'!G551 -> 0
D121: =Asset19 -> 0 | G121: ='Actual RAB roll forward'!G552 -> 0
D122: =Asset20 -> 0 | G122: ='Actual RAB roll forward'!G553 -> 0
D123: =Asset21 -> 0 | G123: ='Actual RAB roll forward'!G554 -> 0
D124: =Asset22 -> 0 | G124: ='Actual RAB roll forward'!G555 -> 0
D125: =Asset23 -> 0 | G125: ='Actual RAB roll forward'!G556 -> 0
D126: =Asset24 -> 0 | G126: ='Actual RAB roll forward'!G557 -> 0
D127: =Asset25 -> 0 | G127: ='Actual RAB roll forward'!G558 -> 0
D128: =Asset26 -> 0 | G128: ='Actual RAB roll forward'!G559 -> 0
D129: =Asset27 -> 0 | G129: ='Actual RAB roll forward'!G560 -> 0
D130: =Asset28 -> 0 | G130: ='Actual RAB roll forward'!G561 -> 0
D131: =Asset29 -> 0 | G131: ='Actual RAB roll forward'!G562 -> 0
D132: =Asset30 -> 0 | G132: ='Actual RAB roll forward'!G563 -> 0
C134: Nominal Foregone Return on Prudent Additional Capex | G134: =SUM(G135:G154) -> 13.19366567
D135: =Asset1 -> Subtransmission | G135: ='Actual RAB roll forward'!G566 -> 5.902085981
D136: =Asset2 -> Distribution system assets | G136: ='Actual RAB roll forward'!G567 -> -33.60739812
D137: =Asset3 -> Metering | G137: ='Actual RAB roll forward'!G568 -> -0.7997368932
D138: =Asset4 -> Public Lighting | G138: ='Actual RAB roll forward'!G569 -> 0
D139: =Asset5 -> SCADA (5-year asset) | G139: ='Actual RAB roll forward'!G570 -> 0.5207156611
D140: =Asset6 -> Non network - IT | G140: ='Actual RAB roll forward'!G571 -> 9.76885384
D141: =Asset7 -> Non network - other | G141: ='Actual RAB roll forward'!G572 -> -0.6448548028
D142: =Asset8 -> Neutral Screen Services | G142: ='Actual RAB roll forward'!G573 -> 26.226
D143: =Asset9 -> Distribution Transformers upgrades | G143: ='Actual RAB roll forward'!G574 -> 5.828
D144: =Asset10 -> Equity Raising Costs | G144: ='Actual RAB roll forward'!G575 -> 0
D145: =Asset11 -> 0 | G145: ='Actual RAB roll forward'!G576 -> 0
D146: =Asset12 -> 0 | G146: ='Actual RAB roll forward'!G577 -> 0
D147: =Asset13 -> 0 | G147: ='Actual RAB roll forward'!G578 -> 0
D148: =Asset14 -> 0 | G148: ='Actual RAB roll forward'!G579 -> 0
D149: =Asset15 -> 0 | G149: ='Actual RAB roll forward'!G580 -> 0
D150: =Asset16 -> 0 | G150: ='Actual RAB roll forward'!G581 -> 0
D151: =Asset17 -> 0 | G151: ='Actual RAB roll forward'!G582 -> 0
D152: =Asset18 -> 0 | G152: ='Actual RAB roll forward'!G583 -> 0
D153: =Asset19 -> 0 | G153: ='Actual RAB roll forward'!G584 -> 0
D154: =Asset20 -> 0 | G154: ='Actual RAB roll forward'!G585 -> 0
D155: =Asset21 -> 0 | G155: ='Actual RAB roll forward'!G586 -> 0
D156: =Asset22 -> 0 | G156: ='Actual RAB roll forward'!G587 -> 0
D157: =Asset23 -> 0 | G157: ='Actual RAB roll forward'!G588 -> 0
D158: =Asset24 -> 0 | G158: ='Actual RAB roll forward'!G589 -> 0
D159: =Asset25 -> 0 | G159: ='Actual RAB roll forward'!G590 -> 0
D160: =Asset26 -> 0 | G160: ='Actual RAB roll forward'!G591 -> 0
D161: =Asset27 -> 0 | G161: ='Actual RAB roll forward'!G592 -> 0
D162: =Asset28 -> 0 | G162: ='Actual RAB roll forward'!G593 -> 0
D163: =Asset29 -> 0 | G163: ='Actual RAB roll forward'!G594 -> 0
D164: =Asset30 -> 0 | G164: ='Actual RAB roll forward'!G595 -> 0
C166: Nominal Forecast Assets Under Construction | G166: =SUM(G167:G186) -> 0
D167: =Asset1 -> Subtransmission | G167: ='Actual RAB roll forward'!G598 -> 0
D168: =Asset2 -> Distribution system assets | G168: ='Actual RAB roll forward'!G599 -> 0
D169: =Asset3 -> Metering | G169: ='Actual RAB roll forward'!G600 -> 0
D170: =Asset4 -> Public Lighting | G170: ='Actual RAB roll forward'!G601 -> 0
D171: =Asset5 -> SCADA (5-year asset) | G171: ='Actual RAB roll forward'!G602 -> 0
D172: =Asset6 -> Non network - IT | G172: ='Actual RAB roll forward'!G603 -> 0
D173: =Asset7 -> Non network - other | G173: ='Actual RAB roll forward'!G604 -> 0
D174: =Asset8 -> Neutral Screen Services | G174: ='Actual RAB roll forward'!G605 -> 0
D175: =Asset9 -> Distribution Transformers upgrades | G175: ='Actual RAB roll forward'!G606 -> 0
D176: =Asset10 -> Equity Raising Costs | G176: ='Actual RAB roll forward'!G607 -> 0
D177: =Asset11 -> 0 | G177: ='Actual RAB roll forward'!G608 -> 0
D178: =Asset12 -> 0 | G178: ='Actual RAB roll forward'!G609 -> 0
D179: =Asset13 -> 0 | G179: ='Actual RAB roll forward'!G610 -> 0
D180: =Asset14 -> 0 | G180: ='Actual RAB roll forward'!G611 -> 0
D181: =Asset15 -> 0 | G181: ='Actual RAB roll forward'!G612 -> 0
D182: =Asset16 -> 0 | G182: ='Actual RAB roll forward'!G613 -> 0
D183: =Asset17 -> 0 | G183: ='Actual RAB roll forward'!G614 -> 0
D184: =Asset18 -> 0 | G184: ='Actual RAB roll forward'!G615 -> 0
D185: =Asset19 -> 0 | G185: ='Actual RAB roll forward'!G616 -> 0
D186: =Asset20 -> 0 | G186: ='Actual RAB roll forward'!G617 -> 0
D187: =Asset21 -> 0 | G187: ='Actual RAB roll forward'!G618 -> 0
D188: =Asset22 -> 0 | G188: ='Actual RAB roll forward'!G619 -> 0
D189: =Asset23 -> 0 | G189: ='Actual RAB roll forward'!G620 -> 0
D190: =Asset24 -> 0 | G190: ='Actual RAB roll forward'!G621 -> 0
D191: =Asset25 -> 0 | G191: ='Actual RAB roll forward'!G622 -> 0
D192: =Asset26 -> 0 | G192: ='Actual RAB roll forward'!G623 -> 0
D193: =Asset27 -> 0 | G193: ='Actual RAB roll forward'!G624 -> 0
D194: =Asset28 -> 0 | G194: ='Actual RAB roll forward'!G625 -> 0
D195: =Asset29 -> 0 | G195: ='Actual RAB roll forward'!G626 -> 0
D196: =Asset30 -> 0 | G196: ='Actual RAB roll forward'!G627 -> 0
C198: Interim Closing Regulated Asset Base | G198: =SUM(G199:G228) -> 1380.227518 | H198: =SUM(H199:H228) -> 1524.87799 | I198: =SUM(I199:I228) -> 1679.665413 | J198: 1791.898481 | K198: 1924.85577 | L198: 2040.005796 | M198: 0 | N198: 0 | O198: 0 | P198: 0 | Q198: 0
D199: =Asset1 -> Subtransmission | G199: =G7+G39+G71+G103+G135+G167 -> 376.2026818 | H199: =H7+H39+H71 -> 393.5951079 | I199: 446.1782438 | J199: 474.049614 | K199: 506.4918026 | L199: 540.0211179 | M199: =IF(Input!M$173>0, M7+M39+M71, 0) -> 0 | N199: =IF(Input!N$173>0, N7+N39+N71, 0) -> 0 | O199: =IF(Input!O$173>0, O7+O39+O71, 0) -> 0 | P199: =IF(Input!P$173>0, P7+P39+P71, 0) -> 0 | Q199: =IF(Input!Q$173>0, Q7+Q39+Q71, 0) -> 0
D200: =Asset2 -> Distribution system assets | G200: 895.946181 | H200: 975.7433379 | I200: 1078.311988 | J200: 1181.450639 | K200: 1295.887373 | L200: 1397.74622 | M200: =IF(Input!M$173>0, M8+M40+M72, 0) -> 0 | N200: =IF(Input!N$173>0, N8+N40+N72, 0) -> 0 | O200: =IF(Input!O$173>0, O8+O40+O72, 0) -> 0 | P200: =IF(Input!P$173>0, P8+P40+P72, 0) -> 0 | Q200: =IF(Input!Q$173>0, Q8+Q40+Q72, 0) -> 0
D201: =Asset3 -> Metering | G201: 46.9596474 | H201: 38.6106219 | I201: 29.97642262 | J201: 20.38446161 | K201: 10.41202507 | L201: -0.0009618031563 | M201: =IF(Input!M$173>0, M9+M41+M73, 0) -> 0 | N201: =IF(Input!N$173>0, N9+N41+N73, 0) -> 0 | O201: =IF(Input!O$173>0, O9+O41+O73, 0) -> 0 | P201: =IF(Input!P$173>0, P9+P41+P73, 0) -> 0 | Q201: =IF(Input!Q$173>0, Q9+Q41+Q73, 0) -> 0
D202: =Asset4 -> Public Lighting | G202: 3.367112779 | H202: 2.713645694 | I202: 1.988344767 | J202: 1.332519863 | K202: 0.6506113022 | L202: -0.0614811409 | M202: =IF(Input!M$173>0, M10+M42+M74, 0) -> 0 | N202: =IF(Input!N$173>0, N10+N42+N74, 0) -> 0 | O202: =IF(Input!O$173>0, O10+O42+O74, 0) -> 0 | P202: =IF(Input!P$173>0, P10+P42+P74, 0) -> 0 | Q202: =IF(Input!Q$173>0, Q10+Q42+Q74, 0) -> 0
D203: =Asset5 -> SCADA (5-year asset) | G203: 2.220446049e-16 | H203: 1.052154658 | I203: 5.58448054 | J203: 6.658782816 | K203: 5.101876576 | L203: 3.544635851 | M203: =IF(Input!M$173>0, M11+M43+M75, 0) -> 0 | N203: =IF(Input!N$173>0, N11+N43+N75, 0) -> 0 | O203: =IF(Input!O$173>0, O11+O43+O75, 0) -> 0 | P203: =IF(Input!P$173>0, P11+P43+P75, 0) -> 0 | Q203: =IF(Input!Q$173>0, Q11+Q43+Q75, 0) -> 0
D204: =Asset6 -> Non network - IT | G204: 5.151434834e-14 | H204: 52.23648042 | I204: 55.21352627 | J204: 51.47089763 | K204: 61.83193744 | L204: 67.74977017 | M204: =IF(Input!M$173>0, M12+M44+M76, 0) -> 0 | N204: =IF(Input!N$173>0, N12+N44+N76, 0) -> 0 | O204: =IF(Input!O$173>0, O12+O44+O76, 0) -> 0 | P204: =IF(Input!P$173>0, P12+P44+P76, 0) -> 0 | Q204: =IF(Input!Q$173>0, Q12+Q44+Q76, 0) -> 0
D205: =Asset7 -> Non network - other | G205: 25.69789538 | H205: 30.85681331 | I205: 38.20114071 | J205: 38.91006339 | K205: 33.66481605 | L205: 27.31533259 | M205: =IF(Input!M$173>0, M13+M45+M77, 0) -> 0 | N205: =IF(Input!N$173>0, N13+N45+N77, 0) -> 0 | O205: =IF(Input!O$173>0, O13+O45+O77, 0) -> 0 | P205: =IF(Input!P$173>0, P13+P45+P77, 0) -> 0 | Q205: =IF(Input!Q$173>0, Q13+Q45+Q77, 0) -> 0
D206: =Asset8 -> Neutral Screen Services | G206: 26.226 | H206: 21.56567402 | I206: 16.74323258 | J206: 11.38584553 | K206: 5.815952531 | L206: 0 | M206: =IF(Input!M$173>0, M14+M46+M78, 0) -> 0 | N206: =IF(Input!N$173>0, N14+N46+N78, 0) -> 0 | O206: =IF(Input!O$173>0, O14+O46+O78, 0) -> 0 | P206: =IF(Input!P$173>0, P14+P46+P78, 0) -> 0 | Q206: =IF(Input!Q$173>0, Q14+Q46+Q78, 0) -> 0
D207: =Asset9 -> Distribution Transformers upgrades | G207: 5.828 | H207: 4.792372005 | I207: 3.72071835 | J207: 2.530187896 | K207: 1.292433896 | L207: 0 | M207: =IF(Input!M$173>0, M15+M47+M79, 0) -> 0 | N207: =IF(Input!N$173>0, N15+N47+N79, 0) -> 0 | O207: =IF(Input!O$173>0, O15+O47+O79, 0) -> 0 | P207: =IF(Input!P$173>0, P15+P47+P79, 0) -> 0 | Q207: =IF(Input!Q$173>0, Q15+Q47+Q79, 0) -> 0
D208: =Asset10 -> Equity Raising Costs | G208: 0 | H208: 3.71178179 | I208: 3.7473159 | J208: 3.725469083 | K208: 3.706941832 | L208: 3.691162773 | M208: =IF(Input!M$173>0, M16+M48+M80, 0) -> 0 | N208: =IF(Input!N$173>0, N16+N48+N80, 0) -> 0 | O208: =IF(Input!O$173>0, O16+O48+O80, 0) -> 0 | P208: =IF(Input!P$173>0, P16+P48+P80, 0) -> 0 | Q208: =IF(Input!Q$173>0, Q16+Q48+Q80, 0) -> 0
... 176 more rows

Sheet Tax value roll forward
B2: Tax Asset Value Roll Forward
F3: 0 | G3: =F3+1 -> 1 | H3: 2 | I3: 3 | J3: 4 | K3: 5 | L3: 6 | M3: 7 | N3: 8 | O3: 9 | P3: 10 | Q3: 11 | R3: 12
B4: Year | G4: =Input!G40 -> 2010 | H4: =Input!H40 -> 2011 | I4: =Input!I40 -> 2012 | J4: =Input!J40 -> 2013 | K4: =Input!K40 -> 2014 | L4: =Input!L40 -> 2015 | M4: =Input!M40 -> 2016 | N4: =Input!N40 -> 2017 | O4: =Input!O40 -> 2018 | P4: =Input!P40 -> 2019 | Q4: =Input!Q40 -> 2020 | R4: =IF(LEN(Q4)>4,CONCATENATE(LEFT(Q4,4)+1&"-"&IF(Q4>"2007-08",,"0")&RIGHT(Q4,2)+1),Q4+1) -> 2021
B5: Nominal Tax Values
B7: Opening Tax Asset Values | G7: =SUM(G8:G37) -> 0 | H7: =SUM(H8:H37) -> 0 | I7: =SUM(I8:I37) -> 0 | J7: 0 | K7: 0 | L7: 0 | M7: 0 | N7: 0 | O7: 0 | P7: 0 | Q7: 0 | R7: 0
C8: =Asset1 -> Subtransmission | G8: =A1taxvalue -> 0 | H8: =G8+G40+G85 -> 0 | I8: 0 | J8: 0 | K8: 0 | L8: 0 | M8: 0 | N8: =IF(Input!M$173>0, M8+M40+M85, 0) -> 0 | O8: =IF(Input!N$173>0, N8+N40+N85, 0) -> 0 | P8: =IF(Input!O$173>0, O8+O40+O85, 0) -> 0 | Q8: =IF(Input!P$173>0, P8+P40+P85, 0) -> 0 | R8: =IF(Input!Q$173>0, Q8+Q40+Q85, 0) -> 0
C9: =Asset2 -> Distribution system assets | G9: =A2taxvalue -> 0 | H9: =G9+G41+G99 -> 0 | I9: 0 | J9: 0 | K9: 0 | L9: 0 | M9: 0 | N9: =IF(Input!M$173>0, M9+M41+M99, 0) -> 0 | O9: =IF(Input!N$173>0, N9+N41+N99, 0) -> 0 | P9: =IF(Input!O$173>0, O9+O41+O99, 0) -> 0 | Q9: =IF(Input!P$173>0, P9+P41+P99, 0) -> 0 | R9: =IF(Input!Q$173>0, Q9+Q41+Q99, 0) -> 0
C10: =Asset3 -> Metering | G10: =A3taxvalue -> 0 | H10: =G10+G42+G113 -> 0 | I10: 0 | J10: 0 | K10: 0 | L10: 0 | M10: 0 | N10: =IF(Input!M$173>0, M10+M42+M113, 0) -> 0 | O10: =IF(Input!N$173>0, N10+N42+N113, 0) -> 0 | P10: =IF(Input!O$173>0, O10+O42+O113, 0) -> 0 | Q10: =IF(Input!P$173>0, P10+P42+P113, 0) -> 0 | R10: =IF(Input!Q$173>0, Q10+Q42+Q113, 0) -> 0
C11: =Asset4 -> Public Lighting | G11: =A4taxvalue -> 0 | H11: =G11+G43+G127 -> 0 | I11: 0 | J11: 0 | K11: 0 | L11: 0 | M11: 0 | N11: =IF(Input!M$173>0, M11+M43+M127, 0) -> 0 | O11: =IF(Input!N$173>0, N11+N43+N127, 0) -> 0 | P11: =IF(Input!O$173>0, O11+O43+O127, 0) -> 0 | Q11: =IF(Input!P$173>0, P11+P43+P127, 0) -> 0 | R11: =IF(Input!Q$173>0, Q11+Q43+Q127, 0) -> 0
C12: =Asset5 -> SCADA (5-year asset) | G12: =A5taxvalue -> 0 | H12: =G12+G44+G141 -> 0 | I12: 0 | J12: 0 | K12: 0 | L12: 0 | M12: 0 | N12: =IF(Input!M$173>0, M12+M44+M141, 0) -> 0 | O12: =IF(Input!N$173>0, N12+N44+N141, 0) -> 0 | P12: =IF(Input!O$173>0, O12+O44+O141, 0) -> 0 | Q12: =IF(Input!P$173>0, P12+P44+P141, 0) -> 0 | R12: =IF(Input!Q$173>0, Q12+Q44+Q141, 0) -> 0
C13: =Asset6 -> Non network - IT | G13: =A6taxvalue -> 0 | H13: =G13+G45+G155 -> 0 | I13: 0 | J13: 0 | K13: 0 | L13: 0 | M13: 0 | N13: =IF(Input!M$173>0, M13+M45+M155, 0) -> 0 | O13: =IF(Input!N$173>0, N13+N45+N155, 0) -> 0 | P13: =IF(Input!O$173>0, O13+O45+O155, 0) -> 0 | Q13: =IF(Input!P$173>0, P13+P45+P155, 0) -> 0 | R13: =IF(Input!Q$173>0, Q13+Q45+Q155, 0) -> 0
C14: =Asset7 -> Non network - other | G14: =A7taxvalue -> 0 | H14: =G14+G46+G169 -> 0 | I14: 0 | J14: 0 | K14: 0 | L14: 0 | M14: 0 | N14: =IF(Input!M$173>0, M14+M46+M169, 0) -> 0 | O14: =IF(Input!N$173>0, N14+N46+N169, 0) -> 0 | P14: =IF(Input!O$173>0, O14+O46+O169, 0) -> 0 | Q14: =IF(Input!P$173>0, P14+P46+P169, 0) -> 0 | R14: =IF(Input!Q$173>0, Q14+Q46+Q169, 0) -> 0
C15: =Asset8 -> Neutral Screen Services | G15: =A8taxvalue -> 0 | H15: =G15+G47+G183 -> 0 | I15: 0 | J15: 0 | K15: 0 | L15: 0 | M15: 0 | N15: =IF(Input!M$173>0, M15+M47+M183, 0) -> 0 | O15: =IF(Input!N$173>0, N15+N47+N183, 0) -> 0 | P15: =IF(Input!O$173>0, O15+O47+O183, 0) -> 0 | Q15: =IF(Input!P$173>0, P15+P47+P183, 0) -> 0 | R15: =IF(Input!Q$173>0, Q15+Q47+Q183, 0) -> 0
C16: =Asset9 -> Distribution Transformers upgrades | G16: =A9taxvalue -> 0 | H16: =G16+G48+G197 -> 0 | I16: 0 | J16: 0 | K16: 0 | L16: 0 | M16: 0 | N16: =IF(Input!M$173>0, M16+M48+M197, 0) -> 0 | O16: =IF(Input!N$173>0, N16+N48+N197, 0) -> 0 | P16: =IF(Input!O$173>0, O16+O48+O197, 0) -> 0 | Q16: =IF(Input!P$173>0, P16+P48+P197, 0) -> 0 | R16: =IF(Input!Q$173>0, Q16+Q48+Q197, 0) -> 0
C17: =Asset10 -> Equity Raising Costs | G17: =A10taxvalue -> 0 | H17: =G17+G49+G211 -> 0 | I17: =H17+H49+H211 -> 0 | J17: 0 | K17: 0 | L17: 0 | M17: 0 | N17: =IF(Input!M$173>0, M17+M49+M211, 0) -> 0 | O17: =IF(Input!N$173>0, N17+N49+N211, 0) -> 0 | P17: =IF(Input!O$173>0, O17+O49+O211, 0) -> 0 | Q17: =IF(Input!P$173>0, P17+P49+P211, 0) -> 0 | R17: =IF(Input!Q$173>0, Q17+Q49+Q211, 0) -> 0
C18: =Asset11 -> 0 | G18: =A11taxvalue -> 0 | H18: =G18+G50+G225 -> 0 | I18: =H18+H50+H225 -> 0 | J18: 0 | K18: 0 | L18: 0 | M18: 0 | N18: =IF(Input!M$173>0, M18+M50+M225, 0) -> 0 | O18: =IF(Input!N$173>0, N18+N50+N225, 0) -> 0 | P18: =IF(Input!O$173>0, O18+O50+O225, 0) -> 0 | Q18: =IF(Input!P$173>0, P18+P50+P225, 0) -> 0 | R18: =IF(Input!Q$173>0, Q18+Q50+Q225, 0) -> 0
C19: =Asset12 -> 0 | G19: =A12taxvalue -> 0 | H19: =G19+G51+G239 -> 0 | I19: 0 | J19: 0 | K19: 0 | L19: 0 | M19: 0 | N19: =IF(Input!M$173>0, M19+M51+M239, 0) -> 0 | O19: =IF(Input!N$173>0, N19+N51+N239, 0) -> 0 | P19: =IF(Input!O$173>0, O19+O51+O239, 0) -> 0 | Q19: =IF(Input!P$173>0, P19+P51+P239, 0) -> 0 | R19: =IF(Input!Q$173>0, Q19+Q51+Q239, 0) -> 0
C20: =Asset13 -> 0 | G20: =A13taxvalue -> 0 | H20: =G20+G52+G253 -> 0 | I20: 0 | J20: 0 | K20: 0 | L20: 0 | M20: 0 | N20: =IF(Input!M$173>0, M20+M52+M253, 0) -> 0 | O20: =IF(Input!N$173>0, N20+N52+N253, 0) -> 0 | P20: =IF(Input!O$173>0, O20+O52+O253, 0) -> 0 | Q20: =IF(Input!P$173>0, P20+P52+P253, 0) -> 0 | R20: =IF(Input!Q$173>0, Q20+Q52+Q253, 0) -> 0
C21: =Asset14 -> 0 | G21: =A14taxvalue -> 0 | H21: =G21+G53+G267 -> 0 | I21: 0 | J21: 0 | K21: 0 | L21: 0 | M21: 0 | N21: =IF(Input!M$173>0, M21+M53+M267, 0) -> 0 | O21: =IF(Input!N$173>0, N21+N53+N267, 0) -> 0 | P21: =IF(Input!O$173>0, O21+O53+O267, 0) -> 0 | Q21: =IF(Input!P$173>0, P21+P53+P267, 0) -> 0 | R21: =IF(Input!Q$173>0, Q21+Q53+Q267, 0) -> 0
C22: =Asset15 -> 0 | G22: =A15taxvalue -> 0 | H22: =G22+G54+G281 -> 0 | I22: 0 | J22: 0 | K22: 0 | L22: 0 | M22: 0 | N22: =IF(Input!M$173>0, M22+M54+M281, 0) -> 0 | O22: =IF(Input!N$173>0, N22+N54+N281, 0) -> 0 | P22: =IF(Input!O$173>0, O22+O54+O281, 0) -> 0 | Q22: =IF(Input!P$173>0, P22+P54+P281, 0) -> 0 | R22: =IF(Input!Q$173>0, Q22+Q54+Q281, 0) -> 0
C23: =Asset16 -> 0 | G23: =A16taxvalue -> 0 | H23: =G23+G55+G295 -> 0 | I23: 0 | J23: 0 | K23: 0 | L23: 0 | M23: 0 | N23: =IF(Input!M$173>0, M23+M55+M295, 0) -> 0 | O23: =IF(Input!N$173>0, N23+N55+N295, 0) -> 0 | P23: =IF(Input!O$173>0, O23+O55+O295, 0) -> 0 | Q23: =IF(Input!P$173>0, P23+P55+P295, 0) -> 0 | R23: =IF(Input!Q$173>0, Q23+Q55+Q295, 0) -> 0
C24: =Asset17 -> 0 | G24: =A17taxvalue -> 0 | H24: =G24+G56+G309 -> 0 | I24: 0 | J24: 0 | K24: 0 | L24: 0 | M24: 0 | N24: =IF(Input!M$173>0, M24+M56+M309, 0) -> 0 | O24: =IF(Input!N$173>0, N24+N56+N309, 0) -> 0 | P24: =IF(Input!O$173>0, O24+O56+O309, 0) -> 0 | Q24: =IF(Input!P$173>0, P24+P56+P309, 0) -> 0 | R24: =IF(Input!Q$173>0, Q24+Q56+Q309, 0) -> 0
C25: =Asset18 -> 0 | G25: =A18taxvalue -> 0 | H25: =G25+G57+G323 -> 0 | I25: 0 | J25: 0 | K25: 0 | L25: 0 | M25: 0 | N25: =IF(Input!M$173>0, M25+M57+M323, 0) -> 0 | O25: =IF(Input!N$173>0, N25+N57+N323, 0) -> 0 | P25: =IF(Input!O$173>0, O25+O57+O323, 0) -> 0 | Q25: =IF(Input!P$173>0, P25+P57+P323, 0) -> 0 | R25: =IF(Input!Q$173>0, Q25+Q57+Q323, 0) -> 0
C26: =Asset19 -> 0 | G26: =A19taxvalue -> 0 | H26: =G26+G58+G337 -> 0 | I26: 0 | J26: 0 | K26: 0 | L26: 0 | M26: 0 | N26: =IF(Input!M$173>0, M26+M58+M337, 0) -> 0 | O26: =IF(Input!N$173>0, N26+N58+N337, 0) -> 0 | P26: =IF(Input!O$173>0, O26+O58+O337, 0) -> 0 | Q26: =IF(Input!P$173>0, P26+P58+P337, 0) -> 0 | R26: =IF(Input!Q$173>0, Q26+Q58+Q337, 0) -> 0
C27: =Asset20 -> 0 | G27: =A20taxvalue -> 0 | H27: =G27+G59+G351 -> 0 | I27: 0 | J27: 0 | K27: 0 | L27: 0 | M27: 0 | N27: =IF(Input!M$173>0, M27+M59+M351, 0) -> 0 | O27: =IF(Input!N$173>0, N27+N59+N351, 0) -> 0 | P27: =IF(Input!O$173>0, O27+O59+O351, 0) -> 0 | Q27: =IF(Input!P$173>0, P27+P59+P351, 0) -> 0 | R27: =IF(Input!Q$173>0, Q27+Q59+Q351, 0) -> 0
C28: =Asset21 -> 0 | G28: =A21taxvalue -> 0 | H28: =G28+G60+G365 -> 0 | I28: 0 | J28: 0 | K28: 0 | L28: 0 | M28: 0 | N28: =IF(Input!M$173>0, M28+M60+M352, 0) -> 0 | O28: =IF(Input!N$173>0, N28+N60+N365, 0) -> 0 | P28: =IF(Input!O$173>0, O28+O60+O365, 0) -> 0 | Q28: =IF(Input!P$173>0, P28+P60+P365, 0) -> 0 | R28: =IF(Input!Q$173>0, Q28+Q60+Q365, 0) -> 0
C29: =Asset22 -> 0 | G29: =A22taxvalue -> 0 | H29: =G29+G61+G379 -> 0 | I29: 0 | J29: 0 | K29: 0 | L29: 0 | M29: 0 | N29: =IF(Input!M$173>0, M29+M61+M353, 0) -> 0 | O29: =IF(Input!N$173>0, N29+N61+N379, 0) -> 0 | P29: =IF(Input!O$173>0, O29+O61+O379, 0) -> 0 | Q29: =IF(Input!P$173>0, P29+P61+P379, 0) -> 0 | R29: =IF(Input!Q$173>0, Q29+Q61+Q379, 0) -> 0
C30: =Asset23 -> 0 | G30: =A23taxvalue -> 0 | H30: =G30+G62+G393 -> 0 | I30: 0 | J30: 0 | K30: 0 | L30: 0 | M30: 0 | N30: =IF(Input!M$173>0, M30+M62+M354, 0) -> 0 | O30: =IF(Input!N$173>0, N30+N62+N393, 0) -> 0 | P30: =IF(Input!O$173>0, O30+O62+O393, 0) -> 0 | Q30: =IF(Input!P$173>0, P30+P62+P393, 0) -> 0 | R30: =IF(Input!Q$173>0, Q30+Q62+Q393, 0) -> 0
C31: =Asset24 -> 0 | G31: =A24taxvalue -> 0 | H31: =G31+G63+G407 -> 0 | I31: 0 | J31: 0 | K31: 0 | L31: 0 | M31: 0 | N31: =IF(Input!M$173>0, M31+M63+M355, 0) -> 0 | O31: =IF(Input!N$173>0, N31+N63+N407, 0) -> 0 | P31: =IF(Input!O$173>0, O31+O63+O407, 0) -> 0 | Q31: =IF(Input!P$173>0, P31+P63+P407, 0) -> 0 | R31: =IF(Input!Q$173>0, Q31+Q63+Q407, 0) -> 0
C32: =Asset25 -> 0 | G32: =A25taxvalue -> 0 | H32: =G32+G64+G421 -> 0 | I32: 0 | J32: 0 | K32: 0 | L32: 0 | M32: 0 | N32: =IF(Input!M$173>0, M32+M64+M356, 0) -> 0 | O32: =IF(Input!N$173>0, N32+N64+N421, 0) -> 0 | P32: =IF(Input!O$173>0, O32+O64+O421, 0) -> 0 | Q32: =IF(Input!P$173>0, P32+P64+P421, 0) -> 0 | R32: =IF(Input!Q$173>0, Q32+Q64+Q421, 0) -> 0
C33: =Asset26 -> 0 | G33: =A26taxvalue -> 0 | H33: =G33+G65+G435 -> 0 | I33: 0 | J33: 0 | K33: 0 | L33: 0 | M33: 0 | N33: =IF(Input!M$173>0, M33+M65+M357, 0) -> 0 | O33: =IF(Input!N$173>0, N33+N65+N435, 0) -> 0 | P33: =IF(Input!O$173>0, O33+O65+O435, 0) -> 0 | Q33: =IF(Input!P$173>0, P33+P65+P435, 0) -> 0 | R33: =IF(Input!Q$173>0, Q33+Q65+Q435, 0) -> 0
C34: =Asset27 -> 0 | G34: =A27taxvalue -> 0 | H34: =G34+G66+G449 -> 0 | I34: 0 | J34: 0 | K34: 0 | L34: 0 | M34: 0 | N34: =IF(Input!M$173>0, M34+M66+M358, 0) -> 0 | O34: =IF(Input!N$173>0, N34+N66+N449, 0) -> 0 | P34: =IF(Input!O$173>0, O34+O66+O449, 0) -> 0 | Q34: =IF(Input!P$173>0, P34+P66+P449, 0) -> 0 | R34: =IF(Input!Q$173>0, Q34+Q66+Q449, 0) -> 0
C35: =Asset28 -> 0 | G35: =A28taxvalue -> 0 | H35: =G35+G67+G463 -> 0 | I35: 0 | J35: 0 | K35: 0 | L35: 0 | M35: 0 | N35: =IF(Input!M$173>0, M35+M67+M359, 0) -> 0 | O35: =IF(Input!N$173>0, N35+N67+N463, 0) -> 0 | P35: =IF(Input!O$173>0, O35+O67+O463, 0) -> 0 | Q35: =IF(Input!P$173>0, P35+P67+P463, 0) -> 0 | R35: =IF(Input!Q$173>0, Q35+Q67+Q463, 0) -> 0
C36: =Asset29 -> 0 | G36: =A29taxvalue -> 0 | H36: =G36+G68+G477 -> 0 | I36: 0 | J36: 0 | K36: 0 | L36: 0 | M36: 0 | N36: =IF(Input!M$173>0, M36+M68+M360, 0) -> 0 | O36: =IF(Input!N$173>0, N36+N68+N477, 0) -> 0 | P36: =IF(Input!O$173>0, O36+O68+O477, 0) -> 0 | Q36: =IF(Input!P$173>0, P36+P68+P477, 0) -> 0 | R36: =IF(Input!Q$173>0, Q36+Q68+Q477, 0) -> 0
C37: =Asset30 -> 0 | G37: =A30taxvalue -> 0 | H37: =G37+G69+G491 -> 0 | I37: 0 | J37: 0 | K37: 0 | L37: 0 | M37: 0 | N37: =IF(Input!M$173>0, M37+M69+M361, 0) -> 0 | O37: =IF(Input!N$173>0, N37+N69+N491, 0) -> 0 | P37: =IF(Input!O$173>0, O37+O69+O491, 0) -> 0 | Q37: =IF(Input!P$173>0, P37+P69+P491, 0) -> 0 | R37: =IF(Input!Q$173>0, Q37+Q69+Q491, 0) -> 0
B39: Actual Net Capex | G39: =SUM(G40:G69) -> 0 | H39: =SUM(H40:H69) -> 0 | I39: =SUM(I40:I69) -> 0 | J39: 0 | K39: 0 | L39: 0 | M39: 0 | N39: 0 | O39: 0 | P39: 0 | Q39: 0
C40: =Asset1 -> Subtransmission | G40: 0 | H40: 0 | I40: 0 | J40: 0 | K40: 0 | L40: 0 | M40: =Input!M41-Input!M75 -> 0 | N40: =Input!N41-Input!N75 -> 0 | O40: =Input!O41-Input!O75 -> 0 | P40: =Input!P41-Input!P75 -> 0 | Q40: =Input!Q41-Input!Q75 -> 0
C41: =Asset2 -> Distribution system assets | G41: 0 | H41: 0 | I41: 0 | J41: 0 | K41: 0 | L41: 0 | M41: =Input!M42-Input!M76 -> 0 | N41: =Input!N42-Input!N76 -> 0 | O41: =Input!O42-Input!O76 -> 0 | P41: =Input!P42-Input!P76 -> 0 | Q41: =Input!Q42-Input!Q76 -> 0
C42: =Asset3 -> Metering | G42: 0 | H42: 0 | I42: 0 | J42: 0 | K42: 0 | L42: 0 | M42: =Input!M43-Input!M77 -> 0 | N42: =Input!N43-Input!N77 -> 0 | O42: =Input!O43-Input!O77 -> 0 | P42: =Input!P43-Input!P77 -> 0 | Q42: =Input!Q43-Input!Q77 -> 0
C43: =Asset4 -> Public Lighting | G43: 0 | H43: 0 | I43: 0 | J43: 0 | K43: 0 | L43: 0 | M43: =Input!M44-Input!M78 -> 0 | N43: =Input!N44-Input!N78 -> 0 | O43: =Input!O44-Input!O78 -> 0 | P43: =Input!P44-Input!P78 -> 0 | Q43: =Input!Q44-Input!Q78 -> 0
C44: =Asset5 -> SCADA (5-year asset) | G44: 0 | H44: 0 | I44: 0 | J44: 0 | K44: 0 | L44: 0 | M44: =Input!M45-Input!M79 -> 0 | N44: =Input!N45-Input!N79 -> 0 | O44: =Input!O45-Input!O79 -> 0 | P44: =Input!P45-Input!P79 -> 0 | Q44: =Input!Q45-Input!Q79 -> 0
C45: =Asset6 -> Non network - IT | G45: 0 | H45: 0 | I45: 0 | J45: 0 | K45: 0 | L45: 0 | M45: =Input!M46-Input!M80 -> 0 | N45: =Input!N46-Input!N80 -> 0 | O45: =Input!O46-Input!O80 -> 0 | P45: =Input!P46-Input!P80 -> 0 | Q45: =Input!Q46-Input!Q80 -> 0
C46: =Asset7 -> Non network - other | G46: 0 | H46: 0 | I46: 0 | J46: 0 | K46: 0 | L46: 0 | M46: =Input!M47-Input!M81 -> 0 | N46: =Input!N47-Input!N81 -> 0 | O46: =Input!O47-Input!O81 -> 0 | P46: =Input!P47-Input!P81 -> 0 | Q46: =Input!Q47-Input!Q81 -> 0
C47: =Asset8 -> Neutral Screen Services | G47: 0 | H47: 0 | I47: 0 | J47: 0 | K47: 0 | L47: =Input!L48-Input!L82 -> 0 | M47: =Input!M48-Input!M82 -> 0 | N47: =Input!N48-Input!N82 -> 0 | O47: =Input!O48-Input!O82 -> 0 | P47: =Input!P48-Input!P82 -> 0 | Q47: =Input!Q48-Input!Q82 -> 0
C48: =Asset9 -> Distribution Transformers upgrades | G48: 0 | H48: 0 | I48: =Input!I49-Input!I83 -> 0 | J48: =Input!J49-Input!J83 -> 0 | K48: =Input!K49-Input!K83 -> 0 | L48: =Input!L49-Input!L83 -> 0 | M48: =Input!M49-Input!M83 -> 0 | N48: =Input!N49-Input!N83 -> 0 | O48: =Input!O49-Input!O83 -> 0 | P48: =Input!P49-Input!P83 -> 0 | Q48: =Input!Q49-Input!Q83 -> 0
C49: =Asset10 -> Equity Raising Costs | G49: 0 | H49: 0 | I49: =Input!I50-Input!I84 -> 0 | J49: =Input!J50-Input!J84 -> 0 | K49: =Input!K50-Input!K84 -> 0 | L49: =Input!L50-Input!L84 -> 0 | M49: =Input!M50-Input!M84 -> 0 | N49: =Input!N50-Input!N84 -> 0 | O49: =Input!O50-Input!O84 -> 0 | P49: =Input!P50-Input!P84 -> 0 | Q49: =Input!Q50-Input!Q84 -> 0
C50: =Asset11 -> 0 | G50: 0 | H50: =Input!H51-Input!H85 -> 0 | I50: =Input!I51-Input!I85 -> 0 | J50: =Input!J51-Input!J85 -> 0 | K50: =Input!K51-Input!K85 -> 0 | L50: =Input!L51-Input!L85 -> 0 | M50: =Input!M51-Input!M85 -> 0 | N50: =Input!N51-Input!N85 -> 0 | O50: =Input!O51-Input!O85 -> 0 | P50: =Input!P51-Input!P85 -> 0 | Q50: =Input!Q51-Input!Q85 -> 0
C51: =Asset12 -> 0 | G51: =Input!G52-Input!G86 -> 0 | H51: =Input!H52-Input!H86 -> 0 | I51: =Input!I52-Input!I86 -> 0 | J51: =Input!J52-Input!J86 -> 0 | K51: =Input!K52-Input!K86 -> 0 | L51: =Input!L52-Input!L86 -> 0 | M51: =Input!M52-Input!M86 -> 0 | N51: =Input!N52-Input!N86 -> 0 | O51: =Input!O52-Input!O86 -> 0 | P51: =Input!P52-Input!P86 -> 0 | Q51: =Input!Q52-Input!Q86 -> 0
C52: =Asset13 -> 0 | G52: =Input!G53-Input!G87 -> 0 | H52: =Input!H53-Input!H87 -> 0 | I52: =Input!I53-Input!I87 -> 0 | J52: =Input!J53-Input!J87 -> 0 | K52: =Input!K53-Input!K87 -> 0 | L52: =Input!L53-Input!L87 -> 0 | M52: =Input!M53-Input!M87 -> 0 | N52: =Input!N53-Input!N87 -> 0 | O52: =Input!O53-Input!O87 -> 0 | P52: =Input!P53-Input!P87 -> 0 | Q52: =Input!Q53-Input!Q87 -> 0
C53: =Asset14 -> 0 | G53: =Input!G54-Input!G88 -> 0 | H53: =Input!H54-Input!H88 -> 0 | I53: =Input!I54-Input!I88 -> 0 | J53: =Input!J54-Input!J88 -> 0 | K53: =Input!K54-Input!K88 -> 0 | L53: =Input!L54-Input!L88 -> 0 | M53: =Input!M54-Input!M88 -> 0 | N53: =Input!N54-Input!N88 -> 0 | O53: =Input!O54-Input!O88 -> 0 | P53: =Input!P54-Input!P88 -> 0 | Q53: =Input!Q54-Input!Q88 -> 0
C54: =Asset15 -> 0 | G54: =Input!G55-Input!G89 -> 0 | H54: =Input!H55-Input!H89 -> 0 | I54: =Input!I55-Input!I89 -> 0 | J54: =Input!J55-Input!J89 -> 0 | K54: =Input!K55-Input!K89 -> 0 | L54: =Input!L55-Input!L89 -> 0 | M54: =Input!M55-Input!M89 -> 0 | N54: =Input!N55-Input!N89 -> 0 | O54: =Input!O55-Input!O89 -> 0 | P54: =Input!P55-Input!P89 -> 0 | Q54: =Input!Q55-Input!Q89 -> 0
C55: =Asset16 -> 0 | G55: =Input!G56-Input!G90 -> 0 | H55: =Input!H56-Input!H90 -> 0 | I55: =Input!I56-Input!I90 -> 0 | J55: =Input!J56-Input!J90 -> 0 | K55: =Input!K56-Input!K90 -> 0 | L55: =Input!L56-Input!L90 -> 0 | M55: =Input!M56-Input!M90 -> 0 | N55: =Input!N56-Input!N90 -> 0 | O55: =Input!O56-Input!O90 -> 0 | P55: =Input!P56-Input!P90 -> 0 | Q55: =Input!Q56-Input!Q90 -> 0
C56: =Asset17 -> 0 | G56: =Input!G57-Input!G91 -> 0 | H56: =Input!H57-Input!H91 -> 0 | I56: =Input!I57-Input!I91 -> 0 | J56: =Input!J57-Input!J91 -> 0 | K56: =Input!K57-Input!K91 -> 0 | L56: =Input!L57-Input!L91 -> 0 | M56: =Input!M57-Input!M91 -> 0 | N56: =Input!N57-Input!N91 -> 0 | O56: =Input!O57-Input!O91 -> 0 | P56: =Input!P57-Input!P91 -> 0 | Q56: =Input!Q57-Input!Q91 -> 0
C57: =Asset18 -> 0 | G57: =Input!G58-Input!G92 -> 0 | H57: =Input!H58-Input!H92 -> 0 | I57: =Input!I58-Input!I92 -> 0 | J57: =Input!J58-Input!J92 -> 0 | K57: =Input!K58-Input!K92 -> 0 | L57: =Input!L58-Input!L92 -> 0 | M57: =Input!M58-Input!M92 -> 0 | N57: =Input!N58-Input!N92 -> 0 | O57: =Input!O58-Input!O92 -> 0 | P57: =Input!P58-Input!P92 -> 0 | Q57: =Input!Q58-Input!Q92 -> 0
C58: =Asset19 -> 0 | G58: =Input!G59-Input!G93 -> 0 | H58: =Input!H59-Input!H93 -> 0 | I58: =Input!I59-Input!I93 -> 0 | J58: =Input!J59-Input!J93 -> 0 | K58: =Input!K59-Input!K93 -> 0 | L58: =Input!L59-Input!L93 -> 0 | M58: =Input!M59-Input!M93 -> 0 | N58: =Input!N59-Input!N93 -> 0 | O58: =Input!O59-Input!O93 -> 0 | P58: =Input!P59-Input!P93 -> 0 | Q58: =Input!Q59-Input!Q93 -> 0
C59: =Asset20 -> 0 | G59: =Input!G60-Input!G94 -> 0 | H59: =Input!H60-Input!H94 -> 0 | I59: =Input!I60-Input!I94 -> 0 | J59: =Input!J60-Input!J94 -> 0 | K59: =Input!K60-Input!K94 -> 0 | L59: =Input!L60-Input!L94 -> 0 | M59: =Input!M60-Input!M94 -> 0 | N59: =Input!N60-Input!N94 -> 0 | O59: =Input!O60-Input!O94 -> 0 | P59: =Input!P60-Input!P94 -> 0 | Q59: =Input!Q60-Input!Q94 -> 0
C60: =Asset21 -> 0 | G60: =Input!G61-Input!G95 -> 0 | H60: =Input!H61-Input!H95 -> 0 | I60: =Input!I61-Input!I95 -> 0 | J60: =Input!J61-Input!J95 -> 0 | K60: =Input!K61-Input!K95 -> 0 | L60: =Input!L61-Input!L95 -> 0 | M60: =Input!M61-Input!M95 -> 0 | N60: =Input!N61-Input!N95 -> 0 | O60: =Input!O61-Input!O95 -> 0 | P60: =Input!P61-Input!P95 -> 0 | Q60: =Input!Q61-Input!Q95 -> 0
C61: =Asset22 -> 0 | G61: =Input!G62-Input!G96 -> 0 | H61: =Input!H62-Input!H96 -> 0 | I61: =Input!I62-Input!I96 -> 0 | J61: =Input!J62-Input!J96 -> 0 | K61: =Input!K62-Input!K96 -> 0 | L61: =Input!L62-Input!L96 -> 0 | M61: =Input!M62-Input!M96 -> 0 | N61: =Input!N62-Input!N96 -> 0 | O61: =Input!O62-Input!O96 -> 0 | P61: =Input!P62-Input!P96 -> 0 | Q61: =Input!Q62-Input!Q96 -> 0
C62: =Asset23 -> 0 | G62: =Input!G63-Input!G97 -> 0 | H62: =Input!H63-Input!H97 -> 0 | I62: =Input!I63-Input!I97 -> 0 | J62: =Input!J63-Input!J97 -> 0 | K62: =Input!K63-Input!K97 -> 0 | L62: =Input!L63-Input!L97 -> 0 | M62: =Input!M63-Input!M97 -> 0 | N62: =Input!N63-Input!N97 -> 0 | O62: =Input!O63-Input!O97 -> 0 | P62: =Input!P63-Input!P97 -> 0 | Q62: =Input!Q63-Input!Q97 -> 0
C63: =Asset24 -> 0 | G63: =Input!G64-Input!G98 -> 0 | H63: =Input!H64-Input!H98 -> 0 | I63: =Input!I64-Input!I98 -> 0 | J63: =Input!J64-Input!J98 -> 0 | K63: =Input!K64-Input!K98 -> 0 | L63: =Input!L64-Input!L98 -> 0 | M63: =Input!M64-Input!M98 -> 0 | N63: =Input!N64-Input!N98 -> 0 | O63: =Input!O64-Input!O98 -> 0 | P63: =Input!P64-Input!P98 -> 0 | Q63: =Input!Q64-Input!Q98 -> 0
C64: =Asset25 -> 0 | G64: =Input!G65-Input!G99 -> 0 | H64: =Input!H65-Input!H99 -> 0 | I64: =Input!I65-Input!I99 -> 0 | J64: =Input!J65-Input!J99 -> 0 | K64: =Input!K65-Input!K99 -> 0 | L64: =Input!L65-Input!L99 -> 0 | M64: =Input!M65-Input!M99 -> 0 | N64: =Input!N65-Input!N99 -> 0 | O64: =Input!O65-Input!O99 -> 0 | P64: =Input!P65-Input!P99 -> 0 | Q64: =Input!Q65-Input!Q99 -> 0
C65: =Asset26 -> 0 | G65: =Input!G66-Input!G100 -> 0 | H65: =Input!H66-Input!H100 -> 0 | I65: =Input!I66-Input!I100 -> 0 | J65: =Input!J66-Input!J100 -> 0 | K65: =Input!K66-Input!K100 -> 0 | L65: =Input!L66-Input!L100 -> 0 | M65: =Input!M66-Input!M100 -> 0 | N65: =Input!N66-Input!N100 -> 0 | O65: =Input!O66-Input!O100 -> 0 | P65: =Input!P66-Input!P100 -> 0 | Q65: =Input!Q66-Input!Q100 -> 0
C66: =Asset27 -> 0 | G66: =Input!G67-Input!G101 -> 0 | H66: =Input!H67-Input!H101 -> 0 | I66: =Input!I67-Input!I101 -> 0 | J66: =Input!J67-Input!J101 -> 0 | K66: =Input!K67-Input!K101 -> 0 | L66: =Input!L67-Input!L101 -> 0 | M66: =Input!M67-Input!M101 -> 0 | N66: =Input!N67-Input!N101 -> 0 | O66: =Input!O67-Input!O101 -> 0 | P66: =Input!P67-Input!P101 -> 0 | Q66: =Input!Q67-Input!Q101 -> 0
C67: =Asset28 -> 0 | G67: =Input!G68-Input!G102 -> 0 | H67: =Input!H68-Input!H102 -> 0 | I67: =Input!I68-Input!I102 -> 0 | J67: =Input!J68-Input!J102 -> 0 | K67: =Input!K68-Input!K102 -> 0 | L67: =Input!L68-Input!L102 -> 0 | M67: =Input!M68-Input!M102 -> 0 | N67: =Input!N68-Input!N102 -> 0 | O67: =Input!O68-Input!O102 -> 0 | P67: =Input!P68-Input!P102 -> 0 | Q67: =Input!Q68-Input!Q102 -> 0
C68: =Asset29 -> 0 | G68: =Input!G69-Input!G103 -> 0 | H68: =Input!H69-Input!H103 -> 0 | I68: =Input!I69-Input!I103 -> 0 | J68: =Input!J69-Input!J103 -> 0 | K68: =Input!K69-Input!K103 -> 0 | L68: =Input!L69-Input!L103 -> 0 | M68: =Input!M69-Input!M103 -> 0 | N68: =Input!N69-Input!N103 -> 0 | O68: =Input!O69-Input!O103 -> 0 | P68: =Input!P69-Input!P103 -> 0 | Q68: =Input!Q69-Input!Q103 -> 0
C69: =Asset30 -> 0 | G69: =Input!G70-Input!G104 -> 0 | H69: =Input!H70-Input!H104 -> 0 | I69: =Input!I70-Input!I104 -> 0 | J69: =Input!J70-Input!J104 -> 0 | K69: =Input!K70-Input!K104 -> 0 | L69: =Input!L70-Input!L104 -> 0 | M69: =Input!M70-Input!M104 -> 0 | N69: =Input!N70-Input!N104 -> 0 | O69: =Input!O70-Input!O104 -> 0 | P69: =Input!P70-Input!P104 -> 0 | Q69: =Input!Q70-Input!Q104 -> 0
B71: Actual Tax Depreciation | G71: =G85+G99+G113+G127+G141+G155+G169+G183+G197+G211+G225+G239+G253+G267+G281+G295+G309+G323+G337+G351+G365+G379+G393+G407+G421+G435+G449+G463+G477+G491 -> 0 | H71: =H85+H99+H113+H127+H141+H155+H169+H183+H197+H211+H225+H239+H253+H267+H281+H295+H309+H323+H337+H351+H365+H379+H393+H407+H421+H435+H449+H463+H477+H491 -> 0 | I71: =I85+I99+I113+I127+I141+I155+I169+I183+I197+I211+I225+I239+I253+I267+I281+I295+I309+I323+I337+I351+I365+I379+I393+I407+I421+I435+I449+I463+I477+I491 -> 0 | J71: 0 | K71: 0 | L71: 0 | M71: 0 | N71: 0 | O71: 0 | P71: 0 | Q71: 0
B72: =Asset1 -> Subtransmission | D72: Initial Asset Base | G72: =IF(G$3>A1taxremlife,A1taxvalue-SUM($F72:F72),IF(A1taxremlife="N/A","n/a",A1taxvalue/A1taxremlife)) -> n/a | H72: =IF(H$3>A1taxremlife,A1taxvalue-SUM($F72:G72),IF(A1taxremlife="N/A","n/a",A1taxvalue/A1taxremlife)) -> n/a | I72: =IF(I$3>A1taxremlife,A1taxvalue-SUM($F72:H72),IF(A1taxremlife="N/A","n/a",A1taxvalue/A1taxremlife)) -> n/a | J72: =IF(J$3>A1taxremlife,A1taxvalue-SUM($F72:I72),IF(A1taxremlife="N/A","n/a",A1taxvalue/A1taxremlife)) -> n/a | K72: =IF(K$3>A1taxremlife,A1taxvalue-SUM($F72:J72),IF(A1taxremlife="N/A","n/a",A1taxvalue/A1taxremlife)) -> n/a | L72: =IF(L$3>A1taxremlife,A1taxvalue-SUM($F72:K72),IF(A1taxremlife="N/A","n/a",A1taxvalue/A1taxremlife)) -> n/a | M72: =IF(M$3>A1taxremlife,A1taxvalue-SUM($F72:L72),IF(A1taxremlife="N/A","n/a",A1taxvalue/A1taxremlife)) -> n/a | N72: =IF(N$3>A1taxremlife,A1taxvalue-SUM($F72:M72),IF(A1taxremlife="N/A","n/a",A1taxvalue/A1taxremlife)) -> n/a | O72: =IF(O$3>A1taxremlife,A1taxvalue-SUM($F72:N72),IF(A1taxremlife="N/A","n/a",A1taxvalue/A1taxremlife)) -> n/a | P72: =IF(P$3>A1taxremlife,A1taxvalue-SUM($F72:O72),IF(A1taxremlife="N/A","n/a",A1taxvalue/A1taxremlife)) -> n/a | Q72: =IF(Q$3>A1taxremlife,A1taxvalue-SUM($F72:P72),IF(A1taxremlife="N/A","n/a",A1taxvalue/A1taxremlife)) -> n/a
D73: Capex in year | E73: 0
E74: 1 | H74: =IF(A1taxstdlife="n/a","n/a",IF(H$3>(A1taxstdlife+$E74),(Input!$G$41-Input!$G$75)-SUM($G74:G74),(Input!$G$41-Input!$G$75)/A1taxstdlife)) -> n/a | I74: =IF(A1taxstdlife="n/a","n/a",IF(I$3>(A1taxstdlife+$E74),(Input!$G$41-Input!$G$75)-SUM($G74:H74),(Input!$G$41-Input!$G$75)/A1taxstdlife)) -> n/a | J74: =IF(A1taxstdlife="n/a","n/a",IF(J$3>(A1taxstdlife+$E74),(Input!$G$41-Input!$G$75)-SUM($G74:I74),(Input!$G$41-Input!$G$75)/A1taxstdlife)) -> n/a | K74: =IF(A1taxstdlife="n/a","n/a",IF(K$3>(A1taxstdlife+$E74),(Input!$G$41-Input!$G$75)-SUM($G74:J74),(Input!$G$41-Input!$G$75)/A1taxstdlife)) -> n/a | L74: =IF(A1taxstdlife="n/a","n/a",IF(L$3>(A1taxstdlife+$E74),(Input!$G$41-Input!$G$75)-SUM($G74:K74),(Input!$G$41-Input!$G$75)/A1taxstdlife)) -> n/a | M74: =IF(A1taxstdlife="n/a","n/a",IF(M$3>(A1taxstdlife+$E74),(Input!$G$41-Input!$G$75)-SUM($G74:L74),(Input!$G$41-Input!$G$75)/A1taxstdlife)) -> n/a | N74: =IF(A1taxstdlife="n/a","n/a",IF(N$3>(A1taxstdlife+$E74),(Input!$G$41-Input!$G$75)-SUM($G74:M74),(Input!$G$41-Input!$G$75)/A1taxstdlife)) -> n/a | O74: =IF(A1taxstdlife="n/a","n/a",IF(O$3>(A1taxstdlife+$E74),(Input!$G$41-Input!$G$75)-SUM($G74:N74),(Input!$G$41-Input!$G$75)/A1taxstdlife)) -> n/a | P74: =IF(A1taxstdlife="n/a","n/a",IF(P$3>(A1taxstdlife+$E74),(Input!$G$41-Input!$G$75)-SUM($G74:O74),(Input!$G$41-Input!$G$75)/A1taxstdlife)) -> n/a | Q74: =IF(A1taxstdlife="n/a","n/a",IF(Q$3>(A1taxstdlife+$E74),(Input!$G$41-Input!$G$75)-SUM($G74:P74),(Input!$G$41-Input!$G$75)/A1taxstdlife)) -> n/a
E75: 2 | I75: =IF(A1taxstdlife="n/a","n/a",IF(I$3>(A1taxstdlife+$E75),(Input!$H$41-Input!$H$75)-SUM($H75:H75),(Input!$H$41-Input!$H$75)/A1taxstdlife)) -> n/a | J75: =IF(A1taxstdlife="n/a","n/a",IF(J$3>(A1taxstdlife+$E75),(Input!$H$41-Input!$H$75)-SUM($H75:I75),(Input!$H$41-Input!$H$75)/A1taxstdlife)) -> n/a | K75: =IF(A1taxstdlife="n/a","n/a",IF(K$3>(A1taxstdlife+$E75),(Input!$H$41-Input!$H$75)-SUM($H75:J75),(Input!$H$41-Input!$H$75)/A1taxstdlife)) -> n/a | L75: =IF(A1taxstdlife="n/a","n/a",IF(L$3>(A1taxstdlife+$E75),(Input!$H$41-Input!$H$75)-SUM($H75:K75),(Input!$H$41-Input!$H$75)/A1taxstdlife)) -> n/a | M75: =IF(A1taxstdlife="n/a","n/a",IF(M$3>(A1taxstdlife+$E75),(Input!$H$41-Input!$H$75)-SUM($H75:L75),(Input!$H$41-Input!$H$75)/A1taxstdlife)) -> n/a | N75: =IF(A1taxstdlife="n/a","n/a",IF(N$3>(A1taxstdlife+$E75),(Input!$H$41-Input!$H$75)-SUM($H75:M75),(Input!$H$41-Input!$H$75)/A1taxstdlife)) -> n/a | O75: =IF(A1taxstdlife="n/a","n/a",IF(O$3>(A1taxstdlife+$E75),(Input!$H$41-Input!$H$75)-SUM($H75:N75),(Input!$H$41-Input!$H$75)/A1taxstdlife)) -> n/a | P75: =IF(A1taxstdlife="n/a","n/a",IF(P$3>(A1taxstdlife+$E75),(Input!$H$41-Input!$H$75)-SUM($H75:O75),(Input!$H$41-Input!$H$75)/A1taxstdlife)) -> n/a | Q75: =IF(A1taxstdlife="n/a","n/a",IF(Q$3>(A1taxstdlife+$E75),(Input!$H$41-Input!$H$75)-SUM($H75:P75),(Input!$H$41-Input!$H$75)/A1taxstdlife)) -> n/a
E76: 3 | J76: =IF(A1taxstdlife="n/a","n/a",IF(J$3>(A1taxstdlife+$E76),(Input!$I$41-Input!$I$75)-SUM($I76:I76),(Input!$I$41-Input!$I$75)/A1taxstdlife)) -> n/a | K76: =IF(A1taxstdlife="n/a","n/a",IF(K$3>(A1taxstdlife+$E76),(Input!$I$41-Input!$I$75)-SUM($I76:J76),(Input!$I$41-Input!$I$75)/A1taxstdlife)) -> n/a | L76: =IF(A1taxstdlife="n/a","n/a",IF(L$3>(A1taxstdlife+$E76),(Input!$I$41-Input!$I$75)-SUM($I76:K76),(Input!$I$41-Input!$I$75)/A1taxstdlife)) -> n/a | M76: =IF(A1taxstdlife="n/a","n/a",IF(M$3>(A1taxstdlife+$E76),(Input!$I$41-Input!$I$75)-SUM($I76:L76),(Input!$I$41-Input!$I$75)/A1taxstdlife)) -> n/a | N76: =IF(A1taxstdlife="n/a","n/a",IF(N$3>(A1taxstdlife+$E76),(Input!$I$41-Input!$I$75)-SUM($I76:M76),(Input!$I$41-Input!$I$75)/A1taxstdlife)) -> n/a | O76: =IF(A1taxstdlife="n/a","n/a",IF(O$3>(A1taxstdlife+$E76),(Input!$I$41-Input!$I$75)-SUM($I76:N76),(Input!$I$41-Input!$I$75)/A1taxstdlife)) -> n/a | P76: =IF(A1taxstdlife="n/a","n/a",IF(P$3>(A1taxstdlife+$E76),(Input!$I$41-Input!$I$75)-SUM($I76:O76),(Input!$I$41-Input!$I$75)/A1taxstdlife)) -> n/a | Q76: =IF(A1taxstdlife="n/a","n/a",IF(Q$3>(A1taxstdlife+$E76),(Input!$I$41-Input!$I$75)-SUM($I76:P76),(Input!$I$41-Input!$I$75)/A1taxstdlife)) -> n/a
E77: 4 | K77: =IF(A1taxstdlife="n/a","n/a",IF(K$3>(A1taxstdlife+$E77),(Input!$J$41-Input!$J$75)-SUM($J77:J77),(Input!$J$41-Input!$J$75)/A1taxstdlife)) -> n/a | L77: =IF(A1taxstdlife="n/a","n/a",IF(L$3>(A1taxstdlife+$E77),(Input!$J$41-Input!$J$75)-SUM($J77:K77),(Input!$J$41-Input!$J$75)/A1taxstdlife)) -> n/a | M77: =IF(A1taxstdlife="n/a","n/a",IF(M$3>(A1taxstdlife+$E77),(Input!$J$41-Input!$J$75)-SUM($J77:L77),(Input!$J$41-Input!$J$75)/A1taxstdlife)) -> n/a | N77: =IF(A1taxstdlife="n/a","n/a",IF(N$3>(A1taxstdlife+$E77),(Input!$J$41-Input!$J$75)-SUM($J77:M77),(Input!$J$41-Input!$J$75)/A1taxstdlife)) -> n/a | O77: =IF(A1taxstdlife="n/a","n/a",IF(O$3>(A1taxstdlife+$E77),(Input!$J$41-Input!$J$75)-SUM($J77:N77),(Input!$J$41-Input!$J$75)/A1taxstdlife)) -> n/a | P77: =IF(A1taxstdlife="n/a","n/a",IF(P$3>(A1taxstdlife+$E77),(Input!$J$41-Input!$J$75)-SUM($J77:O77),(Input!$J$41-Input!$J$75)/A1taxstdlife)) -> n/a | Q77: =IF(A1taxstdlife="n/a","n/a",IF(Q$3>(A1taxstdlife+$E77),(Input!$J$41-Input!$J$75)-SUM($J77:P77),(Input!$J$41-Input!$J$75)/A1taxstdlife)) -> n/a
E78: 5 | L78: =IF(A1taxstdlife="n/a","n/a",IF(L$3>(A1taxstdlife+$E78),(Input!$K$41-Input!$K$75)-SUM($K78:K78),(Input!$K$41-Input!$K$75)/A1taxstdlife)) -> n/a | M78: =IF(A1taxstdlife="n/a","n/a",IF(M$3>(A1taxstdlife+$E78),(Input!$K$41-Input!$K$75)-SUM($K78:L78),(Input!$K$41-Input!$K$75)/A1taxstdlife)) -> n/a | N78: =IF(A1taxstdlife="n/a","n/a",IF(N$3>(A1taxstdlife+$E78),(Input!$K$41-Input!$K$75)-SUM($K78:M78),(Input!$K$41-Input!$K$75)/A1taxstdlife)) -> n/a | O78: =IF(A1taxstdlife="n/a","n/a",IF(O$3>(A1taxstdlife+$E78),(Input!$K$41-Input!$K$75)-SUM($K78:N78),(Input!$K$41-Input!$K$75)/A1taxstdlife)) -> n/a | P78: =IF(A1taxstdlife="n/a","n/a",IF(P$3>(A1taxstdlife+$E78),(Input!$K$41-Input!$K$75)-SUM($K78:O78),(Input!$K$41-Input!$K$75)/A1taxstdlife)) -> n/a | Q78: =IF(A1taxstdlife="n/a","n/a",IF(Q$3>(A1taxstdlife+$E78),(Input!$K$41-Input!$K$75)-SUM($K78:P78),(Input!$K$41-Input!$K$75)/A1taxstdlife)) -> n/a
E79: 6 | M79: =IF(A1taxstdlife="n/a","n/a",IF(M$3>(A1taxstdlife+$E79),(Input!$L$41-Input!$L$75)-SUM($L79:L79),(Input!$L$41-Input!$L$75)/A1taxstdlife)) -> n/a | N79: =IF(A1taxstdlife="n/a","n/a",IF(N$3>(A1taxstdlife+$E79),(Input!$L$41-Input!$L$75)-SUM($L79:M79),(Input!$L$41-Input!$L$75)/A1taxstdlife)) -> n/a | O79: =IF(A1taxstdlife="n/a","n/a",IF(O$3>(A1taxstdlife+$E79),(Input!$L$41-Input!$L$75)-SUM($L79:N79),(Input!$L$41-Input!$L$75)/A1taxstdlife)) -> n/a | P79: =IF(A1taxstdlife="n/a","n/a",IF(P$3>(A1taxstdlife+$E79),(Input!$L$41-Input!$L$75)-SUM($L79:O79),(Input!$L$41-Input!$L$75)/A1taxstdlife)) -> n/a | Q79: =IF(A1taxstdlife="n/a","n/a",IF(Q$3>(A1taxstdlife+$E79),(Input!$L$41-Input!$L$75)-SUM($L79:P79),(Input!$L$41-Input!$L$75)/A1taxstdlife)) -> n/a
E80: 7 | N80: =IF(A1taxstdlife="n/a","n/a",IF(N$3>(A1taxstdlife+$E80),(Input!$M$41-Input!$M$75)-SUM($M80:M80),(Input!$M$41-Input!$M$75)/A1taxstdlife)) -> n/a | O80: =IF(A1taxstdlife="n/a","n/a",IF(O$3>(A1taxstdlife+$E80),(Input!$M$41-Input!$M$75)-SUM($M80:N80),(Input!$M$41-Input!$M$75)/A1taxstdlife)) -> n/a | P80: =IF(A1taxstdlife="n/a","n/a",IF(P$3>(A1taxstdlife+$E80),(Input!$M$41-Input!$M$75)-SUM($M80:O80),(Input!$M$41-Input!$M$75)/A1taxstdlife)) -> n/a | Q80: =IF(A1taxstdlife="n/a","n/a",IF(Q$3>(A1taxstdlife+$E80),(Input!$M$41-Input!$M$75)-SUM($M80:P80),(Input!$M$41-Input!$M$75)/A1taxstdlife)) -> n/a
E81: 8 | O81: =IF(A1taxstdlife="n/a","n/a",IF(O$3>(A1taxstdlife+$E81),(Input!$N$41-Input!$N$75)-SUM($N81:N81),(Input!$N$41-Input!$N$75)/A1taxstdlife)) -> n/a | P81: =IF(A1taxstdlife="n/a","n/a",IF(P$3>(A1taxstdlife+$E81),(Input!$N$41-Input!$N$75)-SUM($N81:O81),(Input!$N$41-Input!$N$75)/A1taxstdlife)) -> n/a | Q81: =IF(A1taxstdlife="n/a","n/a",IF(Q$3>(A1taxstdlife+$E81),(Input!$N$41-Input!$N$75)-SUM($N81:P81),(Input!$N$41-Input!$N$75)/A1taxstdlife)) -> n/a
E82: 9 | P82: =IF(A1taxstdlife="n/a","n/a",IF(P$3>(A1taxstdlife+$E82),(Input!$O$41-Input!$O$75)-SUM($O82:O82),(Input!$O$41-Input!$O$75)/A1taxstdlife)) -> n/a | Q82: =IF(A1taxstdlife="n/a","n/a",IF(Q$3>(A1taxstdlife+$E82),(Input!$O$41-Input!$O$75)-SUM($O82:P82),(Input!$O$41-Input!$O$75)/A1taxstdlife)) -> n/a
E83: 10 | Q83: =IF(A1taxstdlife="n/a","n/a",IF(Q$3>(A1taxstdlife+$E83),(Input!$P$41-Input!$P$75)-SUM($P83:P83),(Input!$P$41-Input!$P$75)/A1taxstdlife)) -> n/a
E84: 11
C85: =Asset1 -> Subtransmission | G85: =-SUM(G72:G84) -> 0 | H85: 0 | I85: 0 | J85: 0 | K85: 0 | L85: 0 | M85: =IF(Input!M173>0, -SUM(M72:M84), 0) -> 0 | N85: =IF(Input!N173>0, -SUM(N72:N84), 0) -> 0 | O85: =IF(Input!O173>0, -SUM(O72:O84), 0) -> 0 | P85: =IF(Input!P173>0, -SUM(P72:P84), 0) -> 0 | Q85: =IF(Input!Q173>0, -SUM(Q72:Q84), 0) -> 0
B86: =Asset2 -> Distribution system assets | D86: Initial Asset Base | G86: =IF(G$3>A2taxremlife,A2taxvalue-SUM($F86:F86),IF(A2taxremlife="N/A","n/a",A2taxvalue/A2taxremlife)) -> n/a | H86: =IF(H$3>A2taxremlife,A2taxvalue-SUM($F86:G86),IF(A2taxremlife="N/A","n/a",A2taxvalue/A2taxremlife)) -> n/a | I86: =IF(I$3>A2taxremlife,A2taxvalue-SUM($F86:H86),IF(A2taxremlife="N/A","n/a",A2taxvalue/A2taxremlife)) -> n/a | J86: =IF(J$3>A2taxremlife,A2taxvalue-SUM($F86:I86),IF(A2taxremlife="N/A","n/a",A2taxvalue/A2taxremlife)) -> n/a | K86: =IF(K$3>A2taxremlife,A2taxvalue-SUM($F86:J86),IF(A2taxremlife="N/A","n/a",A2taxvalue/A2taxremlife)) -> n/a | L86: =IF(L$3>A2taxremlife,A2taxvalue-SUM($F86:K86),IF(A2taxremlife="N/A","n/a",A2taxvalue/A2taxremlife)) -> n/a | M86: =IF(M$3>A2taxremlife,A2taxvalue-SUM($F86:L86),IF(A2taxremlife="N/A","n/a",A2taxvalue/A2taxremlife)) -> n/a | N86: =IF(N$3>A2taxremlife,A2taxvalue-SUM($F86:M86),IF(A2taxremlife="N/A","n/a",A2taxvalue/A2taxremlife)) -> n/a | O86: =IF(O$3>A2taxremlife,A2taxvalue-SUM($F86:N86),IF(A2taxremlife="N/A","n/a",A2taxvalue/A2taxremlife)) -> n/a | P86: =IF(P$3>A2taxremlife,A2taxvalue-SUM($F86:O86),IF(A2taxremlife="N/A","n/a",A2taxvalue/A2taxremlife)) -> n/a | Q86: =IF(Q$3>A2taxremlife,A2taxvalue-SUM($F86:P86),IF(A2taxremlife="N/A","n/a",A2taxvalue/A2taxremlife)) -> n/a
D87: Capex in year | E87: 0
E88: 1 | H88: =IF(A2taxstdlife="n/a","n/a",IF(H$3>(A2taxstdlife+$E88),(Input!$G$42-Input!$G$76)-SUM($G88:G88),(Input!$G$42-Input!$G$76)/A2taxstdlife)) -> n/a | I88: =IF(A2taxstdlife="n/a","n/a",IF(I$3>(A2taxstdlife+$E88),(Input!$G$42-Input!$G$76)-SUM($G88:H88),(Input!$G$42-Input!$G$76)/A2taxstdlife)) -> n/a | J88: =IF(A2taxstdlife="n/a","n/a",IF(J$3>(A2taxstdlife+$E88),(Input!$G$42-Input!$G$76)-SUM($G88:I88),(Input!$G$42-Input!$G$76)/A2taxstdlife)) -> n/a | K88: =IF(A2taxstdlife="n/a","n/a",IF(K$3>(A2taxstdlife+$E88),(Input!$G$42-Input!$G$76)-SUM($G88:J88),(Input!$G$42-Input!$G$76)/A2taxstdlife)) -> n/a | L88: =IF(A2taxstdlife="n/a","n/a",IF(L$3>(A2taxstdlife+$E88),(Input!$G$42-Input!$G$76)-SUM($G88:K88),(Input!$G$42-Input!$G$76)/A2taxstdlife)) -> n/a | M88: =IF(A2taxstdlife="n/a","n/a",IF(M$3>(A2taxstdlife+$E88),(Input!$G$42-Input!$G$76)-SUM($G88:L88),(Input!$G$42-Input!$G$76)/A2taxstdlife)) -> n/a | N88: =IF(A2taxstdlife="n/a","n/a",IF(N$3>(A2taxstdlife+$E88),(Input!$G$42-Input!$G$76)-SUM($G88:M88),(Input!$G$42-Input!$G$76)/A2taxstdlife)) -> n/a | O88: =IF(A2taxstdlife="n/a","n/a",IF(O$3>(A2taxstdlife+$E88),(Input!$G$42-Input!$G$76)-SUM($G88:N88),(Input!$G$42-Input!$G$76)/A2taxstdlife)) -> n/a | P88: =IF(A2taxstdlife="n/a","n/a",IF(P$3>(A2taxstdlife+$E88),(Input!$G$42-Input!$G$76)-SUM($G88:O88),(Input!$G$42-Input!$G$76)/A2taxstdlife)) -> n/a | Q88: =IF(A2taxstdlife="n/a","n/a",IF(Q$3>(A2taxstdlife+$E88),(Input!$G$42-Input!$G$76)-SUM($G88:P88),(Input!$G$42-Input!$G$76)/A2taxstdlife)) -> n/a
E89: 2 | I89: =IF(A2taxstdlife="n/a","n/a",IF(I$3>(A2taxstdlife+$E89),(Input!$H$42-Input!$H$76)-SUM($H89:H89),(Input!$H$42-Input!$H$76)/A2taxstdlife)) -> n/a | J89: =IF(A2taxstdlife="n/a","n/a",IF(J$3>(A2taxstdlife+$E89),(Input!$H$42-Input!$H$76)-SUM($H89:I89),(Input!$H$42-Input!$H$76)/A2taxstdlife)) -> n/a | K89: =IF(A2taxstdlife="n/a","n/a",IF(K$3>(A2taxstdlife+$E89),(Input!$H$42-Input!$H$76)-SUM($H89:J89),(Input!$H$42-Input!$H$76)/A2taxstdlife)) -> n/a | L89: =IF(A2taxstdlife="n/a","n/a",IF(L$3>(A2taxstdlife+$E89),(Input!$H$42-Input!$H$76)-SUM($H89:K89),(Input!$H$42-Input!$H$76)/A2taxstdlife)) -> n/a | M89: =IF(A2taxstdlife="n/a","n/a",IF(M$3>(A2taxstdlife+$E89),(Input!$H$42-Input!$H$76)-SUM($H89:L89),(Input!$H$42-Input!$H$76)/A2taxstdlife)) -> n/a | N89: =IF(A2taxstdlife="n/a","n/a",IF(N$3>(A2taxstdlife+$E89),(Input!$H$42-Input!$H$76)-SUM($H89:M89),(Input!$H$42-Input!$H$76)/A2taxstdlife)) -> n/a | O89: =IF(A2taxstdlife="n/a","n/a",IF(O$3>(A2taxstdlife+$E89),(Input!$H$42-Input!$H$76)-SUM($H89:N89),(Input!$H$42-Input!$H$76)/A2taxstdlife)) -> n/a | P89: =IF(A2taxstdlife="n/a","n/a",IF(P$3>(A2taxstdlife+$E89),(Input!$H$42-Input!$H$76)-SUM($H89:O89),(Input!$H$42-Input!$H$76)/A2taxstdlife)) -> n/a | Q89: =IF(A2taxstdlife="n/a","n/a",IF(Q$3>(A2taxstdlife+$E89),(Input!$H$42-Input!$H$76)-SUM($H89:P89),(Input!$H$42-Input!$H$76)/A2taxstdlife)) -> n/a
E90: 3 | J90: =IF(A2taxstdlife="n/a","n/a",IF(J$3>(A2taxstdlife+$E90),(Input!$I$42-Input!$I$76)-SUM($I90:I90),(Input!$I$42-Input!$I$76)/A2taxstdlife)) -> n/a | K90: =IF(A2taxstdlife="n/a","n/a",IF(K$3>(A2taxstdlife+$E90),(Input!$I$42-Input!$I$76)-SUM($I90:J90),(Input!$I$42-Input!$I$76)/A2taxstdlife)) -> n/a | L90: =IF(A2taxstdlife="n/a","n/a",IF(L$3>(A2taxstdlife+$E90),(Input!$I$42-Input!$I$76)-SUM($I90:K90),(Input!$I$42-Input!$I$76)/A2taxstdlife)) -> n/a | M90: =IF(A2taxstdlife="n/a","n/a",IF(M$3>(A2taxstdlife+$E90),(Input!$I$42-Input!$I$76)-SUM($I90:L90),(Input!$I$42-Input!$I$76)/A2taxstdlife)) -> n/a | N90: =IF(A2taxstdlife="n/a","n/a",IF(N$3>(A2taxstdlife+$E90),(Input!$I$42-Input!$I$76)-SUM($I90:M90),(Input!$I$42-Input!$I$76)/A2taxstdlife)) -> n/a | O90: =IF(A2taxstdlife="n/a","n/a",IF(O$3>(A2taxstdlife+$E90),(Input!$I$42-Input!$I$76)-SUM($I90:N90),(Input!$I$42-Input!$I$76)/A2taxstdlife)) -> n/a | P90: =IF(A2taxstdlife="n/a","n/a",IF(P$3>(A2taxstdlife+$E90),(Input!$I$42-Input!$I$76)-SUM($I90:O90),(Input!$I$42-Input!$I$76)/A2taxstdlife)) -> n/a | Q90: =IF(A2taxstdlife="n/a","n/a",IF(Q$3>(A2taxstdlife+$E90),(Input!$I$42-Input!$I$76)-SUM($I90:P90),(Input!$I$42-Input!$I$76)/A2taxstdlife)) -> n/a
E91: 4 | K91: =IF(A2taxstdlife="n/a","n/a",IF(K$3>(A2taxstdlife+$E91),(Input!$J$42-Input!$J$76)-SUM($J91:J91),(Input!$J$42-Input!$J$76)/A2taxstdlife)) -> n/a | L91: =IF(A2taxstdlife="n/a","n/a",IF(L$3>(A2taxstdlife+$E91),(Input!$J$42-Input!$J$76)-SUM($J91:K91),(Input!$J$42-Input!$J$76)/A2taxstdlife)) -> n/a | M91: =IF(A2taxstdlife="n/a","n/a",IF(M$3>(A2taxstdlife+$E91),(Input!$J$42-Input!$J$76)-SUM($J91:L91),(Input!$J$42-Input!$J$76)/A2taxstdlife)) -> n/a | N91: =IF(A2taxstdlife="n/a","n/a",IF(N$3>(A2taxstdlife+$E91),(Input!$J$42-Input!$J$76)-SUM($J91:M91),(Input!$J$42-Input!$J$76)/A2taxstdlife)) -> n/a | O91: =IF(A2taxstdlife="n/a","n/a",IF(O$3>(A2taxstdlife+$E91),(Input!$J$42-Input!$J$76)-SUM($J91:N91),(Input!$J$42-Input!$J$76)/A2taxstdlife)) -> n/a | P91: =IF(A2taxstdlife="n/a","n/a",IF(P$3>(A2taxstdlife+$E91),(Input!$J$42-Input!$J$76)-SUM($J91:O91),(Input!$J$42-Input!$J$76)/A2taxstdlife)) -> n/a | Q91: =IF(A2taxstdlife="n/a","n/a",IF(Q$3>(A2taxstdlife+$E91),(Input!$J$42-Input!$J$76)-SUM($J91:P91),(Input!$J$42-Input!$J$76)/A2taxstdlife)) -> n/a
E92: 5 | L92: =IF(A2taxstdlife="n/a","n/a",IF(L$3>(A2taxstdlife+$E92),(Input!$K$42-Input!$K$76)-SUM($K92:K92),(Input!$K$42-Input!$K$76)/A2taxstdlife)) -> n/a | M92: =IF(A2taxstdlife="n/a","n/a",IF(M$3>(A2taxstdlife+$E92),(Input!$K$42-Input!$K$76)-SUM($K92:L92),(Input!$K$42-Input!$K$76)/A2taxstdlife)) -> n/a | N92: =IF(A2taxstdlife="n/a","n/a",IF(N$3>(A2taxstdlife+$E92),(Input!$K$42-Input!$K$76)-SUM($K92:M92),(Input!$K$42-Input!$K$76)/A2taxstdlife)) -> n/a | O92: =IF(A2taxstdlife="n/a","n/a",IF(O$3>(A2taxstdlife+$E92),(Input!$K$42-Input!$K$76)-SUM($K92:N92),(Input!$K$42-Input!$K$76)/A2taxstdlife)) -> n/a | P92: =IF(A2taxstdlife="n/a","n/a",IF(P$3>(A2taxstdlife+$E92),(Input!$K$42-Input!$K$76)-SUM($K92:O92),(Input!$K$42-Input!$K$76)/A2taxstdlife)) -> n/a | Q92: =IF(A2taxstdlife="n/a","n/a",IF(Q$3>(A2taxstdlife+$E92),(Input!$K$42-Input!$K$76)-SUM($K92:P92),(Input!$K$42-Input!$K$76)/A2taxstdlife)) -> n/a
E93: 6 | M93: =IF(A2taxstdlife="n/a","n/a",IF(M$3>(A2taxstdlife+$E93),(Input!$L$42-Input!$L$76)-SUM($L93:L93),(Input!$L$42-Input!$L$76)/A2taxstdlife)) -> n/a | N93: =IF(A2taxstdlife="n/a","n/a",IF(N$3>(A2taxstdlife+$E93),(Input!$L$42-Input!$L$76)-SUM($L93:M93),(Input!$L$42-Input!$L$76)/A2taxstdlife)) -> n/a | O93: =IF(A2taxstdlife="n/a","n/a",IF(O$3>(A2taxstdlife+$E93),(Input!$L$42-Input!$L$76)-SUM($L93:N93),(Input!$L$42-Input!$L$76)/A2taxstdlife)) -> n/a | P93: =IF(A2taxstdlife="n/a","n/a",IF(P$3>(A2taxstdlife+$E93),(Input!$L$42-Input!$L$76)-SUM($L93:O93),(Input!$L$42-Input!$L$76)/A2taxstdlife)) -> n/a | Q93: =IF(A2taxstdlife="n/a","n/a",IF(Q$3>(A2taxstdlife+$E93),(Input!$L$42-Input!$L$76)-SUM($L93:P93),(Input!$L$42-Input!$L$76)/A2taxstdlife)) -> n/a
E94: 7 | N94: =IF(A2taxstdlife="n/a","n/a",IF(N$3>(A2taxstdlife+$E94),(Input!$M$42-Input!$M$76)-SUM($M94:M94),(Input!$M$42-Input!$M$76)/A2taxstdlife)) -> n/a | O94: =IF(A2taxstdlife="n/a","n/a",IF(O$3>(A2taxstdlife+$E94),(Input!$M$42-Input!$M$76)-SUM($M94:N94),(Input!$M$42-Input!$M$76)/A2taxstdlife)) -> n/a | P94: =IF(A2taxstdlife="n/a","n/a",IF(P$3>(A2taxstdlife+$E94),(Input!$M$42-Input!$M$76)-SUM($M94:O94),(Input!$M$42-Input!$M$76)/A2taxstdlife)) -> n/a | Q94: =IF(A2taxstdlife="n/a","n/a",IF(Q$3>(A2taxstdlife+$E94),(Input!$M$42-Input!$M$76)-SUM($M94:P94),(Input!$M$42-Input!$M$76)/A2taxstdlife)) -> n/a
E95: 8 | O95: =IF(A2taxstdlife="n/a","n/a",IF(O$3>(A2taxstdlife+$E95),(Input!$N$42-Input!$N$76)-SUM($N95:N95),(Input!$N$42-Input!$N$76)/A2taxstdlife)) -> n/a | P95: =IF(A2taxstdlife="n/a","n/a",IF(P$3>(A2taxstdlife+$E95),(Input!$N$42-Input!$N$76)-SUM($N95:O95),(Input!$N$42-Input!$N$76)/A2taxstdlife)) -> n/a | Q95: =IF(A2taxstdlife="n/a","n/a",IF(Q$3>(A2taxstdlife+$E95),(Input!$N$42-Input!$N$76)-SUM($N95:P95),(Input!$N$42-Input!$N$76)/A2taxstdlife)) -> n/a
E96: 9 | P96: =IF(A2taxstdlife="n/a","n/a",IF(P$3>(A2taxstdlife+$E96),(Input!$O$42-Input!$O$76)-SUM($O96:O96),(Input!$O$42-Input!$O$76)/A2taxstdlife)) -> n/a | Q96: =IF(A2taxstdlife="n/a","n/a",IF(Q$3>(A2taxstdlife+$E96),(Input!$O$42-Input!$O$76)-SUM($O96:P96),(Input!$O$42-Input!$O$76)/A2taxstdlife)) -> n/a
E97: 10 | Q97: =IF(A2taxstdlife="n/a","n/a",IF(Q$3>(A2taxstdlife+$E97),(Input!$P$42-Input!$P$76)-SUM($P97:P97),(Input!$P$42-Input!$P$76)/A2taxstdlife)) -> n/a
E98: 11
C99: =Asset2 -> Distribution system assets | G99: =-SUM(G86:G98) -> 0 | H99: 0 | I99: 0 | J99: 0 | K99: 0 | L99: 0 | M99: =IF(Input!M173>0, -SUM(M86:M98), 0) -> 0 | N99: =IF(Input!N173>0, -SUM(N86:N98), 0) -> 0 | O99: =IF(Input!O173>0, -SUM(O86:O98), 0) -> 0 | P99: =IF(Input!P173>0, -SUM(P86:P98), 0) -> 0 | Q99: =IF(Input!Q173>0, -SUM(Q86:Q98), 0) -> 0
B100: =Asset3 -> Metering | D100: Initial Asset Base | G100: =IF(G$3>A3taxremlife,A3taxvalue-SUM($F100:F100),IF(A3taxremlife="N/A","n/a",A3taxvalue/A3taxremlife)) -> n/a | H100: =IF(H$3>A3taxremlife,A3taxvalue-SUM($F100:G100),IF(A3taxremlife="N/A","n/a",A3taxvalue/A3taxremlife)) -> n/a | I100: =IF(I$3>A3taxremlife,A3taxvalue-SUM($F100:H100),IF(A3taxremlife="N/A","n/a",A3taxvalue/A3taxremlife)) -> n/a | J100: =IF(J$3>A3taxremlife,A3taxvalue-SUM($F100:I100),IF(A3taxremlife="N/A","n/a",A3taxvalue/A3taxremlife)) -> n/a | K100: =IF(K$3>A3taxremlife,A3taxvalue-SUM($F100:J100),IF(A3taxremlife="N/A","n/a",A3taxvalue/A3taxremlife)) -> n/a | L100: =IF(L$3>A3taxremlife,A3taxvalue-SUM($F100:K100),IF(A3taxremlife="N/A","n/a",A3taxvalue/A3taxremlife)) -> n/a | M100: =IF(M$3>A3taxremlife,A3taxvalue-SUM($F100:L100),IF(A3taxremlife="N/A","n/a",A3taxvalue/A3taxremlife)) -> n/a | N100: =IF(N$3>A3taxremlife,A3taxvalue-SUM($F100:M100),IF(A3taxremlife="N/A","n/a",A3taxvalue/A3taxremlife)) -> n/a | O100: =IF(O$3>A3taxremlife,A3taxvalue-SUM($F100:N100),IF(A3taxremlife="N/A","n/a",A3taxvalue/A3taxremlife)) -> n/a | P100: =IF(P$3>A3taxremlife,A3taxvalue-SUM($F100:O100),IF(A3taxremlife="N/A","n/a",A3taxvalue/A3taxremlife)) -> n/a | Q100: =IF(Q$3>A3taxremlife,A3taxvalue-SUM($F100:P100),IF(A3taxremlife="N/A","n/a",A3taxvalue/A3taxremlife)) -> n/a
D101: Capex in year | E101: 0
E102: 1 | H102: =IF(A3taxstdlife="n/a","n/a",IF(H$3>(A3taxstdlife+$E102),(Input!$G$43-Input!$G$77)-SUM($G102:G102),(Input!$G$43-Input!$G$77)/A3taxstdlife)) -> n/a | I102: =IF(A3taxstdlife="n/a","n/a",IF(I$3>(A3taxstdlife+$E102),(Input!$G$43-Input!$G$77)-SUM($G102:H102),(Input!$G$43-Input!$G$77)/A3taxstdlife)) -> n/a | J102: =IF(A3taxstdlife="n/a","n/a",IF(J$3>(A3taxstdlife+$E102),(Input!$G$43-Input!$G$77)-SUM($G102:I102),(Input!$G$43-Input!$G$77)/A3taxstdlife)) -> n/a | K102: =IF(A3taxstdlife="n/a","n/a",IF(K$3>(A3taxstdlife+$E102),(Input!$G$43-Input!$G$77)-SUM($G102:J102),(Input!$G$43-Input!$G$77)/A3taxstdlife)) -> n/a | L102: =IF(A3taxstdlife="n/a","n/a",IF(L$3>(A3taxstdlife+$E102),(Input!$G$43-Input!$G$77)-SUM($G102:K102),(Input!$G$43-Input!$G$77)/A3taxstdlife)) -> n/a | M102: =IF(A3taxstdlife="n/a","n/a",IF(M$3>(A3taxstdlife+$E102),(Input!$G$43-Input!$G$77)-SUM($G102:L102),(Input!$G$43-Input!$G$77)/A3taxstdlife)) -> n/a | N102: =IF(A3taxstdlife="n/a","n/a",IF(N$3>(A3taxstdlife+$E102),(Input!$G$43-Input!$G$77)-SUM($G102:M102),(Input!$G$43-Input!$G$77)/A3taxstdlife)) -> n/a | O102: =IF(A3taxstdlife="n/a","n/a",IF(O$3>(A3taxstdlife+$E102),(Input!$G$43-Input!$G$77)-SUM($G102:N102),(Input!$G$43-Input!$G$77)/A3taxstdlife)) -> n/a | P102: =IF(A3taxstdlife="n/a","n/a",IF(P$3>(A3taxstdlife+$E102),(Input!$G$43-Input!$G$77)-SUM($G102:O102),(Input!$G$43-Input!$G$77)/A3taxstdlife)) -> n/a | Q102: =IF(A3taxstdlife="n/a","n/a",IF(Q$3>(A3taxstdlife+$E102),(Input!$G$43-Input!$G$77)-SUM($G102:P102),(Input!$G$43-Input!$G$77)/A3taxstdlife)) -> n/a
E103: 2 | I103: =IF(A3taxstdlife="n/a","n/a",IF(I$3>(A3taxstdlife+$E103),(Input!$H$43-Input!$H$77)-SUM($H103:H103),(Input!$H$43-Input!$H$77)/A3taxstdlife)) -> n/a | J103: =IF(A3taxstdlife="n/a","n/a",IF(J$3>(A3taxstdlife+$E103),(Input!$H$43-Input!$H$77)-SUM($H103:I103),(Input!$H$43-Input!$H$77)/A3taxstdlife)) -> n/a | K103: =IF(A3taxstdlife="n/a","n/a",IF(K$3>(A3taxstdlife+$E103),(Input!$H$43-Input!$H$77)-SUM($H103:J103),(Input!$H$43-Input!$H$77)/A3taxstdlife)) -> n/a | L103: =IF(A3taxstdlife="n/a","n/a",IF(L$3>(A3taxstdlife+$E103),(Input!$H$43-Input!$H$77)-SUM($H103:K103),(Input!$H$43-Input!$H$77)/A3taxstdlife)) -> n/a | M103: =IF(A3taxstdlife="n/a","n/a",IF(M$3>(A3taxstdlife+$E103),(Input!$H$43-Input!$H$77)-SUM($H103:L103),(Input!$H$43-Input!$H$77)/A3taxstdlife)) -> n/a | N103: =IF(A3taxstdlife="n/a","n/a",IF(N$3>(A3taxstdlife+$E103),(Input!$H$43-Input!$H$77)-SUM($H103:M103),(Input!$H$43-Input!$H$77)/A3taxstdlife)) -> n/a | O103: =IF(A3taxstdlife="n/a","n/a",IF(O$3>(A3taxstdlife+$E103),(Input!$H$43-Input!$H$77)-SUM($H103:N103),(Input!$H$43-Input!$H$77)/A3taxstdlife)) -> n/a | P103: =IF(A3taxstdlife="n/a","n/a",IF(P$3>(A3taxstdlife+$E103),(Input!$H$43-Input!$H$77)-SUM($H103:O103),(Input!$H$43-Input!$H$77)/A3taxstdlife)) -> n/a | Q103: =IF(A3taxstdlife="n/a","n/a",IF(Q$3>(A3taxstdlife+$E103),(Input!$H$43-Input!$H$77)-SUM($H103:P103),(Input!$H$43-Input!$H$77)/A3taxstdlife)) -> n/a
E104: 3 | J104: =IF(A3taxstdlife="n/a","n/a",IF(J$3>(A3taxstdlife+$E104),(Input!$I$43-Input!$I$77)-SUM($I104:I104),(Input!$I$43-Input!$I$77)/A3taxstdlife)) -> n/a | K104: =IF(A3taxstdlife="n/a","n/a",IF(K$3>(A3taxstdlife+$E104),(Input!$I$43-Input!$I$77)-SUM($I104:J104),(Input!$I$43-Input!$I$77)/A3taxstdlife)) -> n/a | L104: =IF(A3taxstdlife="n/a","n/a",IF(L$3>(A3taxstdlife+$E104),(Input!$I$43-Input!$I$77)-SUM($I104:K104),(Input!$I$43-Input!$I$77)/A3taxstdlife)) -> n/a | M104: =IF(A3taxstdlife="n/a","n/a",IF(M$3>(A3taxstdlife+$E104),(Input!$I$43-Input!$I$77)-SUM($I104:L104),(Input!$I$43-Input!$I$77)/A3taxstdlife)) -> n/a | N104: =IF(A3taxstdlife="n/a","n/a",IF(N$3>(A3taxstdlife+$E104),(Input!$I$43-Input!$I$77)-SUM($I104:M104),(Input!$I$43-Input!$I$77)/A3taxstdlife)) -> n/a | O104: =IF(A3taxstdlife="n/a","n/a",IF(O$3>(A3taxstdlife+$E104),(Input!$I$43-Input!$I$77)-SUM($I104:N104),(Input!$I$43-Input!$I$77)/A3taxstdlife)) -> n/a | P104: =IF(A3taxstdlife="n/a","n/a",IF(P$3>(A3taxstdlife+$E104),(Input!$I$43-Input!$I$77)-SUM($I104:O104),(Input!$I$43-Input!$I$77)/A3taxstdlife)) -> n/a | Q104: =IF(A3taxstdlife="n/a","n/a",IF(Q$3>(A3taxstdlife+$E104),(Input!$I$43-Input!$I$77)-SUM($I104:P104),(Input!$I$43-Input!$I$77)/A3taxstdlife)) -> n/a
E105: 4 | K105: =IF(A3taxstdlife="n/a","n/a",IF(K$3>(A3taxstdlife+$E105),(Input!$J$43-Input!$J$77)-SUM($J105:J105),(Input!$J$43-Input!$J$77)/A3taxstdlife)) -> n/a | L105: =IF(A3taxstdlife="n/a","n/a",IF(L$3>(A3taxstdlife+$E105),(Input!$J$43-Input!$J$77)-SUM($J105:K105),(Input!$J$43-Input!$J$77)/A3taxstdlife)) -> n/a | M105: =IF(A3taxstdlife="n/a","n/a",IF(M$3>(A3taxstdlife+$E105),(Input!$J$43-Input!$J$77)-SUM($J105:L105),(Input!$J$43-Input!$J$77)/A3taxstdlife)) -> n/a | N105: =IF(A3taxstdlife="n/a","n/a",IF(N$3>(A3taxstdlife+$E105),(Input!$J$43-Input!$J$77)-SUM($J105:M105),(Input!$J$43-Input!$J$77)/A3taxstdlife)) -> n/a | O105: =IF(A3taxstdlife="n/a","n/a",IF(O$3>(A3taxstdlife+$E105),(Input!$J$43-Input!$J$77)-SUM($J105:N105),(Input!$J$43-Input!$J$77)/A3taxstdlife)) -> n/a | P105: =IF(A3taxstdlife="n/a","n/a",IF(P$3>(A3taxstdlife+$E105),(Input!$J$43-Input!$J$77)-SUM($J105:O105),(Input!$J$43-Input!$J$77)/A3taxstdlife)) -> n/a | Q105: =IF(A3taxstdlife="n/a","n/a",IF(Q$3>(A3taxstdlife+$E105),(Input!$J$43-Input!$J$77)-SUM($J105:P105),(Input!$J$43-Input!$J$77)/A3taxstdlife)) -> n/a
E106: 5 | L106: =IF(A3taxstdlife="n/a","n/a",IF(L$3>(A3taxstdlife+$E106),(Input!$K$43-Input!$K$77)-SUM($K106:K106),(Input!$K$43-Input!$K$77)/A3taxstdlife)) -> n/a | M106: =IF(A3taxstdlife="n/a","n/a",IF(M$3>(A3taxstdlife+$E106),(Input!$K$43-Input!$K$77)-SUM($K106:L106),(Input!$K$43-Input!$K$77)/A3taxstdlife)) -> n/a | N106: =IF(A3taxstdlife="n/a","n/a",IF(N$3>(A3taxstdlife+$E106),(Input!$K$43-Input!$K$77)-SUM($K106:M106),(Input!$K$43-Input!$K$77)/A3taxstdlife)) -> n/a | O106: =IF(A3taxstdlife="n/a","n/a",IF(O$3>(A3taxstdlife+$E106),(Input!$K$43-Input!$K$77)-SUM($K106:N106),(Input!$K$43-Input!$K$77)/A3taxstdlife)) -> n/a | P106: =IF(A3taxstdlife="n/a","n/a",IF(P$3>(A3taxstdlife+$E106),(Input!$K$43-Input!$K$77)-SUM($K106:O106),(Input!$K$43-Input!$K$77)/A3taxstdlife)) -> n/a | Q106: =IF(A3taxstdlife="n/a","n/a",IF(Q$3>(A3taxstdlife+$E106),(Input!$K$43-Input!$K$77)-SUM($K106:P106),(Input!$K$43-Input!$K$77)/A3taxstdlife)) -> n/a
E107: 6 | M107: =IF(A3taxstdlife="n/a","n/a",IF(M$3>(A3taxstdlife+$E107),(Input!$L$43-Input!$L$77)-SUM($L107:L107),(Input!$L$43-Input!$L$77)/A3taxstdlife)) -> n/a | N107: =IF(A3taxstdlife="n/a","n/a",IF(N$3>(A3taxstdlife+$E107),(Input!$L$43-Input!$L$77)-SUM($L107:M107),(Input!$L$43-Input!$L$77)/A3taxstdlife)) -> n/a | O107: =IF(A3taxstdlife="n/a","n/a",IF(O$3>(A3taxstdlife+$E107),(Input!$L$43-Input!$L$77)-SUM($L107:N107),(Input!$L$43-Input!$L$77)/A3taxstdlife)) -> n/a | P107: =IF(A3taxstdlife="n/a","n/a",IF(P$3>(A3taxstdlife+$E107),(Input!$L$43-Input!$L$77)-SUM($L107:O107),(Input!$L$43-Input!$L$77)/A3taxstdlife)) -> n/a | Q107: =IF(A3taxstdlife="n/a","n/a",IF(Q$3>(A3taxstdlife+$E107),(Input!$L$43-Input!$L$77)-SUM($L107:P107),(Input!$L$43-Input!$L$77)/A3taxstdlife)) -> n/a
E108: 7 | N108: =IF(A3taxstdlife="n/a","n/a",IF(N$3>(A3taxstdlife+$E108),(Input!$M$43-Input!$M$77)-SUM($M108:M108),(Input!$M$43-Input!$M$77)/A3taxstdlife)) -> n/a | O108: =IF(A3taxstdlife="n/a","n/a",IF(O$3>(A3taxstdlife+$E108),(Input!$M$43-Input!$M$77)-SUM($M108:N108),(Input!$M$43-Input!$M$77)/A3taxstdlife)) -> n/a | P108: =IF(A3taxstdlife="n/a","n/a",IF(P$3>(A3taxstdlife+$E108),(Input!$M$43-Input!$M$77)-SUM($M108:O108),(Input!$M$43-Input!$M$77)/A3taxstdlife)) -> n/a | Q108: =IF(A3taxstdlife="n/a","n/a",IF(Q$3>(A3taxstdlife+$E108),(Input!$M$43-Input!$M$77)-SUM($M108:P108),(Input!$M$43-Input!$M$77)/A3taxstdlife)) -> n/a
E109: 8 | O109: =IF(A3taxstdlife="n/a","n/a",IF(O$3>(A3taxstdlife+$E109),(Input!$N$43-Input!$N$77)-SUM($N109:N109),(Input!$N$43-Input!$N$77)/A3taxstdlife)) -> n/a | P109: =IF(A3taxstdlife="n/a","n/a",IF(P$3>(A3taxstdlife+$E109),(Input!$N$43-Input!$N$77)-SUM($N109:O109),(Input!$N$43-Input!$N$77)/A3taxstdlife)) -> n/a | Q109: =IF(A3taxstdlife="n/a","n/a",IF(Q$3>(A3taxstdlife+$E109),(Input!$N$43-Input!$N$77)-SUM($N109:P109),(Input!$N$43-Input!$N$77)/A3taxstdlife)) -> n/a
E110: 9 | P110: =IF(A3taxstdlife="n/a","n/a",IF(P$3>(A3taxstdlife+$E110),(Input!$O$43-Input!$O$77)-SUM($O110:O110),(Input!$O$43-Input!$O$77)/A3taxstdlife)) -> n/a | Q110: =IF(A3taxstdlife="n/a","n/a",IF(Q$3>(A3taxstdlife+$E110),(Input!$O$43-Input!$O$77)-SUM($O110:P110),(Input!$O$43-Input!$O$77)/A3taxstdlife)) -> n/a
E111: 10 | Q111: =IF(A3taxstdlife="n/a","n/a",IF(Q$3>(A3taxstdlife+$E111),(Input!$P$43-Input!$P$77)-SUM($P111:P111),(Input!$P$43-Input!$P$77)/A3taxstdlife)) -> n/a
E112: 11
C113: =Asset3 -> Metering | G113: =-SUM(G100:G112) -> 0 | H113: 0 | I113: 0 | J113: 0 | K113: 0 | L113: 0 | M113: =IF(Input!M173>0, -SUM(M100:M112), 0) -> 0 | N113: =IF(Input!N173>0, -SUM(N100:N112), 0) -> 0 | O113: =IF(Input!O173>0, -SUM(O100:O112), 0) -> 0 | P113: =IF(Input!P173>0, -SUM(P100:P112), 0) -> 0 | Q113: =IF(Input!Q173>0, -SUM(Q100:Q112), 0) -> 0
B114: =Asset4 -> Public Lighting | D114: Initial Asset Base | G114: =IF(G$3>A4taxremlife,A4taxvalue-SUM($F114:F114),IF(A4taxremlife="N/A","n/a",A4taxvalue/A4taxremlife)) -> n/a | H114: =IF(H$3>A4taxremlife,A4taxvalue-SUM($F114:G114),IF(A4taxremlife="N/A","n/a",A4taxvalue/A4taxremlife)) -> n/a | I114: =IF(I$3>A4taxremlife,A4taxvalue-SUM($F114:H114),IF(A4taxremlife="N/A","n/a",A4taxvalue/A4taxremlife)) -> n/a | J114: =IF(J$3>A4taxremlife,A4taxvalue-SUM($F114:I114),IF(A4taxremlife="N/A","n/a",A4taxvalue/A4taxremlife)) -> n/a | K114: =IF(K$3>A4taxremlife,A4taxvalue-SUM($F114:J114),IF(A4taxremlife="N/A","n/a",A4taxvalue/A4taxremlife)) -> n/a | L114: =IF(L$3>A4taxremlife,A4taxvalue-SUM($F114:K114),IF(A4taxremlife="N/A","n/a",A4taxvalue/A4taxremlife)) -> n/a | M114: =IF(M$3>A4taxremlife,A4taxvalue-SUM($F114:L114),IF(A4taxremlife="N/A","n/a",A4taxvalue/A4taxremlife)) -> n/a | N114: =IF(N$3>A4taxremlife,A4taxvalue-SUM($F114:M114),IF(A4taxremlife="N/A","n/a",A4taxvalue/A4taxremlife)) -> n/a | O114: =IF(O$3>A4taxremlife,A4taxvalue-SUM($F114:N114),IF(A4taxremlife="N/A","n/a",A4taxvalue/A4taxremlife)) -> n/a | P114: =IF(P$3>A4taxremlife,A4taxvalue-SUM($F114:O114),IF(A4taxremlife="N/A","n/a",A4taxvalue/A4taxremlife)) -> n/a | Q114: =IF(Q$3>A4taxremlife,A4taxvalue-SUM($F114:P114),IF(A4taxremlife="N/A","n/a",A4taxvalue/A4taxremlife)) -> n/a
D115: Capex in year | E115: 0
E116: 1 | H116: =IF(A4taxstdlife="n/a","n/a",IF(H$3>(A4taxstdlife+$E116),(Input!$G$44-Input!$G$78)-SUM($G116:G116),(Input!$G$44-Input!$G$78)/A4taxstdlife)) -> n/a | I116: =IF(A4taxstdlife="n/a","n/a",IF(I$3>(A4taxstdlife+$E116),(Input!$G$44-Input!$G$78)-SUM($G116:H116),(Input!$G$44-Input!$G$78)/A4taxstdlife)) -> n/a | J116: =IF(A4taxstdlife="n/a","n/a",IF(J$3>(A4taxstdlife+$E116),(Input!$G$44-Input!$G$78)-SUM($G116:I116),(Input!$G$44-Input!$G$78)/A4taxstdlife)) -> n/a | K116: =IF(A4taxstdlife="n/a","n/a",IF(K$3>(A4taxstdlife+$E116),(Input!$G$44-Input!$G$78)-SUM($G116:J116),(Input!$G$44-Input!$G$78)/A4taxstdlife)) -> n/a | L116: =IF(A4taxstdlife="n/a","n/a",IF(L$3>(A4taxstdlife+$E116),(Input!$G$44-Input!$G$78)-SUM($G116:K116),(Input!$G$44-Input!$G$78)/A4taxstdlife)) -> n/a | M116: =IF(A4taxstdlife="n/a","n/a",IF(M$3>(A4taxstdlife+$E116),(Input!$G$44-Input!$G$78)-SUM($G116:L116),(Input!$G$44-Input!$G$78)/A4taxstdlife)) -> n/a | N116: =IF(A4taxstdlife="n/a","n/a",IF(N$3>(A4taxstdlife+$E116),(Input!$G$44-Input!$G$78)-SUM($G116:M116),(Input!$G$44-Input!$G$78)/A4taxstdlife)) -> n/a | O116: =IF(A4taxstdlife="n/a","n/a",IF(O$3>(A4taxstdlife+$E116),(Input!$G$44-Input!$G$78)-SUM($G116:N116),(Input!$G$44-Input!$G$78)/A4taxstdlife)) -> n/a | P116: =IF(A4taxstdlife="n/a","n/a",IF(P$3>(A4taxstdlife+$E116),(Input!$G$44-Input!$G$78)-SUM($G116:O116),(Input!$G$44-Input!$G$78)/A4taxstdlife)) -> n/a | Q116: =IF(A4taxstdlife="n/a","n/a",IF(Q$3>(A4taxstdlife+$E116),(Input!$G$44-Input!$G$78)-SUM($G116:P116),(Input!$G$44-Input!$G$78)/A4taxstdlife)) -> n/a
E117: 2 | I117: =IF(A4taxstdlife="n/a","n/a",IF(I$3>(A4taxstdlife+$E117),(Input!$H$44-Input!$H$78)-SUM($H117:H117),(Input!$H$44-Input!$H$78)/A4taxstdlife)) -> n/a | J117: =IF(A4taxstdlife="n/a","n/a",IF(J$3>(A4taxstdlife+$E117),(Input!$H$44-Input!$H$78)-SUM($H117:I117),(Input!$H$44-Input!$H$78)/A4taxstdlife)) -> n/a | K117: =IF(A4taxstdlife="n/a","n/a",IF(K$3>(A4taxstdlife+$E117),(Input!$H$44-Input!$H$78)-SUM($H117:J117),(Input!$H$44-Input!$H$78)/A4taxstdlife)) -> n/a | L117: =IF(A4taxstdlife="n/a","n/a",IF(L$3>(A4taxstdlife+$E117),(Input!$H$44-Input!$H$78)-SUM($H117:K117),(Input!$H$44-Input!$H$78)/A4taxstdlife)) -> n/a | M117: =IF(A4taxstdlife="n/a","n/a",IF(M$3>(A4taxstdlife+$E117),(Input!$H$44-Input!$H$78)-SUM($H117:L117),(Input!$H$44-Input!$H$78)/A4taxstdlife)) -> n/a | N117: =IF(A4taxstdlife="n/a","n/a",IF(N$3>(A4taxstdlife+$E117),(Input!$H$44-Input!$H$78)-SUM($H117:M117),(Input!$H$44-Input!$H$78)/A4taxstdlife)) -> n/a | O117: =IF(A4taxstdlife="n/a","n/a",IF(O$3>(A4taxstdlife+$E117),(Input!$H$44-Input!$H$78)-SUM($H117:N117),(Input!$H$44-Input!$H$78)/A4taxstdlife)) -> n/a | P117: =IF(A4taxstdlife="n/a","n/a",IF(P$3>(A4taxstdlife+$E117),(Input!$H$44-Input!$H$78)-SUM($H117:O117),(Input!$H$44-Input!$H$78)/A4taxstdlife)) -> n/a | Q117: =IF(A4taxstdlife="n/a","n/a",IF(Q$3>(A4taxstdlife+$E117),(Input!$H$44-Input!$H$78)-SUM($H117:P117),(Input!$H$44-Input!$H$78)/A4taxstdlife)) -> n/a
E118: 3 | J118: =IF(A4taxstdlife="n/a","n/a",IF(J$3>(A4taxstdlife+$E118),(Input!$I$44-Input!$I$78)-SUM($I118:I118),(Input!$I$44-Input!$I$78)/A4taxstdlife)) -> n/a | K118: =IF(A4taxstdlife="n/a","n/a",IF(K$3>(A4taxstdlife+$E118),(Input!$I$44-Input!$I$78)-SUM($I118:J118),(Input!$I$44-Input!$I$78)/A4taxstdlife)) -> n/a | L118: =IF(A4taxstdlife="n/a","n/a",IF(L$3>(A4taxstdlife+$E118),(Input!$I$44-Input!$I$78)-SUM($I118:K118),(Input!$I$44-Input!$I$78)/A4taxstdlife)) -> n/a | M118: =IF(A4taxstdlife="n/a","n/a",IF(M$3>(A4taxstdlife+$E118),(Input!$I$44-Input!$I$78)-SUM($I118:L118),(Input!$I$44-Input!$I$78)/A4taxstdlife)) -> n/a | N118: =IF(A4taxstdlife="n/a","n/a",IF(N$3>(A4taxstdlife+$E118),(Input!$I$44-Input!$I$78)-SUM($I118:M118),(Input!$I$44-Input!$I$78)/A4taxstdlife)) -> n/a | O118: =IF(A4taxstdlife="n/a","n/a",IF(O$3>(A4taxstdlife+$E118),(Input!$I$44-Input!$I$78)-SUM($I118:N118),(Input!$I$44-Input!$I$78)/A4taxstdlife)) -> n/a | P118: =IF(A4taxstdlife="n/a","n/a",IF(P$3>(A4taxstdlife+$E118),(Input!$I$44-Input!$I$78)-SUM($I118:O118),(Input!$I$44-Input!$I$78)/A4taxstdlife)) -> n/a | Q118: =IF(A4taxstdlife="n/a","n/a",IF(Q$3>(A4taxstdlife+$E118),(Input!$I$44-Input!$I$78)-SUM($I118:P118),(Input!$I$44-Input!$I$78)/A4taxstdlife)) -> n/a
E119: 4 | K119: =IF(A4taxstdlife="n/a","n/a",IF(K$3>(A4taxstdlife+$E119),(Input!$J$44-Input!$J$78)-SUM($J119:J119),(Input!$J$44-Input!$J$78)/A4taxstdlife)) -> n/a | L119: =IF(A4taxstdlife="n/a","n/a",IF(L$3>(A4taxstdlife+$E119),(Input!$J$44-Input!$J$78)-SUM($J119:K119),(Input!$J$44-Input!$J$78)/A4taxstdlife)) -> n/a | M119: =IF(A4taxstdlife="n/a","n/a",IF(M$3>(A4taxstdlife+$E119),(Input!$J$44-Input!$J$78)-SUM($J119:L119),(Input!$J$44-Input!$J$78)/A4taxstdlife)) -> n/a | N119: =IF(A4taxstdlife="n/a","n/a",IF(N$3>(A4taxstdlife+$E119),(Input!$J$44-Input!$J$78)-SUM($J119:M119),(Input!$J$44-Input!$J$78)/A4taxstdlife)) -> n/a | O119: =IF(A4taxstdlife="n/a","n/a",IF(O$3>(A4taxstdlife+$E119),(Input!$J$44-Input!$J$78)-SUM($J119:N119),(Input!$J$44-Input!$J$78)/A4taxstdlife)) -> n/a | P119: =IF(A4taxstdlife="n/a","n/a",IF(P$3>(A4taxstdlife+$E119),(Input!$J$44-Input!$J$78)-SUM($J119:O119),(Input!$J$44-Input!$J$78)/A4taxstdlife)) -> n/a | Q119: =IF(A4taxstdlife="n/a","n/a",IF(Q$3>(A4taxstdlife+$E119),(Input!$J$44-Input!$J$78)-SUM($J119:P119),(Input!$J$44-Input!$J$78)/A4taxstdlife)) -> n/a
E120: 5 | L120: =IF(A4taxstdlife="n/a","n/a",IF(L$3>(A4taxstdlife+$E120),(Input!$K$44-Input!$K$78)-SUM($K120:K120),(Input!$K$44-Input!$K$78)/A4taxstdlife)) -> n/a | M120: =IF(A4taxstdlife="n/a","n/a",IF(M$3>(A4taxstdlife+$E120),(Input!$K$44-Input!$K$78)-SUM($K120:L120),(Input!$K$44-Input!$K$78)/A4taxstdlife)) -> n/a | N120: =IF(A4taxstdlife="n/a","n/a",IF(N$3>(A4taxstdlife+$E120),(Input!$K$44-Input!$K$78)-SUM($K120:M120),(Input!$K$44-Input!$K$78)/A4taxstdlife)) -> n/a | O120: =IF(A4taxstdlife="n/a","n/a",IF(O$3>(A4taxstdlife+$E120),(Input!$K$44-Input!$K$78)-SUM($K120:N120),(Input!$K$44-Input!$K$78)/A4taxstdlife)) -> n/a | P120: =IF(A4taxstdlife="n/a","n/a",IF(P$3>(A4taxstdlife+$E120),(Input!$K$44-Input!$K$78)-SUM($K120:O120),(Input!$K$44-Input!$K$78)/A4taxstdlife)) -> n/a | Q120: =IF(A4taxstdlife="n/a","n/a",IF(Q$3>(A4taxstdlife+$E120),(Input!$K$44-Input!$K$78)-SUM($K120:P120),(Input!$K$44-Input!$K$78)/A4taxstdlife)) -> n/a
E121: 6 | M121: =IF(A4taxstdlife="n/a","n/a",IF(M$3>(A4taxstdlife+$E121),(Input!$L$44-Input!$L$78)-SUM($L121:L121),(Input!$L$44-Input!$L$78)/A4taxstdlife)) -> n/a | N121: =IF(A4taxstdlife="n/a","n/a",IF(N$3>(A4taxstdlife+$E121),(Input!$L$44-Input!$L$78)-SUM($L121:M121),(Input!$L$44-Input!$L$78)/A4taxstdlife)) -> n/a | O121: =IF(A4taxstdlife="n/a","n/a",IF(O$3>(A4taxstdlife+$E121),(Input!$L$44-Input!$L$78)-SUM($L121:N121),(Input!$L$44-Input!$L$78)/A4taxstdlife)) -> n/a | P121: =IF(A4taxstdlife="n/a","n/a",IF(P$3>(A4taxstdlife+$E121),(Input!$L$44-Input!$L$78)-SUM($L121:O121),(Input!$L$44-Input!$L$78)/A4taxstdlife)) -> n/a | Q121: =IF(A4taxstdlife="n/a","n/a",IF(Q$3>(A4taxstdlife+$E121),(Input!$L$44-Input!$L$78)-SUM($L121:P121),(Input!$L$44-Input!$L$78)/A4taxstdlife)) -> n/a
E122: 7 | N122: =IF(A4taxstdlife="n/a","n/a",IF(N$3>(A4taxstdlife+$E122),(Input!$M$44-Input!$M$78)-SUM($M122:M122),(Input!$M$44-Input!$M$78)/A4taxstdlife)) -> n/a | O122: =IF(A4taxstdlife="n/a","n/a",IF(O$3>(A4taxstdlife+$E122),(Input!$M$44-Input!$M$78)-SUM($M122:N122),(Input!$M$44-Input!$M$78)/A4taxstdlife)) -> n/a | P122: =IF(A4taxstdlife="n/a","n/a",IF(P$3>(A4taxstdlife+$E122),(Input!$M$44-Input!$M$78)-SUM($M122:O122),(Input!$M$44-Input!$M$78)/A4taxstdlife)) -> n/a | Q122: =IF(A4taxstdlife="n/a","n/a",IF(Q$3>(A4taxstdlife+$E122),(Input!$M$44-Input!$M$78)-SUM($M122:P122),(Input!$M$44-Input!$M$78)/A4taxstdlife)) -> n/a
E123: 8 | O123: =IF(A4taxstdlife="n/a","n/a",IF(O$3>(A4taxstdlife+$E123),(Input!$N$44-Input!$N$78)-SUM($N123:N123),(Input!$N$44-Input!$N$78)/A4taxstdlife)) -> n/a | P123: =IF(A4taxstdlife="n/a","n/a",IF(P$3>(A4taxstdlife+$E123),(Input!$N$44-Input!$N$78)-SUM($N123:O123),(Input!$N$44-Input!$N$78)/A4taxstdlife)) -> n/a | Q123: =IF(A4taxstdlife="n/a","n/a",IF(Q$3>(A4taxstdlife+$E123),(Input!$N$44-Input!$N$78)-SUM($N123:P123),(Input!$N$44-Input!$N$78)/A4taxstdlife)) -> n/a
E124: 9 | P124: =IF(A4taxstdlife="n/a","n/a",IF(P$3>(A4taxstdlife+$E124),(Input!$O$44-Input!$O$78)-SUM($O124:O124),(Input!$O$44-Input!$O$78)/A4taxstdlife)) -> n/a | Q124: =IF(A4taxstdlife="n/a","n/a",IF(Q$3>(A4taxstdlife+$E124),(Input!$O$44-Input!$O$78)-SUM($O124:P124),(Input!$O$44-Input!$O$78)/A4taxstdlife)) -> n/a
E125: 10 | Q125: =IF(A4taxstdlife="n/a","n/a",IF(Q$3>(A4taxstdlife+$E125),(Input!$P$44-Input!$P$78)-SUM($P125:P125),(Input!$P$44-Input!$P$78)/A4taxstdlife)) -> n/a
E126: 11
C127: =Asset4 -> Public Lighting | G127: =-SUM(G114:G126) -> 0 | H127: 0 | I127: 0 | J127: 0 | K127: 0 | L127: 0 | M127: =IF(Input!M173>0, -SUM(M114:M126), 0) -> 0 | N127: =IF(Input!N173>0, -SUM(N114:N126), 0) -> 0 | O127: =IF(Input!O173>0, -SUM(O114:O126), 0) -> 0 | P127: =IF(Input!P173>0, -SUM(P114:P126), 0) -> 0 | Q127: =IF(Input!Q173>0, -SUM(Q114:Q126), 0) -> 0
B128: =Asset5 -> SCADA (5-year asset) | D128: Initial Asset Base | G128: =IF(G$3>A5taxremlife,A5taxvalue-SUM($F128:F128),IF(A5taxremlife="N/A","n/a",A5taxvalue/A5taxremlife)) -> n/a | H128: =IF(H$3>A5taxremlife,A5taxvalue-SUM($F128:G128),IF(A5taxremlife="N/A","n/a",A5taxvalue/A5taxremlife)) -> n/a | I128: =IF(I$3>A5taxremlife,A5taxvalue-SUM($F128:H128),IF(A5taxremlife="N/A","n/a",A5taxvalue/A5taxremlife)) -> n/a | J128: =IF(J$3>A5taxremlife,A5taxvalue-SUM($F128:I128),IF(A5taxremlife="N/A","n/a",A5taxvalue/A5taxremlife)) -> n/a | K128: =IF(K$3>A5taxremlife,A5taxvalue-SUM($F128:J128),IF(A5taxremlife="N/A","n/a",A5taxvalue/A5taxremlife)) -> n/a | L128: =IF(L$3>A5taxremlife,A5taxvalue-SUM($F128:K128),IF(A5taxremlife="N/A","n/a",A5taxvalue/A5taxremlife)) -> n/a | M128: =IF(M$3>A5taxremlife,A5taxvalue-SUM($F128:L128),IF(A5taxremlife="N/A","n/a",A5taxvalue/A5taxremlife)) -> n/a | N128: =IF(N$3>A5taxremlife,A5taxvalue-SUM($F128:M128),IF(A5taxremlife="N/A","n/a",A5taxvalue/A5taxremlife)) -> n/a | O128: =IF(O$3>A5taxremlife,A5taxvalue-SUM($F128:N128),IF(A5taxremlife="N/A","n/a",A5taxvalue/A5taxremlife)) -> n/a | P128: =IF(P$3>A5taxremlife,A5taxvalue-SUM($F128:O128),IF(A5taxremlife="N/A","n/a",A5taxvalue/A5taxremlife)) -> n/a | Q128: =IF(Q$3>A5taxremlife,A5taxvalue-SUM($F128:P128),IF(A5taxremlife="N/A","n/a",A5taxvalue/A5taxremlife)) -> n/a
D129: Capex in year | E129: 0
